{"text_format":"1","workbook":"xlsx","n_sheets":19,"sheets":["POSTS-MA","SEQ-PSTAB","SEQ-4Temp","POSTS25","POSTS30","ESGNPOSTS","POSTSPACING","PICILINKS","STD PLANS","SIGN","Mast Arm tab for Signal Plans","Delineator, Marker, Reference","Signs","SIGN TYPE SPECIAL","EXT & OVERLAY","OH STRUCT QUAN","Conc Rail Calc","SIGN CODES","ACTIVITIES"],"not_rendered":{"charts":0,"images":13,"macros":1,"external_links":2,"defined_names":33,"comments":9,"pivot_tables":0},"unopened":[],"bounds":{"document_bytes":16777216,"sheet_cells":100000,"rows_first":2000,"rows_last":500,"rows_between":2000,"halvings":0,"cell_chars":16384,"cell_head_chars":4096},"cells_cut":0,"cells_raw":0,"read":"whole","date_system":"1900"}

{"sheet":"POSTS-MA","index":0,"n_rows":279,"n_cols":22,"rows_kept":279,"cut":false,"hidden":true,"merged":[[1,1,1,4],[3,1,3,2],[2,3,2,4]]}
[]
[null,"STRUCTURAL DETAILS FOR SIGNAL MAST ARM MOUNTED SIGNS"]
[null,"HEIGHT ","LENGTH","STIFFENER"]
[null,"INCH",null,"QTY","SPACING"]
[null,24,24,2,{"$f":"IF(D5=\"X\",\"X\",mastarmspace(C5,D5))","v":12},{"$f":"(C5-((D5-1)*E5))/2","v":6},null,null,null,2,{"$f":"J5+1","v":3},4,5,6,7,8,9,10,11,12,13,14]
[null,24,{"$f":"C5+6","v":30},2,18,6,null,null,2,{"$f":"mastarmposts($I6*12,J$5*12,MAH,MAW,MAQ)","v":"2"},{"$f":"mastarmposts($I6*12,K$5*12,MAH,MAW,MAQ)","v":"2"},"2","3","3","3","4","4","4","5","5","5","5"]
[null,24,36,2,24,6,null,null,3,"2","2","2","3","3","3","4","4","5","5","5","5","5"]
[null,24,42,2,30,6,null,null,4,"2","2","2","3","3","3","4","4","5","5","5","5","6"]
[null,24,48,2,36,6,null,null,5,"2","2","2","3","4","4","5","5","5","5","5","5","6"]
[null,24,54,3,21,6,null,null,6,"X","X","2","3","4","4","5","5","5","5","5","5","6"]
[null,24,60,3,24,6,null,null,7,"X","X","X","4","4","5","5","5","5","5","5","5","6"]
[null,24,66,3,27,6]
[null,24,72,3,30,6,null,null,null,2,{"$f":"J13+1","v":3},4,5,6,7,8,9,10,11,12,13,14]
[null,24,78,3,33,6,null,null,2,{"$f":"mastarmposts($I14*12,J$5*12,MAH,MAW,MAS)","v":"12"},"24","36","24","30","36","27","30","36","30","33","36","36"]
[null,24,84,3,36,6,null,null,3,"12","24","36","24","30","36","27","30","27","30","33","36","36"]
[null,24,90,4,24,9,null,null,4,"12","24","36","24","30","36","27","30","27","30","33","36","30"]
[null,24,96,4,27,7.5,null,null,5,"12","24","36","24","18","24","21","24","27","30","33","36","30"]
[null,24,102,4,30,6,null,null,6,"X","X","36","24","18","24","21","24","27","30","33","36","30"]
[null,24,108,4,30,9,null,null,7,"X","X","X","15","18","18","21","24","27","30","33","36","30"]
[null,24,114,4,33,7.5]
[null,24,120,4,36,6]
[null,24,126,5,27,9]
[null,24,132,5,30,6]
[null,24,138,5,30,9]
[null,24,144,5,33,6]
[null,24,150,5,33,9]
[null,24,156,5,36,6]
[null,24,162,5,36,9]
[null,24,168,5,36,12]
[null,30,24,2,12,6]
[null,30,{"$f":"C30+6","v":30},2,18,6]
[null,30,36,2,24,6]
[null,30,42,2,30,6]
[null,30,48,2,36,6]
[null,30,54,3,21,6]
[null,30,60,3,24,6]
[null,30,66,3,27,6]
[null,30,72,3,30,6]
[null,30,78,3,33,6]
[null,30,84,3,36,6]
[null,30,90,4,24,9]
[null,30,96,4,27,7.5]
[null,30,102,4,30,6]
[null,30,108,4,30,9]
[null,30,114,5,24,9]
[null,30,120,5,27,6]
[null,30,126,5,27,9]
[null,30,132,5,30,6]
[null,30,138,5,30,9]
[null,30,144,5,33,6]
[null,30,150,5,33,9]
[null,30,156,5,36,6]
[null,30,162,5,36,9]
[null,30,168,5,36,12]
[null,36,24,2,12,6]
[null,36,{"$f":"C55+6","v":30},2,18,6]
[null,36,36,2,24,6]
[null,36,42,2,30,6]
[null,36,48,2,36,6]
[null,36,54,3,21,6]
[null,36,60,3,24,6]
[null,36,66,3,27,6]
[null,36,72,3,30,6]
[null,36,78,3,33,6]
[null,36,84,3,36,6]
[null,36,90,4,24,9]
[null,36,96,4,27,7.5]
[null,36,102,4,30,6]
[null,36,108,4,{"$f":"IF(D69=\"X\",\"X\",mastarmspace(C69,D69))","v":30},{"$f":"(C69-((D69-1)*E69))/2","v":9}]
[null,36,114,5,24,9]
[null,36,120,5,27,6]
[null,36,126,5,27,9]
[null,36,132,5,30,6]
[null,36,138,5,30,9]
[null,36,144,5,33,6]
[null,36,150,5,33,9]
[null,36,156,5,36,6]
[null,36,162,5,36,9]
[null,36,168,5,36,12]
[null,42,24,2,12,6]
[null,42,{"$f":"C80+6","v":30},2,18,6]
[null,42,36,2,24,6]
[null,42,42,2,30,6]
[null,42,48,2,36,6]
[null,42,54,3,21,6]
[null,42,60,3,24,6]
[null,42,66,3,27,6]
[null,42,72,3,30,6]
[null,42,78,3,33,6]
[null,42,84,3,36,6]
[null,42,90,4,24,9]
[null,42,96,4,27,7.5]
[null,42,102,4,30,6]
[null,42,108,4,30,9]
[null,42,114,5,24,9]
[null,42,120,5,27,6]
[null,42,126,5,27,9]
[null,42,132,5,30,6]
[null,42,138,5,30,9]
[null,42,144,5,33,6]
[null,42,150,5,33,9]
[null,42,156,5,36,6]
[null,42,162,6,30,6]
[null,42,168,6,30,9]
[null,48,24,2,12,6]
[null,48,{"$f":"C105+6","v":30},2,18,6]
[null,48,36,2,24,6]
[null,48,42,2,30,6]
[null,48,48,2,36,6]
[null,48,54,3,21,6]
[null,48,60,3,24,6]
[null,48,66,3,27,6]
[null,48,72,3,30,6]
[null,48,78,3,33,6]
[null,48,84,3,36,6]
[null,48,90,4,24,9]
[null,48,96,4,27,7.5]
[null,48,102,4,30,6]
[null,48,108,4,30,9]
[null,48,114,5,24,9]
[null,48,120,5,27,6]
[null,48,126,5,27,9]
[null,48,132,5,30,6]
[null,48,138,5,30,9]
[null,48,144,5,33,6]
[null,48,150,5,33,9]
[null,48,156,5,36,6]
[null,48,162,6,30,6]
[null,48,168,6,30,9]
[null,54,24,2,12,6]
[null,54,{"$f":"C130+6","v":30},2,18,6]
[null,54,36,2,24,6]
[null,54,42,2,{"$f":"IF(D133=\"X\",\"X\",mastarmspace(C133,D133))","v":30},{"$f":"(C133-((D133-1)*E133))/2","v":6}]
[null,54,48,2,36,6]
[null,54,54,3,21,6]
[null,54,60,3,24,6]
[null,54,66,4,18,6]
[null,54,72,4,18,9]
[null,54,78,4,21,7.5]
[null,54,84,4,24,6]
[null,54,90,5,18,9]
[null,54,96,5,21,6]
[null,54,102,5,21,9]
[null,54,108,5,24,6]
[null,54,114,5,24,9]
[null,54,120,5,27,6]
[null,54,126,5,27,9]
[null,54,132,5,30,6]
[null,54,138,5,30,9]
[null,54,144,5,33,6]
[null,54,150,5,33,9]
[null,54,156,5,36,6]
[null,54,162,6,30,6]
[null,54,168,6,30,9]
[null,60,24,2,12,6]
[null,60,{"$f":"C155+6","v":30},2,18,6]
[null,60,36,2,24,6]
[null,60,42,2,30,6]
[null,60,48,2,36,6]
[null,60,54,3,21,6]
[null,60,60,3,24,6]
[null,60,66,4,18,6]
[null,60,72,4,18,9]
[null,60,78,4,21,7.5]
[null,60,84,4,24,6]
[null,60,90,5,18,9]
[null,60,96,5,21,6]
[null,60,102,5,21,9]
[null,60,108,5,24,6]
[null,60,114,5,24,9]
[null,60,120,5,27,6]
[null,60,126,5,27,9]
[null,60,132,5,30,6]
[null,60,138,5,30,9]
[null,60,144,5,33,6]
[null,60,150,5,33,9]
[null,60,156,5,36,6]
[null,60,162,6,30,6]
[null,60,168,6,30,9]
[null,66,24,"X","X",{"$error":"#VALUE!"}]
[null,66,{"$f":"C180+6","v":30},"X","X",{"$error":"#VALUE!"}]
[null,66,36,"X","X",{"$error":"#VALUE!"}]
[null,66,42,2,30,6]
[null,66,48,2,36,6]
[null,66,54,3,21,6]
[null,66,60,3,24,6]
[null,66,66,4,18,6]
[null,66,72,4,18,9]
[null,66,78,4,21,7.5]
[null,66,84,4,24,6]
[null,66,90,5,18,9]
[null,66,96,5,21,6]
[null,66,102,5,21,9]
[null,66,108,5,24,6]
[null,66,114,5,24,9]
[null,66,120,5,27,6]
[null,66,126,5,{"$f":"IF(D197=\"X\",\"X\",mastarmspace(C197,D197))","v":27},{"$f":"(C197-((D197-1)*E197))/2","v":9}]
[null,66,132,5,30,6]
[null,66,138,5,30,9]
[null,66,144,5,33,6]
[null,66,150,5,33,9]
[null,66,156,5,36,6]
[null,66,162,6,30,6]
[null,66,168,6,30,9]
[null,72,24,"X","X",{"$error":"#VALUE!"}]
[null,72,{"$f":"C205+6","v":30},"X","X",{"$error":"#VALUE!"}]
[null,72,36,"X","X",{"$error":"#VALUE!"}]
[null,72,42,2,30,6]
[null,72,48,2,36,6]
[null,72,54,3,21,6]
[null,72,60,3,24,6]
[null,72,66,4,18,6]
[null,72,72,4,18,9]
[null,72,78,4,21,7.5]
[null,72,84,4,24,6]
[null,72,90,5,18,9]
[null,72,96,5,21,6]
[null,72,102,5,21,9]
[null,72,108,5,24,6]
[null,72,114,5,24,9]
[null,72,120,5,27,6]
[null,72,126,5,27,9]
[null,72,132,5,30,6]
[null,72,138,5,30,9]
[null,72,144,5,33,6]
[null,72,150,5,33,9]
[null,72,156,5,36,6]
[null,72,162,6,30,6]
[null,72,168,6,30,9]
[null,78,24,"X","X",{"$error":"#VALUE!"}]
[null,78,{"$f":"C230+6","v":30},"X","X",{"$error":"#VALUE!"}]
[null,78,36,"X","X",{"$error":"#VALUE!"}]
[null,78,42,"X","X",{"$error":"#VALUE!"}]
[null,78,48,"X","X",{"$error":"#VALUE!"}]
[null,78,54,4,12,9]
[null,78,60,4,15,7.5]
[null,78,66,4,18,6]
[null,78,72,4,18,9]
[null,78,78,4,21,7.5]
[null,78,84,4,24,6]
[null,78,90,4,24,9]
[null,78,96,4,27,7.5]
[null,78,102,5,21,9]
[null,78,108,5,24,6]
[null,78,114,5,24,9]
[null,78,120,5,27,6]
[null,78,126,5,27,9]
[null,78,132,5,30,6]
[null,78,138,5,30,9]
[null,78,144,5,33,6]
[null,78,150,5,33,9]
[null,78,156,5,36,6]
[null,78,162,6,30,6]
[null,78,168,6,30,9]
[null,84,24,"X","X",{"$error":"#VALUE!"}]
[null,84,{"$f":"C255+6","v":30},"X","X",{"$error":"#VALUE!"}]
[null,84,36,"X","X",{"$error":"#VALUE!"}]
[null,84,42,"X","X",{"$error":"#VALUE!"}]
[null,84,48,"X","X",{"$error":"#VALUE!"}]
[null,84,54,4,12,9]
[null,84,60,4,{"$f":"IF(D261=\"X\",\"X\",mastarmspace(C261,D261))","v":15},{"$f":"(C261-((D261-1)*E261))/2","v":7.5}]
[null,84,66,4,18,6]
[null,84,72,4,18,9]
[null,84,78,5,15,9]
[null,84,84,5,18,6]
[null,84,90,5,18,9]
[null,84,96,5,21,6]
[null,84,102,5,21,9]
[null,84,108,5,24,6]
[null,84,114,5,24,9]
[null,84,120,5,27,6]
[null,84,126,5,27,9]
[null,84,132,5,30,6]
[null,84,138,5,30,9]
[null,84,144,5,33,6]
[null,84,150,5,33,9]
[null,84,156,5,36,6]
[null,84,162,6,30,6]
[null,84,168,6,30,9]

{"sheet":"SEQ-PSTAB","index":1,"n_rows":93,"n_cols":16,"rows_kept":93,"cut":false,"hidden":false,"merged":[[57,3,57,4],[58,3,58,4],[54,3,54,4],[74,3,74,4],[71,3,71,4],[66,3,66,4],[67,3,67,4],[64,3,64,4],[65,3,65,4],[76,3,76,4],[42,3,42,4],[73,3,73,4],[72,3,72,4],[68,3,68,4],[69,3,69,4],[63,3,63,4],[62,3,62,4],[44,3,44,4],[43,3,43,4],[47,3,47,4],[48,3,48,4],[59,3,59,4],[60,3,60,4],[61,3,61,4],[50,3,50,4],[30,3,30,4],[14,3,14,4],[28,3,28,4],[15,3,15,4],[29,3,29,4],[16,3,16,4],[19,3,19,4],[25,3,25,4],[20,3,20,4],[21,3,21,4],[26,3,26,4],[40,3,40,4],[41,3,41,4],[24,3,24,4],[6,10,6,11],[7,10,7,11],[6,3,6,4],[7,3,7,4],[8,3,8,4],[9,3,9,4],[12,3,12,4],[35,3,35,4],[23,3,23,4],[10,3,10,4],[34,3,34,4],[13,3,13,4],[39,3,39,4],[38,3,38,4],[5,12,6,12],[0,1,0,2],[1,1,1,2],[2,1,2,2],[0,10,0,16],[1,10,1,16],[2,10,2,16],[5,2,7,2],[5,10,5,11],[5,3,5,4],[11,3,11,4],[27,3,27,4],[36,3,36,4],[17,3,17,4],[31,3,31,4],[75,3,75,4],[91,0,92,13],[18,3,18,4],[45,3,45,4],[22,3,22,4],[46,3,46,4],[32,3,32,4],[52,3,52,4],[53,3,53,4],[51,3,51,4],[55,3,55,4],[49,3,49,4],[56,3,56,4],[70,3,70,4],[33,3,33,4],[37,3,37,4]]}
[null,{"$f":"IF(G1=\"X\",\"Choose one---\",\"\")","v":"Choose one---"},null,null,{"$f":"IF(G1=\"X\",\"------->\",\"\")","v":"------->"},null,"X","STATEMENT OF ESTIMATED QUANTITIES",null,"<-------","Use this chart title if you are preparing a complete state project plan set."]
[null,{"$f":"IF(G2=\"X\",\"Choose one---\",\"\")","v":""},null,null,{"$f":"IF(G2=\"X\",\"------->\",\"\")","v":""},null," ","PERMANENT SIGNING TABULATION",null,"<-------","Use this chart title if your plan sheet set is part of a larger state project."]
[null,{"$f":"IF(G3=\"X\",\"Choose one---\",\"\")","v":""},null,null,{"$f":"IF(G3=\"X\",\"------->\",\"\")","v":""},null,null,"Custom Title - Type Here",null,"<-------","Use this chart title if your plan sheet set is part of a larger state project."]
[]
[null,null,null,null,null,null,null,"PERMANENT SIGNING SUMMARY",null,null,null,null,null,"ST"]
[null,null,"SHEET\nNO",null,null,null,null,null,null,null,"SP",null,"SP \n1010-001","TOTAL","x"]
[null,"TAB",null,"ITEM NO",null,null,null,"ITEM",null,"UNIT","2020-002",null,null,"SIGNING","x"]
[null,null,null,null,null,null,null,null,null,null,"QUANTITIES",null,"QUANTITIES","QUANTITIES","x"]
[null," ",null,2011.6010000000001,null,null,null,"AS BUILT",null,"LUMP SUM",0,null,null,null,"SIGNING"]
[null,null,null,2021.501,null,null,null,"MOBILIZATION",null,"LUMP SUM",null,null,null,null,"SIGNING"]
[null,"ST-A","ST2-ST5",2104.502,null,null,null,"REMOVE DELINEATOR / MARKER",null,"EACH",14,null,8,{"$f":"#REF!","v":{"$error":"#REF!"}},"X"]
[null,null,null,2104.502,null,"/01190",null,"REMOVE DELINEATOR / MARKER PANEL",null,"EACH",null,null,null,null,"SIGNING"]
[null,"ST-A","ST2-ST5",2104.502,null,"/01220",null,"REMOVE SIGN",null,"EACH",15,null,11,{"$f":"#REF!","v":{"$error":"#REF!"}},"X"]
[null,null,null,2104.502,null,null,null,"REMOVE SIGN TYPE SPECIAL",null,"EACH",null,null,null,null,"SIGNING"]
[null,null,null,2104.502,null,null,null,"REMOVE OVERHEAD SIGN",null,"EACH",{"$f":"#REF!","v":{"$error":"#REF!"}},null,null,null,"SIGNING"]
[null,null,null,2104.502,null,null,null,"REMOVE OVERHEAD BRIDGE MOUNTED SIGN",null,"EACH",{"$f":"#REF!","v":{"$error":"#REF!"}},null,null,null,"SIGNING"]
[null,null,null,2104.502,null,null,null,"REMOVE MONOTUBE SIGN",null,"EACH",{"$f":"#REF!","v":{"$error":"#REF!"}},null,null,null,"SIGNING"]
[null,null,null,2104.502,null,null,null,"REMOVE I BEAM SIGN",null,"EACH",{"$f":"#REF!","v":{"$error":"#REF!"}},null,null,null,"SIGNING"]
[null,null,null,2104.502,null,"/01440",null,"REMOVE SIGN LIGHTING SYSTEM",null,"EACH",{"$f":"#REF!","v":{"$error":"#REF!"}},null,null,null,"SIGNING"]
[null,null,null,2104.502,null,null,null,"REMOVE EXTRUDED SIGN PANEL",null,"EACH",null,null,null,null,"SIGNING"]
[null,"ST-A","ST2-ST5",2104.502,null,null,null,"REMOVE SIGN PANEL",null,"EACH",null,null,null,{"$f":"#REF!","v":{"$error":"#REF!"}},"X"]
[null,"ST-A","ST2",2104.502,null,null,null,"REMOVE SIGN PANEL TYPE SPECIAL",null,"EACH",{"$f":"#REF!","v":{"$error":"#REF!"}},null,1," ","SIGNING"]
[null,null,null,2104.502,null,null,null,"SALVAGE DELINEATOR / MARKER",null,"EACH",null,null,null,null,"SIGNING"]
[null,"ST-A","ST2-ST5",2104.502,null,"/03300"," ","SALVAGE SIGN",null,"EACH",{"$f":"M24+N24","v":{"$error":"#REF!"}},null,1,{"$f":"#REF!","v":{"$error":"#REF!"}},"X"]
[null,"ST-A","ST2-ST5",2104.502,null,"/03300"," ","SALVAGE SIGN TYPE SPECIAL",null,"EACH",{"$f":"M25+N25","v":{"$error":"#REF!"}},null,1,{"$f":"#REF!","v":{"$error":"#REF!"}},"X"]
[null,null,null,2104.502,null,null,null,"SALVAGE EXTRUDED SIGN PANEL",null,"EACH",null,null,null,null,"SIGNING"]
[" ","ST-A","ST2-ST5",2104.502,null,null,null,"SALVAGE SIGN PANEL",null,"EACH",null,null,null,{"$f":"#REF!","v":{"$error":"#REF!"}},"SIGNING"]
[null,null,null,2104.502,null,null,null,"SALVAGE SIGN PANEL TYPE SPECIAL",null,"EACH",0,null,null,null,"SIGNING"]
[null,null,null,2104.502,null,null,null,"SALVAGE OVERHEAD SIGN",null,"EACH",0,null,null,null,"SIGNING"]
[null,null,null,2104.502,null,null,null,"SALVAGE OVERHEAD BRIDGE MOUNTED SIGN",null,"EACH",0,null,null,null,"SIGNING"]
[null,null,null,2104.502,null,null,null,"SALVAGE MONOTUBE SIGN",null,"EACH",null,null,null,null,"SIGNING"]
[null,null,null,2104.502,null,null,null,"SALVAGE I-BEAM SIGN",null,"EACH",null,null,null,null,"SIGNING"]
[null,null,null,2104.5030000000002,null,null,null,"REMOVE SIGN WALKWAY",null,"LIN FT",{"$f":"#REF!","v":{"$error":"#REF!"}},null,null,null,"SIGNING"]
[null," ",null,2564.502,null,"/00040",null,"MODIFY POST",null,"EACH",0,null,null,null,"SIGNING"]
[null,null,null,2564.502,null,null,null,"INSTALL EXTRUDED SIGN PANEL",null,"EACH",0,null,null,null,"SIGNING"]
[null,"ST-A","ST2-ST5",2564.502,null,null,null,"INSTALL SIGN PANEL",null,"EACH",0,null,null,{"$f":"'SEQ-PSTAB'!P86","v":0},"SIGNING"]
[null,null,null,2564.502,null,null,null,"INSTALL SIGN PANEL TYPE SPECIAL",null,"EACH",0,null,null,null,"SIGNING"]
[null,null,null,2564.502,null,null,null,"EXTEND WALKWAY SUPPORT",null,"EACH",0,null,null,null,"SIGNING"]
[null,null,null,2564.502,null,null,null,"FRICTION FUSE",null,"EACH",0,null,null,null,"SIGNING"]
[null,null,null,2564.502,null,null,null,"KEEPER PLATE",null,"EACH",0,null,null,null,"SIGNING"]
[null,null,null,2564.502,null,null,null,"DELINEATOR TYPE SPECIAL",null,"EACH",null,null,null,null,"SIGNING"]
[null,null,null,2564.5100000000002,null,"/00010",null,"OVERHEAD SIGN STRUCTURE REPAIR",null,"HOUR",0,null,null,null,"SIGNING"]
[null,null,null,2564.518,null,null,null,"SIGN PANELS TYPE SPECIAL",null,"SQ FT",null,null,null,null,"SIGNING"]
[null,null,null,2564.6019999999999,null,"/01501",null,"INSTALL SIGN COLLAR",null,"EACH",0,null,null,null,"SIGNING"]
[null,null,null,2564.6019999999999,null,"/01505",null,"SIGN COLLAR",null,"EACH",0,null,null,null,"SIGNING"]
[null,"ST-A","ST2-ST5",2564.6019999999999,null,null,null,"INSTALL SIGN",null,"EACH",{"$f":"M46+N46","v":{"$error":"#REF!"}},null,1,{"$f":"#REF!","v":{"$error":"#REF!"}},"X"]
[null,null,null,2564.6019999999999,null,null,null,"INSTALL DELINEATOR / MARKER",null,"EACH",null,null,null,null,"SIGNING"]
[null,null,null,2564.6019999999999,null,"/01531",null,"FOUNDATION SPECIAL OH",null,"EACH",0,null,null,null,"SIGNING"]
[null,null,null,2564.6019999999999,null,"/01535",null,"REPAIR SIGN TYPE OH",null,"EACH",0,null,null,null,"SIGNING"]
[null," ",null,2564.6019999999999,null,"/01583",null,"REPOSITION SIGN PANEL",null,"EACH",0,null,null,null,"SIGNING"]
[null,null,null,2564.6019999999999,null,null,null,"INSTALL I-BEAM SIGN",null,"EACH",0,null,null,null,"SIGNING"]
[null,null,null,2564.6019999999999,null,null,null,"INSTALL MONOTUBE SIGN",null,"EACH",null,null,null,null,"SIGNING"]
[null,null,null,2564.6019999999999,null,null,null,"INSTALL OVERHEAD SIGN",null,"EACH",0,null,null,null,"SIGNING"]
[null,null,null,2564.6019999999999,null,null,null,"INSTALL OVERHEAD BRIDGE MOUNTED SIGN",null,"EACH",null,null,null,null,"SIGNING"]
[null,null,null,2564.6019999999999,null,null,null,"INSTALL SIGN TYPE SPECIAL",null,"EACH",null,null,null,null,"SIGNING"]
[null,null,null,2564.6019999999999,null,null,null,"INTERNALLY ILLUMINATED SIGN",null,"EACH",0,null,null,null,"SIGNING"]
[null,"ST-C","ST3,ST4",2564.6019999999999,null,null,null,"DELINEATOR/MARKER"," ","EACH",{"$f":"#REF!","v":{"$error":"#REF!"}},null,{"$f":"#REF!","v":{"$error":"#REF!"}},null,"SIGNING"]
[null,null,null,2564.6019999999999,null,null,null,"DELINEATOR/MARKER PANEL"," ","EACH",null,null,null,null,"SIGNING"]
[null,null,null,2564.6019999999999,null,null,null,"CONCRETE FOOTING (ROCK SOCKET)"," ","EACH",0,null,null,null,"SIGNING"]
[null,null,null,2546.607,null,null,null,"MEDIAN BARRIER FOOTING (SHAFT)"," ","CU YD",null,null,null,null,"SIGNING"]
[null,null,null,2546.607,null,null,null,"MEDIAN BARRIER FOOTING (SPREAD)"," ","CU YD",null,null,null,null,"SIGNING"]
[null,null,null,2546.607,null,null,null,"CONCRETE FOOTING (I-BEAM)"," ","CU YD",null,null,null,null,"SIGNING"]
[null,null,null,2546.607,null,null,null,"CONCRETE FOOTING (OVERHEAD SHAFT)"," ","CU YD",null,null,null,null,"SIGNING"]
[null,null,null,2546.607,null,null,null,"CONCRETE FOOTING (OVERHEAD SPREAD)"," ","CU YD",null,null,null,null,"SIGNING"]
[null,null,null,2546.607,null,null,null,"CONCRETE FOOTING (MONOTUBE)"," ","CU YD",null,null,null,null,"SIGNING"]
[null,null,null,2546.6080000000002,null,null,null,"STRUCTURAL STEEL - I-BEAM SIGN","(P)","POUND",null,null,null,null,"SIGNING"]
[null,null,null,2546.6080000000002,null,null,null,"STRUCTURAL STEEL - OVERHEAD SIGN POST","(P)","POUND",null,null,null,null,"SIGNING"]
[null,null,null,2546.6080000000002,null,null,null,"STRUCTURAL STEEL - OVERHEAD SIGN TRUSS","(P)","POUND",null,null,null,null,"SIGNING"]
[null,null,null,2546.6080000000002,null,null,null,"STRUCTURAL STEEL - OVERHEAD WALKWAY","(P)","POUND",null,null,null,null,"SIGNING"]
[null,null,null,2546.6080000000002,null,null,null,"STRUCTURAL STEEL - MONOTUBE SIGN","(P)","POUND",null,null,null,null,"SIGNING"]
[null,null,null,2546.6080000000002,null,null,null,"STRUCTURAL STEEL - BRIDGE MOUNTED TRUSS","(P)","POUND",null,null,null,null,"SIGNING"]
[null,null,null,2546.6080000000002,null,null,null,"STRUCTURAL STEEL - PANEL MOUNTING POST","(P)","POUND",null,null,null,null,"SIGNING"]
[null,null,null,2546.6179999999999,null,null,null,"SIGN"," ","SQ FT",null,null,null,null,"SIGNING"]
[null,null,null,2546.6179999999999,null,null,null,"SIGN PANEL"," ","SQ FT",null,null,null,null,"SIGNING"]
[null,null,null,2564.6179999999999,null,null,null,"SIGN PANEL OVERLAY"," ","SQ FT",null,null,null,null,"SIGNING"]
[null,null,null,2564.6179999999999,null,null,null,"EXTRUDED PANEL"," ","SQ FT",null,null,null,null,"SIGNING"]
[null,null,null,2564.6179999999999,null,null,null,"SIGN TYPE SPECIAL"," ","SQ FT",null,null,null,null,"SIGNING"]
[]
[null,"GENERAL NOTE:"]
[null,"(P) DENOTES PLAN QUANTITY",null,null,null,null,null,null,null,null,null,null,null,null,"X"]
[null,{"$f":"\"(3)  OTHER NOTES.\"","v":"(3)  OTHER NOTES."},null,null,null,null,null,null,null,null,null,null,null,null,"X"]
[null,{"$f":"\"(4)  OTHER NOTES.\"","v":"(4)  OTHER NOTES."},null,null,null,null,null,null,null,null,null,null,null,null,"X"]
[null,null,null,null,null,null,null,null,null,null,null,null,null,null,"x"]
["  GENERAL INFORMATION:",null,null,null,null,null,null,null,null,null,null,null,null,null,"X"]
["1.","MOUNTING HEIGHT IS MINIMUM (WITH A + 6 INCH TOLERANCE)",null,null,null,null,null,null,null,null,null,null,null,null,"X","X"]
["2.","SEE CURRENT MNDOT STANDARD SIGNS AND MARKINGS MANUAL FOR STANDARD SIGN DESIGNS, SPLICE PLATES,",null,null,null,null,null,null,null,null,null,null,null,null,"X"]
[null,"STRINGERS AND PUNCHING CODES.",null,null,null,null,null,null,null,null,null,null,null,null,"X"]
["3.","SEE PANEL LAYOUTS FOR DESIGNS OF PANEL OVERLAYS OR PANEL CODES THAT BEGIN WITH THE LETTER \"P\" (P1, P2 ETC.).",null,null,null,null,null,null,null,null,null,null,null,null,"X"]
["4.","SEE STANDARD PLANS AND DETAILS FOR SIGN STRUCTURE INSTALLATION AND PLACEMENT.",null,null,null,null,null,null,null,null,null,null,null,null,"X"]
[null,null,null,null,null,null,null,null,null,null,null,null,null,null,"X"]
[null,null,null,null,null,null,null,null,null,null,null,null,null,null,"X"]
["General information notes should be included on the same sheet as the PERMANENT SIGNING SUMMARY or SEQ in most SP's",null,null,null,null,null,null,null,null,null,null,null,null,null,"X"]
[null,null,null,null,null,null,null,null,null,null,null,null,null,null,"x"]

{"sheet":"SEQ-4Temp","index":2,"n_rows":8,"n_cols":8,"rows_kept":8,"cut":false,"hidden":true,"merged":[[4,1,4,6],[5,2,7,2],[4,7,4,8],[5,7,5,8],[6,7,6,8],[7,7,7,8]]}
[]
[]
[]
[]
[null,{"$f":"IF('SEQ-PSTAB'!G1<>\"\",'SEQ-PSTAB'!H1,IF('SEQ-PSTAB'!G2<>\"\",'SEQ-PSTAB'!H2,'SEQ-PSTAB'!H3))","v":"STATEMENT OF ESTIMATED QUANTITIES"},null,null,null,null,null,"X"]
[null,null,"SHEET\nNO",null,null,null,null,"TOTAL"]
[null,"TAB",null,"ITEM NO",null,"ITEM","UNIT","ESTIMATED"]
[null,null,null,null,null,null,null,"QUANTITIES"]

{"sheet":"POSTS25","index":3,"n_rows":412,"n_cols":5,"rows_kept":412,"cut":false,"hidden":true,"merged":[[1,1,1,4],[3,1,3,2],[2,3,3,3],[2,4,3,4]]}
[]
[null,"2.5# POSTS"]
[null,"HEIGHT ","LENGTH","V-POST","K-POST"]
[null,"INCH"]
[null,12,12,1,0]
[null,{"$f":"B5+6","v":18},12,1,0]
[null,24,12,1,0]
[null,30,12,1,0]
[null,36,12,2,0]
[null,42,12,2,0]
[null,48,12,2,0]
[null,54,12,2,0]
[null,60,12,2,1]
[null,66,12,2,1]
[null,72,12,2,1]
[null,78,12,2,1]
[null,84,12,2,1]
[null,90,12,2,1]
[null,96,12,2,1]
[null,102,12,2,1]
[null,108,12,2,1]
[null,114,12,2,1]
[null,120,12,2,1]
[null,126,12,2,1]
[null,132,12,2,1]
[null,138,12,2,1]
[null,144,12,2,1]
[null,150,12,2,1]
[null,12,18,1,0]
[null,{"$f":"B29+6","v":18},18,1,0]
[null,24,18,2,0]
[null,30,18,2,0]
[null,36,18,2,0]
[null,42,18,2,1]
[null,48,18,2,1]
[null,54,18,2,1]
[null,60,18,2,1]
[null,66,18,2,1]
[null,72,18,2,1]
[null,78,18,2,1]
[null,84,18,2,1]
[null,90,18,2,1]
[null,96,18,2,1]
[null,102,18,2,1]
[null,108,18,2,1]
[null,114,18,2,1]
[null,120,18,2,1]
[null,126,18,2,1]
[null,132,18,2,2]
[null,138,18,2,2]
[null,144,18,2,2]
[null,150,18,2,2]
[null,12,24,1,0]
[null,{"$f":"B53+6","v":18},24,2,0]
[null,24,24,2,0]
[null,30,24,2,0]
[null,36,24,2,1]
[null,42,24,2,1]
[null,48,24,2,1]
[null,54,24,2,1]
[null,60,24,2,1]
[null,66,24,2,1]
[null,72,24,2,1]
[null,78,24,2,1]
[null,84,24,2,1]
[null,90,24,2,1]
[null,96,24,2,1]
[null,102,24,2,1]
[null,108,24,2,1]
[null,114,24,2,2]
[null,120,24,2,2]
[null,126,24,2,2]
[null,132,24,2,2]
[null,138,24,2,2]
[null,144,24,2,2]
[null,150,24,2,2]
[null,12,30,1,0]
[null,{"$f":"B77+6","v":18},30,2,0]
[null,24,30,2,0]
[null,30,30,2,1]
[null,36,30,2,1]
[null,42,30,2,1]
[null,48,30,2,1]
[null,54,30,2,1]
[null,60,30,2,1]
[null,66,30,2,1]
[null,72,30,2,1]
[null,78,30,2,1]
[null,84,30,2,1]
[null,90,30,2,1]
[null,96,30,2,1]
[null,102,30,2,2]
[null,108,30,2,2]
[null,114,30,2,2]
[null,120,30,2,2]
[null,126,30,2,2]
[null,132,30,2,2]
[null,138,30,2,2]
[null,12,36,2,0]
[null,{"$f":"B99+6","v":18},36,2,0]
[null,24,36,2,1]
[null,30,36,2,1]
[null,36,36,2,1]
[null,42,36,2,1]
[null,48,36,2,1]
[null,54,36,2,1]
[null,60,36,2,1]
[null,66,36,2,1]
[null,72,36,2,1]
[null,78,36,2,1]
[null,84,36,2,1]
[null,90,36,2,2]
[null,96,36,2,2]
[null,102,36,2,2]
[null,108,36,2,2]
[null,114,36,2,2]
[null,120,36,2,2]
[null,12,42,2,0]
[null,{"$f":"B118+6","v":18},42,2,0]
[null,24,42,2,1]
[null,30,42,2,1]
[null,36,42,2,1]
[null,42,42,2,1]
[null,48,42,2,1]
[null,54,42,2,1]
[null,60,42,2,1]
[null,66,42,2,1]
[null,72,42,2,1]
[null,78,42,2,2]
[null,84,42,2,2]
[null,90,42,2,2]
[null,96,42,2,2]
[null,102,42,2,2]
[null,108,42,2,2]
[null,114,42,2,2]
[null,120,42,2,2]
[null,12,48,2,0]
[null,{"$f":"B137+6","v":18},48,2,1]
[null,24,48,2,1]
[null,30,48,2,1]
[null,36,48,2,1]
[null,42,48,2,1]
[null,48,48,2,1]
[null,54,48,2,1]
[null,60,48,2,1]
[null,66,48,2,1]
[null,72,48,2,2]
[null,78,48,2,2]
[null,84,48,2,2]
[null,90,48,2,2]
[null,96,48,2,2]
[null,102,48,2,2]
[null,108,48,2,2]
[null,12,54,1,0]
[null,{"$f":"B154+6","v":18},54,2,1]
[null,24,54,2,1]
[null,30,54,2,1]
[null,36,54,2,1]
[null,42,54,2,1]
[null,48,54,2,1]
[null,54,54,2,1]
[null,60,54,2,1]
[null,66,54,2,2]
[null,72,54,2,2]
[null,78,54,2,2]
[null,84,54,2,2]
[null,90,54,2,2]
[null,96,54,2,2]
[null,12,60,1,0]
[null,{"$f":"B169+6","v":18},60,2,1]
[null,24,60,2,1]
[null,30,60,2,1]
[null,36,60,2,1]
[null,42,60,2,1]
[null,48,60,2,1]
[null,54,60,2,1]
[null,60,60,2,2]
[null,66,60,2,2]
[null,72,60,2,2]
[null,78,60,2,2]
[null,84,60,2,2]
[null,90,60,2,2]
[null,12,66,1,0]
[null,{"$f":"B183+6","v":18},66,2,2]
[null,24,66,2,2]
[null,30,66,2,2]
[null,36,66,2,2]
[null,42,66,2,2]
[null,48,66,2,2]
[null,54,66,2,2]
[null,60,66,2,2]
[null,66,66,2,2]
[null,72,66,2,2]
[null,78,66,2,2]
[null,84,66,2,2]
[null,90,66,2,2]
[null,12,72,2,2]
[null,{"$f":"B197+6","v":18},72,2,2]
[null,24,72,2,2]
[null,30,72,2,2]
[null,36,72,2,2]
[null,42,72,2,2]
[null,48,72,2,2]
[null,54,72,2,2]
[null,60,72,2,2]
[null,66,72,2,2]
[null,72,72,2,2]
[null,78,72,2,2]
[null,84,72,2,2]
[null,12,78,2,2]
[null,{"$f":"B210+6","v":18},78,2,2]
[null,24,78,2,2]
[null,30,78,2,2]
[null,36,78,2,2]
[null,42,78,2,2]
[null,48,78,2,2]
[null,54,78,2,2]
[null,60,78,2,2]
[null,66,78,2,2]
[null,72,78,2,2]
[null,78,78,2,2]
[null,12,84,2,2]
[null,{"$f":"B222+6","v":18},84,2,2]
[null,24,84,2,2]
[null,30,84,2,2]
[null,36,84,2,2]
[null,42,84,2,2]
[null,48,84,2,2]
[null,54,84,2,2]
[null,60,84,2,2]
[null,66,84,2,2]
[null,72,84,2,2]
[null,12,90,2,2]
[null,{"$f":"B233+6","v":18},90,2,2]
[null,24,90,2,2]
[null,30,90,2,2]
[null,36,90,2,2]
[null,42,90,2,2]
[null,48,90,2,2]
[null,54,90,2,2]
[null,60,90,2,2]
[null,66,90,2,2]
[null,72,90,2,2]
[null,12,96,2,2]
[null,{"$f":"B244+6","v":18},96,2,2]
[null,24,96,2,2]
[null,30,96,2,2]
[null,36,96,2,2]
[null,42,96,2,2]
[null,48,96,2,2]
[null,54,96,2,2]
[null,60,96,2,2]
[null,66,96,2,2]
[null,12,102,2,2]
[null,{"$f":"B254+6","v":18},102,2,2]
[null,24,102,2,2]
[null,30,102,2,2]
[null,36,102,2,2]
[null,42,102,2,2]
[null,48,102,2,2]
[null,54,102,2,2]
[null,60,102,2,2]
[null,66,102,2,2]
[null,72,102,3,3]
[null,78,102,3,3]
[null,84,102,3,3]
[null,12,108,2,2]
[null,{"$f":"B267+6","v":18},108,2,2]
[null,24,108,2,2]
[null,30,108,2,2]
[null,36,108,2,2]
[null,42,108,2,2]
[null,48,108,2,2]
[null,54,108,2,2]
[null,60,108,2,2]
[null,66,108,3,3]
[null,72,108,3,3]
[null,78,108,3,3]
[null,84,108,3,3]
[null,12,114,2,2]
[null,{"$f":"B280+6","v":18},114,2,2]
[null,24,114,2,2]
[null,30,114,2,2]
[null,36,114,2,2]
[null,42,114,2,2]
[null,48,114,2,2]
[null,54,114,2,2]
[null,60,114,2,2]
[null,66,114,3,3]
[null,72,114,3,3]
[null,78,114,3,3]
[null,12,120,2,2]
[null,{"$f":"B292+6","v":18},120,2,2]
[null,24,120,2,2]
[null,30,120,2,2]
[null,36,120,2,2]
[null,42,120,2,2]
[null,48,120,2,2]
[null,54,120,2,2]
[null,60,120,3,3]
[null,66,120,3,3]
[null,72,120,3,3]
[null,78,120,3,3]
[null,12,126,2,2]
[null,{"$f":"B304+6","v":18},126,2,2]
[null,24,126,2,2]
[null,30,126,2,2]
[null,36,126,2,2]
[null,42,126,2,2]
[null,48,126,2,2]
[null,54,126,2,2]
[null,60,126,3,3]
[null,66,126,3,3]
[null,72,126,3,3]
[null,12,132,2,2]
[null,{"$f":"B315+6","v":18},132,2,2]
[null,{"$f":"B316+6","v":24},132,2,2]
[null,{"$f":"B317+6","v":30},132,2,2]
[null,{"$f":"B318+6","v":36},132,2,2]
[null,{"$f":"B319+6","v":42},132,2,2]
[null,12,138,2,2]
[null,{"$f":"B321+6","v":18},138,2,2]
[null,24,138,2,2]
[null,30,138,2,2]
[null,36,138,2,2]
[null,42,138,2,2]
[null,48,138,2,2]
[null,54,138,3,3]
[null,60,138,3,3]
[null,66,138,3,3]
[null,12,144,2,2]
[null,{"$f":"B331+6","v":18},144,2,2]
[null,24,144,2,2]
[null,30,144,2,2]
[null,36,144,2,2]
[null,42,144,2,2]
[null,48,144,2,2]
[null,54,144,3,3]
[null,60,144,3,3]
[null,66,144,3,3]
[null,72,144,4,4]
[null,78,144,4,4]
[null,84,144,4,4]
[null,12,150,2,2]
[null,{"$f":"B344+6","v":18},150,2,2]
[null,24,150,2,2]
[null,30,150,2,2]
[null,36,150,2,2]
[null,42,150,2,2]
[null,48,150,2,2]
[null,54,150,3,3]
[null,60,150,3,3]
[null,66,150,3,3]
[null,72,150,4,4]
[null,78,150,4,4]
[null,12,156,2,2]
[null,{"$f":"B356+6","v":18},156,2,2]
[null,24,156,2,2]
[null,30,156,2,2]
[null,36,156,2,2]
[null,42,156,2,2]
[null,48,156,2,2]
[null,54,156,3,3]
[null,60,156,3,3]
[null,66,156,4,4]
[null,72,156,4,4]
[null,78,156,4,4]
[null,12,162,2,2]
[null,{"$f":"B368+6","v":18},162,2,2]
[null,24,162,2,2]
[null,30,162,2,2]
[null,36,162,2,2]
[null,42,162,2,2]
[null,48,162,3,3]
[null,54,162,3,3]
[null,60,162,3,3]
[null,66,162,4,4]
[null,72,162,4,4]
[null,78,162,4,4]
[null,12,168,2,2]
[null,{"$f":"B380+6","v":18},168,2,2]
[null,24,168,2,2]
[null,30,168,2,2]
[null,36,168,2,2]
[null,42,168,2,2]
[null,48,168,3,3]
[null,54,168,3,3]
[null,60,168,3,3]
[null,66,168,4,4]
[null,72,168,4,4]
[null,12,174,2,2]
[null,{"$f":"B391+6","v":18},174,2,2]
[null,24,174,2,2]
[null,30,174,2,2]
[null,36,174,2,2]
[null,42,174,2,2]
[null,48,174,3,3]
[null,54,174,3,3]
[null,60,174,3,3]
[null,66,174,4,4]
[null,72,174,4,4]
[null,12,180,2,2]
[null,{"$f":"B402+6","v":18},180,2,2]
[null,24,180,2,2]
[null,30,180,2,2]
[null,36,180,2,2]
[null,42,180,2,2]
[null,48,180,3,3]
[null,54,180,3,3]
[null,60,180,4,4]
[null,66,180,4,4]
[null,72,180,4,4]

{"sheet":"POSTS30","index":4,"n_rows":432,"n_cols":5,"rows_kept":432,"cut":false,"hidden":true,"merged":[[1,1,1,4],[3,1,3,2],[2,3,3,3],[2,4,3,4]]}
[]
[null,"3.0# POSTS"]
[null,"HEIGHT ","LENGTH","V-POST","K-POST"]
[null,"INCH"]
[null,12,12,1,0]
[null,18,12,1,0]
[null,24,12,1,0]
[null,30,12,1,0]
[null,36,12,2,0]
[null,42,12,2,0]
[null,48,12,2,0]
[null,54,12,2,0]
[null,60,12,2,0]
[null,66,12,2,0]
[null,72,12,2,1]
[null,78,12,2,1]
[null,84,12,2,1]
[null,90,12,2,1]
[null,96,12,2,1]
[null,102,12,2,1]
[null,108,12,2,1]
[null,114,12,2,1]
[null,120,12,2,1]
[null,126,12,2,1]
[null,132,12,2,1]
[null,138,12,2,1]
[null,144,12,2,1]
[null,150,12,2,1]
[null,12,18,1,0]
[null,18,18,1,0]
[null,24,18,1,0]
[null,30,18,2,0]
[null,36,18,2,0]
[null,42,18,2,0]
[null,48,18,2,1]
[null,54,18,2,1]
[null,60,18,2,1]
[null,66,18,2,1]
[null,72,18,2,1]
[null,78,18,2,1]
[null,84,18,2,1]
[null,90,18,2,1]
[null,96,18,2,1]
[null,102,18,2,1]
[null,108,18,2,1]
[null,114,18,2,1]
[null,120,18,2,1]
[null,126,18,2,1]
[null,132,18,2,1]
[null,138,18,2,2]
[null,144,18,2,2]
[null,150,18,2,2]
[null,12,24,1,0]
[null,18,24,1,0]
[null,24,24,2,0]
[null,30,24,2,0]
[null,36,24,2,0]
[null,42,24,2,1]
[null,48,24,2,1]
[null,54,24,2,1]
[null,60,24,2,1]
[null,66,24,2,1]
[null,72,24,2,1]
[null,78,24,2,1]
[null,84,24,2,1]
[null,90,24,2,1]
[null,96,24,2,1]
[null,102,24,2,1]
[null,108,24,2,1]
[null,114,24,2,2]
[null,120,24,2,2]
[null,126,24,2,2]
[null,132,24,2,2]
[null,138,24,2,2]
[null,144,24,2,2]
[null,150,24,2,2]
[null,12,30,1,0]
[null,18,30,2,0]
[null,24,30,2,0]
[null,30,30,2,0]
[null,36,30,2,1]
[null,42,30,2,1]
[null,48,30,2,1]
[null,54,30,2,1]
[null,60,30,2,1]
[null,66,30,2,1]
[null,72,30,2,1]
[null,78,30,2,1]
[null,84,30,2,1]
[null,90,30,2,1]
[null,96,30,2,1]
[null,102,30,2,2]
[null,108,30,2,2]
[null,114,30,2,2]
[null,120,30,2,2]
[null,126,30,2,2]
[null,132,30,2,2]
[null,138,30,2,2]
[null,144,30,2,2]
[null,12,36,2,0]
[null,18,36,2,0]
[null,24,36,2,0]
[null,30,36,2,1]
[null,36,36,2,1]
[null,42,36,2,1]
[null,48,36,2,1]
[null,54,36,2,1]
[null,60,36,2,1]
[null,66,36,2,1]
[null,72,36,2,1]
[null,78,36,2,1]
[null,84,36,2,1]
[null,90,36,2,2]
[null,96,36,2,2]
[null,102,36,2,2]
[null,108,36,2,2]
[null,114,36,2,2]
[null,120,36,2,2]
[null,126,36,2,2]
[null,132,36,2,2]
[null,12,42,2,0]
[null,18,42,2,0]
[null,24,42,2,1]
[null,30,42,2,1]
[null,36,42,2,1]
[null,42,42,2,1]
[null,48,42,2,1]
[null,54,42,2,1]
[null,60,42,2,1]
[null,66,42,2,1]
[null,72,42,2,1]
[null,78,42,2,1]
[null,84,42,2,2]
[null,90,42,2,2]
[null,96,42,2,2]
[null,102,42,2,2]
[null,108,42,2,2]
[null,114,42,2,2]
[null,120,42,2,2]
[null,12,48,2,0]
[null,18,48,2,0]
[null,24,48,2,1]
[null,30,48,2,1]
[null,36,48,2,1]
[null,42,48,2,1]
[null,48,48,2,1]
[null,54,48,2,1]
[null,60,48,2,1]
[null,66,48,2,1]
[null,72,48,2,1]
[null,78,48,2,2]
[null,84,48,2,2]
[null,90,48,2,2]
[null,96,48,2,2]
[null,102,48,2,2]
[null,108,48,2,2]
[null,12,54,2,0]
[null,18,54,2,1]
[null,24,54,2,1]
[null,30,54,2,1]
[null,36,54,2,1]
[null,42,54,2,1]
[null,48,54,2,1]
[null,54,54,2,1]
[null,60,54,2,1]
[null,66,54,2,1]
[null,72,54,2,2]
[null,78,54,2,2]
[null,84,54,2,2]
[null,90,54,2,2]
[null,96,54,2,2]
[null,102,54,2,2]
[null,12,60,2,0]
[null,18,60,2,1]
[null,24,60,2,1]
[null,30,60,2,1]
[null,36,60,2,1]
[null,42,60,2,1]
[null,48,60,2,1]
[null,54,60,2,1]
[null,60,60,2,1]
[null,66,60,2,2]
[null,72,60,2,2]
[null,78,60,2,2]
[null,84,60,2,2]
[null,90,60,2,2]
[null,96,60,2,2]
[null,12,66,3,0]
[null,18,66,2,2]
[null,24,66,2,2]
[null,30,66,2,2]
[null,36,66,2,2]
[null,42,66,2,2]
[null,48,66,2,2]
[null,54,66,2,2]
[null,60,66,2,2]
[null,66,66,2,2]
[null,72,66,2,2]
[null,78,66,2,2]
[null,84,66,2,2]
[null,90,66,2,2]
[null,12,72,3,0]
[null,18,72,2,2]
[null,24,72,2,2]
[null,30,72,2,2]
[null,36,72,2,2]
[null,42,72,2,2]
[null,48,72,2,2]
[null,54,72,2,2]
[null,60,72,2,2]
[null,66,72,2,2]
[null,72,72,2,2]
[null,78,72,2,2]
[null,84,72,2,2]
[null,12,78,3,0]
[null,18,78,2,2]
[null,24,78,2,2]
[null,30,78,2,2]
[null,36,78,2,2]
[null,42,78,2,2]
[null,48,78,2,2]
[null,54,78,2,2]
[null,60,78,2,2]
[null,66,78,2,2]
[null,72,78,2,2]
[null,78,78,2,2]
[null,12,84,3,0]
[null,18,84,2,2]
[null,24,84,2,2]
[null,30,84,2,2]
[null,36,84,2,2]
[null,42,84,2,2]
[null,48,84,2,2]
[null,54,84,2,2]
[null,60,84,2,2]
[null,66,84,2,2]
[null,72,84,2,2]
[null,78,84,2,2]
[null,12,90,3,0]
[null,18,90,2,2]
[null,24,90,2,2]
[null,30,90,2,2]
[null,36,90,2,2]
[null,42,90,2,2]
[null,48,90,2,2]
[null,54,90,2,2]
[null,60,90,2,2]
[null,66,90,2,2]
[null,72,90,2,2]
[null,12,96,3,0]
[null,18,96,2,2]
[null,24,96,2,2]
[null,30,96,2,2]
[null,36,96,2,2]
[null,42,96,2,2]
[null,48,96,2,2]
[null,54,96,2,2]
[null,60,96,2,2]
[null,66,96,2,2]
[null,72,96,2,2]
[null,12,102,3,0]
[null,18,102,2,2]
[null,24,102,2,2]
[null,30,102,2,2]
[null,36,102,2,2]
[null,42,102,2,2]
[null,48,102,2,2]
[null,54,102,2,2]
[null,60,102,2,2]
[null,66,102,2,2]
[null,72,102,3,3]
[null,78,102,3,3]
[null,84,102,3,3]
[null,90,102,3,3]
[null,96,102,3,3]
[null,12,108,3,0]
[null,18,108,2,2]
[null,24,108,2,2]
[null,30,108,2,2]
[null,36,108,2,2]
[null,42,108,2,2]
[null,48,108,2,2]
[null,54,108,2,2]
[null,60,108,2,2]
[null,66,108,2,2]
[null,72,108,3,3]
[null,78,108,3,3]
[null,84,108,3,3]
[null,90,108,3,3]
[null,12,114,3,0]
[null,18,114,2,2]
[null,24,114,2,2]
[null,30,114,2,2]
[null,36,114,2,2]
[null,42,114,2,2]
[null,48,114,2,2]
[null,54,114,2,2]
[null,60,114,2,2]
[null,66,114,3,3]
[null,72,114,3,3]
[null,78,114,3,3]
[null,84,114,3,3]
[null,12,120,3,0]
[null,18,120,2,2]
[null,24,120,2,2]
[null,30,120,2,2]
[null,36,120,2,2]
[null,42,120,2,2]
[null,48,120,2,2]
[null,54,120,2,2]
[null,60,120,2,2]
[null,66,120,3,3]
[null,72,120,3,3]
[null,78,120,3,3]
[null,12,126,2,2]
[null,18,126,2,2]
[null,24,126,2,2]
[null,30,126,2,2]
[null,36,126,2,2]
[null,42,126,2,2]
[null,48,126,2,2]
[null,54,126,2,2]
[null,60,126,2,2]
[null,66,126,3,3]
[null,72,126,3,3]
[null,78,126,3,3]
[null,12,132,2,2]
[null,18,132,2,2]
[null,24,132,2,2]
[null,30,132,2,2]
[null,36,132,2,2]
[null,42,132,2,2]
[null,48,132,2,2]
[null,54,132,2,2]
[null,60,132,3,3]
[null,66,132,3,3]
[null,72,132,3,3]
[null,12,138,2,2]
[null,18,138,2,2]
[null,24,138,2,2]
[null,30,138,2,2]
[null,36,138,2,2]
[null,42,138,2,2]
[null,48,138,2,2]
[null,54,138,2,2]
[null,60,138,3,3]
[null,66,138,3,3]
[null,72,138,3,3]
[null,12,144,2,2]
[null,18,144,2,2]
[null,24,144,2,2]
[null,30,144,2,2]
[null,36,144,2,2]
[null,42,144,2,2]
[null,48,144,2,2]
[null,54,144,2,2]
[null,60,144,3,3]
[null,66,144,3,3]
[null,72,144,3,3]
[null,78,144,4,4]
[null,84,144,4,4]
[null,12,150,2,2]
[null,18,150,2,2]
[null,24,150,2,2]
[null,30,150,2,2]
[null,36,150,2,2]
[null,42,150,2,2]
[null,48,150,2,2]
[null,54,150,3,3]
[null,60,150,3,3]
[null,66,150,3,3]
[null,72,150,4,4]
[null,78,150,4,4]
[null,84,150,4,4]
[null,12,156,2,2]
[null,18,156,2,2]
[null,24,156,2,2]
[null,30,156,2,2]
[null,36,156,2,2]
[null,42,156,2,2]
[null,48,156,2,2]
[null,54,156,3,3]
[null,60,156,3,3]
[null,66,156,3,3]
[null,72,156,4,4]
[null,78,156,4,4]
[null,12,162,2,2]
[null,18,162,2,2]
[null,24,162,2,2]
[null,30,162,2,2]
[null,36,162,2,2]
[null,42,162,2,2]
[null,48,162,2,2]
[null,54,162,3,3]
[null,60,162,3,3]
[null,66,162,3,3]
[null,72,162,4,4]
[null,78,162,4,4]
[null,12,168,2,2]
[null,18,168,2,2]
[null,24,168,2,2]
[null,30,168,2,2]
[null,36,168,2,2]
[null,42,168,2,2]
[null,48,168,2,2]
[null,54,168,3,3]
[null,60,168,3,3]
[null,66,168,4,4]
[null,72,168,4,4]
[null,78,168,4,4]
[null,12,174,2,2]
[null,18,174,2,2]
[null,24,174,2,2]
[null,30,174,2,2]
[null,36,174,2,2]
[null,42,174,2,2]
[null,48,174,3,3]
[null,54,174,3,3]
[null,60,174,3,3]
[null,66,174,4,4]
[null,72,174,4,4]
[null,12,180,2,2]
[null,18,180,2,2]
[null,24,180,2,2]
[null,30,180,2,2]
[null,36,180,2,2]
[null,42,180,2,2]
[null,48,180,3,3]
[null,54,180,3,3]
[null,60,180,3,3]
[null,66,180,4,4]
[null,72,180,4,4]

{"sheet":"ESGNPOSTS","index":5,"n_rows":27,"n_cols":5,"rows_kept":27,"cut":false,"hidden":true,"merged":[[3,1,3,4],[1,1,1,4]]}
[]
[null,"E SIGN POST SPACING"]
[null,"WIDTH","2 POSTS","3 POSTS","4 POSTS"]
[null,"INCH"]
[null,48,30]
[null,{"$f":"B5+6","v":54},30]
[null,{"$f":"B6+6","v":60},36]
[null,66,36]
[null,72,42]
[null,78,48]
[null,84,48]
[null,90,54]
[null,96,54]
[null,102,null,36]
[null,108,null,36]
[null,114,null,42]
[null,120,null,42]
[null,126,null,42]
[null,132,null,48]
[null,138,null,48]
[null,144,null,54]
[null,150,null,null,42]
[null,156,null,null,42]
[null,162,null,null,42]
[null,168,null,null,42]
[null,174,null,null,48]
[null,180,null,null,48]

{"sheet":"POSTSPACING","index":6,"n_rows":29,"n_cols":5,"rows_kept":29,"cut":false,"hidden":true,"merged":[[3,1,3,4],[1,1,1,4]]}
[]
[null,"SIGN POST SPACING"]
[null,"WIDTH","2 POSTS","3 POSTS","4 POSTS"]
[null,"INCH"]
[null,36,24]
[null,{"$f":"B5+6","v":42},30]
[null,48,30]
[null,54,30]
[null,60,36]
[null,66,42]
[null,72,42]
[null,78,54]
[null,84,54]
[null,90,54]
[null,96,54]
[null,102,60,45]
[null,108,66,45]
[null,114,66,45]
[null,120,72,45]
[null,126,78,45]
[null,132,78,45]
[null,138,78,48]
[null,144,90,51,45]
[null,150,90,54,45]
[null,156,90,54,45]
[null,162,96,57,48]
[null,168,96,60,48]
[null,174,102,63,54]
[null,180,108,63,54]

{"sheet":"PICILINKS","index":7,"n_rows":295,"n_cols":8,"rows_kept":295,"cut":false,"hidden":true,"merged":[]}
["Rev","Item_Number","Short_Description","Units_Code"]
[null,"2102.501/00010","PAVEMENT MARKING REMOVAL","S F"]
["F","2104.509/00170","REMOVE DELINEATOR","EACH","DELREM"]
["F","2104.509/00180","REMOVE MARKER","EACH"]
[null,"2104.509/00199","REMOVE SIGN","EACH"]
[null,"2104.509/00200","REMOVE SIGN TYPE A (BRIDGE MOUNTED)","EACH"]
["x","2104.509/00201","REMOVE SIGN TYPE A","EACH","AREM","ABASRM"]
["F","2104.509/00203","REMOVE SIGN TYPE C","EACH"]
["F","2104.509/00205","REMOVE SIGN TYPE D","EACH","DREM"]
[null,"2104.509/00206","REMOVE SIGN TYPE EA","EACH"]
[null,"2104.509/00207","REMOVE SIGN TYPE EO","EACH"]
[null,"2104.509/00208","REMOVE SIGN TYPE OH (BRIDGE MOUNTED)","EACH"]
[null,"2104.509/00209","REMOVE SIGN TYPE OH","EACH"]
[null,"2104.509/00210","REMOVE SIGN TYPE D (BRIDGE MOUNTED)","EACH"]
[null,"2104.509/00220","REMOVE SIGN TYPE SPECIAL","EACH","AEXTRM"]
[null,"2104.509/00250","REMOVE SIGN PANEL OVERLAY TYPE A","EACH"]
[null,"2104.509/00251","REMOVE SIGN PANEL OVERLAY TYPE OH","EACH"]
[null,"2104.509/00252","REMOVE SIGN PANEL OVERLAY TYPE EA","EACH"]
[null,"2104.509/00253","REMOVE SIGN PANEL OVERLAY TYPE EO","EACH"]
[null,"2104.509/00410","REMOVE SIGN BASE","EACH"]
[null,"2104.509/00411","REMOVE SIGN BASE-TYPE OH","EACH"]
[null,"2104.509/00412","REMOVE SIGN BASE-TYPE A","EACH","ABASRM"]
[null,"2104.509/00497","REMOVE SIGN PANEL TYPE C","EACH"]
[null,"2104.509/00498","REMOVE SIGN PANEL TYPE D","EACH"]
[null,"2104.509/00499","REMOVE SIGN PANEL TYPE A","EACH",null,"AEXTRM"]
[null,"2104.509/00500","REMOVE SIGN PANEL TYPE OH","EACH"]
[null,"2104.509/00660","REMOVE HISTORIC PLAQUE","EACH"]
[null,"2104.509/00700","REMOVE WOOD INFORMATION SIGN","EACH"]
[null,"2104.523/00067","SALVAGE HISTORIC MARKER","EACH"]
[null,"2104.523/00068","SALVAGE HISTORIC PLAQUE","EACH"]
[null,"2104.523/00069","SALVAGE DEDICATION PLAQUE","EACH"]
["F","2104.523/00072","SALVAGE MARKER","EACH","DELS&I"]
["F","2104.523/00075","SALVAGE DELINEATOR","EACH","DELS&I"]
[null,"2104.523/00078","SALVAGE GUIDE POST TYPE A","EACH"]
[null,"2104.523/00080","SALVAGE GUIDE POST TYPE B","EACH"]
[null,"2104.523/00475","SALVAGE PED PUSH BUTTON AND SIGN","EACH"]
[null,"2104.523/00530","SALVAGE R10-10 SIGN","EACH"]
[null,"2104.523/00531","SALVAGE R11-2 SIGN","EACH"]
[null,"2104.523/00537","SALVAGE SIGN SUPPORT","EACH"]
[null,"2104.523/00538","SALVAGE COMMERCIAL SIGN","EACH"]
[null,"2104.523/00539","SALVAGE SIGN","EACH"]
["x","2104.523/00540","SALVAGE SIGN TYPE A","EACH","ASAL","AS&IHP"]
["x","2104.523/00543","SALVAGE SIGN TYPE C","EACH","CS&I","CSAL"]
["x","2104.523/00544","SALVAGE SIGN TYPE D","EACH","DS&I","DSAL"]
[null,"2104.523/00547","SALVAGE SIGN TYPE EA","EACH"]
[null,"2104.523/00548","SALVAGE SIGN TYPE EO","EACH"]
[null,"2104.523/00549","SALVAGE SIGN TYPE OH (BR MOUNTED)","EACH"]
[null,"2104.523/00550","SALVAGE SIGN TYPE OH","EACH"]
[null,"2104.523/00560","SALVAGE SIGN TYPE SPECIAL","EACH"]
[null,"2104.523/00593","SALVAGE SIGN PANEL TYPE A","EACH","ASPNLSAL","ASPNLIN","ASPNLSAL"]
[null,"2104.523/00594","SALVAGE SIGN PANEL TYPE A (EXTRUD)","EACH","AEXTSA","AEXTRM","ASPNLSAL"]
[null,"2104.523/00595","SALVAGE SIGN PANEL TYPE A (FLT SHT)","EACH"]
[null,"2104.523/00598","SALVAGE SIGN PANEL TYPE EA","EACH"]
[null,"2104.523/00600","SALVAGE SIGN PANEL TYPE EO","EACH"]
[null,"2104.523/00601","SALVAGE SIGN PANEL TYPE OH","EACH"]
[null,"2104.523/00605","SALVAGE SIGN PANEL TP OH (FLT SHT)","EACH"]
[null,"2104.523/00606","SALVAGE SIGN PANEL TYPE C","EACH"]
[null,"2104.523/00608","SALVAGE SIGN PANEL TYPE D","EACH"]
[null,"2104.523/00610","SALVAGE SIGN PANEL TYPE D (BR MTD)","EACH"]
[null,"2104.523/00652","SALVAGE SIGN POST TYPE B","EACH"]
[null,"2104.602/00025","RELOCATE COMMERCIAL SIGN","EACH"]
[null,"2232.602/00010","MILLED RUMBLE STRIPS","EACH"]
[null,"2232.603/00025","MILLED RUMBLE STRIPS","L F"]
[null,"2232.603/00030","MILLED RUMBLE STRIPS-INTERMITTENT","L F"]
[null,"2232.603/00035","MILLED RUMBLE STRIPS-CENTERLINE","L F"]
[null,"2554.602/00080","REPLACE DELINEATOR TYPE SPEC (NEW)","EACH"]
[null,"2554.602/00081","REPLACE DELINEATOR TYPE SPEC(SALV)","EACH"]
[null,"2563.601/00210","STOP SIGN RELOCATION","LS"]
[null,"2563.601/00220","SIGN REMOVAL","LS"]
[null,"2563.613/01200","SIGNS BY SQUARE INCH","UDAY"]
[null,"2563.613/01220","24\"X24\" SIGN","UDAY"]
[null,"2563.613/01221","24\"X24\" SIGN WITH SUPPORTS","UDAY"]
[null,"2563.613/01441","4'X4' SIGN WITH SUPPORTS","UDAY"]
[null,"2563.618/00011","CONSTRUCTION SIGN-SPECIAL","S F"]
[null,"2563.618/00024","FURNISH, INSTALL & REMOVE TYPE D SIGNS","S F"]
[null,"2563.618/00030","SIGN PANEL COVER","S F"]
[null,"2564.511/00010","CONCRETE FOOTINGS (TYPE OH SPREAD)","C Y"]
[null,"2564.511/00011","CONCRETE FOOTINGS (TYPE A SIGNS)","C Y"]
[null,"2564.511/00012","CONCRETE FOOTINGS (TYPE OH SHAFT)","C Y"]
[null,"2564.511/00013","CONCRETE FOOTINGS DESIGN SPECIAL","C Y"]
[null,"2564.515/00010","SIGN SUPPORT","EACH"]
[null,"2564.515/00011","SIGN SUPPORT TYPE A","EACH"]
[null,"2564.515/00020","SIGN SUPPORT SIGN OH","EACH"]
[null,"2564.515/00030","SIGN SUPPORT CANTILEVER","EACH"]
["x","2564.522/00111","STRUCT STEEL-POSTS FOR TYPE A SIGNS","LB","AS&IHP","ASIGNHP"]
[null,"2564.522/00121","STRUCT STEEL-POSTS FOR OH SIGNS (A)","LB"]
[null,"2564.522/00122","STRUCT STEEL-POSTS FOR OH SIGNS (B)","LB"]
[null,"2564.522/00221","STRUCT STEEL-TRUSSES FOR OH SIGNS (A)","LB"]
[null,"2564.522/00222","STRUCT STEEL-TRUSSES FOR OH SIGNS (B)","LB"]
[null,"2564.522/00225","STR STEEL-TRUSSES FOR OH SIGNS BR MTD","LB"]
[null,"2564.522/00226","STR STEEL-TRUS FOR OH SIGNS (A) BR MTD","LB"]
[null,"2564.522/00228","STR STEEL-TRUSSES FOR A SIGNS BR MTD","LB"]
[null,"2564.522/00251","STR STEEL-SIGN CMS 100 A (BR MTD)","LB"]
[null,"2564.522/00322","STR STEEL-WLKWY SPRT FOR OH SIGNS (B)","LB"]
[null,"2564.522/00422","STR STEEL-WLKWY GRTNG FOR OH SIGNS (B)","LB"]
[null,"2564.522/00522","STR STEEL-PANEL MT PST FOR OH SIGNS (B)","LB"]
[null,"2564.522/00530","STR STEEL-SIGN BRKT OH SIGNS (B)","LB"]
["x","2564.524/00010","MODIFY POST","EACH","APSTMOD"]
[null,"2564.531/00105","SIGN PANELS TYPE SPECIAL","S F"]
["x","2564.531/00110","SIGN PANELS TYPE A","S F","ASPNL","OL","AEXT","ASIGNHP"]
["x","2564.531/00111","SIGN PANELS TYPE A (EXTRUDED)","S F"]
["x","2564.531/00112","SIGN PANELS TYPE A (FLAT SHEET)","S F"]
["x","2564.531/00130","SIGN PANELS TYPE C","S F","CSIGN"]
["x","2564.531/00140","SIGN PANELS TYPE D","S F","DSIGN","OL"]
[null,"2564.531/00141","SIGN PANELS TYPE D-SIGNALS","S F"]
[null,"2564.531/00142","SIGN PANELS TYPE D-SIGNAL SYS A","S F"]
[null,"2564.531/00143","SIGN PANELS TYPE D-SIGNAL SYS B","S F"]
[null,"2564.531/00144","SIGN PANELS TYPE D-SIGNAL SYS C","S F"]
[null,"2564.531/00145","SIGN PANELS TYPE D-SIGNAL SYS D","S F"]
[null,"2564.531/00146","SIGN PANELS TYPE D-SIGNAL SYS E","S F"]
[null,"2564.531/00149","SIGN PANELS TYPE D-SIGNAL SYS I","S F"]
[null,"2564.531/00151","SIGN PANELS TYPE EA","S F"]
[null,"2564.531/00158","SIGN PANELS TYPE EO","S F"]
[null,"2564.531/00159","SIGN PANELS TYPE EO (EXTRUDED)","S F"]
[null,"2564.531/00160","SIGN PANELS TYPE EO (LOUVERED)","S F"]
[null,"2564.531/00189","SIGN PANELS TYPE OVERLAY","S F","OL","APSTCLP"]
[null,"2564.531/00190","SIGN PANELS TYPE OH","S F","OL"]
[null,"2564.531/00191","SIGN PANELS TYPE OH (EXTRUDED)","S F"]
[null,"2564.531/00192","SIGN PANELS TYPE OH (LOUVERED)","S F"]
[null,"2564.531/00193","SIGN PANELS TYPE OH (FLAT SHEET)","S F"]
[null,"2564.533/00130","FURNISH SIGN PANELS TYPE C","S F"]
[null,"2564.533/00140","FURNISH SIGN PANELS TYPE D","S F"]
[null,"2564.533/00190","FURNISH SIGN PANELS TYPE OVERLAY","S F"]
[null,"2564.533/00195","FURNISH SIGN PANELS TYPE OH","S F"]
["x","2564.534/00010","SAW SIGN PANELS","L F"]
[null,"2564.534/00011","SAW SIGN PANELS TYPE A","L F","ASPNLSAW"]
[null,"2564.534/00016","SAW SIGN PANELS TYPE OH","L F"]
["x","2564.534/00017","SAW SIGN PANELS TYPE OH (EXTRUDED)","L F"]
["x","2564.535/00010","SIGN PANEL OVERLAY TYPE A","S F","ASPNLOL","APSTCLP","APSTMOD","OL"]
[null,"2564.535/00100","SIGN PANEL OVERLAY TYPE OH","S F","OL"]
[null,"2564.535/00110","SIGN PANEL OVERLAY TYPE EO","S F"]
[null,"2564.535/00120","SIGN PANEL OVERLAY TYPE EA","S F"]
[null,"2564.536/00010","INSTALL SIGN PANEL","EACH"]
["x","2564.536/00011","INSTALL SIGN PANEL TYPE A","EACH","ASPNLIN"]
["x","2564.536/00013","INSTALL SIGN PANEL TYPE C","EACH"]
[null,"2564.536/00014","INSTALL SIGN PANEL TYPE D","EACH"]
[null,"2564.536/00020","INSTALL SIGN PANEL TYPE OH","EACH"]
[null,"2564.536/00030","INSTALL SIGN PANEL TYPE EO","EACH"]
["x","2564.537/00010","INSTALL SIGN TYPE A","EACH","AS&IHP"]
["x","2564.537/00013","INSTALL SIGN TYPE C","EACH","CS&I","CINS"]
["x","2564.537/00014","INSTALL SIGN TYPE D","EACH","DS&I","DINS"]
[null,"2564.537/00020","INSTALL SIGN TYPE OH","EACH"]
[null,"2564.537/00021","INSTALL SIGN TYPE OH (BR MOUNT)","EACH"]
[null,"2564.537/00022","INSTALL SIGN TYPE CMS (BR MOUNT)","EACH"]
[null,"2564.537/00030","INSTALL SIGN TYPE SPECIAL","EACH"]
[null,"2564.537/00040","INSTALL SIGN TYPE EO","EACH"]
[null,"2564.537/00045","INSTALL SIGN TYPE EA","EACH"]
[null,"2564.538/00009","SIGN LEGEND REVISION","EACH"]
[null,"2564.538/00010","SIGN LEGEND REVISION TYPE EA","EACH"]
[null,"2564.538/00015","SIGN LEGEND REVISION TYPE EO","EACH"]
[null,"2564.538/00020","SIGN LEGEND REVISION TYPE OH","EACH"]
[null,"2564.538/00021","SIGN LEGEND REVISION TYPE OH-SPECIAL","EACH"]
[null,"2564.538/00031","SIGN LEGEND REVISION TYPE A","EACH","ALGNDREV"]
[null,"2564.538/00034","SIGN LEGEND REVISION TYPE D","EACH"]
[null,"2564.539/00010","OVERHEAD SIGN IDENTIFICATION PLATE","EACH"]
[null,"2564.540/00010","EXTEND WALKWAY SUPPORT","EACH"]
[null,"2564.540/00011","EXTEND WALKWAY SUPPORT (A)","EACH"]
[null,"2564.540/00012","EXTEND WALK SUPPORT (B)","EACH"]
["x","2564.550/00010","DELINEATOR","EACH","DELIN"]
["x","2564.550/00011","DELINEATOR TYPE SPECIAL","EACH","DELIN"]
["x","2564.550/00020","DELINEATOR TYPE ONE TENTH MILE","EACH","DELIN"]
["x","2564.550/00030","DELINEATOR TYPE CYLINDER STYLE","EACH","DELIN"]
["x","2564.550/00040","DELINEATOR TYPE ALIGNMENT","EACH","DELIN"]
["x","2564.550/00111","DELINEATOR TYPE X4-6","EACH","DELIN"]
["x","2564.551/00010","REFERENCE POST MARKER","EACH","RPM"]
["x","2564.552/00010","HAZARD MARKER X4-2","EACH","DELIN"]
["x","2564.553/00010","CLEARANCE MARKER X4-4","EACH","DELIN"]
["x","2564.554/00010","SNOW PLOW MARKER X4-5","EACH","DELIN"]
["x","2564.555/00010","END OF ROADWAY MARKER X4-11","EACH","DELIN"]
[null,"2564.601/00100","INTERNALLY LIT SIGNING OH","LS"]
[null,"2564.601/00101","INTERNALLY LIT SIGNING OH A","LS"]
[null,"2564.601/00102","INTERNALLY LIT SIGNING OH B","LS"]
[null,"2564.601/00103","INTERNALLY LIT SIGNING OH C","LS"]
[null,"2564.601/00104","INTERNALLY LIT SIGNING OH D","LS"]
[null,"2564.601/00105","INTERNALLY LIT SIGNING OH E","LS"]
[null,"2564.601/00106","INTERNALLY LIT SIGNING OH F","LS"]
[null,"2564.601/00107","INTERNALLY LIT SIGNING OH G","LS"]
[null,"2564.601/00108","INTERNALLY LIT SIGNING OH H","LS"]
[null,"2564.601/00109","INTERNALLY LIT SIGNING OH I","LS"]
[null,"2564.601/00110","INTERNALLY LIT SIGNING OH J","LS"]
[null,"2564.601/00111","INTERNALLY LIT SIGNING OH K","LS"]
[null,"2564.601/00112","INTERNALLY LIT SIGNING OH L","LS"]
[null,"2564.602/00001","INSTALL SIGN COLLAR","EACH"]
[null,"2564.602/00005","SIGN COLLAR","EACH"]
[null,"2564.602/00008","CONC PEDESTAL EXTENSION DES SPEC","EACH"]
["x","2564.602/00010","INSTALL DELINEATOR","EACH","DELS&I"]
[null,"2564.602/00015","INSTALL SIGN","EACH"]
[null,"2564.602/00018","INSTALL STEEL POST","EACH"]
[null,"2564.602/00023","SALV & INST WILDLIFE WARNING REFLECTER","EACH"]
[null,"2564.602/00024","SALVAGE AND INSTALL OH SIGNS","EACH"]
[null,"2564.602/00025","SALVAGE, MOD & REINSTALL OH SIGN","EACH"]
[null,"2564.602/00026","SALVAGE AND REINSTALL OH SIGN","EACH"]
[null,"2564.602/00027","SALVAGE, MOD & REINSTALL TYPE A SIGN","EACH",null,"ABASRM","AEXTSA","AEXTRM"]
[null,"2564.602/00031","FOUNDATION SPECIAL OH","EACH"]
[null,"2564.602/00033","MEDIAN SIGN POST ANCHOR","EACH"]
[null,"2564.602/00035","REPAIR SIGN TYPE OH","EACH"]
[null,"2564.602/00036","REPAIR SIGN TYPE OH","EACH"]
[null,"2564.602/00037","SHORTEN PANEL MOUNTING POST","EACH"]
[null,"2564.602/00038","SHORTEN TYPE A SIGN POST","EACH","APSTMOD"]
[null,"2564.602/00042","EXTEND TYPE A SIGN POST","EACH","APSTMOD"]
[null,"2564.602/00046","EXTEND PANEL MOUNTING POST","EACH"]
[null,"2564.602/00049","F&I TRAFFIC WARNING SIGN","EACH"]
[null,"2564.602/00050","F&I MESSAGE BOARD","EACH"]
[null,"2564.602/00055","MICROPRISM BARRIER REFLECTOR","EACH"]
[null,"2564.602/00077","SIGN POST SUPPORT","EACH"]
[null,"2564.602/00079","INSTALL SIGN SUPPORT","EACH"]
[null,"2564.602/00080","SIGN SUPPORT SIGN OH","EACH"]
[null,"2564.602/00082","REPOSITION SIGN PANEL TYPE OH","EACH"]
[null,"2564.602/00083","REPOSITION SIGN PANEL","EACH"]
[null,"2564.602/00087","SIGN SUPPORT CANTILEVER","EACH"]
[null,"2564.602/00100","HIGHWAY ADVISORY RADIO SIGN","EACH"]
[null,"2564.602/00115","MODIFY SIGN TYPE OH (BR MTD)","EACH"]
[null,"2564.602/00120","MODIFY SIGN TYPE OH","EACH"]
[null,"2564.602/00121","MODIFY SIGN TYPE OH A","EACH",null,"AEXTSA","AEXTRM"]
[null,"2564.602/00122","MODIFY SIGN TYPE OH B","EACH"]
[null,"2564.602/00123","MODIFY SIGN TYPE OH C","EACH"]
[null,"2564.602/00140","INSTALL SIGN TRUSS","EACH"]
[null,"2564.602/00141","INSTALL SIGN TRUSS TYPE OH","EACH"]
[null,"2564.602/00151","FEED POINT IDENTIFICATION PLATE","EACH"]
[null,"2564.602/00170","TRAFFIC SIGN WITH POST","EACH"]
[null,"2564.602/00240","FURNISH OH CHANGEABLE MESSAGE SIGN","EACH"]
[null,"2564.602/00250","INSTALL OH CHANGEABLE MESSAGE SIGN","EACH"]
[null,"2564.602/00251","PORTABLE CHANGEABLE MESSAGE SIGN","EACH"]
[null,"2564.602/00252","RELOCATE OH CHANGEABLE MESSAGE SIGN","EACH"]
[null,"2564.602/00253","OH CHANGEABLE MESSAGE SIGN","EACH"]
[null,"2564.602/00255","SKID MOUNTED CHANGEABLE MESSAGE SIGN","EACH"]
[null,"2564.602/00280","ADJUST SIGN STRUCTURE","EACH"]
[null,"2564.602/00290","REFURBISH SIGN","EACH"]
[null,"2564.602/00300","RELOCATE SIGN","EACH"]
[null,"2564.602/00301","RELOCATE SIGN TYPE A","EACH",null,"ABASRM"]
[null,"2564.602/00302","RELOCATE SIGN TYPE B","EACH"]
[null,"2564.602/00303","RELOCATE SIGN TYPE C","EACH"]
[null,"2564.602/00320","INSTALL SIGN TYPE SPECIAL","EACH"]
[null,"2564.602/00370","FURNISH DELINEATOR","EACH"]
[null,"2564.602/00390","FURNISH MILE POST MARKER","EACH"]
[null,"2564.602/00395","FURNISH MARKER","EACH"]
[null,"2564.602/00403","FURNISH TYPE C SIGN","EACH"]
[null,"2564.602/00450","FURNISH SIGN POSTS","EACH"]
[null,"2564.602/00490","FURNISH SIGN PANEL (RR CROSSBUCK)","EACH"]
[null,"2564.602/00491","FURNISH SIGN PANEL (RR CROSSBUCK) SPEC","EACH"]
[null,"2564.602/00493","FURNISH SIGN PANEL (STOP SIGN)","EACH"]
[null,"2564.602/00495","FURNISH SIGN PANEL (TRACK NUMBER SIGN)","EACH"]
[null,"2564.602/00496","F SIGN PANEL(TRACKS OUT OF SERVICE SIGN)","EACH"]
[null,"2564.602/00498","FURNISH SIGN PANEL (EXEMPT SIGN)","EACH"]
[null,"2564.602/00500","F&I SIGN PANEL (RR CROSSBUCK)","EACH"]
[null,"2564.602/00501","F&I SIGN PANEL (RR CROSSBUCK) SPECIAL","EACH"]
[null,"2564.602/00503","F&I SIGN PANEL (STOP SIGN)","EACH"]
[null,"2564.602/00505","F&I SIGN PANEL (TRACK NUMBER SIGN)","EACH"]
[null,"2564.602/00506","F&I SIGN PANEL (__MPH SIGN)","EACH"]
[null,"2564.602/00508","F&I SIGN PANEL (EXEMPT SIGN)","EACH"]
[null,"2564.602/00514","F&I WOOD POST 4\"X6\"X14'","EACH"]
[null,"2564.602/00516","F&I WOOD POST 4\"X6\"X16'","EACH"]
[null,"2564.602/00536","FURNISH WOOD POST 4\"X6\"X16'","EACH"]
[null,"2564.602/00539","FURNISH WOOD POST 4\"X6\"X19'","EACH"]
[null,"2564.602/00550","RETROREFLECTIVE MARKER","EACH"]
[null,"2564.602/00566","F&I WOOD POST 4\"X4\"X16'","EACH"]
[null,"2564.602/00568","F&I WOOD POST 4\"X4\"X18'","EACH"]
[null,"2564.602/00580","CONCRETE FOOTINGS DESIGN SPECIAL","EACH"]
[null,"2564.602/00602","F&I SIGN PANEL TYPE B","EACH"]
[null,"2564.602/00603","F&I SIGN PANEL TYPE C","EACH"]
[null,"2564.602/00604","F&I SIGN PANEL TYPE D","EACH"]
[null,"2564.602/00618","F&I SIGN PANEL TYPE R","EACH"]
[null,"2564.602/00619","F&I SIGN PANEL TYPE S","EACH"]
[null,"2564.602/00621","F&I SIGN PANEL TYPE U","EACH"]
[null,"2564.602/00630","F&I SIGN PANEL TYPE SPECIAL","EACH"]
[null,"2564.602/00700","INTERNALLY LIT SIGN","EACH"]
[null,"2564.602/00704","INTERNALLY LIT SIGN TYPE D","EACH"]
[null,"2564.602/00720","INSTALL MARKER","EACH","DELS&I"]
[null,"2564.602/00825","END OF ROADWAY MARKER X4-11","EACH"]
[null,"2564.603/00005","STRUCTURAL STEEL U-POST","L F"]
[null,"2564.608/00010","STRUCTURAL STEEL 2.5# U-POST","LB"]
[null,"2564.608/00012","STRUCTURAL STEEL 3# U-POST","LB"]
["x","2564.608/00020","FURNISH STRUCTURAL STEEL 2.5# U-POST","LB"]
["x","2564.608/00022","FURNISH STRUCTURAL STEEL 3# U-POST","LB"]
["x","2564.618/00019","SIGN PANELS TYPE OH","S F"]
["x","2564.618/00020","SIGN PANELS TYPE OVERLAY","S F"]
["x","2564.618/00023","SIGN PANELS TYPE C","S F"]
["x","2564.618/00024","SIGN PANELS TYPE D","S F"]
["x","2564.618/00030","F&I SIGN PANEL OVERLAYS TYPE A","S F"]
["x","2564.618/00031","F&I SIGN PANEL OVERLAYS TYPE OH","S F"]
["x","2564.618/00032","F&I SIGN PANEL OVERLAYS TYPE EA","S F"]
["x","2564.618/00033","F&I SIGN PANEL OVERLAYS TYPE EO","S F"]
[null,"2565.602/00310","R9-3A SIGN","EACH"]
[null,"2565.602/00315","R3-2 SIGN (36\"X36\")","EACH"]
[null,"2565.602/00387","R10-12 SIGN (36\"X48\")","EACH"]
[null,"2565.602/00390","R10-12 SIGN (24\"X30\")","EACH"]
["x","2564.541/00010","FRICTION FUSE","EACH","AFF"]
["x","2564.542/00010","KEEPER PLATE","EACH","AKP"]
[null,"9999.999/99999","OTHER?","EACH","AEXTRM","AEXTSA"]
[null,"9999.999/99999","OTHER?","EACH","ANOTES"]
[]
[null,null,"AREM","NOTES"]
[null,null,"DREM","NOTES"]
[null,null,"CREM","COMMENTED OUT"]
[null,null,"DMS&I","NOTES"]

{"sheet":"STD PLANS","index":8,"n_rows":69,"n_cols":15,"rows_kept":69,"cut":false,"hidden":false,"merged":[[3,1,3,2],[57,1,57,2],[68,1,68,11]]}
[]
[]
[null,null,null,null,"user note"]
[null,"STANDARD PLANS",null,null,"INCLUDE in plans with:"]
["x","NUMBER","DESCRIPTION"]
["SIGNING","5-297.701","STANDARD SIGN PLACEMENT",null," SIGN, INSTALL SIGN PAY ITEMS"]
["SIGNING","5-297.702","DELINEATOR AND MARKER PLACEMENT",null,"DELINEATOR/MARKER, INSTALL DELIN/MARKER"]
["SIGNING","5-297.703","SIGN, DELINEATOR, AND MARKER PLACEMENT NEAR INTERCHANGE RAMP GORES",null,"DELINATION ON RAMPS/LOOPS"]
["SIGNING","5-297.710","EXTRUDED PANEL MOUNTING DETAILS (4 SHEETS)",null,"EXIT PANELS ON SIGNS WITH EXTRUDED PANELS"]
["SIGNING","5-297.711","I-BEAM SUPPORTED SIGN STRUCTURE DETAILS - FOOTING AND BASE CONNECTIONS (2 SHEETS)",null,"I BEAM STRUCTURES"]
[null,"5-297.713","I-BEAM SUPPORTED SIGN STRUCTURE DETAILS - SHALLOW SPREAD FOUNDATION"]
["X","5-297.721","THREE WALL BASE - FOR 1-3/4\" SQUARE TUBE RISER POST",null,"1-3/4 INCH RISER POSTS"]
[null,"5-297.726","SIGN MOUNTED ON CONCRETE WALL (3 SHEETS)"]
["X","5-297.730","SIGN MOUNTING SYSTEMS FOR ROUND SUPPORTS",null,"PANELS MOUNTED TO ROUND POSTS"]
["X","5-297.731","SIGN MOUNTING DETAILS FOR SIGNAL MAST ARMS",null,"MAST ARM SIGNING"]
["SIGNING","5-297.740","CONCRETE RAIL MOUNTED SIGN (4 SHEETS)",null,"CONCRETE RAIL MOUNTED SIGNS"]
["SIGNING","5-297.741","STRUCTURAL DETAILS FOR BRIDGE MOUNTED SIGNS - STREET NAME",null,"BRIDGE MOUNTED STREET NAME SIGNS"]
["SIGNING","5-297.742","STRUCTURAL DETAILS FOR BRIDGE MOUNTED SIGNS - MINOR GUIDE SIGNS",null,"BRIDGE MOUNTED GUIDE SIGNS"]
["X","5-297.745","MONOTUBE OVERHEAD SIGN STRUCTURES - GENERAL ELEVATIONS SECTIONS AND NOTES",null,"MONOTUBE STRUCTURES"]
["SIGNING","5-297.746","MONOTUBE OVERHEAD SIGN STRUCTURES - FOUNDATION DETAILS (2 SHEETS)",null,"MONOTUBE STRUCTURES"]
["SIGNING","5-297.747","MONOTUBE OVERHEAD SIGN STRUCTURES - SIMPLE SPAN (2 SHEETS)",null,"MONOTUBE STRUCTURES"]
["SIGNING","5-297.748","MONOTUBE OVERHEAD SIGN STRUCTURES - CANTILEVER (2 SHEETS)",null,"MONOTUBE STRUCTURES"]
["SIGNING","5-297.749","MONOTUBE OVERHEAD SIGN STRUCTURES - SIGN PANEL AND EXIT PANEL (2 SHEETS)",null,"MONOTUBE STRUCTURES"]
["SIGNING","5-297.750","PANEL MOUNTING POST MODIFICATION DETAILS",null,"PANEL MOUNTING POSTS"]
["SIGNING","5-297.752","TYPE F MEDIAN BARRIER FOUNDATION - SPREAD FOOTING",null,"OH STRUCTURES WITH SPREAD MEDIAN BARRIER FOOTING"]
["SIGNING","5-297.753","TYPE F MEDIAN BARRIER FOUNDATION - DRILLED SHAFT FOOTING",null,"OH STRUCTURES WITH DRILLED SHAFT MEDIAN BARRIER FOOTING"]
["SIGNING","5-297.754","SINGLE SLOPE MEDIAN BARRIER FOUNDATION - SPREAD FOOTING",null,"OH STRUCTURES WITH SPREAD FOOTING & SINGLE SLOPE MEDIAN BARRIER FOOTING"]
["SIGNING","5-297.755","SINGLE SLOPE MEDIAN BARRIER FOUNDATION - DRILLED SHAFT FOOTING ",null,"OH STRUCTURES WITH DRILLED SHAFT SINGLE SLOPE MEDIAN BARRIER FOOTING"]
["X","5-297.761","STANDARD OVERHEAD SIGN STRUCTURES - DESIGN D - GENERAL ELEVATIONS, SECTIONS AND NOTES",null,"OH DESIGN D SIGN STRUCTURES"]
["X","5-297.762","STANDARD OVERHEAD SIGN STRUCTURES - DESIGN D - CAMBER POST TYPE AND ESTIMATED QUANTITIES",null,"OH DESIGN D SIGN STRUCTURES"]
["SIGNING","5-297.763","STANDARD OVERHEAD SIGN STRUCTURES - DESIGN D - FOUNDATION DETAILS (2 SHEETS)",null,"OH DESIGN D SIGN STRUCTURES WITH FOUNDATIONS"]
["SIGNING","5-297.764","STANDARD OVERHEAD SIGN STRUCTURES - DESIGN D - BASE PLATE, HANDHOLE, AND COVER PLATE DETAILS",null,"OH DESIGN D SIGN STRUCTURES"]
["SIGNING","5-297.765","STANDARD OVERHEAD SIGN STRUCTURES - DESIGN D - TRUSS TO POST CONNECTION DETAILS.",null,"OH DESIGN D SIGN STRUCTURES"]
["SIGNING","5-297.766","STANDARD OVERHEAD SIGN STRUCTURES - DESIGN D - SIGN TRUSS DETAILS TYPE A",null,"OH DESIGN D SIGN STRUCTURES WITH THIS TRUSS TYPE"]
["SIGNING","5-297.767","STANDARD OVERHEAD SIGN STRUCTURES - DESIGN D - SIGN TRUSS DETAILS TYPE B",null,"OH DESIGN D SIGN STRUCTURES WITH THIS TRUSS TYPE"]
["SIGNING","5-297.768","STANDARD OVERHEAD SIGN STRUCTURES - DESIGN D - SIGN TRUSS DETAILS TYPE C",null,"OH DESIGN D SIGN STRUCTURES WITH THIS TRUSS TYPE"]
["SIGNING","5-297.769","STANDARD OVERHEAD SIGN STRUCTURES - DESIGN D - WALKWAY DETAILS (3 SHEETS)",null,"OH DESIGN D SIGN STRUCTURES WITH WALKWAY"]
["SIGNING","5-297.770","STANDARD OVERHEAD SIGN STRUCTURES - DESIGN D - WALKWAY AND RAILING RETROFIT DETAILS",null,"OH DESIGN D SIGN STRUCTURES WITH WALKWAY RAILING"]
["X","5-297.772","STANDARD OVERHEAD SIGN STRUCTURES - DESIGN D - DMS MOUNTING DETAILS",null,"DMS ON OH STRUCTURES"]
["SIGNING","5-297.771","STANDARD OVERHEAD SIGN STRUCTURES - DESIGN D - ROCK SOCKET FOUNDATION DETAILS",null,"OH ROCK SOCKET FOUNDATION"]
["X","5-297.774","STANDARD OVERHEAD SIGN STRUCTURES - DESIGN D - VARIABLE LENGTH DRILLED SHAFT DETAILS",null,"OH VARIABLE DEPTH FOUNDATION"]
["SIGNING","5-297.779","OVERHEAD SIGN STRUCTURE - FOUNDATION EXTENSION - DESIGN D EXTENSION DETAILS - TYPE 1-4 POSTS",null,"FOUNDATION EXTENSION DESIGN D TYPE 1-4 POSTS"]
["X","5-297.780","OVERHEAD SIGN STRUCTURE - FOUNDATION EXTENSION - DESIGN D EXTENSION DETAILS - TYPE 5-6 POSTS (2 SHEETS)",null,"FOUNDATION EXTENSION DESIGN D TYPE 5-6 POSTS"]
["SIGNING","5-297.781","OVERHEAD SIGN STRUCTURE - FOUNDATION EXTENSION - INTERIM DESIGN B EXTENSION DETAILS - TYPE 1-4 POSTS",null,"FOUNDATION EXTENSION INTERIM DESIGN B TYPE 1-4 POSTS"]
["SIGNING","5-297.782","OVERHEAD SIGN STRUCTURE - FOUNDATION EXTENSION - INTERIM DESIGN B EXTENSION DETAILS - TYPE 5-7 POSTS (2 SHEETS)",null,"FOUNDATION EXTENSION INTERIM DESIGN B TYPE 5-7 POSTS"]
["SIGNING","5-297.783","OVERHEAD SIGN STRUCTURE - FOUNDATION EXTENSION - DESIGN B EXTENSION DETAILS - TYPE 1-3 POSTS",null,"FOUNDATION EXTENSION DESIGN B TYPE 1-3 POSTS"]
["SIGNING","5-297.784","OVERHEAD SIGN STRUCTURE - FOUNDATION EXTENSION - DESIGN B EXTENSION DETAILS - TYPE 4-5 POSTS (2 SHEETS)",null,"FOUNDATION EXTENSION DESIGN B TYPE 4-5 POSTS"]
["SIGNING","5-297.785","OVERHEAD SIGN STRUCTURE - FOUNDATION EXTENSION - DESIGN B EXTENSION DETAILS - TYPE 6-7 POSTS (2 SHEETS)",null,"FOUNDATION EXTENSION DESIGN B TYPE 6-7 POSTS"]
["SIGNING","5-297.786","OVERHEAD SIGN STRUCTURE - FOUNDATION EXTENSION - DESIGN B EXTENSION DETAILS - TYPE 8-9 POSTS (2 SHEETS)",null,"FOUNDATION EXTENSION DESIGN B TYPE 8-9 POSTS"]
["SIGNING","5-297.787","OVERHEAD SIGN STRUCTURE - FOUNDATION EXTENSION - DESIGN B EXTENSION DETAILS - TYPE 10-13 POSTS (3 SHEETS)",null,"FOUNDATION EXTENSION DESIGN B TYPE 10-13 POSTS"]
["SIGNING","5-297.788","OVERHEAD SIGN STRUCTURE - FOUNDATION EXTENSION - DESIGN B EXTENSION DETAILS - TYPE 14-15 POSTS",null,"FOUNDATION EXTENSION DESIGN B TYPE 14-15 POSTS"]
["SIGNING","5-297.789","OVERHEAD SIGN STRUCTURE - FOUNDATION EXTENSION - DESIGN B EXTENSION DETAILS - TYPE 16-19 POSTS (2 SHEETS)",null,"FOUNDATION EXTENSION DESIGN B TYPE 16-19 POSTS"]
[]
[]
[]
[]
[]
[null,"DETAILS",null,null,"INCLUDE in plans with:"]
["x","NUMBER","DESCRIPTION"]
["x",null,"SQUARE TUBE SIGN MOUNTING DETAIL",null," SIGN, SIGN PANEL, INSTALL SIGN, INSTALL SIGN PANEL PAY ITEMS"]
["x",null,"SQUARE TUBE FIN BASE DETAIL",null,"2 INCH RISER POST STRUCTURE"]
["x",null,"SQUARE TUBE SHEAR BOLT DETAIL",null,"2 INCH RISER POST STRUCTURE IN CONCRETE"]
["x",null,"SQUARE TUBE SLIP BASE DETAIL",null,"2-1/2 INCH RISER POST STRUCTURE"]
["x",null,"I BEAM SUPPORTED SIGN STRUCTURE DETAIL SHALLOW SPREAD FOOTING",null,"I BEAM STRUCTURES WITH SHALLOW FOUNDATIONS"]
[]
[]
[]
[]
[null,"Designer Note: include only Standard Plans pertinent to project ",null,null,null,null,null,null,null,null,null,null,null,null,"x"]

{"sheet":"SIGN","index":9,"n_rows":35,"n_cols":26,"rows_kept":35,"cut":false,"hidden":false,"merged":[[30,11,30,14],[1,1,1,24],[2,2,2,8],[2,9,2,14],[2,15,5,15],[2,16,5,16],[2,17,5,17],[2,18,5,18],[2,19,5,19],[2,20,5,20],[2,21,5,21],[2,22,5,22],[2,23,5,23],[2,24,5,24],[2,25,5,25],[3,3,6,3],[3,4,5,6],[3,7,5,7],[3,8,5,8],[3,9,6,9],[3,10,6,10],[3,11,5,11],[3,12,5,12],[3,14,6,14],[6,4,6,6]]}
[]
[null,"SIGN AND DELINEATOR / MARKER",null,null,null,null,null,null,null,null,null,null,null,null,null,null,null,null,null,null,null,null,null,null,null,"ST-A"]
[null,null,"PANEL",null,null,null,null,null,null,"SUPPORT",null,null,null,null,null,"REMOVE\nSIGN","SIGN","SALVAGE\nSIGN","INSTALL\nSIGN","REMOVE\nSIGN \nPANEL","SIGN\nPANEL","SALVAGE\nSIGN\nPANEL","INSTALL\nSIGN\nPANEL","REMOVE\nDELINEATOR\n/MARKER","DELINEATOR\n/MARKER","DELINEATOR\n/MARKER\nPANEL"]
[null,"SIGN","\n","\nLEGEND","SIZE\n(W x H)",null,null,"AREA","MOUNTING\nHEIGHT","NUMBER OF POSTS","TYPE","A\nDISTANCE","RISER POST SIZE","KNEE","SURFACE\nTYPE"]
[null,"NUMBER","PANEL",null,null,null,null,null,null,null,null,null,null,"BRACES"]
[null,null,"CODE"]
[null,null,null,null,"INCH",null,null,"SQ FT","FEET",null,null,"FEET","INCHES","QTY",null,"EACH","SQ FT","EACH","EACH","EACH","SQ FT","EACH","EACH","EACH","EACH","EACH"]
[" ","S-7",null,{"$f":"VLOOKUP(SIGN!C8,Table22[[CODE\nNO]:[PANEL LEGEND]],2)","v":{"$error":"#N/A"}},null,"x",null,{"$f":"(E8*G8)/144","v":0},null,null,null,null,null,null,null,null,{"$f":"(E8*G8)/144","v":0},null," "," ",{"$f":"(E8*G8)/144","v":0},null," "," "," "," "]
[null,null,null,{"$f":"VLOOKUP(SIGN!C9,Table22[[CODE\nNO]:[PANEL LEGEND]],2)","v":{"$error":"#N/A"}},null,"x",null," ",null,null,null,null,null,null,null,null,0,null,null," ",0]
[null,"S-9",null,{"$f":"VLOOKUP(SIGN!C10,Table22[[CODE\nNO]:[PANEL LEGEND]],2)","v":{"$error":"#N/A"}},null,"x",null," ",null,null,null,null,null,null,null,null,0,null,null,null,0]
[null,null,null,{"$f":"VLOOKUP(SIGN!C11,Table22[[CODE\nNO]:[PANEL LEGEND]],2)","v":{"$error":"#N/A"}},null,"x",null,{"$f":"(E11*G11)/144","v":0},null,null,null,null,null,null,null,null,0,null,null,null,0,null," "," "," "," "]
[null,"S-13",null,{"$f":"VLOOKUP(SIGN!C12,Table22[[CODE\nNO]:[PANEL LEGEND]],2)","v":{"$error":"#N/A"}},null,"x",null," ",null,null,null,null,null,null,null,null,0,null,null," ",0]
[null,null,null,{"$f":"VLOOKUP(SIGN!C13,Table22[[CODE\nNO]:[PANEL LEGEND]],2)","v":{"$error":"#N/A"}},null,"x",null," ",null,null,null,null,null,null,null,null,0,null,null,null,0]
[null,"S-14",null,{"$f":"VLOOKUP(SIGN!C14,Table22[[CODE\nNO]:[PANEL LEGEND]],2)","v":{"$error":"#N/A"}},null,"x",null," ",null,null,null,null,null,null,null,null,0,null,null,null,0]
[null,null,null,{"$f":"VLOOKUP(SIGN!C15,Table22[[CODE\nNO]:[PANEL LEGEND]],2)","v":{"$error":"#N/A"}},null,"x",null," ",null,null,null,null,null,null,null,null,0,null,null," ",0]
[null,"S-34",null,{"$f":"VLOOKUP(SIGN!C16,Table22[[CODE\nNO]:[PANEL LEGEND]],2)","v":{"$error":"#N/A"}},null,"x",null,{"$f":"(E16*G16)/144","v":0},null,null,null,null,null,null,null,null,0,null,null,null,0]
[null,null,null,{"$f":"VLOOKUP(SIGN!C17,Table22[[CODE\nNO]:[PANEL LEGEND]],2)","v":{"$error":"#N/A"}},null,"x",null,{"$f":"(E17*G17)/144","v":0},null,null,null,null,null,null,null,null,0,null,null," ",0," "," "," "," "," "]
[null,"S-36",null,{"$f":"VLOOKUP(SIGN!C18,Table22[[CODE\nNO]:[PANEL LEGEND]],2)","v":{"$error":"#N/A"}},null,"x",null," ",null,null,null,null,null,null,null,null,0,null,null," ",0]
[null,null,null,{"$f":"VLOOKUP(SIGN!C19,Table22[[CODE\nNO]:[PANEL LEGEND]],2)","v":{"$error":"#N/A"}},null,"x",null," ",null,null,null,null,null,null,null,null,0,null,null,null,0]
[null,"S-40",null,{"$f":"VLOOKUP(SIGN!C20,Table22[[CODE\nNO]:[PANEL LEGEND]],2)","v":{"$error":"#N/A"}},null,"x",null," ",null,null,null,null,null,null,null,null,0,null,null,null,0]
[null,null,null,{"$f":"VLOOKUP(SIGN!C21,Table22[[CODE\nNO]:[PANEL LEGEND]],2)","v":{"$error":"#N/A"}},null,"x",null," ",null,null,null,null,null,null,null,null,0,null,null,null,0]
[null,"S-42",null,{"$f":"VLOOKUP(SIGN!C22,Table22[[CODE\nNO]:[PANEL LEGEND]],2)","v":{"$error":"#N/A"}},null,"x",null," ",null,null,null,null,null,null,null,null,0,null,null,null,0]
[null,null,null,{"$f":"VLOOKUP(SIGN!C23,Table22[[CODE\nNO]:[PANEL LEGEND]],2)","v":{"$error":"#N/A"}},null,"x",null," ",null,null,null,null,null,null,null,null,0,null,null,null,0]
[null,"S-43",null,{"$f":"VLOOKUP(SIGN!C24,Table22[[CODE\nNO]:[PANEL LEGEND]],2)","v":{"$error":"#N/A"}},null,"x",null," ",null,null,null,null,null,null,null,null,0,null,null,null,0]
[null,null,null,{"$f":"VLOOKUP(SIGN!C25,Table22[[CODE\nNO]:[PANEL LEGEND]],2)","v":{"$error":"#N/A"}},null,"x",null," ",null,null,null,null,null,null,null,null,0,null,null,null,0]
[null,"S-48",null,{"$f":"VLOOKUP(SIGN!C26,Table22[[CODE\nNO]:[PANEL LEGEND]],2)","v":{"$error":"#N/A"}},null,"x",null," ",null,null,null,null,null,null,null,null,0,null,null,null,{"$f":"(E26*G26)/144","v":0}]
[null,null,null,{"$f":"VLOOKUP(SIGN!C27,Table22[[CODE\nNO]:[PANEL LEGEND]],2)","v":{"$error":"#N/A"}},null,"x",null,null,null,null,null,null,null,null,null,null,0,null,null,null,{"$f":"(E27*G27)/144","v":0}]
[null,"S-50",null,{"$f":"VLOOKUP(SIGN!C28,Table22[[CODE\nNO]:[PANEL LEGEND]],2)","v":{"$error":"#N/A"}},null,"x",null,null,null,null,null,null,null,null,null,null,{"$f":"(E28*G28)/144","v":0},null,null,null,{"$f":"(E28*G28)/144","v":0}]
[null,null,null,{"$f":"VLOOKUP(SIGN!C29,Table22[[CODE\nNO]:[PANEL LEGEND]],2)","v":{"$error":"#N/A"}},null,"x",null,null,null,null,null,null,null,null,null,null,0,null,null,null,0]
[null,null,null,{"$f":"VLOOKUP(SIGN!C30,Table22[[CODE\nNO]:[PANEL LEGEND]],2)","v":{"$error":"#N/A"}},null,"x",null," ",null,null,null,null,null,null,null,null,0,null,null,null,0]
[null,null,null,null,null,null,null,null,null,null,null,"TOTAL",null,null,null,{"$f":"SUM(P8:P30)","v":0},0,0,0,0,0,0,0,0,0,0]
[]
[null,"SPECIFIC NOTE(S):"]
[null,"(1) MOUNT BACK TO BACK"]
[null,"(2) MOUNT SIDE-BY-SIDE"]

{"sheet":"Mast Arm tab for Signal Plans","index":10,"n_rows":58,"n_cols":10,"rows_kept":58,"cut":false,"hidden":false,"merged":[[38,6,40,8],[38,9,40,9],[4,13,4,14],[22,1,22,9],[34,1,34,9],[36,1,36,9],[37,1,40,1],[37,2,40,2],[37,3,37,9],[38,3,40,3],[38,4,40,4],[38,5,40,5],[1,1,1,9],[2,1,5,1],[2,2,5,2],[2,3,2,9],[3,3,5,3],[3,4,5,4],[3,5,5,5],[3,6,5,8],[3,9,5,9]]}
[]
[null,"SIGN PANELS ON SIGNALS"]
[null,"POLE\nNUMBER","\"A\"\nDISTANCE\n(FEET)\nOR POLE","PANEL"]
[null,null,null,"QTY","CODE\nNUMBER","LEGEND","SIZE\n(INCHES)",null,null,"AREA\n(SQ FT)"]
[]
[]
[null,null,null,null,null,null,null,null,null,{"$f":"(G7*I7)/144","v":0}]
[null,null,null,null,null,null,null,null,null,{"$f":"(G8*I8)/144","v":0}]
[null,null,null,null,null,null,null,null,null,{"$f":"(G9*I9)/144","v":0}]
[null,null,null,null,null,null,null,null,null,{"$f":"(G10*I10)/144","v":0}]
[null,null,null,null,null,null,null,null,null,{"$f":"(G11*I11)/144","v":0}]
[null,null,null,null,null,null,null,null,null,{"$f":"(G12*I12)/144","v":0}]
[null,null,null,null,null,null,null,null,null,{"$f":"(G13*I13)/144","v":0}]
[null,null,null,null,null,null,null,null,null,{"$f":"(G14*I14)/144","v":0}]
[null,null,null,null,null,null,null,null,null,0]
[null,null,null,null,null,null,null,null,null,0]
[null,null,null,null,null,null,null,null,null,{"$f":"(G17*I17)/144","v":0}]
[null,null,null,null,null,null,null,null,null,{"$f":"(G18*I18)/144","v":0}]
[null,null,null,null,null,null,null,null,null,0]
[null,null,null,null,null,null,null,null,null,0]
[null,null,null,null,null,null,null,null,null,{"$f":"(G21*I21)/144","v":0}]
[null,null,null,null,null,null,null,null,null,{"$f":"(G22*I22)/144","v":0}]
[]
[null,"SPECIFIC NOTE(S):"]
[]
[null,"GENERAL NOTE(S):"]
[null,"1.  SEE THE CURRENT MnDOT STANDARD SIGNS AND MARKINGS MANUAL FOR STANDARD SIGN DESIGNS, ARROW DETAILS AND SPLICE PLATE DETAILS. "]
[null,"2.  FOR NON STANDARD SIGN DESIGNS, LAYOUTS ARE INCLUDED. SIGN PANEL DIMENSIONS ARE IN INCHES."]
[null,"3.  SEE STANDARD PLAN 5-297.731 FOR SIGN MOUNTING TO MAST ARM."]
[null,"4.  SEE STANDARD PLAN 5-297.730 FOR SIGN MOUNTING TO ROUND POST."]
[null,"5.  MOUNTING HEIGHT OF POLE MOUNTED SIGN PANELS MUST BE 7 FOOT MINIMUM. "]
[null,"    MOUNTING HEIGHT IS MEASURED FROM BOTTOM OF SIGN PANEL TO SURFACE IMMEDIATELY BELOW THE SIGN PANEL. "]
[null,"6.  \"A\" DISTANCE = DISTANCE FROM THE END OF THE MAST ARM TO THE EDGE OF EACH SIGN PANEL. "]
[]
[]
[]
[null,"SIGN PANELS ON MAST ARMS"]
[null,"SIGN\nNUMBER","\"A\"\nDISTANCE\n(FEET)\nOR POLE","PANEL"]
[null,null,null,"QTY","CODE\nNUMBER","LEGEND","SIZE\n(INCHES)",null,null,"AREA\n(SQ FT)"]
[]
[]
[null,null,null,null,null,null,null,null,null,{"$f":"(G42*I42)/144","v":0}]
[null,null,null,null,null,null,null,null,null,{"$f":"(G43*I43)/144","v":0}]
[null,null,null,null,null,null,null,null,null,{"$f":"(G44*I44)/144","v":0}]
[null,null,null,null,null,null,null,null,null,{"$f":"(G45*I45)/144","v":0}]
[null,null,null,null,null,null,null,null,null,0]
[null,null,null,null,null,null,null,null,null,0]
[null,null,null,null,null,null,null,null,null,0]
[null,null,null,null,null,null,null,null,null,0]
[null,"TOTAL",null,null,null,null,null,null,null,{"$f":"SUM(J42:J49)","v":0}]
[]
[null,"SPECIFIC NOTE(S):"]
[]
[null,"GENERAL NOTE(S):"]
[null,"1.  SEE THE CURRENT MnDOT STANDARD SIGNS AND MARKINGS MANUAL FOR STANDARD SIGN DESIGNS, ARROW DETAILS AND SPLICE PLATE DETAILS. "]
[null,"2.  FOR NON STANDARD SIGN DESIGNS, LAYOUTS ARE INCLUDED. SIGN PANEL DIMENSIONS ARE IN INCHES."]
[null,"3.  SEE STANDARD PLAN 5-297.731 FOR SIGN MOUNTING TO MAST ARM."]
[null,"4.  \"A\" DISTANCE = DISTANCE FROM THE END OF THE MAST ARM TO THE EDGE OF EACH SIGN PANEL. "]

{"sheet":"Delineator, Marker, Reference","index":11,"n_rows":30,"n_cols":31,"rows_kept":30,"cut":false,"hidden":false,"merged":[[4,0,23,0],[24,1,24,30]]}
[]
[null,null,null,null,null,"Windloading Chart for Delineators, Markers and Reference Location Signs"]
[null,null,null,null,null,null,null,null,null,null,null,"4 foot Mounting Height"]
[]
["Panel Height (Inches)",120]
[null,114]
[null,108]
[null,102]
[null,96]
[null,90]
[null,84]
[null,78]
[null,72]
[null,66]
[null,60]
[null,54]
[null,48]
[null,42]
[null,36,null,"1 post",null,null,null,"1 post"]
[null,30,null,"3 Wall",null,null,null,"Fin Base"]
[null,24,null,"(1 3/4 inch)",null,null,null,"(2 inch)"]
[null,18]
[null,12]
[null,null,12,18,24,30,36,42,48,54,60,66,72,78,84,90,96,102,108,114,120,126,132,138,144,150,156,162,168,174,180]
[null,"Panel Width (Inches)"]
[null,null,"Three Walled Base Riser Post 1 3/4 in, 14 gauge",null,null,null,null,null,null,null,null,null,null,null,null,null,null,null,null,null,null,null,null,null,null,"Date: September 3, 2020"]
[null,null,"Fin Base Riser Post 2 in, 12 gauge"]
[null,null,"Typically used for delineators, markers, reference location signs, roundabout directional arrows, and chevrons"]
[null,null,"Aluminum Stringers"]
[null,null,"90 mph Wind Load"]

{"sheet":"Signs","index":12,"n_rows":37,"n_cols":31,"rows_kept":37,"cut":false,"hidden":false,"merged":[[4,0,27,0],[28,1,28,30]]}
[]
[null,null,null,null,null,null,null,null,"Windloading Chart for Signs on Square Tube Posts"]
[]
[]
["Panel Height (Inches)",144]
[null,138,null,null,null,null,null,null,null,null,null,null,null,null,null,null,null,null,null,null,null,null,null,null,null,null,null,"3 post"]
[null,132,null,null,null,null,null,null,null,null,null,null,null,null,null,null,null,null,null,null,null,null,null,null,null,null,null,"Slip Base"]
[null,126,null,null,null,null,null,null,null,null,null,null,"1 post",null,null,null,null,null,null,"2 post",null,null,null,null,null,null,null,"(4 inch)"]
[null,120,null,null,null,null,null,null,null,null,null,null,"Slip Base",null,null,null,null,null,null,"Slip Base"]
[null,114,null,null,null,null,null,null,null,null,null,null,"(4 inch)",null,null,null,null,null,null,"(4 inch)"]
[null,108]
[null,102,null,null,null,null,null,null,null,null,null,null,null,null,null,null,null,null,null,null,null,null,null,null,null,null,null,null,null,"5 post"]
[null,96,null,null,null,null,null,null,null,null,null,null,null,null,null,null,null,null,null,null,null,null,null,null,null,"4 post",null,null,null,"Slip Base"]
[null,90,null,null,null,null,null,null,null,null,null,null,null,null,null,null,null,null,null,null,null,null,null,null,null,"Slip Base"]
[null,84,null,null,null,null,null,null,null,null,null,null,null,null,null,null,null,null,null,null,null,null,null,null,null,"(2 1/2 inch)"]
[null,78]
[null,72]
[null,66,null,null,null,null,"1 post"]
[null,60,null,null,null,null,"Slip Base"]
[null,54,null,null,null,null,"(2 1/2 inch)",null,null,null,null,null,null,null,"2 post",null,null,null,null,null,null,null,null,null,"3 post"]
[null,48,null,null,null,null,null,null,null,null,null,null,null,null,"Slip Base",null,null,null,null,null,null,null,null,null,"Slip Base"]
[null,42,null,null,null,null,null,null,null,null,null,null,null,null,"(2 1/2 inch)",null,null,null,null,null,null,null,null,null,"(2 1/2 inch)"]
[null,36,null,null,"1 post"]
[null,30,null,null,"Fin Base or"]
[null,24,null,null,"Shear Bolt Base"]
[null,18,null,null,"(2 inch)"]
[null,12]
[null,null,12,18,24,30,36,42,48,54,60,66,72,78,84,90,96,102,108,114,120,126,132,138,144,150,156,162,168,174,180]
[null,"Panel Width (Inches)"]
[null,null,"Slip Base Riser Post 4 inch, 8 gauge",null,null,null,null,null,null,null,null,null,null,null,null,null,null,null,null,null,null,null,null,null,null,"Date: October 23, 2020"]
[null,null,"Slip Base Riser Post 2-1/2 inch, 10 gauge with 2-3/16 inch insert"]
[null,null,"Fin Base Riser Post 2 in, 12 gauge"]
[null,null,"Shear Bolt Base Riser Post 2 in, 12 gauge"]
[null,null,"Typically used for all signs"]
[null,null,"Based on 7 foot mounting height with a 3 foot ditch"]
[null,null,"Aluminum Stringers"]
[null,null,"90 mph Wind Load"]

{"sheet":"SIGN TYPE SPECIAL","index":13,"n_rows":13,"n_cols":21,"rows_kept":13,"cut":false,"hidden":false,"merged":[[12,10,12,12],[1,1,1,19],[3,10,5,10],[3,11,5,11],[3,12,6,12],[6,4,6,6],[2,20,5,20],[3,3,6,3],[3,4,5,6],[3,7,5,7],[3,8,6,8],[3,9,6,9],[2,2,2,7],[2,8,2,12],[2,13,5,13],[2,14,5,14],[2,15,5,15],[2,16,5,16],[2,17,5,17],[2,18,5,18],[2,19,5,19]]}
[]
[null,"SIGN TYPE SPECIAL",null,null,null,null,null,null,null,null,null,null,null,null,null,null,null,null,null,null,"ST-B"]
[null,null,"PANEL",null,null,null,null,null,"SUPPORT",null,null,null,null,"REMOVE\nSIGN TYPE\nSPECIAL","SIGN\nTYPE\nSPECIAL","SALVAGE\nSIGN TYPE\nSPECIAL","INSTALL\nSIGN TYPE\nSPECIAL","REMOVE\nSIGN PANEL\nTYPE SECIAL","SIGN\nPANELS TYPE\nSPECIAL","SALVAGE\nSIGN PANEL\nTYPE SPECIAL","INSTALL\nSIGN PANEL\nTYPE SPECIAL"]
[null,"SIGN","\n","\nLEGEND","SIZE\n(W x H)",null,null,"MOUNTING\nHEIGHT","NUMBER OF POSTS","TYPE","A\nDISTANCE","RISER POST SIZE","SURFACE\nTYPE"]
[null,"NUMBER","PANEL"]
[null,null,"CODE"]
[null,null,null,null,"INCH",null,null,"FEET",null,null,"FEET","INCHES",null,"EACH","SQ FT","EACH","EACH","EACH","SQ FT","EACH","EACH"]
[null,"S-501"," ","LED STOP",36,"x",36,7,1,"SQ"," ","2","SOIL"," ",{"$f":"(E8*G8)/144","v":9},null," "," "," ",null," "]
[null,"S-502"," ","STREET NAME ",null,"x",null,7," "," "," "," "," "," ",{"$f":"(E9*G9)/144","v":0},1,1," "," ",null," "]
[null,"S-503",null,null,null,"x",null," ","  "," ",null," "," "," ",{"$f":"(E10*G10)/144","v":0},null,null," "," "]
[null,"S-504"," ",null,null,"x",null," "," "," ",null," "," "," ",{"$f":"(E11*G11)/144","v":0},null,null," "," "]
[null,"S-505",null,null,null,"x",null," "," "," ",null," "," "," ",null,null,null," "," "]
[null,null,null,null,null,null,null,null,null,null,"TOTAL",null,null,{"$f":"SUM(N8:N12)","v":0},9,1,1,0,0,{"$f":"SUM(T8:T12)","v":0},0]

{"sheet":"EXT & OVERLAY","index":14,"n_rows":33,"n_cols":28,"rows_kept":33,"cut":false,"hidden":false,"merged":[[1,28,1,29],[2,19,2,23],[9,8,9,10],[1,26,1,27],[3,8,8,10],[3,11,8,14],[3,15,8,17],[3,19,8,19],[3,22,8,22],[3,27,8,27],[1,1,1,22],[3,26,8,26],[2,26,2,27],[3,23,9,23],[3,21,8,21],[16,0,17,0],[3,4,8,7],[9,15,9,17],[3,3,9,3],[9,4,9,6],[9,11,9,13],[12,1,13,1],[14,1,15,1],[2,1,9,1],[2,3,2,7],[2,2,9,2],[2,8,2,18],[16,1,17,1],[10,1,11,1],[18,1,21,1],[23,11,23,13],[23,19,23,20],[3,20,8,20],[23,4,23,6],[23,15,23,17],[3,18,8,18]]}
[]
[null,"PANEL OVERLAY, EXTRUDED PANEL AND PANEL MOUNTING POST",null,null,null,null,null,null,null,null,null,null,null,null,null,null,null,null,null,null,null,null,null,"ST-C"]
[null,"SIGN\nSUPPORT\nNUMBER","PANEL\nNUMBER","PANEL OVERLAY",null,null,null,null,"EXTRUDED PANELS",null,null,null,null,null,null,null,null,null,null,"PANEL MOUNTING POSTS   ",null,null,null,null,null,null,"PANEL MOUNTING POSTS   "]
[null,null,null,"PANEL LEGEND","SIGN PANEL OVERLAY\n",null,null,null,"EXISTING\nEXTRUDED\nPANEL ",null,null,"F. & I.\nEXTRUDED\nPANEL ",null,null,null,"REMOVE\nEXTRUDED PANEL\nSECTIONS\n",null,null,"REMOVE EXTRUDED PANEL","NO.","TYPE\n","LENGTH","STRUCTURAL\nSTEEL-PANEL\nMOUNTING\nPOST","ATTACH\nTO\nTRUSS \nTYPE",null,null,"EXTEND\nAPPROX.\n","SHORTEN\nAPPROX.\n"]
[]
[]
[]
[]
[]
[null,null,null,null,"INCH",null,null,"SQ FT","INCH",null,null,"INCH",null,null,"SQ FT","INCH",null,null,"EACH",null,null,"INCH","POUND",null,null,null,"INCH","INCH"]
[null,"IB MN101-020","EP-1","EXIT 40",96,"x",30,{"$f":"E11*G11/144","v":20}," ","x",null,96,"x",30,{"$f":"L11*N11/144","v":20},null,"x",null,null,2,"U",null,42]
[null,null,"IB MN101-020","COUNTY 144-141ST AVE 1/2 MILE",144,"x",108,108,null,"x",null,144,"x",108,{"$f":"L12*N12/144","v":108},null,"x"]
[null,"IB MN101-021","EP-1","EXIT 40",96,"x",30,20," ","x",null,96,"x",30,{"$f":"L13*N13/144","v":20},null,"x",null,null,2,"U",null,42]
[null,null,"IB MN101-021","COUNTY 144-141ST AVE 45 DEG ARROW",144,"x",126,126,144,"x",126,null,null,null,null,null,"x"]
[null,"IB MN101-023","EP-2","EXIT 39",96,"x",30,20," ","x",null,96,"x",30,{"$f":"L15*N15/144","v":20},null,"x",null,null,2,"U",null,42]
[null,null,"IB MN101-023","MN SCHOOL OF BARTENDING 1/2 MILE",240,"x",96,160,240,"x",126,null,null,null,null,240,"x",30,null,null,null,null,null,null,null,null,null,30]
[null,"OH MN101-521","EP-3","EXIT 43",96,"x",30,20," ","x"," ",96,"x",30,{"$f":"L17*N17/144","v":20}," ","x"," ",null,2,"U",null,42]
[null,null,"OH MN101-521","MN 51 ST PAUL MINNEAPOLIS 1 MILE EXIT ONLY",174,"x",156,188.5,174,"x",126,174,"x",30,36.25," ","x"," ",null,3,"W6x12",160,534,"C"]
[null,"OH MN101-522","EP-4","EXIT 44",96,"x",30,20," ","x"," ",96,"x",30,20," ","x"," ",null,2,"U",null,42]
[null,null,"OH MN101-522(L)","HAMLINE AVE 1 MILE",126,"x",90,78.75," ","x"," ",126,"x",90,78.75," ","x"," ",null,2,"S4x7.7",94,156,"B"]
[null,null,"EP-5","EXIT 43",96,"x",30,20," ","x"," ",96,"x",30,20," ","x"," ",null,2,"U",null,42]
[null,null,"OH MN101-522(R)","MN 51 ST PAUL MINNEAPOLIS EXIT ONLY",174,"x",144,174," ","x"," ",174,"x",144,174," ","x"," ",null,3,"W6x12",148,498,"C"]
[null,"OH MN101-989","OH MN101-989","McKNIGHT RD 1/2 ,MN 120 CENTURY AVE 1 1/4, I694 I494 2",258,"x",96,172," ","x"," ",258,"x",96,172," ","x"," ",null," ",null,null," "]
[null,"TOTAL",null,null,null,null,null,{"$f":"SUM(H11:H23)","v":1127.25},null,null,null,null,null,null,{"$f":"SUM(O11:O23)","v":689},null,null,null,{"$f":"SUM(S11:S23)","v":0},null,null,null,{"$f":"SUM(W11:W23)","v":1440}]
[]
[]
[null,"SPECIFIC NOTE(S):"]
[]
[null,"GENERAL NOTE(S):"]
[null,"1.  TRUSS DEPTH AND CHORD ANGLE INFORMATION FOR PANEL MOUNTING POSTS ARE BASED ON TRUSS TYPE AND APPLY TO DESIGN B, INTERIM DESIGN B AND DESIGN D STRUCTURES.    "]
[null,"      TRUSS TYPE A: TRUSS DEPTH = 72 INCHES, CHORD ANGLES = 6 x 6 x 1/2"]
[null,"      TRUSS TYPE B: TRUSS DEPTH = 72 INCHES, CHORD ANGLES = 6 x 6 x 3/4"]
[null,"      TRUSS TYPE C: TRUSS DEPTH = 72 INCHES, CHORD ANGLES = 8 x 8 x 5/8"]

{"sheet":"OH STRUCT QUAN","index":15,"n_rows":21,"n_cols":23,"rows_kept":21,"cut":false,"hidden":false,"merged":[[2,22,6,22],[2,15,6,15],[2,18,6,18],[2,19,6,19],[2,1,7,1],[2,21,6,21],[2,17,6,17],[2,16,6,16],[13,4,13,5],[13,8,13,9],[13,10,13,11],[2,20,6,20],[2,12,6,12],[1,1,1,21],[2,3,6,3],[2,13,6,13],[2,14,6,14],[2,4,5,5],[2,6,6,6],[2,8,5,9],[2,10,5,11],[2,2,6,2],[2,7,6,7]]}
[]
[null,"I-BEAM, MONOTUBE AND OVERHEAD SIGN STRUCTURE QUANTITIES",null,null,null,null,null,null,null,null,null,null,null,null,null,null,null,null,null,null,null,null,"ST-D"]
[null,"SIGN\nSUPPORT\nNUMBER","REMOVE\nI-BEAM\nSIGN","REMOVE MONOTUBE SIGN","REMOVE OVERHEAD SIGN",null,"REMOVE OVERHEAD BRIDGE MOUNTED SIGN","REMOVE\nSIGN\nWALKWAY","SALVAGE OVERHEAD SIGN",null,"INSTALL OVERHEAD SIGN",null,"STRUCTURAL\nSTEEL-\nI-BEAM\nSIGN","STRUCTURAL STEEL-\nOVERHEAD SIGN POST","STRUCTURAL STEEL- OVERHEAD SIGN TRUSS","STUCTURAL STEEL-\nOVERHEAD WALKWAY","STRUCTURAL STEEL-\nMONOTUBE SIGN","STRUCTRUAL\nSTEEL-BRIDGE\nMOUNTED\nTRUSS","MEDIAN\nBARRIER\nFOOTING\n(SHAFT)","MEDIAN\nBARRIER\nFOOTING\n(SPREAD)","CONCRETE\nFOOTING\n(OVERHEAD \nSPREAD)","CONCRETE FOOTING (OVERHEAD SHAFT)","CONCRETE FOOTING (MONOTUBE)"]
[]
[]
[]
[null,null,null,null,"SIMPLE SPAN","CANTILEVER",null,null,"SIMPLE SPAN","CANTILEVER","SIMPLE SPAN","CANTILEVER"]
[null,null,"EACH","EACH","EACH","EACH","EACH","LIN FT","EACH","EACH","EACH","EACH","POUND","POUND","POUND","POUND","POUND","POUND","CU YD","CU YD","CU YD","CU TD","CU TD"]
[null,"IB MN101-013",1,1,null,null,1,null,null,null,1,null,1574]
[null,"OH MN101-521",null,null,1,1,null,null,null,null,null,1,null," "," ",null,0,null,0,0,0," "," "]
[null,"OH MN101-522",null,null,null,null,null,null,1,null,null,null,null,6632,7546,null,0,null,0,0,0,15.9," "]
[null,"OH MN101-989",null,null,null,null,null,null,null,1,null,null,null,0,0,null,0,1050,0,0,0,0,0]
[null,"OH MN101-990",null,null,null,null,null,null,null,null,null,null,null,0,0,null,5362,null,0,0,0,0,4.5]
[null,"TOTAL",{"$f":"SUM(C9:C13)","v":1},{"$f":"SUM(D9:D13)","v":1},{"$f":"SUM(E9:F13)","v":2},null,{"$f":"SUM(G9:G13)","v":1},null,{"$f":"SUM(I9:J13)","v":2},null,{"$f":"SUM(K9:L13)","v":2},null,{"$f":"SUM(M9:M13)","v":1574},{"$f":"SUM(N9:N13)","v":6632},7546,{"$f":"SUM(P9:P13)","v":0},{"$f":"SUM(Q9:Q13)","v":5362},1050,0,0,0,16,5]
[]
[null,"SPECIFIC NOTE(S):"]
[]
[null,"GENERAL NOTE(S):"]
[null,"1.  QUANTITIES SHOWN ARE APPROXIMATE BASED UPON ELEVATIONS AND DIMENSIONS SHOWN IN SIGNING STRUCTURE ELEVATIONS."]
[null,"    FABRICATIONS DEPENDENT ON THESE ELEVATIONS SHALL NOT BE STARTED UNTIL THE ENGINEER HAS MADE FINAL DETERMINATION OF THEM IN THE FIELD. "]
[null,"2.  SEE STRUCTURE ELEVATIONS SHEETS FOR DETAILS."]

{"sheet":"Conc Rail Calc","index":16,"n_rows":22,"n_cols":25,"rows_kept":22,"cut":false,"hidden":false,"merged":[[1,3,1,5],[1,7,1,24],[2,3,2,4],[2,6,3,6],[2,7,2,10],[2,14,3,14],[2,15,3,15],[2,16,2,20],[2,21,3,21],[2,22,3,22],[13,17,15,17],[2,23,3,23],[2,24,3,24],[12,3,12,5],[12,8,12,24],[13,6,15,6],[13,7,15,7],[13,8,15,8],[13,9,15,9],[13,10,15,10],[13,11,15,11],[13,12,15,12],[13,13,15,13],[13,14,15,14],[13,15,15,15],[13,16,15,16],[13,24,15,24],[16,3,16,5],[16,8,16,24],[17,6,18,6],[17,7,18,7],[17,8,18,8],[17,9,18,9],[17,10,18,10],[17,11,18,11],[17,12,18,12],[13,18,15,18],[13,19,15,19],[13,20,15,20],[13,21,15,21],[13,22,15,22],[13,23,15,23],[17,24,18,24],[17,13,18,13],[17,14,18,14],[17,15,18,15],[17,16,18,16],[17,17,18,17],[17,18,18,18],[17,19,18,19],[17,20,18,20],[17,21,18,21],[17,22,18,22],[17,23,18,23],[20,19,21,19],[19,3,19,5],[19,8,19,24],[20,6,21,6],[20,7,21,7],[20,8,21,8],[20,9,21,9],[20,10,21,10],[20,11,21,11],[20,12,21,12],[20,13,21,13],[20,14,21,14],[20,15,21,15],[20,16,21,16],[20,17,21,17],[20,18,21,18],[20,20,21,20],[20,21,21,21],[20,22,21,22],[20,23,21,23],[20,24,21,24]]}
[]
[null,null,null,"Input Parameters",null,null,"Output","Output Conditions"]
[null,null,null,"Sign Size",null,"Configuration","STRUCTURE \nTYPE",null,null,null,null,null,null,null,"NOMINAL POST SIZE (IN.)","NOMINAL ARM SIZE (IN.)","CONCRETE ANCHOR",null,null,null,null,"FILL PLATE THICKNESS (IN.)","BENT PLATE THICKNESS (IN.)","SIDE PLATE THICKNESS (IN.)","STRUCTURE TYPE"]
[null,null,null,"Panel Width \"B\" (in)","Panel Height \"H\" (in)","Square or Diamond",null,"Arm Spacing \"0.6H\" (in)","Sign Area (SF)","Arm, \"A\" (in)","Maximum Arm (in)","Arm Condition 1","Arm Condtion 2","Arm Condition 3",null,null,"DIAMETER (IN.)","EMBEDMENT (IN.)","NUMBER REQUIRED","TORQUE \n(FT-LBS)","PROOF LOAD (KIPS)"]
[null,null,null,144,24,"square",{"$f":"Y5","v":"III"},{"$f":"MROUND(0.6*E5,3)","v":15},{"$f":"D5*E5/144","v":24},{"$f":"IF(F5=\"Square\",2+D5/2,2+(SQRT(2)/2)*D5)","v":74},{"$f":"IF(OR(I5<'[2]TABLE DATA'!$D$7,I5='[2]TABLE DATA'!$D$7),717.75/I5,IF(AND('[2]TABLE DATA'!$D$7<I5,OR(I5<'[2]TABLE DATA'!$D$8,I5='[2]TABLE DATA'!$D$8)),1695/I5,IF(AND('[2]TABLE DATA'!$D$8<I5,OR(I5<'[2]TABLE DATA'!$D$9,I5='[2]TABLE DATA'!$D$9)),2268/I5,IF(I5=\"Arm Too Long\", \"Reduce V or W\",\"Sign Too Wide\"))))","v":29.91},{"$f":"717.75/'[2]Input-Output Data'!I5","v":29.91},{"$f":"1695/I5","v":70.63},{"$f":"2268/I5","v":94.5},{"$f":"IF(I5=\"Arm Too Long\", \"Reduce V or W\",IF($I5>'[2]TABLE DATA'!$D$9,\"SIGN TOO LARGE\",IF(AND(OR($I5<'[2]TABLE DATA'!$D$7,$I5='[2]TABLE DATA'!$D$7),OR('[2]Input-Output Data'!$J5<'[2]Input-Output Data'!$K5,'[2]Input-Output Data'!$J5='[2]Input-Output Data'!$K5)),'[2]TABLE DATA'!F$7,IF(AND(OR($I5<'[2]TABLE DATA'!$D$7,$I5='[2]TABLE DATA'!$D$7),AND($J5>$L5),OR('[2]Input-Output Data'!$J5<'[2]Input-Output Data'!$M5,'[2]Input-Output Data'!$J5='[2]Input-Output Data'!$M5)),'[2]TABLE DATA'!F$8,IF(AND(OR($I5<'[2]TABLE DATA'!$D$7,$I5='[2]TABLE DATA'!$D$7),AND($J5>$M5),OR('[2]Input-Output Data'!$J5<'[2]Input-Output Data'!$N5,'[2]Input-Output Data'!$J5='[2]Input-Output Data'!$N5)),'[2]TABLE DATA'!F$9,IF(AND(OR($I5<'[2]TABLE DATA'!$D$7,$I5='[2]TABLE DATA'!$D$7),$J5>$N5),\"SIGN TOO WIDE\",IF(AND(AND($I5>'[2]TABLE DATA'!$D$7,OR($I5<'[2]TABLE DATA'!$D$8,$I5='[2]TABLE DATA'!$D$8)),'[2]Input-Output Data'!$J5<'[2]Input-Output Data'!$K5),'[2]TABLE DATA'!F$8,IF(AND(AND($I5>'[2]TABLE DATA'!$D$7,OR($I5<'[2]TABLE DATA'!$D$8,$I5='[2]TABLE DATA'!$D$8)),AND('[2]Input-Output Data'!$J5>'[2]Input-Output Data'!$M5,OR('[2]Input-Output Data'!$J5<'[2]Input-Output Data'!$N5,'[2]Input-Output Data'!$J5='[2]Input-Output Data'!$N5))),'[2]TABLE DATA'!F$9,IF(AND(AND($I5>'[2]TABLE DATA'!$D$7,OR($I5<'[2]TABLE DATA'!$D$8,$I5='[2]TABLE DATA'!$D$8)),$J5>'[2]Input-Output Data'!$N5),\"SIGN TOO WIDE\",IF(AND(AND($I5>'[2]TABLE DATA'!$D$8,OR($I5<'[2]TABLE DATA'!$D$9,$I5='[2]TABLE DATA'!$D$9)),'[2]Input-Output Data'!$J5<'[2]Input-Output Data'!$K5),'[2]TABLE DATA'!F$9,\"SIGN TOO WIDE\"))))))))))","v":5},{"$f":"IF(I5=\"Arm Too Long\", \"Reduce V or W\",IF($I5>'[2]TABLE DATA'!$D$9,\"SIGN TOO LARGE\",IF(AND(OR($I5<'[2]TABLE DATA'!$D$7,$I5='[2]TABLE DATA'!$D$7),OR('[2]Input-Output Data'!$J5<'[2]Input-Output Data'!$K5,'[2]Input-Output Data'!$J5='[2]Input-Output Data'!$K5)),'[2]TABLE DATA'!G$7,IF(AND(OR($I5<'[2]TABLE DATA'!$D$7,$I5='[2]TABLE DATA'!$D$7),AND($J5>$L5),OR('[2]Input-Output Data'!$J5<'[2]Input-Output Data'!$M5,'[2]Input-Output Data'!$J5='[2]Input-Output Data'!$M5)),'[2]TABLE DATA'!G$8,IF(AND(OR($I5<'[2]TABLE DATA'!$D$7,$I5='[2]TABLE DATA'!$D$7),AND($J5>$M5),OR('[2]Input-Output Data'!$J5<'[2]Input-Output Data'!$N5,'[2]Input-Output Data'!$J5='[2]Input-Output Data'!$N5)),'[2]TABLE DATA'!G$9,IF(AND(OR($I5<'[2]TABLE DATA'!$D$7,$I5='[2]TABLE DATA'!$D$7),$J5>$N5),\"SIGN TOO WIDE\",IF(AND(AND($I5>'[2]TABLE DATA'!$D$7,OR($I5<'[2]TABLE DATA'!$D$8,$I5='[2]TABLE DATA'!$D$8)),'[2]Input-Output Data'!$J5<'[2]Input-Output Data'!$K5),'[2]TABLE DATA'!G$8,IF(AND(AND($I5>'[2]TABLE DATA'!$D$7,OR($I5<'[2]TABLE DATA'!$D$8,$I5='[2]TABLE DATA'!$D$8)),AND('[2]Input-Output Data'!$J5>'[2]Input-Output Data'!$M5,OR('[2]Input-Output Data'!$J5<'[2]Input-Output Data'!$N5,'[2]Input-Output Data'!$J5='[2]Input-Output Data'!$N5))),'[2]TABLE DATA'!G$9,IF(AND(AND($I5>'[2]TABLE DATA'!$D$7,OR($I5<'[2]TABLE DATA'!$D$8,$I5='[2]TABLE DATA'!$D$8)),$J5>'[2]Input-Output Data'!$N5),\"SIGN TOO WIDE\",IF(AND(AND($I5>'[2]TABLE DATA'!$D$8,OR($I5<'[2]TABLE DATA'!$D$9,$I5='[2]TABLE DATA'!$D$9)),'[2]Input-Output Data'!$J5<'[2]Input-Output Data'!$K5),'[2]TABLE DATA'!G$9,\"SIGN TOO WIDE\"))))))))))","v":3},{"$f":"IF(I5=\"Arm Too Long\", \"Reduce V or W\",IF($I5>'[2]TABLE DATA'!$D$9,\"SIGN TOO LARGE\",IF(AND(OR($I5<'[2]TABLE DATA'!$D$7,$I5='[2]TABLE DATA'!$D$7),OR('[2]Input-Output Data'!$J5<'[2]Input-Output Data'!$K5,'[2]Input-Output Data'!$J5='[2]Input-Output Data'!$K5)),'[2]TABLE DATA'!H$7,IF(AND(OR($I5<'[2]TABLE DATA'!$D$7,$I5='[2]TABLE DATA'!$D$7),AND($J5>$L5),OR('[2]Input-Output Data'!$J5<'[2]Input-Output Data'!$M5,'[2]Input-Output Data'!$J5='[2]Input-Output Data'!$M5)),'[2]TABLE DATA'!H$8,IF(AND(OR($I5<'[2]TABLE DATA'!$D$7,$I5='[2]TABLE DATA'!$D$7),AND($J5>$M5),OR('[2]Input-Output Data'!$J5<'[2]Input-Output Data'!$N5,'[2]Input-Output Data'!$J5='[2]Input-Output Data'!$N5)),'[2]TABLE DATA'!H$9,IF(AND(OR($I5<'[2]TABLE DATA'!$D$7,$I5='[2]TABLE DATA'!$D$7),$J5>$N5),\"SIGN TOO WIDE\",IF(AND(AND($I5>'[2]TABLE DATA'!$D$7,OR($I5<'[2]TABLE DATA'!$D$8,$I5='[2]TABLE DATA'!$D$8)),'[2]Input-Output Data'!$J5<'[2]Input-Output Data'!$K5),'[2]TABLE DATA'!H$8,IF(AND(AND($I5>'[2]TABLE DATA'!$D$7,OR($I5<'[2]TABLE DATA'!$D$8,$I5='[2]TABLE DATA'!$D$8)),AND('[2]Input-Output Data'!$J5>'[2]Input-Output Data'!$M5,OR('[2]Input-Output Data'!$J5<'[2]Input-Output Data'!$N5,'[2]Input-Output Data'!$J5='[2]Input-Output Data'!$N5))),'[2]TABLE DATA'!H$9,IF(AND(AND($I5>'[2]TABLE DATA'!$D$7,OR($I5<'[2]TABLE DATA'!$D$8,$I5='[2]TABLE DATA'!$D$8)),$J5>'[2]Input-Output Data'!$N5),\"SIGN TOO WIDE\",IF(AND(AND($I5>'[2]TABLE DATA'!$D$8,OR($I5<'[2]TABLE DATA'!$D$9,$I5='[2]TABLE DATA'!$D$9)),'[2]Input-Output Data'!$J5<'[2]Input-Output Data'!$K5),'[2]TABLE DATA'!H$9,\"SIGN TOO WIDE\"))))))))))","v":0.875},{"$f":"IF(I5=\"Arm Too Long\", \"Reduce V or W\",IF($I5>'[2]TABLE DATA'!$D$9,\"SIGN TOO LARGE\",IF(AND(OR($I5<'[2]TABLE DATA'!$D$7,$I5='[2]TABLE DATA'!$D$7),OR('[2]Input-Output Data'!$J5<'[2]Input-Output Data'!$K5,'[2]Input-Output Data'!$J5='[2]Input-Output Data'!$K5)),'[2]TABLE DATA'!I$7,IF(AND(OR($I5<'[2]TABLE DATA'!$D$7,$I5='[2]TABLE DATA'!$D$7),AND($J5>$L5),OR('[2]Input-Output Data'!$J5<'[2]Input-Output Data'!$M5,'[2]Input-Output Data'!$J5='[2]Input-Output Data'!$M5)),'[2]TABLE DATA'!I$8,IF(AND(OR($I5<'[2]TABLE DATA'!$D$7,$I5='[2]TABLE DATA'!$D$7),AND($J5>$M5),OR('[2]Input-Output Data'!$J5<'[2]Input-Output Data'!$N5,'[2]Input-Output Data'!$J5='[2]Input-Output Data'!$N5)),'[2]TABLE DATA'!I$9,IF(AND(OR($I5<'[2]TABLE DATA'!$D$7,$I5='[2]TABLE DATA'!$D$7),$J5>$N5),\"SIGN TOO WIDE\",IF(AND(AND($I5>'[2]TABLE DATA'!$D$7,OR($I5<'[2]TABLE DATA'!$D$8,$I5='[2]TABLE DATA'!$D$8)),'[2]Input-Output Data'!$J5<'[2]Input-Output Data'!$K5),'[2]TABLE DATA'!I$8,IF(AND(AND($I5>'[2]TABLE DATA'!$D$7,OR($I5<'[2]TABLE DATA'!$D$8,$I5='[2]TABLE DATA'!$D$8)),AND('[2]Input-Output Data'!$J5>'[2]Input-Output Data'!$M5,OR('[2]Input-Output Data'!$J5<'[2]Input-Output Data'!$N5,'[2]Input-Output Data'!$J5='[2]Input-Output Data'!$N5))),'[2]TABLE DATA'!I$9,IF(AND(AND($I5>'[2]TABLE DATA'!$D$7,OR($I5<'[2]TABLE DATA'!$D$8,$I5='[2]TABLE DATA'!$D$8)),$J5>'[2]Input-Output Data'!$N5),\"SIGN TOO WIDE\",IF(AND(AND($I5>'[2]TABLE DATA'!$D$8,OR($I5<'[2]TABLE DATA'!$D$9,$I5='[2]TABLE DATA'!$D$9)),'[2]Input-Output Data'!$J5<'[2]Input-Output Data'!$K5),'[2]TABLE DATA'!I$9,\"SIGN TOO WIDE\"))))))))))","v":8},{"$f":"IF(I5=\"Arm Too Long\", \"Reduce V or W\",IF($I5>'[2]TABLE DATA'!$D$9,\"SIGN TOO LARGE\",IF(AND(OR($I5<'[2]TABLE DATA'!$D$7,$I5='[2]TABLE DATA'!$D$7),OR('[2]Input-Output Data'!$J5<'[2]Input-Output Data'!$K5,'[2]Input-Output Data'!$J5='[2]Input-Output Data'!$K5)),'[2]TABLE DATA'!J$7,IF(AND(OR($I5<'[2]TABLE DATA'!$D$7,$I5='[2]TABLE DATA'!$D$7),AND($J5>$L5),OR('[2]Input-Output Data'!$J5<'[2]Input-Output Data'!$M5,'[2]Input-Output Data'!$J5='[2]Input-Output Data'!$M5)),'[2]TABLE DATA'!J$8,IF(AND(OR($I5<'[2]TABLE DATA'!$D$7,$I5='[2]TABLE DATA'!$D$7),AND($J5>$M5),OR('[2]Input-Output Data'!$J5<'[2]Input-Output Data'!$N5,'[2]Input-Output Data'!$J5='[2]Input-Output Data'!$N5)),'[2]TABLE DATA'!J$9,IF(AND(OR($I5<'[2]TABLE DATA'!$D$7,$I5='[2]TABLE DATA'!$D$7),$J5>$N5),\"SIGN TOO WIDE\",IF(AND(AND($I5>'[2]TABLE DATA'!$D$7,OR($I5<'[2]TABLE DATA'!$D$8,$I5='[2]TABLE DATA'!$D$8)),'[2]Input-Output Data'!$J5<'[2]Input-Output Data'!$K5),'[2]TABLE DATA'!J$8,IF(AND(AND($I5>'[2]TABLE DATA'!$D$7,OR($I5<'[2]TABLE DATA'!$D$8,$I5='[2]TABLE DATA'!$D$8)),AND('[2]Input-Output Data'!$J5>'[2]Input-Output Data'!$M5,OR('[2]Input-Output Data'!$J5<'[2]Input-Output Data'!$N5,'[2]Input-Output Data'!$J5='[2]Input-Output Data'!$N5))),'[2]TABLE DATA'!J$9,IF(AND(AND($I5>'[2]TABLE DATA'!$D$7,OR($I5<'[2]TABLE DATA'!$D$8,$I5='[2]TABLE DATA'!$D$8)),$J5>'[2]Input-Output Data'!$N5),\"SIGN TOO WIDE\",IF(AND(AND($I5>'[2]TABLE DATA'!$D$8,OR($I5<'[2]TABLE DATA'!$D$9,$I5='[2]TABLE DATA'!$D$9)),'[2]Input-Output Data'!$J5<'[2]Input-Output Data'!$K5),'[2]TABLE DATA'!J$9,\"SIGN TOO WIDE\"))))))))))","v":3},{"$f":"IF(I5=\"Arm Too Long\", \"Reduce V or W\",IF($I5>'[2]TABLE DATA'!$D$9,\"SIGN TOO LARGE\",IF(AND(OR($I5<'[2]TABLE DATA'!$D$7,$I5='[2]TABLE DATA'!$D$7),OR('[2]Input-Output Data'!$J5<'[2]Input-Output Data'!$K5,'[2]Input-Output Data'!$J5='[2]Input-Output Data'!$K5)),'[2]TABLE DATA'!K$7,IF(AND(OR($I5<'[2]TABLE DATA'!$D$7,$I5='[2]TABLE DATA'!$D$7),AND($J5>$L5),OR('[2]Input-Output Data'!$J5<'[2]Input-Output Data'!$M5,'[2]Input-Output Data'!$J5='[2]Input-Output Data'!$M5)),'[2]TABLE DATA'!K$8,IF(AND(OR($I5<'[2]TABLE DATA'!$D$7,$I5='[2]TABLE DATA'!$D$7),AND($J5>$M5),OR('[2]Input-Output Data'!$J5<'[2]Input-Output Data'!$N5,'[2]Input-Output Data'!$J5='[2]Input-Output Data'!$N5)),'[2]TABLE DATA'!K$9,IF(AND(OR($I5<'[2]TABLE DATA'!$D$7,$I5='[2]TABLE DATA'!$D$7),$J5>$N5),\"SIGN TOO WIDE\",IF(AND(AND($I5>'[2]TABLE DATA'!$D$7,OR($I5<'[2]TABLE DATA'!$D$8,$I5='[2]TABLE DATA'!$D$8)),'[2]Input-Output Data'!$J5<'[2]Input-Output Data'!$K5),'[2]TABLE DATA'!K$8,IF(AND(AND($I5>'[2]TABLE DATA'!$D$7,OR($I5<'[2]TABLE DATA'!$D$8,$I5='[2]TABLE DATA'!$D$8)),AND('[2]Input-Output Data'!$J5>'[2]Input-Output Data'!$M5,OR('[2]Input-Output Data'!$J5<'[2]Input-Output Data'!$N5,'[2]Input-Output Data'!$J5='[2]Input-Output Data'!$N5))),'[2]TABLE DATA'!K$9,IF(AND(AND($I5>'[2]TABLE DATA'!$D$7,OR($I5<'[2]TABLE DATA'!$D$8,$I5='[2]TABLE DATA'!$D$8)),$J5>'[2]Input-Output Data'!$N5),\"SIGN TOO WIDE\",IF(AND(AND($I5>'[2]TABLE DATA'!$D$8,OR($I5<'[2]TABLE DATA'!$D$9,$I5='[2]TABLE DATA'!$D$9)),'[2]Input-Output Data'!$J5<'[2]Input-Output Data'!$K5),'[2]TABLE DATA'!K$9,\"SIGN TOO WIDE\"))))))))))","v":80},{"$f":"IF(I5=\"Arm Too Long\", \"Reduce V or W\",IF($I5>'[2]TABLE DATA'!$D$9,\"SIGN TOO LARGE\",IF(AND(OR($I5<'[2]TABLE DATA'!$D$7,$I5='[2]TABLE DATA'!$D$7),OR('[2]Input-Output Data'!$J5<'[2]Input-Output Data'!$K5,'[2]Input-Output Data'!$J5='[2]Input-Output Data'!$K5)),'[2]TABLE DATA'!L$7,IF(AND(OR($I5<'[2]TABLE DATA'!$D$7,$I5='[2]TABLE DATA'!$D$7),AND($J5>$L5),OR('[2]Input-Output Data'!$J5<'[2]Input-Output Data'!$M5,'[2]Input-Output Data'!$J5='[2]Input-Output Data'!$M5)),'[2]TABLE DATA'!L$8,IF(AND(OR($I5<'[2]TABLE DATA'!$D$7,$I5='[2]TABLE DATA'!$D$7),AND($J5>$M5),OR('[2]Input-Output Data'!$J5<'[2]Input-Output Data'!$N5,'[2]Input-Output Data'!$J5='[2]Input-Output Data'!$N5)),'[2]TABLE DATA'!L$9,IF(AND(OR($I5<'[2]TABLE DATA'!$D$7,$I5='[2]TABLE DATA'!$D$7),$J5>$N5),\"SIGN TOO WIDE\",IF(AND(AND($I5>'[2]TABLE DATA'!$D$7,OR($I5<'[2]TABLE DATA'!$D$8,$I5='[2]TABLE DATA'!$D$8)),'[2]Input-Output Data'!$J5<'[2]Input-Output Data'!$K5),'[2]TABLE DATA'!L$8,IF(AND(AND($I5>'[2]TABLE DATA'!$D$7,OR($I5<'[2]TABLE DATA'!$D$8,$I5='[2]TABLE DATA'!$D$8)),AND('[2]Input-Output Data'!$J5>'[2]Input-Output Data'!$M5,OR('[2]Input-Output Data'!$J5<'[2]Input-Output Data'!$N5,'[2]Input-Output Data'!$J5='[2]Input-Output Data'!$N5))),'[2]TABLE DATA'!L$9,IF(AND(AND($I5>'[2]TABLE DATA'!$D$7,OR($I5<'[2]TABLE DATA'!$D$8,$I5='[2]TABLE DATA'!$D$8)),$J5>'[2]Input-Output Data'!$N5),\"SIGN TOO WIDE\",IF(AND(AND($I5>'[2]TABLE DATA'!$D$8,OR($I5<'[2]TABLE DATA'!$D$9,$I5='[2]TABLE DATA'!$D$9)),'[2]Input-Output Data'!$J5<'[2]Input-Output Data'!$K5),'[2]TABLE DATA'!L$9,\"SIGN TOO WIDE\"))))))))))","v":14.5},{"$f":"IF(I5=\"Arm Too Long\", \"Reduce V or W\",IF($I5>'[2]TABLE DATA'!$D$9,\"SIGN TOO LARGE\",IF(AND(OR($I5<'[2]TABLE DATA'!$D$7,$I5='[2]TABLE DATA'!$D$7),OR('[2]Input-Output Data'!$J5<'[2]Input-Output Data'!$K5,'[2]Input-Output Data'!$J5='[2]Input-Output Data'!$K5)),'[2]TABLE DATA'!M$7,IF(AND(OR($I5<'[2]TABLE DATA'!$D$7,$I5='[2]TABLE DATA'!$D$7),AND($J5>$L5),OR('[2]Input-Output Data'!$J5<'[2]Input-Output Data'!$M5,'[2]Input-Output Data'!$J5='[2]Input-Output Data'!$M5)),'[2]TABLE DATA'!M$8,IF(AND(OR($I5<'[2]TABLE DATA'!$D$7,$I5='[2]TABLE DATA'!$D$7),AND($J5>$M5),OR('[2]Input-Output Data'!$J5<'[2]Input-Output Data'!$N5,'[2]Input-Output Data'!$J5='[2]Input-Output Data'!$N5)),'[2]TABLE DATA'!M$9,IF(AND(OR($I5<'[2]TABLE DATA'!$D$7,$I5='[2]TABLE DATA'!$D$7),$J5>$N5),\"SIGN TOO WIDE\",IF(AND(AND($I5>'[2]TABLE DATA'!$D$7,OR($I5<'[2]TABLE DATA'!$D$8,$I5='[2]TABLE DATA'!$D$8)),'[2]Input-Output Data'!$J5<'[2]Input-Output Data'!$K5),'[2]TABLE DATA'!M$8,IF(AND(AND($I5>'[2]TABLE DATA'!$D$7,OR($I5<'[2]TABLE DATA'!$D$8,$I5='[2]TABLE DATA'!$D$8)),AND('[2]Input-Output Data'!$J5>'[2]Input-Output Data'!$M5,OR('[2]Input-Output Data'!$J5<'[2]Input-Output Data'!$N5,'[2]Input-Output Data'!$J5='[2]Input-Output Data'!$N5))),'[2]TABLE DATA'!M$9,IF(AND(AND($I5>'[2]TABLE DATA'!$D$7,OR($I5<'[2]TABLE DATA'!$D$8,$I5='[2]TABLE DATA'!$D$8)),$J5>'[2]Input-Output Data'!$N5),\"SIGN TOO WIDE\",IF(AND(AND($I5>'[2]TABLE DATA'!$D$8,OR($I5<'[2]TABLE DATA'!$D$9,$I5='[2]TABLE DATA'!$D$9)),'[2]Input-Output Data'!$J5<'[2]Input-Output Data'!$K5),'[2]TABLE DATA'!M$9,\"SIGN TOO WIDE\"))))))))))","v":0.75},{"$f":"IF(I5=\"Arm Too Long\", \"Reduce V or W\",IF($I5>'[2]TABLE DATA'!$D$9,\"SIGN TOO LARGE\",IF(AND(OR($I5<'[2]TABLE DATA'!$D$7,$I5='[2]TABLE DATA'!$D$7),OR('[2]Input-Output Data'!$J5<'[2]Input-Output Data'!$K5,'[2]Input-Output Data'!$J5='[2]Input-Output Data'!$K5)),'[2]TABLE DATA'!N$7,IF(AND(OR($I5<'[2]TABLE DATA'!$D$7,$I5='[2]TABLE DATA'!$D$7),AND($J5>$L5),OR('[2]Input-Output Data'!$J5<'[2]Input-Output Data'!$M5,'[2]Input-Output Data'!$J5='[2]Input-Output Data'!$M5)),'[2]TABLE DATA'!N$8,IF(AND(OR($I5<'[2]TABLE DATA'!$D$7,$I5='[2]TABLE DATA'!$D$7),AND($J5>$M5),OR('[2]Input-Output Data'!$J5<'[2]Input-Output Data'!$N5,'[2]Input-Output Data'!$J5='[2]Input-Output Data'!$N5)),'[2]TABLE DATA'!N$9,IF(AND(OR($I5<'[2]TABLE DATA'!$D$7,$I5='[2]TABLE DATA'!$D$7),$J5>$N5),\"SIGN TOO WIDE\",IF(AND(AND($I5>'[2]TABLE DATA'!$D$7,OR($I5<'[2]TABLE DATA'!$D$8,$I5='[2]TABLE DATA'!$D$8)),'[2]Input-Output Data'!$J5<'[2]Input-Output Data'!$K5),'[2]TABLE DATA'!N$8,IF(AND(AND($I5>'[2]TABLE DATA'!$D$7,OR($I5<'[2]TABLE DATA'!$D$8,$I5='[2]TABLE DATA'!$D$8)),AND('[2]Input-Output Data'!$J5>'[2]Input-Output Data'!$M5,OR('[2]Input-Output Data'!$J5<'[2]Input-Output Data'!$N5,'[2]Input-Output Data'!$J5='[2]Input-Output Data'!$N5))),'[2]TABLE DATA'!N$9,IF(AND(AND($I5>'[2]TABLE DATA'!$D$7,OR($I5<'[2]TABLE DATA'!$D$8,$I5='[2]TABLE DATA'!$D$8)),$J5>'[2]Input-Output Data'!$N5),\"SIGN TOO WIDE\",IF(AND(AND($I5>'[2]TABLE DATA'!$D$8,OR($I5<'[2]TABLE DATA'!$D$9,$I5='[2]TABLE DATA'!$D$9)),'[2]Input-Output Data'!$J5<'[2]Input-Output Data'!$K5),'[2]TABLE DATA'!N$9,\"SIGN TOO WIDE\"))))))))))","v":0.625},{"$f":"IF(I5=\"Arm Too Long\", \"Reduce V or W\",IF($I5>'[2]TABLE DATA'!$D$9,\"SIGN TOO LARGE\",IF(AND(OR($I5<'[2]TABLE DATA'!$D$7,$I5='[2]TABLE DATA'!$D$7),OR('[2]Input-Output Data'!$J5<'[2]Input-Output Data'!$K5,'[2]Input-Output Data'!$J5='[2]Input-Output Data'!$K5)),'[2]TABLE DATA'!O$7,IF(AND(OR($I5<'[2]TABLE DATA'!$D$7,$I5='[2]TABLE DATA'!$D$7),AND($J5>$L5),OR('[2]Input-Output Data'!$J5<'[2]Input-Output Data'!$M5,'[2]Input-Output Data'!$J5='[2]Input-Output Data'!$M5)),'[2]TABLE DATA'!O$8,IF(AND(OR($I5<'[2]TABLE DATA'!$D$7,$I5='[2]TABLE DATA'!$D$7),AND($J5>$M5),OR('[2]Input-Output Data'!$J5<'[2]Input-Output Data'!$N5,'[2]Input-Output Data'!$J5='[2]Input-Output Data'!$N5)),'[2]TABLE DATA'!O$9,IF(AND(OR($I5<'[2]TABLE DATA'!$D$7,$I5='[2]TABLE DATA'!$D$7),$J5>$N5),\"SIGN TOO WIDE\",IF(AND(AND($I5>'[2]TABLE DATA'!$D$7,OR($I5<'[2]TABLE DATA'!$D$8,$I5='[2]TABLE DATA'!$D$8)),'[2]Input-Output Data'!$J5<'[2]Input-Output Data'!$K5),'[2]TABLE DATA'!O$8,IF(AND(AND($I5>'[2]TABLE DATA'!$D$7,OR($I5<'[2]TABLE DATA'!$D$8,$I5='[2]TABLE DATA'!$D$8)),AND('[2]Input-Output Data'!$J5>'[2]Input-Output Data'!$M5,OR('[2]Input-Output Data'!$J5<'[2]Input-Output Data'!$N5,'[2]Input-Output Data'!$J5='[2]Input-Output Data'!$N5))),'[2]TABLE DATA'!O$9,IF(AND(AND($I5>'[2]TABLE DATA'!$D$7,OR($I5<'[2]TABLE DATA'!$D$8,$I5='[2]TABLE DATA'!$D$8)),$J5>'[2]Input-Output Data'!$N5),\"SIGN TOO WIDE\",IF(AND(AND($I5>'[2]TABLE DATA'!$D$8,OR($I5<'[2]TABLE DATA'!$D$9,$I5='[2]TABLE DATA'!$D$9)),'[2]Input-Output Data'!$J5<'[2]Input-Output Data'!$K5),'[2]TABLE DATA'!O$9,\"SIGN TOO WIDE\"))))))))))","v":0.625},{"$f":"IF(V5=0.5,\"I\",IF(V5=0.625,\"II\",IF(V5=0.75,\"III\",\"N/A\")))","v":"III"}]
[null,null,null,48,48,"Diamond",{"$f":"Y6","v":"I"},30,{"$f":"D6*E6/144","v":16},{"$f":"IF(F6=\"Square\",2+D6/2,2+(SQRT(2)/2)*D6)","v":35.9},{"$f":"IF(OR(I6<'[2]TABLE DATA'!$D$7,I6='[2]TABLE DATA'!$D$7),717.75/I6,IF(AND('[2]TABLE DATA'!$D$7<I6,OR(I6<'[2]TABLE DATA'!$D$8,I6='[2]TABLE DATA'!$D$8)),1695/I6,IF(AND('[2]TABLE DATA'!$D$8<I6,OR(I6<'[2]TABLE DATA'!$D$9,I6='[2]TABLE DATA'!$D$9)),2268/I6,IF(I6=\"Arm Too Long\", \"Reduce V or W\",\"Sign Too Wide\"))))","v":44.86},{"$f":"717.75/'[2]Input-Output Data'!I6","v":44.86},{"$f":"1695/I6","v":105.94},{"$f":"2268/I6","v":141.75},{"$f":"IF(I6=\"Arm Too Long\", \"Reduce V or W\",IF($I6>'[2]TABLE DATA'!$D$9,\"SIGN TOO LARGE\",IF(AND(OR($I6<'[2]TABLE DATA'!$D$7,$I6='[2]TABLE DATA'!$D$7),OR('[2]Input-Output Data'!$J6<'[2]Input-Output Data'!$K6,'[2]Input-Output Data'!$J6='[2]Input-Output Data'!$K6)),'[2]TABLE DATA'!F$7,IF(AND(OR($I6<'[2]TABLE DATA'!$D$7,$I6='[2]TABLE DATA'!$D$7),AND($J6>$L6),OR('[2]Input-Output Data'!$J6<'[2]Input-Output Data'!$M6,'[2]Input-Output Data'!$J6='[2]Input-Output Data'!$M6)),'[2]TABLE DATA'!F$8,IF(AND(OR($I6<'[2]TABLE DATA'!$D$7,$I6='[2]TABLE DATA'!$D$7),AND($J6>$M6),OR('[2]Input-Output Data'!$J6<'[2]Input-Output Data'!$N6,'[2]Input-Output Data'!$J6='[2]Input-Output Data'!$N6)),'[2]TABLE DATA'!F$9,IF(AND(OR($I6<'[2]TABLE DATA'!$D$7,$I6='[2]TABLE DATA'!$D$7),$J6>$N6),\"SIGN TOO WIDE\",IF(AND(AND($I6>'[2]TABLE DATA'!$D$7,OR($I6<'[2]TABLE DATA'!$D$8,$I6='[2]TABLE DATA'!$D$8)),'[2]Input-Output Data'!$J6<'[2]Input-Output Data'!$K6),'[2]TABLE DATA'!F$8,IF(AND(AND($I6>'[2]TABLE DATA'!$D$7,OR($I6<'[2]TABLE DATA'!$D$8,$I6='[2]TABLE DATA'!$D$8)),AND('[2]Input-Output Data'!$J6>'[2]Input-Output Data'!$M6,OR('[2]Input-Output Data'!$J6<'[2]Input-Output Data'!$N6,'[2]Input-Output Data'!$J6='[2]Input-Output Data'!$N6))),'[2]TABLE DATA'!F$9,IF(AND(AND($I6>'[2]TABLE DATA'!$D$7,OR($I6<'[2]TABLE DATA'!$D$8,$I6='[2]TABLE DATA'!$D$8)),$J6>'[2]Input-Output Data'!$N6),\"SIGN TOO WIDE\",IF(AND(AND($I6>'[2]TABLE DATA'!$D$8,OR($I6<'[2]TABLE DATA'!$D$9,$I6='[2]TABLE DATA'!$D$9)),'[2]Input-Output Data'!$J6<'[2]Input-Output Data'!$K6),'[2]TABLE DATA'!F$9,\"SIGN TOO WIDE\"))))))))))","v":4},{"$f":"IF(I6=\"Arm Too Long\", \"Reduce V or W\",IF($I6>'[2]TABLE DATA'!$D$9,\"SIGN TOO LARGE\",IF(AND(OR($I6<'[2]TABLE DATA'!$D$7,$I6='[2]TABLE DATA'!$D$7),OR('[2]Input-Output Data'!$J6<'[2]Input-Output Data'!$K6,'[2]Input-Output Data'!$J6='[2]Input-Output Data'!$K6)),'[2]TABLE DATA'!G$7,IF(AND(OR($I6<'[2]TABLE DATA'!$D$7,$I6='[2]TABLE DATA'!$D$7),AND($J6>$L6),OR('[2]Input-Output Data'!$J6<'[2]Input-Output Data'!$M6,'[2]Input-Output Data'!$J6='[2]Input-Output Data'!$M6)),'[2]TABLE DATA'!G$8,IF(AND(OR($I6<'[2]TABLE DATA'!$D$7,$I6='[2]TABLE DATA'!$D$7),AND($J6>$M6),OR('[2]Input-Output Data'!$J6<'[2]Input-Output Data'!$N6,'[2]Input-Output Data'!$J6='[2]Input-Output Data'!$N6)),'[2]TABLE DATA'!G$9,IF(AND(OR($I6<'[2]TABLE DATA'!$D$7,$I6='[2]TABLE DATA'!$D$7),$J6>$N6),\"SIGN TOO WIDE\",IF(AND(AND($I6>'[2]TABLE DATA'!$D$7,OR($I6<'[2]TABLE DATA'!$D$8,$I6='[2]TABLE DATA'!$D$8)),'[2]Input-Output Data'!$J6<'[2]Input-Output Data'!$K6),'[2]TABLE DATA'!G$8,IF(AND(AND($I6>'[2]TABLE DATA'!$D$7,OR($I6<'[2]TABLE DATA'!$D$8,$I6='[2]TABLE DATA'!$D$8)),AND('[2]Input-Output Data'!$J6>'[2]Input-Output Data'!$M6,OR('[2]Input-Output Data'!$J6<'[2]Input-Output Data'!$N6,'[2]Input-Output Data'!$J6='[2]Input-Output Data'!$N6))),'[2]TABLE DATA'!G$9,IF(AND(AND($I6>'[2]TABLE DATA'!$D$7,OR($I6<'[2]TABLE DATA'!$D$8,$I6='[2]TABLE DATA'!$D$8)),$J6>'[2]Input-Output Data'!$N6),\"SIGN TOO WIDE\",IF(AND(AND($I6>'[2]TABLE DATA'!$D$8,OR($I6<'[2]TABLE DATA'!$D$9,$I6='[2]TABLE DATA'!$D$9)),'[2]Input-Output Data'!$J6<'[2]Input-Output Data'!$K6),'[2]TABLE DATA'!G$9,\"SIGN TOO WIDE\"))))))))))","v":2},{"$f":"IF(I6=\"Arm Too Long\", \"Reduce V or W\",IF($I6>'[2]TABLE DATA'!$D$9,\"SIGN TOO LARGE\",IF(AND(OR($I6<'[2]TABLE DATA'!$D$7,$I6='[2]TABLE DATA'!$D$7),OR('[2]Input-Output Data'!$J6<'[2]Input-Output Data'!$K6,'[2]Input-Output Data'!$J6='[2]Input-Output Data'!$K6)),'[2]TABLE DATA'!H$7,IF(AND(OR($I6<'[2]TABLE DATA'!$D$7,$I6='[2]TABLE DATA'!$D$7),AND($J6>$L6),OR('[2]Input-Output Data'!$J6<'[2]Input-Output Data'!$M6,'[2]Input-Output Data'!$J6='[2]Input-Output Data'!$M6)),'[2]TABLE DATA'!H$8,IF(AND(OR($I6<'[2]TABLE DATA'!$D$7,$I6='[2]TABLE DATA'!$D$7),AND($J6>$M6),OR('[2]Input-Output Data'!$J6<'[2]Input-Output Data'!$N6,'[2]Input-Output Data'!$J6='[2]Input-Output Data'!$N6)),'[2]TABLE DATA'!H$9,IF(AND(OR($I6<'[2]TABLE DATA'!$D$7,$I6='[2]TABLE DATA'!$D$7),$J6>$N6),\"SIGN TOO WIDE\",IF(AND(AND($I6>'[2]TABLE DATA'!$D$7,OR($I6<'[2]TABLE DATA'!$D$8,$I6='[2]TABLE DATA'!$D$8)),'[2]Input-Output Data'!$J6<'[2]Input-Output Data'!$K6),'[2]TABLE DATA'!H$8,IF(AND(AND($I6>'[2]TABLE DATA'!$D$7,OR($I6<'[2]TABLE DATA'!$D$8,$I6='[2]TABLE DATA'!$D$8)),AND('[2]Input-Output Data'!$J6>'[2]Input-Output Data'!$M6,OR('[2]Input-Output Data'!$J6<'[2]Input-Output Data'!$N6,'[2]Input-Output Data'!$J6='[2]Input-Output Data'!$N6))),'[2]TABLE DATA'!H$9,IF(AND(AND($I6>'[2]TABLE DATA'!$D$7,OR($I6<'[2]TABLE DATA'!$D$8,$I6='[2]TABLE DATA'!$D$8)),$J6>'[2]Input-Output Data'!$N6),\"SIGN TOO WIDE\",IF(AND(AND($I6>'[2]TABLE DATA'!$D$8,OR($I6<'[2]TABLE DATA'!$D$9,$I6='[2]TABLE DATA'!$D$9)),'[2]Input-Output Data'!$J6<'[2]Input-Output Data'!$K6),'[2]TABLE DATA'!H$9,\"SIGN TOO WIDE\"))))))))))","v":0.625},{"$f":"IF(I6=\"Arm Too Long\", \"Reduce V or W\",IF($I6>'[2]TABLE DATA'!$D$9,\"SIGN TOO LARGE\",IF(AND(OR($I6<'[2]TABLE DATA'!$D$7,$I6='[2]TABLE DATA'!$D$7),OR('[2]Input-Output Data'!$J6<'[2]Input-Output Data'!$K6,'[2]Input-Output Data'!$J6='[2]Input-Output Data'!$K6)),'[2]TABLE DATA'!I$7,IF(AND(OR($I6<'[2]TABLE DATA'!$D$7,$I6='[2]TABLE DATA'!$D$7),AND($J6>$L6),OR('[2]Input-Output Data'!$J6<'[2]Input-Output Data'!$M6,'[2]Input-Output Data'!$J6='[2]Input-Output Data'!$M6)),'[2]TABLE DATA'!I$8,IF(AND(OR($I6<'[2]TABLE DATA'!$D$7,$I6='[2]TABLE DATA'!$D$7),AND($J6>$M6),OR('[2]Input-Output Data'!$J6<'[2]Input-Output Data'!$N6,'[2]Input-Output Data'!$J6='[2]Input-Output Data'!$N6)),'[2]TABLE DATA'!I$9,IF(AND(OR($I6<'[2]TABLE DATA'!$D$7,$I6='[2]TABLE DATA'!$D$7),$J6>$N6),\"SIGN TOO WIDE\",IF(AND(AND($I6>'[2]TABLE DATA'!$D$7,OR($I6<'[2]TABLE DATA'!$D$8,$I6='[2]TABLE DATA'!$D$8)),'[2]Input-Output Data'!$J6<'[2]Input-Output Data'!$K6),'[2]TABLE DATA'!I$8,IF(AND(AND($I6>'[2]TABLE DATA'!$D$7,OR($I6<'[2]TABLE DATA'!$D$8,$I6='[2]TABLE DATA'!$D$8)),AND('[2]Input-Output Data'!$J6>'[2]Input-Output Data'!$M6,OR('[2]Input-Output Data'!$J6<'[2]Input-Output Data'!$N6,'[2]Input-Output Data'!$J6='[2]Input-Output Data'!$N6))),'[2]TABLE DATA'!I$9,IF(AND(AND($I6>'[2]TABLE DATA'!$D$7,OR($I6<'[2]TABLE DATA'!$D$8,$I6='[2]TABLE DATA'!$D$8)),$J6>'[2]Input-Output Data'!$N6),\"SIGN TOO WIDE\",IF(AND(AND($I6>'[2]TABLE DATA'!$D$8,OR($I6<'[2]TABLE DATA'!$D$9,$I6='[2]TABLE DATA'!$D$9)),'[2]Input-Output Data'!$J6<'[2]Input-Output Data'!$K6),'[2]TABLE DATA'!I$9,\"SIGN TOO WIDE\"))))))))))","v":5.625},{"$f":"IF(I6=\"Arm Too Long\", \"Reduce V or W\",IF($I6>'[2]TABLE DATA'!$D$9,\"SIGN TOO LARGE\",IF(AND(OR($I6<'[2]TABLE DATA'!$D$7,$I6='[2]TABLE DATA'!$D$7),OR('[2]Input-Output Data'!$J6<'[2]Input-Output Data'!$K6,'[2]Input-Output Data'!$J6='[2]Input-Output Data'!$K6)),'[2]TABLE DATA'!J$7,IF(AND(OR($I6<'[2]TABLE DATA'!$D$7,$I6='[2]TABLE DATA'!$D$7),AND($J6>$L6),OR('[2]Input-Output Data'!$J6<'[2]Input-Output Data'!$M6,'[2]Input-Output Data'!$J6='[2]Input-Output Data'!$M6)),'[2]TABLE DATA'!J$8,IF(AND(OR($I6<'[2]TABLE DATA'!$D$7,$I6='[2]TABLE DATA'!$D$7),AND($J6>$M6),OR('[2]Input-Output Data'!$J6<'[2]Input-Output Data'!$N6,'[2]Input-Output Data'!$J6='[2]Input-Output Data'!$N6)),'[2]TABLE DATA'!J$9,IF(AND(OR($I6<'[2]TABLE DATA'!$D$7,$I6='[2]TABLE DATA'!$D$7),$J6>$N6),\"SIGN TOO WIDE\",IF(AND(AND($I6>'[2]TABLE DATA'!$D$7,OR($I6<'[2]TABLE DATA'!$D$8,$I6='[2]TABLE DATA'!$D$8)),'[2]Input-Output Data'!$J6<'[2]Input-Output Data'!$K6),'[2]TABLE DATA'!J$8,IF(AND(AND($I6>'[2]TABLE DATA'!$D$7,OR($I6<'[2]TABLE DATA'!$D$8,$I6='[2]TABLE DATA'!$D$8)),AND('[2]Input-Output Data'!$J6>'[2]Input-Output Data'!$M6,OR('[2]Input-Output Data'!$J6<'[2]Input-Output Data'!$N6,'[2]Input-Output Data'!$J6='[2]Input-Output Data'!$N6))),'[2]TABLE DATA'!J$9,IF(AND(AND($I6>'[2]TABLE DATA'!$D$7,OR($I6<'[2]TABLE DATA'!$D$8,$I6='[2]TABLE DATA'!$D$8)),$J6>'[2]Input-Output Data'!$N6),\"SIGN TOO WIDE\",IF(AND(AND($I6>'[2]TABLE DATA'!$D$8,OR($I6<'[2]TABLE DATA'!$D$9,$I6='[2]TABLE DATA'!$D$9)),'[2]Input-Output Data'!$J6<'[2]Input-Output Data'!$K6),'[2]TABLE DATA'!J$9,\"SIGN TOO WIDE\"))))))))))","v":2},{"$f":"IF(I6=\"Arm Too Long\", \"Reduce V or W\",IF($I6>'[2]TABLE DATA'!$D$9,\"SIGN TOO LARGE\",IF(AND(OR($I6<'[2]TABLE DATA'!$D$7,$I6='[2]TABLE DATA'!$D$7),OR('[2]Input-Output Data'!$J6<'[2]Input-Output Data'!$K6,'[2]Input-Output Data'!$J6='[2]Input-Output Data'!$K6)),'[2]TABLE DATA'!K$7,IF(AND(OR($I6<'[2]TABLE DATA'!$D$7,$I6='[2]TABLE DATA'!$D$7),AND($J6>$L6),OR('[2]Input-Output Data'!$J6<'[2]Input-Output Data'!$M6,'[2]Input-Output Data'!$J6='[2]Input-Output Data'!$M6)),'[2]TABLE DATA'!K$8,IF(AND(OR($I6<'[2]TABLE DATA'!$D$7,$I6='[2]TABLE DATA'!$D$7),AND($J6>$M6),OR('[2]Input-Output Data'!$J6<'[2]Input-Output Data'!$N6,'[2]Input-Output Data'!$J6='[2]Input-Output Data'!$N6)),'[2]TABLE DATA'!K$9,IF(AND(OR($I6<'[2]TABLE DATA'!$D$7,$I6='[2]TABLE DATA'!$D$7),$J6>$N6),\"SIGN TOO WIDE\",IF(AND(AND($I6>'[2]TABLE DATA'!$D$7,OR($I6<'[2]TABLE DATA'!$D$8,$I6='[2]TABLE DATA'!$D$8)),'[2]Input-Output Data'!$J6<'[2]Input-Output Data'!$K6),'[2]TABLE DATA'!K$8,IF(AND(AND($I6>'[2]TABLE DATA'!$D$7,OR($I6<'[2]TABLE DATA'!$D$8,$I6='[2]TABLE DATA'!$D$8)),AND('[2]Input-Output Data'!$J6>'[2]Input-Output Data'!$M6,OR('[2]Input-Output Data'!$J6<'[2]Input-Output Data'!$N6,'[2]Input-Output Data'!$J6='[2]Input-Output Data'!$N6))),'[2]TABLE DATA'!K$9,IF(AND(AND($I6>'[2]TABLE DATA'!$D$7,OR($I6<'[2]TABLE DATA'!$D$8,$I6='[2]TABLE DATA'!$D$8)),$J6>'[2]Input-Output Data'!$N6),\"SIGN TOO WIDE\",IF(AND(AND($I6>'[2]TABLE DATA'!$D$8,OR($I6<'[2]TABLE DATA'!$D$9,$I6='[2]TABLE DATA'!$D$9)),'[2]Input-Output Data'!$J6<'[2]Input-Output Data'!$K6),'[2]TABLE DATA'!K$9,\"SIGN TOO WIDE\"))))))))))","v":60},{"$f":"IF(I6=\"Arm Too Long\", \"Reduce V or W\",IF($I6>'[2]TABLE DATA'!$D$9,\"SIGN TOO LARGE\",IF(AND(OR($I6<'[2]TABLE DATA'!$D$7,$I6='[2]TABLE DATA'!$D$7),OR('[2]Input-Output Data'!$J6<'[2]Input-Output Data'!$K6,'[2]Input-Output Data'!$J6='[2]Input-Output Data'!$K6)),'[2]TABLE DATA'!L$7,IF(AND(OR($I6<'[2]TABLE DATA'!$D$7,$I6='[2]TABLE DATA'!$D$7),AND($J6>$L6),OR('[2]Input-Output Data'!$J6<'[2]Input-Output Data'!$M6,'[2]Input-Output Data'!$J6='[2]Input-Output Data'!$M6)),'[2]TABLE DATA'!L$8,IF(AND(OR($I6<'[2]TABLE DATA'!$D$7,$I6='[2]TABLE DATA'!$D$7),AND($J6>$M6),OR('[2]Input-Output Data'!$J6<'[2]Input-Output Data'!$N6,'[2]Input-Output Data'!$J6='[2]Input-Output Data'!$N6)),'[2]TABLE DATA'!L$9,IF(AND(OR($I6<'[2]TABLE DATA'!$D$7,$I6='[2]TABLE DATA'!$D$7),$J6>$N6),\"SIGN TOO WIDE\",IF(AND(AND($I6>'[2]TABLE DATA'!$D$7,OR($I6<'[2]TABLE DATA'!$D$8,$I6='[2]TABLE DATA'!$D$8)),'[2]Input-Output Data'!$J6<'[2]Input-Output Data'!$K6),'[2]TABLE DATA'!L$8,IF(AND(AND($I6>'[2]TABLE DATA'!$D$7,OR($I6<'[2]TABLE DATA'!$D$8,$I6='[2]TABLE DATA'!$D$8)),AND('[2]Input-Output Data'!$J6>'[2]Input-Output Data'!$M6,OR('[2]Input-Output Data'!$J6<'[2]Input-Output Data'!$N6,'[2]Input-Output Data'!$J6='[2]Input-Output Data'!$N6))),'[2]TABLE DATA'!L$9,IF(AND(AND($I6>'[2]TABLE DATA'!$D$7,OR($I6<'[2]TABLE DATA'!$D$8,$I6='[2]TABLE DATA'!$D$8)),$J6>'[2]Input-Output Data'!$N6),\"SIGN TOO WIDE\",IF(AND(AND($I6>'[2]TABLE DATA'!$D$8,OR($I6<'[2]TABLE DATA'!$D$9,$I6='[2]TABLE DATA'!$D$9)),'[2]Input-Output Data'!$J6<'[2]Input-Output Data'!$K6),'[2]TABLE DATA'!L$9,\"SIGN TOO WIDE\"))))))))))","v":7.4},{"$f":"IF(I6=\"Arm Too Long\", \"Reduce V or W\",IF($I6>'[2]TABLE DATA'!$D$9,\"SIGN TOO LARGE\",IF(AND(OR($I6<'[2]TABLE DATA'!$D$7,$I6='[2]TABLE DATA'!$D$7),OR('[2]Input-Output Data'!$J6<'[2]Input-Output Data'!$K6,'[2]Input-Output Data'!$J6='[2]Input-Output Data'!$K6)),'[2]TABLE DATA'!M$7,IF(AND(OR($I6<'[2]TABLE DATA'!$D$7,$I6='[2]TABLE DATA'!$D$7),AND($J6>$L6),OR('[2]Input-Output Data'!$J6<'[2]Input-Output Data'!$M6,'[2]Input-Output Data'!$J6='[2]Input-Output Data'!$M6)),'[2]TABLE DATA'!M$8,IF(AND(OR($I6<'[2]TABLE DATA'!$D$7,$I6='[2]TABLE DATA'!$D$7),AND($J6>$M6),OR('[2]Input-Output Data'!$J6<'[2]Input-Output Data'!$N6,'[2]Input-Output Data'!$J6='[2]Input-Output Data'!$N6)),'[2]TABLE DATA'!M$9,IF(AND(OR($I6<'[2]TABLE DATA'!$D$7,$I6='[2]TABLE DATA'!$D$7),$J6>$N6),\"SIGN TOO WIDE\",IF(AND(AND($I6>'[2]TABLE DATA'!$D$7,OR($I6<'[2]TABLE DATA'!$D$8,$I6='[2]TABLE DATA'!$D$8)),'[2]Input-Output Data'!$J6<'[2]Input-Output Data'!$K6),'[2]TABLE DATA'!M$8,IF(AND(AND($I6>'[2]TABLE DATA'!$D$7,OR($I6<'[2]TABLE DATA'!$D$8,$I6='[2]TABLE DATA'!$D$8)),AND('[2]Input-Output Data'!$J6>'[2]Input-Output Data'!$M6,OR('[2]Input-Output Data'!$J6<'[2]Input-Output Data'!$N6,'[2]Input-Output Data'!$J6='[2]Input-Output Data'!$N6))),'[2]TABLE DATA'!M$9,IF(AND(AND($I6>'[2]TABLE DATA'!$D$7,OR($I6<'[2]TABLE DATA'!$D$8,$I6='[2]TABLE DATA'!$D$8)),$J6>'[2]Input-Output Data'!$N6),\"SIGN TOO WIDE\",IF(AND(AND($I6>'[2]TABLE DATA'!$D$8,OR($I6<'[2]TABLE DATA'!$D$9,$I6='[2]TABLE DATA'!$D$9)),'[2]Input-Output Data'!$J6<'[2]Input-Output Data'!$K6),'[2]TABLE DATA'!M$9,\"SIGN TOO WIDE\"))))))))))","v":0.5},{"$f":"IF(I6=\"Arm Too Long\", \"Reduce V or W\",IF($I6>'[2]TABLE DATA'!$D$9,\"SIGN TOO LARGE\",IF(AND(OR($I6<'[2]TABLE DATA'!$D$7,$I6='[2]TABLE DATA'!$D$7),OR('[2]Input-Output Data'!$J6<'[2]Input-Output Data'!$K6,'[2]Input-Output Data'!$J6='[2]Input-Output Data'!$K6)),'[2]TABLE DATA'!N$7,IF(AND(OR($I6<'[2]TABLE DATA'!$D$7,$I6='[2]TABLE DATA'!$D$7),AND($J6>$L6),OR('[2]Input-Output Data'!$J6<'[2]Input-Output Data'!$M6,'[2]Input-Output Data'!$J6='[2]Input-Output Data'!$M6)),'[2]TABLE DATA'!N$8,IF(AND(OR($I6<'[2]TABLE DATA'!$D$7,$I6='[2]TABLE DATA'!$D$7),AND($J6>$M6),OR('[2]Input-Output Data'!$J6<'[2]Input-Output Data'!$N6,'[2]Input-Output Data'!$J6='[2]Input-Output Data'!$N6)),'[2]TABLE DATA'!N$9,IF(AND(OR($I6<'[2]TABLE DATA'!$D$7,$I6='[2]TABLE DATA'!$D$7),$J6>$N6),\"SIGN TOO WIDE\",IF(AND(AND($I6>'[2]TABLE DATA'!$D$7,OR($I6<'[2]TABLE DATA'!$D$8,$I6='[2]TABLE DATA'!$D$8)),'[2]Input-Output Data'!$J6<'[2]Input-Output Data'!$K6),'[2]TABLE DATA'!N$8,IF(AND(AND($I6>'[2]TABLE DATA'!$D$7,OR($I6<'[2]TABLE DATA'!$D$8,$I6='[2]TABLE DATA'!$D$8)),AND('[2]Input-Output Data'!$J6>'[2]Input-Output Data'!$M6,OR('[2]Input-Output Data'!$J6<'[2]Input-Output Data'!$N6,'[2]Input-Output Data'!$J6='[2]Input-Output Data'!$N6))),'[2]TABLE DATA'!N$9,IF(AND(AND($I6>'[2]TABLE DATA'!$D$7,OR($I6<'[2]TABLE DATA'!$D$8,$I6='[2]TABLE DATA'!$D$8)),$J6>'[2]Input-Output Data'!$N6),\"SIGN TOO WIDE\",IF(AND(AND($I6>'[2]TABLE DATA'!$D$8,OR($I6<'[2]TABLE DATA'!$D$9,$I6='[2]TABLE DATA'!$D$9)),'[2]Input-Output Data'!$J6<'[2]Input-Output Data'!$K6),'[2]TABLE DATA'!N$9,\"SIGN TOO WIDE\"))))))))))","v":0.5},{"$f":"IF(I6=\"Arm Too Long\", \"Reduce V or W\",IF($I6>'[2]TABLE DATA'!$D$9,\"SIGN TOO LARGE\",IF(AND(OR($I6<'[2]TABLE DATA'!$D$7,$I6='[2]TABLE DATA'!$D$7),OR('[2]Input-Output Data'!$J6<'[2]Input-Output Data'!$K6,'[2]Input-Output Data'!$J6='[2]Input-Output Data'!$K6)),'[2]TABLE DATA'!O$7,IF(AND(OR($I6<'[2]TABLE DATA'!$D$7,$I6='[2]TABLE DATA'!$D$7),AND($J6>$L6),OR('[2]Input-Output Data'!$J6<'[2]Input-Output Data'!$M6,'[2]Input-Output Data'!$J6='[2]Input-Output Data'!$M6)),'[2]TABLE DATA'!O$8,IF(AND(OR($I6<'[2]TABLE DATA'!$D$7,$I6='[2]TABLE DATA'!$D$7),AND($J6>$M6),OR('[2]Input-Output Data'!$J6<'[2]Input-Output Data'!$N6,'[2]Input-Output Data'!$J6='[2]Input-Output Data'!$N6)),'[2]TABLE DATA'!O$9,IF(AND(OR($I6<'[2]TABLE DATA'!$D$7,$I6='[2]TABLE DATA'!$D$7),$J6>$N6),\"SIGN TOO WIDE\",IF(AND(AND($I6>'[2]TABLE DATA'!$D$7,OR($I6<'[2]TABLE DATA'!$D$8,$I6='[2]TABLE DATA'!$D$8)),'[2]Input-Output Data'!$J6<'[2]Input-Output Data'!$K6),'[2]TABLE DATA'!O$8,IF(AND(AND($I6>'[2]TABLE DATA'!$D$7,OR($I6<'[2]TABLE DATA'!$D$8,$I6='[2]TABLE DATA'!$D$8)),AND('[2]Input-Output Data'!$J6>'[2]Input-Output Data'!$M6,OR('[2]Input-Output Data'!$J6<'[2]Input-Output Data'!$N6,'[2]Input-Output Data'!$J6='[2]Input-Output Data'!$N6))),'[2]TABLE DATA'!O$9,IF(AND(AND($I6>'[2]TABLE DATA'!$D$7,OR($I6<'[2]TABLE DATA'!$D$8,$I6='[2]TABLE DATA'!$D$8)),$J6>'[2]Input-Output Data'!$N6),\"SIGN TOO WIDE\",IF(AND(AND($I6>'[2]TABLE DATA'!$D$8,OR($I6<'[2]TABLE DATA'!$D$9,$I6='[2]TABLE DATA'!$D$9)),'[2]Input-Output Data'!$J6<'[2]Input-Output Data'!$K6),'[2]TABLE DATA'!O$9,\"SIGN TOO WIDE\"))))))))))","v":0.5},{"$f":"IF(V6=0.5,\"I\",IF(V6=0.625,\"II\",IF(V6=0.75,\"III\",\"N/A\")))","v":"I"}]
[null,null,null,102,54,"Square","III",33,38.25,53,{"$f":"IF(OR(I7<'[2]TABLE DATA'!$D$7,I7='[2]TABLE DATA'!$D$7),717.75/I7,IF(AND('[2]TABLE DATA'!$D$7<I7,OR(I7<'[2]TABLE DATA'!$D$8,I7='[2]TABLE DATA'!$D$8)),1695/I7,IF(AND('[2]TABLE DATA'!$D$8<I7,OR(I7<'[2]TABLE DATA'!$D$9,I7='[2]TABLE DATA'!$D$9)),2268/I7,IF(I7=\"Arm Too Long\", \"Reduce V or W\",\"Sign Too Wide\"))))","v":44.31},{"$f":"717.75/'[2]Input-Output Data'!I7","v":18.760000000000002},44.31,59.29,{"$f":"IF(I7=\"Arm Too Long\", \"Reduce V or W\",IF($I7>'[2]TABLE DATA'!$D$9,\"SIGN TOO LARGE\",IF(AND(OR($I7<'[2]TABLE DATA'!$D$7,$I7='[2]TABLE DATA'!$D$7),OR('[2]Input-Output Data'!$J7<'[2]Input-Output Data'!$K7,'[2]Input-Output Data'!$J7='[2]Input-Output Data'!$K7)),'[2]TABLE DATA'!F$7,IF(AND(OR($I7<'[2]TABLE DATA'!$D$7,$I7='[2]TABLE DATA'!$D$7),AND($J7>$L7),OR('[2]Input-Output Data'!$J7<'[2]Input-Output Data'!$M7,'[2]Input-Output Data'!$J7='[2]Input-Output Data'!$M7)),'[2]TABLE DATA'!F$8,IF(AND(OR($I7<'[2]TABLE DATA'!$D$7,$I7='[2]TABLE DATA'!$D$7),AND($J7>$M7),OR('[2]Input-Output Data'!$J7<'[2]Input-Output Data'!$N7,'[2]Input-Output Data'!$J7='[2]Input-Output Data'!$N7)),'[2]TABLE DATA'!F$9,IF(AND(OR($I7<'[2]TABLE DATA'!$D$7,$I7='[2]TABLE DATA'!$D$7),$J7>$N7),\"SIGN TOO WIDE\",IF(AND(AND($I7>'[2]TABLE DATA'!$D$7,OR($I7<'[2]TABLE DATA'!$D$8,$I7='[2]TABLE DATA'!$D$8)),'[2]Input-Output Data'!$J7<'[2]Input-Output Data'!$K7),'[2]TABLE DATA'!F$8,IF(AND(AND($I7>'[2]TABLE DATA'!$D$7,OR($I7<'[2]TABLE DATA'!$D$8,$I7='[2]TABLE DATA'!$D$8)),AND('[2]Input-Output Data'!$J7>'[2]Input-Output Data'!$M7,OR('[2]Input-Output Data'!$J7<'[2]Input-Output Data'!$N7,'[2]Input-Output Data'!$J7='[2]Input-Output Data'!$N7))),'[2]TABLE DATA'!F$9,IF(AND(AND($I7>'[2]TABLE DATA'!$D$7,OR($I7<'[2]TABLE DATA'!$D$8,$I7='[2]TABLE DATA'!$D$8)),$J7>'[2]Input-Output Data'!$N7),\"SIGN TOO WIDE\",IF(AND(AND($I7>'[2]TABLE DATA'!$D$8,OR($I7<'[2]TABLE DATA'!$D$9,$I7='[2]TABLE DATA'!$D$9)),'[2]Input-Output Data'!$J7<'[2]Input-Output Data'!$K7),'[2]TABLE DATA'!F$9,\"SIGN TOO WIDE\"))))))))))","v":5},{"$f":"IF(I7=\"Arm Too Long\", \"Reduce V or W\",IF($I7>'[2]TABLE DATA'!$D$9,\"SIGN TOO LARGE\",IF(AND(OR($I7<'[2]TABLE DATA'!$D$7,$I7='[2]TABLE DATA'!$D$7),OR('[2]Input-Output Data'!$J7<'[2]Input-Output Data'!$K7,'[2]Input-Output Data'!$J7='[2]Input-Output Data'!$K7)),'[2]TABLE DATA'!G$7,IF(AND(OR($I7<'[2]TABLE DATA'!$D$7,$I7='[2]TABLE DATA'!$D$7),AND($J7>$L7),OR('[2]Input-Output Data'!$J7<'[2]Input-Output Data'!$M7,'[2]Input-Output Data'!$J7='[2]Input-Output Data'!$M7)),'[2]TABLE DATA'!G$8,IF(AND(OR($I7<'[2]TABLE DATA'!$D$7,$I7='[2]TABLE DATA'!$D$7),AND($J7>$M7),OR('[2]Input-Output Data'!$J7<'[2]Input-Output Data'!$N7,'[2]Input-Output Data'!$J7='[2]Input-Output Data'!$N7)),'[2]TABLE DATA'!G$9,IF(AND(OR($I7<'[2]TABLE DATA'!$D$7,$I7='[2]TABLE DATA'!$D$7),$J7>$N7),\"SIGN TOO WIDE\",IF(AND(AND($I7>'[2]TABLE DATA'!$D$7,OR($I7<'[2]TABLE DATA'!$D$8,$I7='[2]TABLE DATA'!$D$8)),'[2]Input-Output Data'!$J7<'[2]Input-Output Data'!$K7),'[2]TABLE DATA'!G$8,IF(AND(AND($I7>'[2]TABLE DATA'!$D$7,OR($I7<'[2]TABLE DATA'!$D$8,$I7='[2]TABLE DATA'!$D$8)),AND('[2]Input-Output Data'!$J7>'[2]Input-Output Data'!$M7,OR('[2]Input-Output Data'!$J7<'[2]Input-Output Data'!$N7,'[2]Input-Output Data'!$J7='[2]Input-Output Data'!$N7))),'[2]TABLE DATA'!G$9,IF(AND(AND($I7>'[2]TABLE DATA'!$D$7,OR($I7<'[2]TABLE DATA'!$D$8,$I7='[2]TABLE DATA'!$D$8)),$J7>'[2]Input-Output Data'!$N7),\"SIGN TOO WIDE\",IF(AND(AND($I7>'[2]TABLE DATA'!$D$8,OR($I7<'[2]TABLE DATA'!$D$9,$I7='[2]TABLE DATA'!$D$9)),'[2]Input-Output Data'!$J7<'[2]Input-Output Data'!$K7),'[2]TABLE DATA'!G$9,\"SIGN TOO WIDE\"))))))))))","v":3},{"$f":"IF(I7=\"Arm Too Long\", \"Reduce V or W\",IF($I7>'[2]TABLE DATA'!$D$9,\"SIGN TOO LARGE\",IF(AND(OR($I7<'[2]TABLE DATA'!$D$7,$I7='[2]TABLE DATA'!$D$7),OR('[2]Input-Output Data'!$J7<'[2]Input-Output Data'!$K7,'[2]Input-Output Data'!$J7='[2]Input-Output Data'!$K7)),'[2]TABLE DATA'!H$7,IF(AND(OR($I7<'[2]TABLE DATA'!$D$7,$I7='[2]TABLE DATA'!$D$7),AND($J7>$L7),OR('[2]Input-Output Data'!$J7<'[2]Input-Output Data'!$M7,'[2]Input-Output Data'!$J7='[2]Input-Output Data'!$M7)),'[2]TABLE DATA'!H$8,IF(AND(OR($I7<'[2]TABLE DATA'!$D$7,$I7='[2]TABLE DATA'!$D$7),AND($J7>$M7),OR('[2]Input-Output Data'!$J7<'[2]Input-Output Data'!$N7,'[2]Input-Output Data'!$J7='[2]Input-Output Data'!$N7)),'[2]TABLE DATA'!H$9,IF(AND(OR($I7<'[2]TABLE DATA'!$D$7,$I7='[2]TABLE DATA'!$D$7),$J7>$N7),\"SIGN TOO WIDE\",IF(AND(AND($I7>'[2]TABLE DATA'!$D$7,OR($I7<'[2]TABLE DATA'!$D$8,$I7='[2]TABLE DATA'!$D$8)),'[2]Input-Output Data'!$J7<'[2]Input-Output Data'!$K7),'[2]TABLE DATA'!H$8,IF(AND(AND($I7>'[2]TABLE DATA'!$D$7,OR($I7<'[2]TABLE DATA'!$D$8,$I7='[2]TABLE DATA'!$D$8)),AND('[2]Input-Output Data'!$J7>'[2]Input-Output Data'!$M7,OR('[2]Input-Output Data'!$J7<'[2]Input-Output Data'!$N7,'[2]Input-Output Data'!$J7='[2]Input-Output Data'!$N7))),'[2]TABLE DATA'!H$9,IF(AND(AND($I7>'[2]TABLE DATA'!$D$7,OR($I7<'[2]TABLE DATA'!$D$8,$I7='[2]TABLE DATA'!$D$8)),$J7>'[2]Input-Output Data'!$N7),\"SIGN TOO WIDE\",IF(AND(AND($I7>'[2]TABLE DATA'!$D$8,OR($I7<'[2]TABLE DATA'!$D$9,$I7='[2]TABLE DATA'!$D$9)),'[2]Input-Output Data'!$J7<'[2]Input-Output Data'!$K7),'[2]TABLE DATA'!H$9,\"SIGN TOO WIDE\"))))))))))","v":0.875},{"$f":"IF(I7=\"Arm Too Long\", \"Reduce V or W\",IF($I7>'[2]TABLE DATA'!$D$9,\"SIGN TOO LARGE\",IF(AND(OR($I7<'[2]TABLE DATA'!$D$7,$I7='[2]TABLE DATA'!$D$7),OR('[2]Input-Output Data'!$J7<'[2]Input-Output Data'!$K7,'[2]Input-Output Data'!$J7='[2]Input-Output Data'!$K7)),'[2]TABLE DATA'!I$7,IF(AND(OR($I7<'[2]TABLE DATA'!$D$7,$I7='[2]TABLE DATA'!$D$7),AND($J7>$L7),OR('[2]Input-Output Data'!$J7<'[2]Input-Output Data'!$M7,'[2]Input-Output Data'!$J7='[2]Input-Output Data'!$M7)),'[2]TABLE DATA'!I$8,IF(AND(OR($I7<'[2]TABLE DATA'!$D$7,$I7='[2]TABLE DATA'!$D$7),AND($J7>$M7),OR('[2]Input-Output Data'!$J7<'[2]Input-Output Data'!$N7,'[2]Input-Output Data'!$J7='[2]Input-Output Data'!$N7)),'[2]TABLE DATA'!I$9,IF(AND(OR($I7<'[2]TABLE DATA'!$D$7,$I7='[2]TABLE DATA'!$D$7),$J7>$N7),\"SIGN TOO WIDE\",IF(AND(AND($I7>'[2]TABLE DATA'!$D$7,OR($I7<'[2]TABLE DATA'!$D$8,$I7='[2]TABLE DATA'!$D$8)),'[2]Input-Output Data'!$J7<'[2]Input-Output Data'!$K7),'[2]TABLE DATA'!I$8,IF(AND(AND($I7>'[2]TABLE DATA'!$D$7,OR($I7<'[2]TABLE DATA'!$D$8,$I7='[2]TABLE DATA'!$D$8)),AND('[2]Input-Output Data'!$J7>'[2]Input-Output Data'!$M7,OR('[2]Input-Output Data'!$J7<'[2]Input-Output Data'!$N7,'[2]Input-Output Data'!$J7='[2]Input-Output Data'!$N7))),'[2]TABLE DATA'!I$9,IF(AND(AND($I7>'[2]TABLE DATA'!$D$7,OR($I7<'[2]TABLE DATA'!$D$8,$I7='[2]TABLE DATA'!$D$8)),$J7>'[2]Input-Output Data'!$N7),\"SIGN TOO WIDE\",IF(AND(AND($I7>'[2]TABLE DATA'!$D$8,OR($I7<'[2]TABLE DATA'!$D$9,$I7='[2]TABLE DATA'!$D$9)),'[2]Input-Output Data'!$J7<'[2]Input-Output Data'!$K7),'[2]TABLE DATA'!I$9,\"SIGN TOO WIDE\"))))))))))","v":8},{"$f":"IF(I7=\"Arm Too Long\", \"Reduce V or W\",IF($I7>'[2]TABLE DATA'!$D$9,\"SIGN TOO LARGE\",IF(AND(OR($I7<'[2]TABLE DATA'!$D$7,$I7='[2]TABLE DATA'!$D$7),OR('[2]Input-Output Data'!$J7<'[2]Input-Output Data'!$K7,'[2]Input-Output Data'!$J7='[2]Input-Output Data'!$K7)),'[2]TABLE DATA'!J$7,IF(AND(OR($I7<'[2]TABLE DATA'!$D$7,$I7='[2]TABLE DATA'!$D$7),AND($J7>$L7),OR('[2]Input-Output Data'!$J7<'[2]Input-Output Data'!$M7,'[2]Input-Output Data'!$J7='[2]Input-Output Data'!$M7)),'[2]TABLE DATA'!J$8,IF(AND(OR($I7<'[2]TABLE DATA'!$D$7,$I7='[2]TABLE DATA'!$D$7),AND($J7>$M7),OR('[2]Input-Output Data'!$J7<'[2]Input-Output Data'!$N7,'[2]Input-Output Data'!$J7='[2]Input-Output Data'!$N7)),'[2]TABLE DATA'!J$9,IF(AND(OR($I7<'[2]TABLE DATA'!$D$7,$I7='[2]TABLE DATA'!$D$7),$J7>$N7),\"SIGN TOO WIDE\",IF(AND(AND($I7>'[2]TABLE DATA'!$D$7,OR($I7<'[2]TABLE DATA'!$D$8,$I7='[2]TABLE DATA'!$D$8)),'[2]Input-Output Data'!$J7<'[2]Input-Output Data'!$K7),'[2]TABLE DATA'!J$8,IF(AND(AND($I7>'[2]TABLE DATA'!$D$7,OR($I7<'[2]TABLE DATA'!$D$8,$I7='[2]TABLE DATA'!$D$8)),AND('[2]Input-Output Data'!$J7>'[2]Input-Output Data'!$M7,OR('[2]Input-Output Data'!$J7<'[2]Input-Output Data'!$N7,'[2]Input-Output Data'!$J7='[2]Input-Output Data'!$N7))),'[2]TABLE DATA'!J$9,IF(AND(AND($I7>'[2]TABLE DATA'!$D$7,OR($I7<'[2]TABLE DATA'!$D$8,$I7='[2]TABLE DATA'!$D$8)),$J7>'[2]Input-Output Data'!$N7),\"SIGN TOO WIDE\",IF(AND(AND($I7>'[2]TABLE DATA'!$D$8,OR($I7<'[2]TABLE DATA'!$D$9,$I7='[2]TABLE DATA'!$D$9)),'[2]Input-Output Data'!$J7<'[2]Input-Output Data'!$K7),'[2]TABLE DATA'!J$9,\"SIGN TOO WIDE\"))))))))))","v":3},{"$f":"IF(I7=\"Arm Too Long\", \"Reduce V or W\",IF($I7>'[2]TABLE DATA'!$D$9,\"SIGN TOO LARGE\",IF(AND(OR($I7<'[2]TABLE DATA'!$D$7,$I7='[2]TABLE DATA'!$D$7),OR('[2]Input-Output Data'!$J7<'[2]Input-Output Data'!$K7,'[2]Input-Output Data'!$J7='[2]Input-Output Data'!$K7)),'[2]TABLE DATA'!K$7,IF(AND(OR($I7<'[2]TABLE DATA'!$D$7,$I7='[2]TABLE DATA'!$D$7),AND($J7>$L7),OR('[2]Input-Output Data'!$J7<'[2]Input-Output Data'!$M7,'[2]Input-Output Data'!$J7='[2]Input-Output Data'!$M7)),'[2]TABLE DATA'!K$8,IF(AND(OR($I7<'[2]TABLE DATA'!$D$7,$I7='[2]TABLE DATA'!$D$7),AND($J7>$M7),OR('[2]Input-Output Data'!$J7<'[2]Input-Output Data'!$N7,'[2]Input-Output Data'!$J7='[2]Input-Output Data'!$N7)),'[2]TABLE DATA'!K$9,IF(AND(OR($I7<'[2]TABLE DATA'!$D$7,$I7='[2]TABLE DATA'!$D$7),$J7>$N7),\"SIGN TOO WIDE\",IF(AND(AND($I7>'[2]TABLE DATA'!$D$7,OR($I7<'[2]TABLE DATA'!$D$8,$I7='[2]TABLE DATA'!$D$8)),'[2]Input-Output Data'!$J7<'[2]Input-Output Data'!$K7),'[2]TABLE DATA'!K$8,IF(AND(AND($I7>'[2]TABLE DATA'!$D$7,OR($I7<'[2]TABLE DATA'!$D$8,$I7='[2]TABLE DATA'!$D$8)),AND('[2]Input-Output Data'!$J7>'[2]Input-Output Data'!$M7,OR('[2]Input-Output Data'!$J7<'[2]Input-Output Data'!$N7,'[2]Input-Output Data'!$J7='[2]Input-Output Data'!$N7))),'[2]TABLE DATA'!K$9,IF(AND(AND($I7>'[2]TABLE DATA'!$D$7,OR($I7<'[2]TABLE DATA'!$D$8,$I7='[2]TABLE DATA'!$D$8)),$J7>'[2]Input-Output Data'!$N7),\"SIGN TOO WIDE\",IF(AND(AND($I7>'[2]TABLE DATA'!$D$8,OR($I7<'[2]TABLE DATA'!$D$9,$I7='[2]TABLE DATA'!$D$9)),'[2]Input-Output Data'!$J7<'[2]Input-Output Data'!$K7),'[2]TABLE DATA'!K$9,\"SIGN TOO WIDE\"))))))))))","v":80},{"$f":"IF(I7=\"Arm Too Long\", \"Reduce V or W\",IF($I7>'[2]TABLE DATA'!$D$9,\"SIGN TOO LARGE\",IF(AND(OR($I7<'[2]TABLE DATA'!$D$7,$I7='[2]TABLE DATA'!$D$7),OR('[2]Input-Output Data'!$J7<'[2]Input-Output Data'!$K7,'[2]Input-Output Data'!$J7='[2]Input-Output Data'!$K7)),'[2]TABLE DATA'!L$7,IF(AND(OR($I7<'[2]TABLE DATA'!$D$7,$I7='[2]TABLE DATA'!$D$7),AND($J7>$L7),OR('[2]Input-Output Data'!$J7<'[2]Input-Output Data'!$M7,'[2]Input-Output Data'!$J7='[2]Input-Output Data'!$M7)),'[2]TABLE DATA'!L$8,IF(AND(OR($I7<'[2]TABLE DATA'!$D$7,$I7='[2]TABLE DATA'!$D$7),AND($J7>$M7),OR('[2]Input-Output Data'!$J7<'[2]Input-Output Data'!$N7,'[2]Input-Output Data'!$J7='[2]Input-Output Data'!$N7)),'[2]TABLE DATA'!L$9,IF(AND(OR($I7<'[2]TABLE DATA'!$D$7,$I7='[2]TABLE DATA'!$D$7),$J7>$N7),\"SIGN TOO WIDE\",IF(AND(AND($I7>'[2]TABLE DATA'!$D$7,OR($I7<'[2]TABLE DATA'!$D$8,$I7='[2]TABLE DATA'!$D$8)),'[2]Input-Output Data'!$J7<'[2]Input-Output Data'!$K7),'[2]TABLE DATA'!L$8,IF(AND(AND($I7>'[2]TABLE DATA'!$D$7,OR($I7<'[2]TABLE DATA'!$D$8,$I7='[2]TABLE DATA'!$D$8)),AND('[2]Input-Output Data'!$J7>'[2]Input-Output Data'!$M7,OR('[2]Input-Output Data'!$J7<'[2]Input-Output Data'!$N7,'[2]Input-Output Data'!$J7='[2]Input-Output Data'!$N7))),'[2]TABLE DATA'!L$9,IF(AND(AND($I7>'[2]TABLE DATA'!$D$7,OR($I7<'[2]TABLE DATA'!$D$8,$I7='[2]TABLE DATA'!$D$8)),$J7>'[2]Input-Output Data'!$N7),\"SIGN TOO WIDE\",IF(AND(AND($I7>'[2]TABLE DATA'!$D$8,OR($I7<'[2]TABLE DATA'!$D$9,$I7='[2]TABLE DATA'!$D$9)),'[2]Input-Output Data'!$J7<'[2]Input-Output Data'!$K7),'[2]TABLE DATA'!L$9,\"SIGN TOO WIDE\"))))))))))","v":14.5},{"$f":"IF(I7=\"Arm Too Long\", \"Reduce V or W\",IF($I7>'[2]TABLE DATA'!$D$9,\"SIGN TOO LARGE\",IF(AND(OR($I7<'[2]TABLE DATA'!$D$7,$I7='[2]TABLE DATA'!$D$7),OR('[2]Input-Output Data'!$J7<'[2]Input-Output Data'!$K7,'[2]Input-Output Data'!$J7='[2]Input-Output Data'!$K7)),'[2]TABLE DATA'!M$7,IF(AND(OR($I7<'[2]TABLE DATA'!$D$7,$I7='[2]TABLE DATA'!$D$7),AND($J7>$L7),OR('[2]Input-Output Data'!$J7<'[2]Input-Output Data'!$M7,'[2]Input-Output Data'!$J7='[2]Input-Output Data'!$M7)),'[2]TABLE DATA'!M$8,IF(AND(OR($I7<'[2]TABLE DATA'!$D$7,$I7='[2]TABLE DATA'!$D$7),AND($J7>$M7),OR('[2]Input-Output Data'!$J7<'[2]Input-Output Data'!$N7,'[2]Input-Output Data'!$J7='[2]Input-Output Data'!$N7)),'[2]TABLE DATA'!M$9,IF(AND(OR($I7<'[2]TABLE DATA'!$D$7,$I7='[2]TABLE DATA'!$D$7),$J7>$N7),\"SIGN TOO WIDE\",IF(AND(AND($I7>'[2]TABLE DATA'!$D$7,OR($I7<'[2]TABLE DATA'!$D$8,$I7='[2]TABLE DATA'!$D$8)),'[2]Input-Output Data'!$J7<'[2]Input-Output Data'!$K7),'[2]TABLE DATA'!M$8,IF(AND(AND($I7>'[2]TABLE DATA'!$D$7,OR($I7<'[2]TABLE DATA'!$D$8,$I7='[2]TABLE DATA'!$D$8)),AND('[2]Input-Output Data'!$J7>'[2]Input-Output Data'!$M7,OR('[2]Input-Output Data'!$J7<'[2]Input-Output Data'!$N7,'[2]Input-Output Data'!$J7='[2]Input-Output Data'!$N7))),'[2]TABLE DATA'!M$9,IF(AND(AND($I7>'[2]TABLE DATA'!$D$7,OR($I7<'[2]TABLE DATA'!$D$8,$I7='[2]TABLE DATA'!$D$8)),$J7>'[2]Input-Output Data'!$N7),\"SIGN TOO WIDE\",IF(AND(AND($I7>'[2]TABLE DATA'!$D$8,OR($I7<'[2]TABLE DATA'!$D$9,$I7='[2]TABLE DATA'!$D$9)),'[2]Input-Output Data'!$J7<'[2]Input-Output Data'!$K7),'[2]TABLE DATA'!M$9,\"SIGN TOO WIDE\"))))))))))","v":0.75},{"$f":"IF(I7=\"Arm Too Long\", \"Reduce V or W\",IF($I7>'[2]TABLE DATA'!$D$9,\"SIGN TOO LARGE\",IF(AND(OR($I7<'[2]TABLE DATA'!$D$7,$I7='[2]TABLE DATA'!$D$7),OR('[2]Input-Output Data'!$J7<'[2]Input-Output Data'!$K7,'[2]Input-Output Data'!$J7='[2]Input-Output Data'!$K7)),'[2]TABLE DATA'!N$7,IF(AND(OR($I7<'[2]TABLE DATA'!$D$7,$I7='[2]TABLE DATA'!$D$7),AND($J7>$L7),OR('[2]Input-Output Data'!$J7<'[2]Input-Output Data'!$M7,'[2]Input-Output Data'!$J7='[2]Input-Output Data'!$M7)),'[2]TABLE DATA'!N$8,IF(AND(OR($I7<'[2]TABLE DATA'!$D$7,$I7='[2]TABLE DATA'!$D$7),AND($J7>$M7),OR('[2]Input-Output Data'!$J7<'[2]Input-Output Data'!$N7,'[2]Input-Output Data'!$J7='[2]Input-Output Data'!$N7)),'[2]TABLE DATA'!N$9,IF(AND(OR($I7<'[2]TABLE DATA'!$D$7,$I7='[2]TABLE DATA'!$D$7),$J7>$N7),\"SIGN TOO WIDE\",IF(AND(AND($I7>'[2]TABLE DATA'!$D$7,OR($I7<'[2]TABLE DATA'!$D$8,$I7='[2]TABLE DATA'!$D$8)),'[2]Input-Output Data'!$J7<'[2]Input-Output Data'!$K7),'[2]TABLE DATA'!N$8,IF(AND(AND($I7>'[2]TABLE DATA'!$D$7,OR($I7<'[2]TABLE DATA'!$D$8,$I7='[2]TABLE DATA'!$D$8)),AND('[2]Input-Output Data'!$J7>'[2]Input-Output Data'!$M7,OR('[2]Input-Output Data'!$J7<'[2]Input-Output Data'!$N7,'[2]Input-Output Data'!$J7='[2]Input-Output Data'!$N7))),'[2]TABLE DATA'!N$9,IF(AND(AND($I7>'[2]TABLE DATA'!$D$7,OR($I7<'[2]TABLE DATA'!$D$8,$I7='[2]TABLE DATA'!$D$8)),$J7>'[2]Input-Output Data'!$N7),\"SIGN TOO WIDE\",IF(AND(AND($I7>'[2]TABLE DATA'!$D$8,OR($I7<'[2]TABLE DATA'!$D$9,$I7='[2]TABLE DATA'!$D$9)),'[2]Input-Output Data'!$J7<'[2]Input-Output Data'!$K7),'[2]TABLE DATA'!N$9,\"SIGN TOO WIDE\"))))))))))","v":0.625},{"$f":"IF(I7=\"Arm Too Long\", \"Reduce V or W\",IF($I7>'[2]TABLE DATA'!$D$9,\"SIGN TOO LARGE\",IF(AND(OR($I7<'[2]TABLE DATA'!$D$7,$I7='[2]TABLE DATA'!$D$7),OR('[2]Input-Output Data'!$J7<'[2]Input-Output Data'!$K7,'[2]Input-Output Data'!$J7='[2]Input-Output Data'!$K7)),'[2]TABLE DATA'!O$7,IF(AND(OR($I7<'[2]TABLE DATA'!$D$7,$I7='[2]TABLE DATA'!$D$7),AND($J7>$L7),OR('[2]Input-Output Data'!$J7<'[2]Input-Output Data'!$M7,'[2]Input-Output Data'!$J7='[2]Input-Output Data'!$M7)),'[2]TABLE DATA'!O$8,IF(AND(OR($I7<'[2]TABLE DATA'!$D$7,$I7='[2]TABLE DATA'!$D$7),AND($J7>$M7),OR('[2]Input-Output Data'!$J7<'[2]Input-Output Data'!$N7,'[2]Input-Output Data'!$J7='[2]Input-Output Data'!$N7)),'[2]TABLE DATA'!O$9,IF(AND(OR($I7<'[2]TABLE DATA'!$D$7,$I7='[2]TABLE DATA'!$D$7),$J7>$N7),\"SIGN TOO WIDE\",IF(AND(AND($I7>'[2]TABLE DATA'!$D$7,OR($I7<'[2]TABLE DATA'!$D$8,$I7='[2]TABLE DATA'!$D$8)),'[2]Input-Output Data'!$J7<'[2]Input-Output Data'!$K7),'[2]TABLE DATA'!O$8,IF(AND(AND($I7>'[2]TABLE DATA'!$D$7,OR($I7<'[2]TABLE DATA'!$D$8,$I7='[2]TABLE DATA'!$D$8)),AND('[2]Input-Output Data'!$J7>'[2]Input-Output Data'!$M7,OR('[2]Input-Output Data'!$J7<'[2]Input-Output Data'!$N7,'[2]Input-Output Data'!$J7='[2]Input-Output Data'!$N7))),'[2]TABLE DATA'!O$9,IF(AND(AND($I7>'[2]TABLE DATA'!$D$7,OR($I7<'[2]TABLE DATA'!$D$8,$I7='[2]TABLE DATA'!$D$8)),$J7>'[2]Input-Output Data'!$N7),\"SIGN TOO WIDE\",IF(AND(AND($I7>'[2]TABLE DATA'!$D$8,OR($I7<'[2]TABLE DATA'!$D$9,$I7='[2]TABLE DATA'!$D$9)),'[2]Input-Output Data'!$J7<'[2]Input-Output Data'!$K7),'[2]TABLE DATA'!O$9,\"SIGN TOO WIDE\"))))))))))","v":0.625},{"$f":"IF(V7=0.5,\"I\",IF(V7=0.625,\"II\",IF(V7=0.75,\"III\",\"N/A\")))","v":"III"}]
[null,null,null,48,60,"Square","I",36,20,26,{"$f":"IF(OR(I8<'[2]TABLE DATA'!$D$7,I8='[2]TABLE DATA'!$D$7),717.75/I8,IF(AND('[2]TABLE DATA'!$D$7<I8,OR(I8<'[2]TABLE DATA'!$D$8,I8='[2]TABLE DATA'!$D$8)),1695/I8,IF(AND('[2]TABLE DATA'!$D$8<I8,OR(I8<'[2]TABLE DATA'!$D$9,I8='[2]TABLE DATA'!$D$9)),2268/I8,IF(I8=\"Arm Too Long\", \"Reduce V or W\",\"Sign Too Wide\"))))","v":35.89},{"$f":"717.75/'[2]Input-Output Data'!I8","v":35.89},84.75,113.4,{"$f":"IF(I8=\"Arm Too Long\", \"Reduce V or W\",IF($I8>'[2]TABLE DATA'!$D$9,\"SIGN TOO LARGE\",IF(AND(OR($I8<'[2]TABLE DATA'!$D$7,$I8='[2]TABLE DATA'!$D$7),OR('[2]Input-Output Data'!$J8<'[2]Input-Output Data'!$K8,'[2]Input-Output Data'!$J8='[2]Input-Output Data'!$K8)),'[2]TABLE DATA'!F$7,IF(AND(OR($I8<'[2]TABLE DATA'!$D$7,$I8='[2]TABLE DATA'!$D$7),AND($J8>$L8),OR('[2]Input-Output Data'!$J8<'[2]Input-Output Data'!$M8,'[2]Input-Output Data'!$J8='[2]Input-Output Data'!$M8)),'[2]TABLE DATA'!F$8,IF(AND(OR($I8<'[2]TABLE DATA'!$D$7,$I8='[2]TABLE DATA'!$D$7),AND($J8>$M8),OR('[2]Input-Output Data'!$J8<'[2]Input-Output Data'!$N8,'[2]Input-Output Data'!$J8='[2]Input-Output Data'!$N8)),'[2]TABLE DATA'!F$9,IF(AND(OR($I8<'[2]TABLE DATA'!$D$7,$I8='[2]TABLE DATA'!$D$7),$J8>$N8),\"SIGN TOO WIDE\",IF(AND(AND($I8>'[2]TABLE DATA'!$D$7,OR($I8<'[2]TABLE DATA'!$D$8,$I8='[2]TABLE DATA'!$D$8)),'[2]Input-Output Data'!$J8<'[2]Input-Output Data'!$K8),'[2]TABLE DATA'!F$8,IF(AND(AND($I8>'[2]TABLE DATA'!$D$7,OR($I8<'[2]TABLE DATA'!$D$8,$I8='[2]TABLE DATA'!$D$8)),AND('[2]Input-Output Data'!$J8>'[2]Input-Output Data'!$M8,OR('[2]Input-Output Data'!$J8<'[2]Input-Output Data'!$N8,'[2]Input-Output Data'!$J8='[2]Input-Output Data'!$N8))),'[2]TABLE DATA'!F$9,IF(AND(AND($I8>'[2]TABLE DATA'!$D$7,OR($I8<'[2]TABLE DATA'!$D$8,$I8='[2]TABLE DATA'!$D$8)),$J8>'[2]Input-Output Data'!$N8),\"SIGN TOO WIDE\",IF(AND(AND($I8>'[2]TABLE DATA'!$D$8,OR($I8<'[2]TABLE DATA'!$D$9,$I8='[2]TABLE DATA'!$D$9)),'[2]Input-Output Data'!$J8<'[2]Input-Output Data'!$K8),'[2]TABLE DATA'!F$9,\"SIGN TOO WIDE\"))))))))))","v":4},{"$f":"IF(I8=\"Arm Too Long\", \"Reduce V or W\",IF($I8>'[2]TABLE DATA'!$D$9,\"SIGN TOO LARGE\",IF(AND(OR($I8<'[2]TABLE DATA'!$D$7,$I8='[2]TABLE DATA'!$D$7),OR('[2]Input-Output Data'!$J8<'[2]Input-Output Data'!$K8,'[2]Input-Output Data'!$J8='[2]Input-Output Data'!$K8)),'[2]TABLE DATA'!G$7,IF(AND(OR($I8<'[2]TABLE DATA'!$D$7,$I8='[2]TABLE DATA'!$D$7),AND($J8>$L8),OR('[2]Input-Output Data'!$J8<'[2]Input-Output Data'!$M8,'[2]Input-Output Data'!$J8='[2]Input-Output Data'!$M8)),'[2]TABLE DATA'!G$8,IF(AND(OR($I8<'[2]TABLE DATA'!$D$7,$I8='[2]TABLE DATA'!$D$7),AND($J8>$M8),OR('[2]Input-Output Data'!$J8<'[2]Input-Output Data'!$N8,'[2]Input-Output Data'!$J8='[2]Input-Output Data'!$N8)),'[2]TABLE DATA'!G$9,IF(AND(OR($I8<'[2]TABLE DATA'!$D$7,$I8='[2]TABLE DATA'!$D$7),$J8>$N8),\"SIGN TOO WIDE\",IF(AND(AND($I8>'[2]TABLE DATA'!$D$7,OR($I8<'[2]TABLE DATA'!$D$8,$I8='[2]TABLE DATA'!$D$8)),'[2]Input-Output Data'!$J8<'[2]Input-Output Data'!$K8),'[2]TABLE DATA'!G$8,IF(AND(AND($I8>'[2]TABLE DATA'!$D$7,OR($I8<'[2]TABLE DATA'!$D$8,$I8='[2]TABLE DATA'!$D$8)),AND('[2]Input-Output Data'!$J8>'[2]Input-Output Data'!$M8,OR('[2]Input-Output Data'!$J8<'[2]Input-Output Data'!$N8,'[2]Input-Output Data'!$J8='[2]Input-Output Data'!$N8))),'[2]TABLE DATA'!G$9,IF(AND(AND($I8>'[2]TABLE DATA'!$D$7,OR($I8<'[2]TABLE DATA'!$D$8,$I8='[2]TABLE DATA'!$D$8)),$J8>'[2]Input-Output Data'!$N8),\"SIGN TOO WIDE\",IF(AND(AND($I8>'[2]TABLE DATA'!$D$8,OR($I8<'[2]TABLE DATA'!$D$9,$I8='[2]TABLE DATA'!$D$9)),'[2]Input-Output Data'!$J8<'[2]Input-Output Data'!$K8),'[2]TABLE DATA'!G$9,\"SIGN TOO WIDE\"))))))))))","v":2},{"$f":"IF(I8=\"Arm Too Long\", \"Reduce V or W\",IF($I8>'[2]TABLE DATA'!$D$9,\"SIGN TOO LARGE\",IF(AND(OR($I8<'[2]TABLE DATA'!$D$7,$I8='[2]TABLE DATA'!$D$7),OR('[2]Input-Output Data'!$J8<'[2]Input-Output Data'!$K8,'[2]Input-Output Data'!$J8='[2]Input-Output Data'!$K8)),'[2]TABLE DATA'!H$7,IF(AND(OR($I8<'[2]TABLE DATA'!$D$7,$I8='[2]TABLE DATA'!$D$7),AND($J8>$L8),OR('[2]Input-Output Data'!$J8<'[2]Input-Output Data'!$M8,'[2]Input-Output Data'!$J8='[2]Input-Output Data'!$M8)),'[2]TABLE DATA'!H$8,IF(AND(OR($I8<'[2]TABLE DATA'!$D$7,$I8='[2]TABLE DATA'!$D$7),AND($J8>$M8),OR('[2]Input-Output Data'!$J8<'[2]Input-Output Data'!$N8,'[2]Input-Output Data'!$J8='[2]Input-Output Data'!$N8)),'[2]TABLE DATA'!H$9,IF(AND(OR($I8<'[2]TABLE DATA'!$D$7,$I8='[2]TABLE DATA'!$D$7),$J8>$N8),\"SIGN TOO WIDE\",IF(AND(AND($I8>'[2]TABLE DATA'!$D$7,OR($I8<'[2]TABLE DATA'!$D$8,$I8='[2]TABLE DATA'!$D$8)),'[2]Input-Output Data'!$J8<'[2]Input-Output Data'!$K8),'[2]TABLE DATA'!H$8,IF(AND(AND($I8>'[2]TABLE DATA'!$D$7,OR($I8<'[2]TABLE DATA'!$D$8,$I8='[2]TABLE DATA'!$D$8)),AND('[2]Input-Output Data'!$J8>'[2]Input-Output Data'!$M8,OR('[2]Input-Output Data'!$J8<'[2]Input-Output Data'!$N8,'[2]Input-Output Data'!$J8='[2]Input-Output Data'!$N8))),'[2]TABLE DATA'!H$9,IF(AND(AND($I8>'[2]TABLE DATA'!$D$7,OR($I8<'[2]TABLE DATA'!$D$8,$I8='[2]TABLE DATA'!$D$8)),$J8>'[2]Input-Output Data'!$N8),\"SIGN TOO WIDE\",IF(AND(AND($I8>'[2]TABLE DATA'!$D$8,OR($I8<'[2]TABLE DATA'!$D$9,$I8='[2]TABLE DATA'!$D$9)),'[2]Input-Output Data'!$J8<'[2]Input-Output Data'!$K8),'[2]TABLE DATA'!H$9,\"SIGN TOO WIDE\"))))))))))","v":0.625},{"$f":"IF(I8=\"Arm Too Long\", \"Reduce V or W\",IF($I8>'[2]TABLE DATA'!$D$9,\"SIGN TOO LARGE\",IF(AND(OR($I8<'[2]TABLE DATA'!$D$7,$I8='[2]TABLE DATA'!$D$7),OR('[2]Input-Output Data'!$J8<'[2]Input-Output Data'!$K8,'[2]Input-Output Data'!$J8='[2]Input-Output Data'!$K8)),'[2]TABLE DATA'!I$7,IF(AND(OR($I8<'[2]TABLE DATA'!$D$7,$I8='[2]TABLE DATA'!$D$7),AND($J8>$L8),OR('[2]Input-Output Data'!$J8<'[2]Input-Output Data'!$M8,'[2]Input-Output Data'!$J8='[2]Input-Output Data'!$M8)),'[2]TABLE DATA'!I$8,IF(AND(OR($I8<'[2]TABLE DATA'!$D$7,$I8='[2]TABLE DATA'!$D$7),AND($J8>$M8),OR('[2]Input-Output Data'!$J8<'[2]Input-Output Data'!$N8,'[2]Input-Output Data'!$J8='[2]Input-Output Data'!$N8)),'[2]TABLE DATA'!I$9,IF(AND(OR($I8<'[2]TABLE DATA'!$D$7,$I8='[2]TABLE DATA'!$D$7),$J8>$N8),\"SIGN TOO WIDE\",IF(AND(AND($I8>'[2]TABLE DATA'!$D$7,OR($I8<'[2]TABLE DATA'!$D$8,$I8='[2]TABLE DATA'!$D$8)),'[2]Input-Output Data'!$J8<'[2]Input-Output Data'!$K8),'[2]TABLE DATA'!I$8,IF(AND(AND($I8>'[2]TABLE DATA'!$D$7,OR($I8<'[2]TABLE DATA'!$D$8,$I8='[2]TABLE DATA'!$D$8)),AND('[2]Input-Output Data'!$J8>'[2]Input-Output Data'!$M8,OR('[2]Input-Output Data'!$J8<'[2]Input-Output Data'!$N8,'[2]Input-Output Data'!$J8='[2]Input-Output Data'!$N8))),'[2]TABLE DATA'!I$9,IF(AND(AND($I8>'[2]TABLE DATA'!$D$7,OR($I8<'[2]TABLE DATA'!$D$8,$I8='[2]TABLE DATA'!$D$8)),$J8>'[2]Input-Output Data'!$N8),\"SIGN TOO WIDE\",IF(AND(AND($I8>'[2]TABLE DATA'!$D$8,OR($I8<'[2]TABLE DATA'!$D$9,$I8='[2]TABLE DATA'!$D$9)),'[2]Input-Output Data'!$J8<'[2]Input-Output Data'!$K8),'[2]TABLE DATA'!I$9,\"SIGN TOO WIDE\"))))))))))","v":5.625},{"$f":"IF(I8=\"Arm Too Long\", \"Reduce V or W\",IF($I8>'[2]TABLE DATA'!$D$9,\"SIGN TOO LARGE\",IF(AND(OR($I8<'[2]TABLE DATA'!$D$7,$I8='[2]TABLE DATA'!$D$7),OR('[2]Input-Output Data'!$J8<'[2]Input-Output Data'!$K8,'[2]Input-Output Data'!$J8='[2]Input-Output Data'!$K8)),'[2]TABLE DATA'!J$7,IF(AND(OR($I8<'[2]TABLE DATA'!$D$7,$I8='[2]TABLE DATA'!$D$7),AND($J8>$L8),OR('[2]Input-Output Data'!$J8<'[2]Input-Output Data'!$M8,'[2]Input-Output Data'!$J8='[2]Input-Output Data'!$M8)),'[2]TABLE DATA'!J$8,IF(AND(OR($I8<'[2]TABLE DATA'!$D$7,$I8='[2]TABLE DATA'!$D$7),AND($J8>$M8),OR('[2]Input-Output Data'!$J8<'[2]Input-Output Data'!$N8,'[2]Input-Output Data'!$J8='[2]Input-Output Data'!$N8)),'[2]TABLE DATA'!J$9,IF(AND(OR($I8<'[2]TABLE DATA'!$D$7,$I8='[2]TABLE DATA'!$D$7),$J8>$N8),\"SIGN TOO WIDE\",IF(AND(AND($I8>'[2]TABLE DATA'!$D$7,OR($I8<'[2]TABLE DATA'!$D$8,$I8='[2]TABLE DATA'!$D$8)),'[2]Input-Output Data'!$J8<'[2]Input-Output Data'!$K8),'[2]TABLE DATA'!J$8,IF(AND(AND($I8>'[2]TABLE DATA'!$D$7,OR($I8<'[2]TABLE DATA'!$D$8,$I8='[2]TABLE DATA'!$D$8)),AND('[2]Input-Output Data'!$J8>'[2]Input-Output Data'!$M8,OR('[2]Input-Output Data'!$J8<'[2]Input-Output Data'!$N8,'[2]Input-Output Data'!$J8='[2]Input-Output Data'!$N8))),'[2]TABLE DATA'!J$9,IF(AND(AND($I8>'[2]TABLE DATA'!$D$7,OR($I8<'[2]TABLE DATA'!$D$8,$I8='[2]TABLE DATA'!$D$8)),$J8>'[2]Input-Output Data'!$N8),\"SIGN TOO WIDE\",IF(AND(AND($I8>'[2]TABLE DATA'!$D$8,OR($I8<'[2]TABLE DATA'!$D$9,$I8='[2]TABLE DATA'!$D$9)),'[2]Input-Output Data'!$J8<'[2]Input-Output Data'!$K8),'[2]TABLE DATA'!J$9,\"SIGN TOO WIDE\"))))))))))","v":2},{"$f":"IF(I8=\"Arm Too Long\", \"Reduce V or W\",IF($I8>'[2]TABLE DATA'!$D$9,\"SIGN TOO LARGE\",IF(AND(OR($I8<'[2]TABLE DATA'!$D$7,$I8='[2]TABLE DATA'!$D$7),OR('[2]Input-Output Data'!$J8<'[2]Input-Output Data'!$K8,'[2]Input-Output Data'!$J8='[2]Input-Output Data'!$K8)),'[2]TABLE DATA'!K$7,IF(AND(OR($I8<'[2]TABLE DATA'!$D$7,$I8='[2]TABLE DATA'!$D$7),AND($J8>$L8),OR('[2]Input-Output Data'!$J8<'[2]Input-Output Data'!$M8,'[2]Input-Output Data'!$J8='[2]Input-Output Data'!$M8)),'[2]TABLE DATA'!K$8,IF(AND(OR($I8<'[2]TABLE DATA'!$D$7,$I8='[2]TABLE DATA'!$D$7),AND($J8>$M8),OR('[2]Input-Output Data'!$J8<'[2]Input-Output Data'!$N8,'[2]Input-Output Data'!$J8='[2]Input-Output Data'!$N8)),'[2]TABLE DATA'!K$9,IF(AND(OR($I8<'[2]TABLE DATA'!$D$7,$I8='[2]TABLE DATA'!$D$7),$J8>$N8),\"SIGN TOO WIDE\",IF(AND(AND($I8>'[2]TABLE DATA'!$D$7,OR($I8<'[2]TABLE DATA'!$D$8,$I8='[2]TABLE DATA'!$D$8)),'[2]Input-Output Data'!$J8<'[2]Input-Output Data'!$K8),'[2]TABLE DATA'!K$8,IF(AND(AND($I8>'[2]TABLE DATA'!$D$7,OR($I8<'[2]TABLE DATA'!$D$8,$I8='[2]TABLE DATA'!$D$8)),AND('[2]Input-Output Data'!$J8>'[2]Input-Output Data'!$M8,OR('[2]Input-Output Data'!$J8<'[2]Input-Output Data'!$N8,'[2]Input-Output Data'!$J8='[2]Input-Output Data'!$N8))),'[2]TABLE DATA'!K$9,IF(AND(AND($I8>'[2]TABLE DATA'!$D$7,OR($I8<'[2]TABLE DATA'!$D$8,$I8='[2]TABLE DATA'!$D$8)),$J8>'[2]Input-Output Data'!$N8),\"SIGN TOO WIDE\",IF(AND(AND($I8>'[2]TABLE DATA'!$D$8,OR($I8<'[2]TABLE DATA'!$D$9,$I8='[2]TABLE DATA'!$D$9)),'[2]Input-Output Data'!$J8<'[2]Input-Output Data'!$K8),'[2]TABLE DATA'!K$9,\"SIGN TOO WIDE\"))))))))))","v":60},{"$f":"IF(I8=\"Arm Too Long\", \"Reduce V or W\",IF($I8>'[2]TABLE DATA'!$D$9,\"SIGN TOO LARGE\",IF(AND(OR($I8<'[2]TABLE DATA'!$D$7,$I8='[2]TABLE DATA'!$D$7),OR('[2]Input-Output Data'!$J8<'[2]Input-Output Data'!$K8,'[2]Input-Output Data'!$J8='[2]Input-Output Data'!$K8)),'[2]TABLE DATA'!L$7,IF(AND(OR($I8<'[2]TABLE DATA'!$D$7,$I8='[2]TABLE DATA'!$D$7),AND($J8>$L8),OR('[2]Input-Output Data'!$J8<'[2]Input-Output Data'!$M8,'[2]Input-Output Data'!$J8='[2]Input-Output Data'!$M8)),'[2]TABLE DATA'!L$8,IF(AND(OR($I8<'[2]TABLE DATA'!$D$7,$I8='[2]TABLE DATA'!$D$7),AND($J8>$M8),OR('[2]Input-Output Data'!$J8<'[2]Input-Output Data'!$N8,'[2]Input-Output Data'!$J8='[2]Input-Output Data'!$N8)),'[2]TABLE DATA'!L$9,IF(AND(OR($I8<'[2]TABLE DATA'!$D$7,$I8='[2]TABLE DATA'!$D$7),$J8>$N8),\"SIGN TOO WIDE\",IF(AND(AND($I8>'[2]TABLE DATA'!$D$7,OR($I8<'[2]TABLE DATA'!$D$8,$I8='[2]TABLE DATA'!$D$8)),'[2]Input-Output Data'!$J8<'[2]Input-Output Data'!$K8),'[2]TABLE DATA'!L$8,IF(AND(AND($I8>'[2]TABLE DATA'!$D$7,OR($I8<'[2]TABLE DATA'!$D$8,$I8='[2]TABLE DATA'!$D$8)),AND('[2]Input-Output Data'!$J8>'[2]Input-Output Data'!$M8,OR('[2]Input-Output Data'!$J8<'[2]Input-Output Data'!$N8,'[2]Input-Output Data'!$J8='[2]Input-Output Data'!$N8))),'[2]TABLE DATA'!L$9,IF(AND(AND($I8>'[2]TABLE DATA'!$D$7,OR($I8<'[2]TABLE DATA'!$D$8,$I8='[2]TABLE DATA'!$D$8)),$J8>'[2]Input-Output Data'!$N8),\"SIGN TOO WIDE\",IF(AND(AND($I8>'[2]TABLE DATA'!$D$8,OR($I8<'[2]TABLE DATA'!$D$9,$I8='[2]TABLE DATA'!$D$9)),'[2]Input-Output Data'!$J8<'[2]Input-Output Data'!$K8),'[2]TABLE DATA'!L$9,\"SIGN TOO WIDE\"))))))))))","v":7.4},{"$f":"IF(I8=\"Arm Too Long\", \"Reduce V or W\",IF($I8>'[2]TABLE DATA'!$D$9,\"SIGN TOO LARGE\",IF(AND(OR($I8<'[2]TABLE DATA'!$D$7,$I8='[2]TABLE DATA'!$D$7),OR('[2]Input-Output Data'!$J8<'[2]Input-Output Data'!$K8,'[2]Input-Output Data'!$J8='[2]Input-Output Data'!$K8)),'[2]TABLE DATA'!M$7,IF(AND(OR($I8<'[2]TABLE DATA'!$D$7,$I8='[2]TABLE DATA'!$D$7),AND($J8>$L8),OR('[2]Input-Output Data'!$J8<'[2]Input-Output Data'!$M8,'[2]Input-Output Data'!$J8='[2]Input-Output Data'!$M8)),'[2]TABLE DATA'!M$8,IF(AND(OR($I8<'[2]TABLE DATA'!$D$7,$I8='[2]TABLE DATA'!$D$7),AND($J8>$M8),OR('[2]Input-Output Data'!$J8<'[2]Input-Output Data'!$N8,'[2]Input-Output Data'!$J8='[2]Input-Output Data'!$N8)),'[2]TABLE DATA'!M$9,IF(AND(OR($I8<'[2]TABLE DATA'!$D$7,$I8='[2]TABLE DATA'!$D$7),$J8>$N8),\"SIGN TOO WIDE\",IF(AND(AND($I8>'[2]TABLE DATA'!$D$7,OR($I8<'[2]TABLE DATA'!$D$8,$I8='[2]TABLE DATA'!$D$8)),'[2]Input-Output Data'!$J8<'[2]Input-Output Data'!$K8),'[2]TABLE DATA'!M$8,IF(AND(AND($I8>'[2]TABLE DATA'!$D$7,OR($I8<'[2]TABLE DATA'!$D$8,$I8='[2]TABLE DATA'!$D$8)),AND('[2]Input-Output Data'!$J8>'[2]Input-Output Data'!$M8,OR('[2]Input-Output Data'!$J8<'[2]Input-Output Data'!$N8,'[2]Input-Output Data'!$J8='[2]Input-Output Data'!$N8))),'[2]TABLE DATA'!M$9,IF(AND(AND($I8>'[2]TABLE DATA'!$D$7,OR($I8<'[2]TABLE DATA'!$D$8,$I8='[2]TABLE DATA'!$D$8)),$J8>'[2]Input-Output Data'!$N8),\"SIGN TOO WIDE\",IF(AND(AND($I8>'[2]TABLE DATA'!$D$8,OR($I8<'[2]TABLE DATA'!$D$9,$I8='[2]TABLE DATA'!$D$9)),'[2]Input-Output Data'!$J8<'[2]Input-Output Data'!$K8),'[2]TABLE DATA'!M$9,\"SIGN TOO WIDE\"))))))))))","v":0.5},{"$f":"IF(I8=\"Arm Too Long\", \"Reduce V or W\",IF($I8>'[2]TABLE DATA'!$D$9,\"SIGN TOO LARGE\",IF(AND(OR($I8<'[2]TABLE DATA'!$D$7,$I8='[2]TABLE DATA'!$D$7),OR('[2]Input-Output Data'!$J8<'[2]Input-Output Data'!$K8,'[2]Input-Output Data'!$J8='[2]Input-Output Data'!$K8)),'[2]TABLE DATA'!N$7,IF(AND(OR($I8<'[2]TABLE DATA'!$D$7,$I8='[2]TABLE DATA'!$D$7),AND($J8>$L8),OR('[2]Input-Output Data'!$J8<'[2]Input-Output Data'!$M8,'[2]Input-Output Data'!$J8='[2]Input-Output Data'!$M8)),'[2]TABLE DATA'!N$8,IF(AND(OR($I8<'[2]TABLE DATA'!$D$7,$I8='[2]TABLE DATA'!$D$7),AND($J8>$M8),OR('[2]Input-Output Data'!$J8<'[2]Input-Output Data'!$N8,'[2]Input-Output Data'!$J8='[2]Input-Output Data'!$N8)),'[2]TABLE DATA'!N$9,IF(AND(OR($I8<'[2]TABLE DATA'!$D$7,$I8='[2]TABLE DATA'!$D$7),$J8>$N8),\"SIGN TOO WIDE\",IF(AND(AND($I8>'[2]TABLE DATA'!$D$7,OR($I8<'[2]TABLE DATA'!$D$8,$I8='[2]TABLE DATA'!$D$8)),'[2]Input-Output Data'!$J8<'[2]Input-Output Data'!$K8),'[2]TABLE DATA'!N$8,IF(AND(AND($I8>'[2]TABLE DATA'!$D$7,OR($I8<'[2]TABLE DATA'!$D$8,$I8='[2]TABLE DATA'!$D$8)),AND('[2]Input-Output Data'!$J8>'[2]Input-Output Data'!$M8,OR('[2]Input-Output Data'!$J8<'[2]Input-Output Data'!$N8,'[2]Input-Output Data'!$J8='[2]Input-Output Data'!$N8))),'[2]TABLE DATA'!N$9,IF(AND(AND($I8>'[2]TABLE DATA'!$D$7,OR($I8<'[2]TABLE DATA'!$D$8,$I8='[2]TABLE DATA'!$D$8)),$J8>'[2]Input-Output Data'!$N8),\"SIGN TOO WIDE\",IF(AND(AND($I8>'[2]TABLE DATA'!$D$8,OR($I8<'[2]TABLE DATA'!$D$9,$I8='[2]TABLE DATA'!$D$9)),'[2]Input-Output Data'!$J8<'[2]Input-Output Data'!$K8),'[2]TABLE DATA'!N$9,\"SIGN TOO WIDE\"))))))))))","v":0.5},{"$f":"IF(I8=\"Arm Too Long\", \"Reduce V or W\",IF($I8>'[2]TABLE DATA'!$D$9,\"SIGN TOO LARGE\",IF(AND(OR($I8<'[2]TABLE DATA'!$D$7,$I8='[2]TABLE DATA'!$D$7),OR('[2]Input-Output Data'!$J8<'[2]Input-Output Data'!$K8,'[2]Input-Output Data'!$J8='[2]Input-Output Data'!$K8)),'[2]TABLE DATA'!O$7,IF(AND(OR($I8<'[2]TABLE DATA'!$D$7,$I8='[2]TABLE DATA'!$D$7),AND($J8>$L8),OR('[2]Input-Output Data'!$J8<'[2]Input-Output Data'!$M8,'[2]Input-Output Data'!$J8='[2]Input-Output Data'!$M8)),'[2]TABLE DATA'!O$8,IF(AND(OR($I8<'[2]TABLE DATA'!$D$7,$I8='[2]TABLE DATA'!$D$7),AND($J8>$M8),OR('[2]Input-Output Data'!$J8<'[2]Input-Output Data'!$N8,'[2]Input-Output Data'!$J8='[2]Input-Output Data'!$N8)),'[2]TABLE DATA'!O$9,IF(AND(OR($I8<'[2]TABLE DATA'!$D$7,$I8='[2]TABLE DATA'!$D$7),$J8>$N8),\"SIGN TOO WIDE\",IF(AND(AND($I8>'[2]TABLE DATA'!$D$7,OR($I8<'[2]TABLE DATA'!$D$8,$I8='[2]TABLE DATA'!$D$8)),'[2]Input-Output Data'!$J8<'[2]Input-Output Data'!$K8),'[2]TABLE DATA'!O$8,IF(AND(AND($I8>'[2]TABLE DATA'!$D$7,OR($I8<'[2]TABLE DATA'!$D$8,$I8='[2]TABLE DATA'!$D$8)),AND('[2]Input-Output Data'!$J8>'[2]Input-Output Data'!$M8,OR('[2]Input-Output Data'!$J8<'[2]Input-Output Data'!$N8,'[2]Input-Output Data'!$J8='[2]Input-Output Data'!$N8))),'[2]TABLE DATA'!O$9,IF(AND(AND($I8>'[2]TABLE DATA'!$D$7,OR($I8<'[2]TABLE DATA'!$D$8,$I8='[2]TABLE DATA'!$D$8)),$J8>'[2]Input-Output Data'!$N8),\"SIGN TOO WIDE\",IF(AND(AND($I8>'[2]TABLE DATA'!$D$8,OR($I8<'[2]TABLE DATA'!$D$9,$I8='[2]TABLE DATA'!$D$9)),'[2]Input-Output Data'!$J8<'[2]Input-Output Data'!$K8),'[2]TABLE DATA'!O$9,\"SIGN TOO WIDE\"))))))))))","v":0.5},"I"]
[null,null,null,48,48,"Square","I",30,16,26,{"$f":"IF(OR(I9<'[2]TABLE DATA'!$D$7,I9='[2]TABLE DATA'!$D$7),717.75/I9,IF(AND('[2]TABLE DATA'!$D$7<I9,OR(I9<'[2]TABLE DATA'!$D$8,I9='[2]TABLE DATA'!$D$8)),1695/I9,IF(AND('[2]TABLE DATA'!$D$8<I9,OR(I9<'[2]TABLE DATA'!$D$9,I9='[2]TABLE DATA'!$D$9)),2268/I9,IF(I9=\"Arm Too Long\", \"Reduce V or W\",\"Sign Too Wide\"))))","v":44.86},{"$f":"717.75/'[2]Input-Output Data'!I9","v":59.81},105.94,141.75,{"$f":"IF(I9=\"Arm Too Long\", \"Reduce V or W\",IF($I9>'[2]TABLE DATA'!$D$9,\"SIGN TOO LARGE\",IF(AND(OR($I9<'[2]TABLE DATA'!$D$7,$I9='[2]TABLE DATA'!$D$7),OR('[2]Input-Output Data'!$J9<'[2]Input-Output Data'!$K9,'[2]Input-Output Data'!$J9='[2]Input-Output Data'!$K9)),'[2]TABLE DATA'!F$7,IF(AND(OR($I9<'[2]TABLE DATA'!$D$7,$I9='[2]TABLE DATA'!$D$7),AND($J9>$L9),OR('[2]Input-Output Data'!$J9<'[2]Input-Output Data'!$M9,'[2]Input-Output Data'!$J9='[2]Input-Output Data'!$M9)),'[2]TABLE DATA'!F$8,IF(AND(OR($I9<'[2]TABLE DATA'!$D$7,$I9='[2]TABLE DATA'!$D$7),AND($J9>$M9),OR('[2]Input-Output Data'!$J9<'[2]Input-Output Data'!$N9,'[2]Input-Output Data'!$J9='[2]Input-Output Data'!$N9)),'[2]TABLE DATA'!F$9,IF(AND(OR($I9<'[2]TABLE DATA'!$D$7,$I9='[2]TABLE DATA'!$D$7),$J9>$N9),\"SIGN TOO WIDE\",IF(AND(AND($I9>'[2]TABLE DATA'!$D$7,OR($I9<'[2]TABLE DATA'!$D$8,$I9='[2]TABLE DATA'!$D$8)),'[2]Input-Output Data'!$J9<'[2]Input-Output Data'!$K9),'[2]TABLE DATA'!F$8,IF(AND(AND($I9>'[2]TABLE DATA'!$D$7,OR($I9<'[2]TABLE DATA'!$D$8,$I9='[2]TABLE DATA'!$D$8)),AND('[2]Input-Output Data'!$J9>'[2]Input-Output Data'!$M9,OR('[2]Input-Output Data'!$J9<'[2]Input-Output Data'!$N9,'[2]Input-Output Data'!$J9='[2]Input-Output Data'!$N9))),'[2]TABLE DATA'!F$9,IF(AND(AND($I9>'[2]TABLE DATA'!$D$7,OR($I9<'[2]TABLE DATA'!$D$8,$I9='[2]TABLE DATA'!$D$8)),$J9>'[2]Input-Output Data'!$N9),\"SIGN TOO WIDE\",IF(AND(AND($I9>'[2]TABLE DATA'!$D$8,OR($I9<'[2]TABLE DATA'!$D$9,$I9='[2]TABLE DATA'!$D$9)),'[2]Input-Output Data'!$J9<'[2]Input-Output Data'!$K9),'[2]TABLE DATA'!F$9,\"SIGN TOO WIDE\"))))))))))","v":4},{"$f":"IF(I9=\"Arm Too Long\", \"Reduce V or W\",IF($I9>'[2]TABLE DATA'!$D$9,\"SIGN TOO LARGE\",IF(AND(OR($I9<'[2]TABLE DATA'!$D$7,$I9='[2]TABLE DATA'!$D$7),OR('[2]Input-Output Data'!$J9<'[2]Input-Output Data'!$K9,'[2]Input-Output Data'!$J9='[2]Input-Output Data'!$K9)),'[2]TABLE DATA'!G$7,IF(AND(OR($I9<'[2]TABLE DATA'!$D$7,$I9='[2]TABLE DATA'!$D$7),AND($J9>$L9),OR('[2]Input-Output Data'!$J9<'[2]Input-Output Data'!$M9,'[2]Input-Output Data'!$J9='[2]Input-Output Data'!$M9)),'[2]TABLE DATA'!G$8,IF(AND(OR($I9<'[2]TABLE DATA'!$D$7,$I9='[2]TABLE DATA'!$D$7),AND($J9>$M9),OR('[2]Input-Output Data'!$J9<'[2]Input-Output Data'!$N9,'[2]Input-Output Data'!$J9='[2]Input-Output Data'!$N9)),'[2]TABLE DATA'!G$9,IF(AND(OR($I9<'[2]TABLE DATA'!$D$7,$I9='[2]TABLE DATA'!$D$7),$J9>$N9),\"SIGN TOO WIDE\",IF(AND(AND($I9>'[2]TABLE DATA'!$D$7,OR($I9<'[2]TABLE DATA'!$D$8,$I9='[2]TABLE DATA'!$D$8)),'[2]Input-Output Data'!$J9<'[2]Input-Output Data'!$K9),'[2]TABLE DATA'!G$8,IF(AND(AND($I9>'[2]TABLE DATA'!$D$7,OR($I9<'[2]TABLE DATA'!$D$8,$I9='[2]TABLE DATA'!$D$8)),AND('[2]Input-Output Data'!$J9>'[2]Input-Output Data'!$M9,OR('[2]Input-Output Data'!$J9<'[2]Input-Output Data'!$N9,'[2]Input-Output Data'!$J9='[2]Input-Output Data'!$N9))),'[2]TABLE DATA'!G$9,IF(AND(AND($I9>'[2]TABLE DATA'!$D$7,OR($I9<'[2]TABLE DATA'!$D$8,$I9='[2]TABLE DATA'!$D$8)),$J9>'[2]Input-Output Data'!$N9),\"SIGN TOO WIDE\",IF(AND(AND($I9>'[2]TABLE DATA'!$D$8,OR($I9<'[2]TABLE DATA'!$D$9,$I9='[2]TABLE DATA'!$D$9)),'[2]Input-Output Data'!$J9<'[2]Input-Output Data'!$K9),'[2]TABLE DATA'!G$9,\"SIGN TOO WIDE\"))))))))))","v":2},{"$f":"IF(I9=\"Arm Too Long\", \"Reduce V or W\",IF($I9>'[2]TABLE DATA'!$D$9,\"SIGN TOO LARGE\",IF(AND(OR($I9<'[2]TABLE DATA'!$D$7,$I9='[2]TABLE DATA'!$D$7),OR('[2]Input-Output Data'!$J9<'[2]Input-Output Data'!$K9,'[2]Input-Output Data'!$J9='[2]Input-Output Data'!$K9)),'[2]TABLE DATA'!H$7,IF(AND(OR($I9<'[2]TABLE DATA'!$D$7,$I9='[2]TABLE DATA'!$D$7),AND($J9>$L9),OR('[2]Input-Output Data'!$J9<'[2]Input-Output Data'!$M9,'[2]Input-Output Data'!$J9='[2]Input-Output Data'!$M9)),'[2]TABLE DATA'!H$8,IF(AND(OR($I9<'[2]TABLE DATA'!$D$7,$I9='[2]TABLE DATA'!$D$7),AND($J9>$M9),OR('[2]Input-Output Data'!$J9<'[2]Input-Output Data'!$N9,'[2]Input-Output Data'!$J9='[2]Input-Output Data'!$N9)),'[2]TABLE DATA'!H$9,IF(AND(OR($I9<'[2]TABLE DATA'!$D$7,$I9='[2]TABLE DATA'!$D$7),$J9>$N9),\"SIGN TOO WIDE\",IF(AND(AND($I9>'[2]TABLE DATA'!$D$7,OR($I9<'[2]TABLE DATA'!$D$8,$I9='[2]TABLE DATA'!$D$8)),'[2]Input-Output Data'!$J9<'[2]Input-Output Data'!$K9),'[2]TABLE DATA'!H$8,IF(AND(AND($I9>'[2]TABLE DATA'!$D$7,OR($I9<'[2]TABLE DATA'!$D$8,$I9='[2]TABLE DATA'!$D$8)),AND('[2]Input-Output Data'!$J9>'[2]Input-Output Data'!$M9,OR('[2]Input-Output Data'!$J9<'[2]Input-Output Data'!$N9,'[2]Input-Output Data'!$J9='[2]Input-Output Data'!$N9))),'[2]TABLE DATA'!H$9,IF(AND(AND($I9>'[2]TABLE DATA'!$D$7,OR($I9<'[2]TABLE DATA'!$D$8,$I9='[2]TABLE DATA'!$D$8)),$J9>'[2]Input-Output Data'!$N9),\"SIGN TOO WIDE\",IF(AND(AND($I9>'[2]TABLE DATA'!$D$8,OR($I9<'[2]TABLE DATA'!$D$9,$I9='[2]TABLE DATA'!$D$9)),'[2]Input-Output Data'!$J9<'[2]Input-Output Data'!$K9),'[2]TABLE DATA'!H$9,\"SIGN TOO WIDE\"))))))))))","v":0.625},{"$f":"IF(I9=\"Arm Too Long\", \"Reduce V or W\",IF($I9>'[2]TABLE DATA'!$D$9,\"SIGN TOO LARGE\",IF(AND(OR($I9<'[2]TABLE DATA'!$D$7,$I9='[2]TABLE DATA'!$D$7),OR('[2]Input-Output Data'!$J9<'[2]Input-Output Data'!$K9,'[2]Input-Output Data'!$J9='[2]Input-Output Data'!$K9)),'[2]TABLE DATA'!I$7,IF(AND(OR($I9<'[2]TABLE DATA'!$D$7,$I9='[2]TABLE DATA'!$D$7),AND($J9>$L9),OR('[2]Input-Output Data'!$J9<'[2]Input-Output Data'!$M9,'[2]Input-Output Data'!$J9='[2]Input-Output Data'!$M9)),'[2]TABLE DATA'!I$8,IF(AND(OR($I9<'[2]TABLE DATA'!$D$7,$I9='[2]TABLE DATA'!$D$7),AND($J9>$M9),OR('[2]Input-Output Data'!$J9<'[2]Input-Output Data'!$N9,'[2]Input-Output Data'!$J9='[2]Input-Output Data'!$N9)),'[2]TABLE DATA'!I$9,IF(AND(OR($I9<'[2]TABLE DATA'!$D$7,$I9='[2]TABLE DATA'!$D$7),$J9>$N9),\"SIGN TOO WIDE\",IF(AND(AND($I9>'[2]TABLE DATA'!$D$7,OR($I9<'[2]TABLE DATA'!$D$8,$I9='[2]TABLE DATA'!$D$8)),'[2]Input-Output Data'!$J9<'[2]Input-Output Data'!$K9),'[2]TABLE DATA'!I$8,IF(AND(AND($I9>'[2]TABLE DATA'!$D$7,OR($I9<'[2]TABLE DATA'!$D$8,$I9='[2]TABLE DATA'!$D$8)),AND('[2]Input-Output Data'!$J9>'[2]Input-Output Data'!$M9,OR('[2]Input-Output Data'!$J9<'[2]Input-Output Data'!$N9,'[2]Input-Output Data'!$J9='[2]Input-Output Data'!$N9))),'[2]TABLE DATA'!I$9,IF(AND(AND($I9>'[2]TABLE DATA'!$D$7,OR($I9<'[2]TABLE DATA'!$D$8,$I9='[2]TABLE DATA'!$D$8)),$J9>'[2]Input-Output Data'!$N9),\"SIGN TOO WIDE\",IF(AND(AND($I9>'[2]TABLE DATA'!$D$8,OR($I9<'[2]TABLE DATA'!$D$9,$I9='[2]TABLE DATA'!$D$9)),'[2]Input-Output Data'!$J9<'[2]Input-Output Data'!$K9),'[2]TABLE DATA'!I$9,\"SIGN TOO WIDE\"))))))))))","v":5.625},{"$f":"IF(I9=\"Arm Too Long\", \"Reduce V or W\",IF($I9>'[2]TABLE DATA'!$D$9,\"SIGN TOO LARGE\",IF(AND(OR($I9<'[2]TABLE DATA'!$D$7,$I9='[2]TABLE DATA'!$D$7),OR('[2]Input-Output Data'!$J9<'[2]Input-Output Data'!$K9,'[2]Input-Output Data'!$J9='[2]Input-Output Data'!$K9)),'[2]TABLE DATA'!J$7,IF(AND(OR($I9<'[2]TABLE DATA'!$D$7,$I9='[2]TABLE DATA'!$D$7),AND($J9>$L9),OR('[2]Input-Output Data'!$J9<'[2]Input-Output Data'!$M9,'[2]Input-Output Data'!$J9='[2]Input-Output Data'!$M9)),'[2]TABLE DATA'!J$8,IF(AND(OR($I9<'[2]TABLE DATA'!$D$7,$I9='[2]TABLE DATA'!$D$7),AND($J9>$M9),OR('[2]Input-Output Data'!$J9<'[2]Input-Output Data'!$N9,'[2]Input-Output Data'!$J9='[2]Input-Output Data'!$N9)),'[2]TABLE DATA'!J$9,IF(AND(OR($I9<'[2]TABLE DATA'!$D$7,$I9='[2]TABLE DATA'!$D$7),$J9>$N9),\"SIGN TOO WIDE\",IF(AND(AND($I9>'[2]TABLE DATA'!$D$7,OR($I9<'[2]TABLE DATA'!$D$8,$I9='[2]TABLE DATA'!$D$8)),'[2]Input-Output Data'!$J9<'[2]Input-Output Data'!$K9),'[2]TABLE DATA'!J$8,IF(AND(AND($I9>'[2]TABLE DATA'!$D$7,OR($I9<'[2]TABLE DATA'!$D$8,$I9='[2]TABLE DATA'!$D$8)),AND('[2]Input-Output Data'!$J9>'[2]Input-Output Data'!$M9,OR('[2]Input-Output Data'!$J9<'[2]Input-Output Data'!$N9,'[2]Input-Output Data'!$J9='[2]Input-Output Data'!$N9))),'[2]TABLE DATA'!J$9,IF(AND(AND($I9>'[2]TABLE DATA'!$D$7,OR($I9<'[2]TABLE DATA'!$D$8,$I9='[2]TABLE DATA'!$D$8)),$J9>'[2]Input-Output Data'!$N9),\"SIGN TOO WIDE\",IF(AND(AND($I9>'[2]TABLE DATA'!$D$8,OR($I9<'[2]TABLE DATA'!$D$9,$I9='[2]TABLE DATA'!$D$9)),'[2]Input-Output Data'!$J9<'[2]Input-Output Data'!$K9),'[2]TABLE DATA'!J$9,\"SIGN TOO WIDE\"))))))))))","v":2},{"$f":"IF(I9=\"Arm Too Long\", \"Reduce V or W\",IF($I9>'[2]TABLE DATA'!$D$9,\"SIGN TOO LARGE\",IF(AND(OR($I9<'[2]TABLE DATA'!$D$7,$I9='[2]TABLE DATA'!$D$7),OR('[2]Input-Output Data'!$J9<'[2]Input-Output Data'!$K9,'[2]Input-Output Data'!$J9='[2]Input-Output Data'!$K9)),'[2]TABLE DATA'!K$7,IF(AND(OR($I9<'[2]TABLE DATA'!$D$7,$I9='[2]TABLE DATA'!$D$7),AND($J9>$L9),OR('[2]Input-Output Data'!$J9<'[2]Input-Output Data'!$M9,'[2]Input-Output Data'!$J9='[2]Input-Output Data'!$M9)),'[2]TABLE DATA'!K$8,IF(AND(OR($I9<'[2]TABLE DATA'!$D$7,$I9='[2]TABLE DATA'!$D$7),AND($J9>$M9),OR('[2]Input-Output Data'!$J9<'[2]Input-Output Data'!$N9,'[2]Input-Output Data'!$J9='[2]Input-Output Data'!$N9)),'[2]TABLE DATA'!K$9,IF(AND(OR($I9<'[2]TABLE DATA'!$D$7,$I9='[2]TABLE DATA'!$D$7),$J9>$N9),\"SIGN TOO WIDE\",IF(AND(AND($I9>'[2]TABLE DATA'!$D$7,OR($I9<'[2]TABLE DATA'!$D$8,$I9='[2]TABLE DATA'!$D$8)),'[2]Input-Output Data'!$J9<'[2]Input-Output Data'!$K9),'[2]TABLE DATA'!K$8,IF(AND(AND($I9>'[2]TABLE DATA'!$D$7,OR($I9<'[2]TABLE DATA'!$D$8,$I9='[2]TABLE DATA'!$D$8)),AND('[2]Input-Output Data'!$J9>'[2]Input-Output Data'!$M9,OR('[2]Input-Output Data'!$J9<'[2]Input-Output Data'!$N9,'[2]Input-Output Data'!$J9='[2]Input-Output Data'!$N9))),'[2]TABLE DATA'!K$9,IF(AND(AND($I9>'[2]TABLE DATA'!$D$7,OR($I9<'[2]TABLE DATA'!$D$8,$I9='[2]TABLE DATA'!$D$8)),$J9>'[2]Input-Output Data'!$N9),\"SIGN TOO WIDE\",IF(AND(AND($I9>'[2]TABLE DATA'!$D$8,OR($I9<'[2]TABLE DATA'!$D$9,$I9='[2]TABLE DATA'!$D$9)),'[2]Input-Output Data'!$J9<'[2]Input-Output Data'!$K9),'[2]TABLE DATA'!K$9,\"SIGN TOO WIDE\"))))))))))","v":60},{"$f":"IF(I9=\"Arm Too Long\", \"Reduce V or W\",IF($I9>'[2]TABLE DATA'!$D$9,\"SIGN TOO LARGE\",IF(AND(OR($I9<'[2]TABLE DATA'!$D$7,$I9='[2]TABLE DATA'!$D$7),OR('[2]Input-Output Data'!$J9<'[2]Input-Output Data'!$K9,'[2]Input-Output Data'!$J9='[2]Input-Output Data'!$K9)),'[2]TABLE DATA'!L$7,IF(AND(OR($I9<'[2]TABLE DATA'!$D$7,$I9='[2]TABLE DATA'!$D$7),AND($J9>$L9),OR('[2]Input-Output Data'!$J9<'[2]Input-Output Data'!$M9,'[2]Input-Output Data'!$J9='[2]Input-Output Data'!$M9)),'[2]TABLE DATA'!L$8,IF(AND(OR($I9<'[2]TABLE DATA'!$D$7,$I9='[2]TABLE DATA'!$D$7),AND($J9>$M9),OR('[2]Input-Output Data'!$J9<'[2]Input-Output Data'!$N9,'[2]Input-Output Data'!$J9='[2]Input-Output Data'!$N9)),'[2]TABLE DATA'!L$9,IF(AND(OR($I9<'[2]TABLE DATA'!$D$7,$I9='[2]TABLE DATA'!$D$7),$J9>$N9),\"SIGN TOO WIDE\",IF(AND(AND($I9>'[2]TABLE DATA'!$D$7,OR($I9<'[2]TABLE DATA'!$D$8,$I9='[2]TABLE DATA'!$D$8)),'[2]Input-Output Data'!$J9<'[2]Input-Output Data'!$K9),'[2]TABLE DATA'!L$8,IF(AND(AND($I9>'[2]TABLE DATA'!$D$7,OR($I9<'[2]TABLE DATA'!$D$8,$I9='[2]TABLE DATA'!$D$8)),AND('[2]Input-Output Data'!$J9>'[2]Input-Output Data'!$M9,OR('[2]Input-Output Data'!$J9<'[2]Input-Output Data'!$N9,'[2]Input-Output Data'!$J9='[2]Input-Output Data'!$N9))),'[2]TABLE DATA'!L$9,IF(AND(AND($I9>'[2]TABLE DATA'!$D$7,OR($I9<'[2]TABLE DATA'!$D$8,$I9='[2]TABLE DATA'!$D$8)),$J9>'[2]Input-Output Data'!$N9),\"SIGN TOO WIDE\",IF(AND(AND($I9>'[2]TABLE DATA'!$D$8,OR($I9<'[2]TABLE DATA'!$D$9,$I9='[2]TABLE DATA'!$D$9)),'[2]Input-Output Data'!$J9<'[2]Input-Output Data'!$K9),'[2]TABLE DATA'!L$9,\"SIGN TOO WIDE\"))))))))))","v":7.4},{"$f":"IF(I9=\"Arm Too Long\", \"Reduce V or W\",IF($I9>'[2]TABLE DATA'!$D$9,\"SIGN TOO LARGE\",IF(AND(OR($I9<'[2]TABLE DATA'!$D$7,$I9='[2]TABLE DATA'!$D$7),OR('[2]Input-Output Data'!$J9<'[2]Input-Output Data'!$K9,'[2]Input-Output Data'!$J9='[2]Input-Output Data'!$K9)),'[2]TABLE DATA'!M$7,IF(AND(OR($I9<'[2]TABLE DATA'!$D$7,$I9='[2]TABLE DATA'!$D$7),AND($J9>$L9),OR('[2]Input-Output Data'!$J9<'[2]Input-Output Data'!$M9,'[2]Input-Output Data'!$J9='[2]Input-Output Data'!$M9)),'[2]TABLE DATA'!M$8,IF(AND(OR($I9<'[2]TABLE DATA'!$D$7,$I9='[2]TABLE DATA'!$D$7),AND($J9>$M9),OR('[2]Input-Output Data'!$J9<'[2]Input-Output Data'!$N9,'[2]Input-Output Data'!$J9='[2]Input-Output Data'!$N9)),'[2]TABLE DATA'!M$9,IF(AND(OR($I9<'[2]TABLE DATA'!$D$7,$I9='[2]TABLE DATA'!$D$7),$J9>$N9),\"SIGN TOO WIDE\",IF(AND(AND($I9>'[2]TABLE DATA'!$D$7,OR($I9<'[2]TABLE DATA'!$D$8,$I9='[2]TABLE DATA'!$D$8)),'[2]Input-Output Data'!$J9<'[2]Input-Output Data'!$K9),'[2]TABLE DATA'!M$8,IF(AND(AND($I9>'[2]TABLE DATA'!$D$7,OR($I9<'[2]TABLE DATA'!$D$8,$I9='[2]TABLE DATA'!$D$8)),AND('[2]Input-Output Data'!$J9>'[2]Input-Output Data'!$M9,OR('[2]Input-Output Data'!$J9<'[2]Input-Output Data'!$N9,'[2]Input-Output Data'!$J9='[2]Input-Output Data'!$N9))),'[2]TABLE DATA'!M$9,IF(AND(AND($I9>'[2]TABLE DATA'!$D$7,OR($I9<'[2]TABLE DATA'!$D$8,$I9='[2]TABLE DATA'!$D$8)),$J9>'[2]Input-Output Data'!$N9),\"SIGN TOO WIDE\",IF(AND(AND($I9>'[2]TABLE DATA'!$D$8,OR($I9<'[2]TABLE DATA'!$D$9,$I9='[2]TABLE DATA'!$D$9)),'[2]Input-Output Data'!$J9<'[2]Input-Output Data'!$K9),'[2]TABLE DATA'!M$9,\"SIGN TOO WIDE\"))))))))))","v":0.5},{"$f":"IF(I9=\"Arm Too Long\", \"Reduce V or W\",IF($I9>'[2]TABLE DATA'!$D$9,\"SIGN TOO LARGE\",IF(AND(OR($I9<'[2]TABLE DATA'!$D$7,$I9='[2]TABLE DATA'!$D$7),OR('[2]Input-Output Data'!$J9<'[2]Input-Output Data'!$K9,'[2]Input-Output Data'!$J9='[2]Input-Output Data'!$K9)),'[2]TABLE DATA'!N$7,IF(AND(OR($I9<'[2]TABLE DATA'!$D$7,$I9='[2]TABLE DATA'!$D$7),AND($J9>$L9),OR('[2]Input-Output Data'!$J9<'[2]Input-Output Data'!$M9,'[2]Input-Output Data'!$J9='[2]Input-Output Data'!$M9)),'[2]TABLE DATA'!N$8,IF(AND(OR($I9<'[2]TABLE DATA'!$D$7,$I9='[2]TABLE DATA'!$D$7),AND($J9>$M9),OR('[2]Input-Output Data'!$J9<'[2]Input-Output Data'!$N9,'[2]Input-Output Data'!$J9='[2]Input-Output Data'!$N9)),'[2]TABLE DATA'!N$9,IF(AND(OR($I9<'[2]TABLE DATA'!$D$7,$I9='[2]TABLE DATA'!$D$7),$J9>$N9),\"SIGN TOO WIDE\",IF(AND(AND($I9>'[2]TABLE DATA'!$D$7,OR($I9<'[2]TABLE DATA'!$D$8,$I9='[2]TABLE DATA'!$D$8)),'[2]Input-Output Data'!$J9<'[2]Input-Output Data'!$K9),'[2]TABLE DATA'!N$8,IF(AND(AND($I9>'[2]TABLE DATA'!$D$7,OR($I9<'[2]TABLE DATA'!$D$8,$I9='[2]TABLE DATA'!$D$8)),AND('[2]Input-Output Data'!$J9>'[2]Input-Output Data'!$M9,OR('[2]Input-Output Data'!$J9<'[2]Input-Output Data'!$N9,'[2]Input-Output Data'!$J9='[2]Input-Output Data'!$N9))),'[2]TABLE DATA'!N$9,IF(AND(AND($I9>'[2]TABLE DATA'!$D$7,OR($I9<'[2]TABLE DATA'!$D$8,$I9='[2]TABLE DATA'!$D$8)),$J9>'[2]Input-Output Data'!$N9),\"SIGN TOO WIDE\",IF(AND(AND($I9>'[2]TABLE DATA'!$D$8,OR($I9<'[2]TABLE DATA'!$D$9,$I9='[2]TABLE DATA'!$D$9)),'[2]Input-Output Data'!$J9<'[2]Input-Output Data'!$K9),'[2]TABLE DATA'!N$9,\"SIGN TOO WIDE\"))))))))))","v":0.5},{"$f":"IF(I9=\"Arm Too Long\", \"Reduce V or W\",IF($I9>'[2]TABLE DATA'!$D$9,\"SIGN TOO LARGE\",IF(AND(OR($I9<'[2]TABLE DATA'!$D$7,$I9='[2]TABLE DATA'!$D$7),OR('[2]Input-Output Data'!$J9<'[2]Input-Output Data'!$K9,'[2]Input-Output Data'!$J9='[2]Input-Output Data'!$K9)),'[2]TABLE DATA'!O$7,IF(AND(OR($I9<'[2]TABLE DATA'!$D$7,$I9='[2]TABLE DATA'!$D$7),AND($J9>$L9),OR('[2]Input-Output Data'!$J9<'[2]Input-Output Data'!$M9,'[2]Input-Output Data'!$J9='[2]Input-Output Data'!$M9)),'[2]TABLE DATA'!O$8,IF(AND(OR($I9<'[2]TABLE DATA'!$D$7,$I9='[2]TABLE DATA'!$D$7),AND($J9>$M9),OR('[2]Input-Output Data'!$J9<'[2]Input-Output Data'!$N9,'[2]Input-Output Data'!$J9='[2]Input-Output Data'!$N9)),'[2]TABLE DATA'!O$9,IF(AND(OR($I9<'[2]TABLE DATA'!$D$7,$I9='[2]TABLE DATA'!$D$7),$J9>$N9),\"SIGN TOO WIDE\",IF(AND(AND($I9>'[2]TABLE DATA'!$D$7,OR($I9<'[2]TABLE DATA'!$D$8,$I9='[2]TABLE DATA'!$D$8)),'[2]Input-Output Data'!$J9<'[2]Input-Output Data'!$K9),'[2]TABLE DATA'!O$8,IF(AND(AND($I9>'[2]TABLE DATA'!$D$7,OR($I9<'[2]TABLE DATA'!$D$8,$I9='[2]TABLE DATA'!$D$8)),AND('[2]Input-Output Data'!$J9>'[2]Input-Output Data'!$M9,OR('[2]Input-Output Data'!$J9<'[2]Input-Output Data'!$N9,'[2]Input-Output Data'!$J9='[2]Input-Output Data'!$N9))),'[2]TABLE DATA'!O$9,IF(AND(AND($I9>'[2]TABLE DATA'!$D$7,OR($I9<'[2]TABLE DATA'!$D$8,$I9='[2]TABLE DATA'!$D$8)),$J9>'[2]Input-Output Data'!$N9),\"SIGN TOO WIDE\",IF(AND(AND($I9>'[2]TABLE DATA'!$D$8,OR($I9<'[2]TABLE DATA'!$D$9,$I9='[2]TABLE DATA'!$D$9)),'[2]Input-Output Data'!$J9<'[2]Input-Output Data'!$K9),'[2]TABLE DATA'!O$9,\"SIGN TOO WIDE\"))))))))))","v":0.5},"I"]
[null,null,null,72,60,"Square","II",36,30,38,{"$f":"IF(OR(I10<'[2]TABLE DATA'!$D$7,I10='[2]TABLE DATA'!$D$7),717.75/I10,IF(AND('[2]TABLE DATA'!$D$7<I10,OR(I10<'[2]TABLE DATA'!$D$8,I10='[2]TABLE DATA'!$D$8)),1695/I10,IF(AND('[2]TABLE DATA'!$D$8<I10,OR(I10<'[2]TABLE DATA'!$D$9,I10='[2]TABLE DATA'!$D$9)),2268/I10,IF(I10=\"Arm Too Long\", \"Reduce V or W\",\"Sign Too Wide\"))))","v":56.5},{"$f":"717.75/'[2]Input-Output Data'!I10","v":23.93},56.5,75.599999999999994,{"$f":"IF(I10=\"Arm Too Long\", \"Reduce V or W\",IF($I10>'[2]TABLE DATA'!$D$9,\"SIGN TOO LARGE\",IF(AND(OR($I10<'[2]TABLE DATA'!$D$7,$I10='[2]TABLE DATA'!$D$7),OR('[2]Input-Output Data'!$J10<'[2]Input-Output Data'!$K10,'[2]Input-Output Data'!$J10='[2]Input-Output Data'!$K10)),'[2]TABLE DATA'!F$7,IF(AND(OR($I10<'[2]TABLE DATA'!$D$7,$I10='[2]TABLE DATA'!$D$7),AND($J10>$L10),OR('[2]Input-Output Data'!$J10<'[2]Input-Output Data'!$M10,'[2]Input-Output Data'!$J10='[2]Input-Output Data'!$M10)),'[2]TABLE DATA'!F$8,IF(AND(OR($I10<'[2]TABLE DATA'!$D$7,$I10='[2]TABLE DATA'!$D$7),AND($J10>$M10),OR('[2]Input-Output Data'!$J10<'[2]Input-Output Data'!$N10,'[2]Input-Output Data'!$J10='[2]Input-Output Data'!$N10)),'[2]TABLE DATA'!F$9,IF(AND(OR($I10<'[2]TABLE DATA'!$D$7,$I10='[2]TABLE DATA'!$D$7),$J10>$N10),\"SIGN TOO WIDE\",IF(AND(AND($I10>'[2]TABLE DATA'!$D$7,OR($I10<'[2]TABLE DATA'!$D$8,$I10='[2]TABLE DATA'!$D$8)),'[2]Input-Output Data'!$J10<'[2]Input-Output Data'!$K10),'[2]TABLE DATA'!F$8,IF(AND(AND($I10>'[2]TABLE DATA'!$D$7,OR($I10<'[2]TABLE DATA'!$D$8,$I10='[2]TABLE DATA'!$D$8)),AND('[2]Input-Output Data'!$J10>'[2]Input-Output Data'!$M10,OR('[2]Input-Output Data'!$J10<'[2]Input-Output Data'!$N10,'[2]Input-Output Data'!$J10='[2]Input-Output Data'!$N10))),'[2]TABLE DATA'!F$9,IF(AND(AND($I10>'[2]TABLE DATA'!$D$7,OR($I10<'[2]TABLE DATA'!$D$8,$I10='[2]TABLE DATA'!$D$8)),$J10>'[2]Input-Output Data'!$N10),\"SIGN TOO WIDE\",IF(AND(AND($I10>'[2]TABLE DATA'!$D$8,OR($I10<'[2]TABLE DATA'!$D$9,$I10='[2]TABLE DATA'!$D$9)),'[2]Input-Output Data'!$J10<'[2]Input-Output Data'!$K10),'[2]TABLE DATA'!F$9,\"SIGN TOO WIDE\"))))))))))","v":5},{"$f":"IF(I10=\"Arm Too Long\", \"Reduce V or W\",IF($I10>'[2]TABLE DATA'!$D$9,\"SIGN TOO LARGE\",IF(AND(OR($I10<'[2]TABLE DATA'!$D$7,$I10='[2]TABLE DATA'!$D$7),OR('[2]Input-Output Data'!$J10<'[2]Input-Output Data'!$K10,'[2]Input-Output Data'!$J10='[2]Input-Output Data'!$K10)),'[2]TABLE DATA'!G$7,IF(AND(OR($I10<'[2]TABLE DATA'!$D$7,$I10='[2]TABLE DATA'!$D$7),AND($J10>$L10),OR('[2]Input-Output Data'!$J10<'[2]Input-Output Data'!$M10,'[2]Input-Output Data'!$J10='[2]Input-Output Data'!$M10)),'[2]TABLE DATA'!G$8,IF(AND(OR($I10<'[2]TABLE DATA'!$D$7,$I10='[2]TABLE DATA'!$D$7),AND($J10>$M10),OR('[2]Input-Output Data'!$J10<'[2]Input-Output Data'!$N10,'[2]Input-Output Data'!$J10='[2]Input-Output Data'!$N10)),'[2]TABLE DATA'!G$9,IF(AND(OR($I10<'[2]TABLE DATA'!$D$7,$I10='[2]TABLE DATA'!$D$7),$J10>$N10),\"SIGN TOO WIDE\",IF(AND(AND($I10>'[2]TABLE DATA'!$D$7,OR($I10<'[2]TABLE DATA'!$D$8,$I10='[2]TABLE DATA'!$D$8)),'[2]Input-Output Data'!$J10<'[2]Input-Output Data'!$K10),'[2]TABLE DATA'!G$8,IF(AND(AND($I10>'[2]TABLE DATA'!$D$7,OR($I10<'[2]TABLE DATA'!$D$8,$I10='[2]TABLE DATA'!$D$8)),AND('[2]Input-Output Data'!$J10>'[2]Input-Output Data'!$M10,OR('[2]Input-Output Data'!$J10<'[2]Input-Output Data'!$N10,'[2]Input-Output Data'!$J10='[2]Input-Output Data'!$N10))),'[2]TABLE DATA'!G$9,IF(AND(AND($I10>'[2]TABLE DATA'!$D$7,OR($I10<'[2]TABLE DATA'!$D$8,$I10='[2]TABLE DATA'!$D$8)),$J10>'[2]Input-Output Data'!$N10),\"SIGN TOO WIDE\",IF(AND(AND($I10>'[2]TABLE DATA'!$D$8,OR($I10<'[2]TABLE DATA'!$D$9,$I10='[2]TABLE DATA'!$D$9)),'[2]Input-Output Data'!$J10<'[2]Input-Output Data'!$K10),'[2]TABLE DATA'!G$9,\"SIGN TOO WIDE\"))))))))))","v":3},{"$f":"IF(I10=\"Arm Too Long\", \"Reduce V or W\",IF($I10>'[2]TABLE DATA'!$D$9,\"SIGN TOO LARGE\",IF(AND(OR($I10<'[2]TABLE DATA'!$D$7,$I10='[2]TABLE DATA'!$D$7),OR('[2]Input-Output Data'!$J10<'[2]Input-Output Data'!$K10,'[2]Input-Output Data'!$J10='[2]Input-Output Data'!$K10)),'[2]TABLE DATA'!H$7,IF(AND(OR($I10<'[2]TABLE DATA'!$D$7,$I10='[2]TABLE DATA'!$D$7),AND($J10>$L10),OR('[2]Input-Output Data'!$J10<'[2]Input-Output Data'!$M10,'[2]Input-Output Data'!$J10='[2]Input-Output Data'!$M10)),'[2]TABLE DATA'!H$8,IF(AND(OR($I10<'[2]TABLE DATA'!$D$7,$I10='[2]TABLE DATA'!$D$7),AND($J10>$M10),OR('[2]Input-Output Data'!$J10<'[2]Input-Output Data'!$N10,'[2]Input-Output Data'!$J10='[2]Input-Output Data'!$N10)),'[2]TABLE DATA'!H$9,IF(AND(OR($I10<'[2]TABLE DATA'!$D$7,$I10='[2]TABLE DATA'!$D$7),$J10>$N10),\"SIGN TOO WIDE\",IF(AND(AND($I10>'[2]TABLE DATA'!$D$7,OR($I10<'[2]TABLE DATA'!$D$8,$I10='[2]TABLE DATA'!$D$8)),'[2]Input-Output Data'!$J10<'[2]Input-Output Data'!$K10),'[2]TABLE DATA'!H$8,IF(AND(AND($I10>'[2]TABLE DATA'!$D$7,OR($I10<'[2]TABLE DATA'!$D$8,$I10='[2]TABLE DATA'!$D$8)),AND('[2]Input-Output Data'!$J10>'[2]Input-Output Data'!$M10,OR('[2]Input-Output Data'!$J10<'[2]Input-Output Data'!$N10,'[2]Input-Output Data'!$J10='[2]Input-Output Data'!$N10))),'[2]TABLE DATA'!H$9,IF(AND(AND($I10>'[2]TABLE DATA'!$D$7,OR($I10<'[2]TABLE DATA'!$D$8,$I10='[2]TABLE DATA'!$D$8)),$J10>'[2]Input-Output Data'!$N10),\"SIGN TOO WIDE\",IF(AND(AND($I10>'[2]TABLE DATA'!$D$8,OR($I10<'[2]TABLE DATA'!$D$9,$I10='[2]TABLE DATA'!$D$9)),'[2]Input-Output Data'!$J10<'[2]Input-Output Data'!$K10),'[2]TABLE DATA'!H$9,\"SIGN TOO WIDE\"))))))))))","v":0.875},{"$f":"IF(I10=\"Arm Too Long\", \"Reduce V or W\",IF($I10>'[2]TABLE DATA'!$D$9,\"SIGN TOO LARGE\",IF(AND(OR($I10<'[2]TABLE DATA'!$D$7,$I10='[2]TABLE DATA'!$D$7),OR('[2]Input-Output Data'!$J10<'[2]Input-Output Data'!$K10,'[2]Input-Output Data'!$J10='[2]Input-Output Data'!$K10)),'[2]TABLE DATA'!I$7,IF(AND(OR($I10<'[2]TABLE DATA'!$D$7,$I10='[2]TABLE DATA'!$D$7),AND($J10>$L10),OR('[2]Input-Output Data'!$J10<'[2]Input-Output Data'!$M10,'[2]Input-Output Data'!$J10='[2]Input-Output Data'!$M10)),'[2]TABLE DATA'!I$8,IF(AND(OR($I10<'[2]TABLE DATA'!$D$7,$I10='[2]TABLE DATA'!$D$7),AND($J10>$M10),OR('[2]Input-Output Data'!$J10<'[2]Input-Output Data'!$N10,'[2]Input-Output Data'!$J10='[2]Input-Output Data'!$N10)),'[2]TABLE DATA'!I$9,IF(AND(OR($I10<'[2]TABLE DATA'!$D$7,$I10='[2]TABLE DATA'!$D$7),$J10>$N10),\"SIGN TOO WIDE\",IF(AND(AND($I10>'[2]TABLE DATA'!$D$7,OR($I10<'[2]TABLE DATA'!$D$8,$I10='[2]TABLE DATA'!$D$8)),'[2]Input-Output Data'!$J10<'[2]Input-Output Data'!$K10),'[2]TABLE DATA'!I$8,IF(AND(AND($I10>'[2]TABLE DATA'!$D$7,OR($I10<'[2]TABLE DATA'!$D$8,$I10='[2]TABLE DATA'!$D$8)),AND('[2]Input-Output Data'!$J10>'[2]Input-Output Data'!$M10,OR('[2]Input-Output Data'!$J10<'[2]Input-Output Data'!$N10,'[2]Input-Output Data'!$J10='[2]Input-Output Data'!$N10))),'[2]TABLE DATA'!I$9,IF(AND(AND($I10>'[2]TABLE DATA'!$D$7,OR($I10<'[2]TABLE DATA'!$D$8,$I10='[2]TABLE DATA'!$D$8)),$J10>'[2]Input-Output Data'!$N10),\"SIGN TOO WIDE\",IF(AND(AND($I10>'[2]TABLE DATA'!$D$8,OR($I10<'[2]TABLE DATA'!$D$9,$I10='[2]TABLE DATA'!$D$9)),'[2]Input-Output Data'!$J10<'[2]Input-Output Data'!$K10),'[2]TABLE DATA'!I$9,\"SIGN TOO WIDE\"))))))))))","v":8},{"$f":"IF(I10=\"Arm Too Long\", \"Reduce V or W\",IF($I10>'[2]TABLE DATA'!$D$9,\"SIGN TOO LARGE\",IF(AND(OR($I10<'[2]TABLE DATA'!$D$7,$I10='[2]TABLE DATA'!$D$7),OR('[2]Input-Output Data'!$J10<'[2]Input-Output Data'!$K10,'[2]Input-Output Data'!$J10='[2]Input-Output Data'!$K10)),'[2]TABLE DATA'!J$7,IF(AND(OR($I10<'[2]TABLE DATA'!$D$7,$I10='[2]TABLE DATA'!$D$7),AND($J10>$L10),OR('[2]Input-Output Data'!$J10<'[2]Input-Output Data'!$M10,'[2]Input-Output Data'!$J10='[2]Input-Output Data'!$M10)),'[2]TABLE DATA'!J$8,IF(AND(OR($I10<'[2]TABLE DATA'!$D$7,$I10='[2]TABLE DATA'!$D$7),AND($J10>$M10),OR('[2]Input-Output Data'!$J10<'[2]Input-Output Data'!$N10,'[2]Input-Output Data'!$J10='[2]Input-Output Data'!$N10)),'[2]TABLE DATA'!J$9,IF(AND(OR($I10<'[2]TABLE DATA'!$D$7,$I10='[2]TABLE DATA'!$D$7),$J10>$N10),\"SIGN TOO WIDE\",IF(AND(AND($I10>'[2]TABLE DATA'!$D$7,OR($I10<'[2]TABLE DATA'!$D$8,$I10='[2]TABLE DATA'!$D$8)),'[2]Input-Output Data'!$J10<'[2]Input-Output Data'!$K10),'[2]TABLE DATA'!J$8,IF(AND(AND($I10>'[2]TABLE DATA'!$D$7,OR($I10<'[2]TABLE DATA'!$D$8,$I10='[2]TABLE DATA'!$D$8)),AND('[2]Input-Output Data'!$J10>'[2]Input-Output Data'!$M10,OR('[2]Input-Output Data'!$J10<'[2]Input-Output Data'!$N10,'[2]Input-Output Data'!$J10='[2]Input-Output Data'!$N10))),'[2]TABLE DATA'!J$9,IF(AND(AND($I10>'[2]TABLE DATA'!$D$7,OR($I10<'[2]TABLE DATA'!$D$8,$I10='[2]TABLE DATA'!$D$8)),$J10>'[2]Input-Output Data'!$N10),\"SIGN TOO WIDE\",IF(AND(AND($I10>'[2]TABLE DATA'!$D$8,OR($I10<'[2]TABLE DATA'!$D$9,$I10='[2]TABLE DATA'!$D$9)),'[2]Input-Output Data'!$J10<'[2]Input-Output Data'!$K10),'[2]TABLE DATA'!J$9,\"SIGN TOO WIDE\"))))))))))","v":2},{"$f":"IF(I10=\"Arm Too Long\", \"Reduce V or W\",IF($I10>'[2]TABLE DATA'!$D$9,\"SIGN TOO LARGE\",IF(AND(OR($I10<'[2]TABLE DATA'!$D$7,$I10='[2]TABLE DATA'!$D$7),OR('[2]Input-Output Data'!$J10<'[2]Input-Output Data'!$K10,'[2]Input-Output Data'!$J10='[2]Input-Output Data'!$K10)),'[2]TABLE DATA'!K$7,IF(AND(OR($I10<'[2]TABLE DATA'!$D$7,$I10='[2]TABLE DATA'!$D$7),AND($J10>$L10),OR('[2]Input-Output Data'!$J10<'[2]Input-Output Data'!$M10,'[2]Input-Output Data'!$J10='[2]Input-Output Data'!$M10)),'[2]TABLE DATA'!K$8,IF(AND(OR($I10<'[2]TABLE DATA'!$D$7,$I10='[2]TABLE DATA'!$D$7),AND($J10>$M10),OR('[2]Input-Output Data'!$J10<'[2]Input-Output Data'!$N10,'[2]Input-Output Data'!$J10='[2]Input-Output Data'!$N10)),'[2]TABLE DATA'!K$9,IF(AND(OR($I10<'[2]TABLE DATA'!$D$7,$I10='[2]TABLE DATA'!$D$7),$J10>$N10),\"SIGN TOO WIDE\",IF(AND(AND($I10>'[2]TABLE DATA'!$D$7,OR($I10<'[2]TABLE DATA'!$D$8,$I10='[2]TABLE DATA'!$D$8)),'[2]Input-Output Data'!$J10<'[2]Input-Output Data'!$K10),'[2]TABLE DATA'!K$8,IF(AND(AND($I10>'[2]TABLE DATA'!$D$7,OR($I10<'[2]TABLE DATA'!$D$8,$I10='[2]TABLE DATA'!$D$8)),AND('[2]Input-Output Data'!$J10>'[2]Input-Output Data'!$M10,OR('[2]Input-Output Data'!$J10<'[2]Input-Output Data'!$N10,'[2]Input-Output Data'!$J10='[2]Input-Output Data'!$N10))),'[2]TABLE DATA'!K$9,IF(AND(AND($I10>'[2]TABLE DATA'!$D$7,OR($I10<'[2]TABLE DATA'!$D$8,$I10='[2]TABLE DATA'!$D$8)),$J10>'[2]Input-Output Data'!$N10),\"SIGN TOO WIDE\",IF(AND(AND($I10>'[2]TABLE DATA'!$D$8,OR($I10<'[2]TABLE DATA'!$D$9,$I10='[2]TABLE DATA'!$D$9)),'[2]Input-Output Data'!$J10<'[2]Input-Output Data'!$K10),'[2]TABLE DATA'!K$9,\"SIGN TOO WIDE\"))))))))))","v":80},{"$f":"IF(I10=\"Arm Too Long\", \"Reduce V or W\",IF($I10>'[2]TABLE DATA'!$D$9,\"SIGN TOO LARGE\",IF(AND(OR($I10<'[2]TABLE DATA'!$D$7,$I10='[2]TABLE DATA'!$D$7),OR('[2]Input-Output Data'!$J10<'[2]Input-Output Data'!$K10,'[2]Input-Output Data'!$J10='[2]Input-Output Data'!$K10)),'[2]TABLE DATA'!L$7,IF(AND(OR($I10<'[2]TABLE DATA'!$D$7,$I10='[2]TABLE DATA'!$D$7),AND($J10>$L10),OR('[2]Input-Output Data'!$J10<'[2]Input-Output Data'!$M10,'[2]Input-Output Data'!$J10='[2]Input-Output Data'!$M10)),'[2]TABLE DATA'!L$8,IF(AND(OR($I10<'[2]TABLE DATA'!$D$7,$I10='[2]TABLE DATA'!$D$7),AND($J10>$M10),OR('[2]Input-Output Data'!$J10<'[2]Input-Output Data'!$N10,'[2]Input-Output Data'!$J10='[2]Input-Output Data'!$N10)),'[2]TABLE DATA'!L$9,IF(AND(OR($I10<'[2]TABLE DATA'!$D$7,$I10='[2]TABLE DATA'!$D$7),$J10>$N10),\"SIGN TOO WIDE\",IF(AND(AND($I10>'[2]TABLE DATA'!$D$7,OR($I10<'[2]TABLE DATA'!$D$8,$I10='[2]TABLE DATA'!$D$8)),'[2]Input-Output Data'!$J10<'[2]Input-Output Data'!$K10),'[2]TABLE DATA'!L$8,IF(AND(AND($I10>'[2]TABLE DATA'!$D$7,OR($I10<'[2]TABLE DATA'!$D$8,$I10='[2]TABLE DATA'!$D$8)),AND('[2]Input-Output Data'!$J10>'[2]Input-Output Data'!$M10,OR('[2]Input-Output Data'!$J10<'[2]Input-Output Data'!$N10,'[2]Input-Output Data'!$J10='[2]Input-Output Data'!$N10))),'[2]TABLE DATA'!L$9,IF(AND(AND($I10>'[2]TABLE DATA'!$D$7,OR($I10<'[2]TABLE DATA'!$D$8,$I10='[2]TABLE DATA'!$D$8)),$J10>'[2]Input-Output Data'!$N10),\"SIGN TOO WIDE\",IF(AND(AND($I10>'[2]TABLE DATA'!$D$8,OR($I10<'[2]TABLE DATA'!$D$9,$I10='[2]TABLE DATA'!$D$9)),'[2]Input-Output Data'!$J10<'[2]Input-Output Data'!$K10),'[2]TABLE DATA'!L$9,\"SIGN TOO WIDE\"))))))))))","v":14.5},{"$f":"IF(I10=\"Arm Too Long\", \"Reduce V or W\",IF($I10>'[2]TABLE DATA'!$D$9,\"SIGN TOO LARGE\",IF(AND(OR($I10<'[2]TABLE DATA'!$D$7,$I10='[2]TABLE DATA'!$D$7),OR('[2]Input-Output Data'!$J10<'[2]Input-Output Data'!$K10,'[2]Input-Output Data'!$J10='[2]Input-Output Data'!$K10)),'[2]TABLE DATA'!M$7,IF(AND(OR($I10<'[2]TABLE DATA'!$D$7,$I10='[2]TABLE DATA'!$D$7),AND($J10>$L10),OR('[2]Input-Output Data'!$J10<'[2]Input-Output Data'!$M10,'[2]Input-Output Data'!$J10='[2]Input-Output Data'!$M10)),'[2]TABLE DATA'!M$8,IF(AND(OR($I10<'[2]TABLE DATA'!$D$7,$I10='[2]TABLE DATA'!$D$7),AND($J10>$M10),OR('[2]Input-Output Data'!$J10<'[2]Input-Output Data'!$N10,'[2]Input-Output Data'!$J10='[2]Input-Output Data'!$N10)),'[2]TABLE DATA'!M$9,IF(AND(OR($I10<'[2]TABLE DATA'!$D$7,$I10='[2]TABLE DATA'!$D$7),$J10>$N10),\"SIGN TOO WIDE\",IF(AND(AND($I10>'[2]TABLE DATA'!$D$7,OR($I10<'[2]TABLE DATA'!$D$8,$I10='[2]TABLE DATA'!$D$8)),'[2]Input-Output Data'!$J10<'[2]Input-Output Data'!$K10),'[2]TABLE DATA'!M$8,IF(AND(AND($I10>'[2]TABLE DATA'!$D$7,OR($I10<'[2]TABLE DATA'!$D$8,$I10='[2]TABLE DATA'!$D$8)),AND('[2]Input-Output Data'!$J10>'[2]Input-Output Data'!$M10,OR('[2]Input-Output Data'!$J10<'[2]Input-Output Data'!$N10,'[2]Input-Output Data'!$J10='[2]Input-Output Data'!$N10))),'[2]TABLE DATA'!M$9,IF(AND(AND($I10>'[2]TABLE DATA'!$D$7,OR($I10<'[2]TABLE DATA'!$D$8,$I10='[2]TABLE DATA'!$D$8)),$J10>'[2]Input-Output Data'!$N10),\"SIGN TOO WIDE\",IF(AND(AND($I10>'[2]TABLE DATA'!$D$8,OR($I10<'[2]TABLE DATA'!$D$9,$I10='[2]TABLE DATA'!$D$9)),'[2]Input-Output Data'!$J10<'[2]Input-Output Data'!$K10),'[2]TABLE DATA'!M$9,\"SIGN TOO WIDE\"))))))))))","v":0.625},{"$f":"IF(I10=\"Arm Too Long\", \"Reduce V or W\",IF($I10>'[2]TABLE DATA'!$D$9,\"SIGN TOO LARGE\",IF(AND(OR($I10<'[2]TABLE DATA'!$D$7,$I10='[2]TABLE DATA'!$D$7),OR('[2]Input-Output Data'!$J10<'[2]Input-Output Data'!$K10,'[2]Input-Output Data'!$J10='[2]Input-Output Data'!$K10)),'[2]TABLE DATA'!N$7,IF(AND(OR($I10<'[2]TABLE DATA'!$D$7,$I10='[2]TABLE DATA'!$D$7),AND($J10>$L10),OR('[2]Input-Output Data'!$J10<'[2]Input-Output Data'!$M10,'[2]Input-Output Data'!$J10='[2]Input-Output Data'!$M10)),'[2]TABLE DATA'!N$8,IF(AND(OR($I10<'[2]TABLE DATA'!$D$7,$I10='[2]TABLE DATA'!$D$7),AND($J10>$M10),OR('[2]Input-Output Data'!$J10<'[2]Input-Output Data'!$N10,'[2]Input-Output Data'!$J10='[2]Input-Output Data'!$N10)),'[2]TABLE DATA'!N$9,IF(AND(OR($I10<'[2]TABLE DATA'!$D$7,$I10='[2]TABLE DATA'!$D$7),$J10>$N10),\"SIGN TOO WIDE\",IF(AND(AND($I10>'[2]TABLE DATA'!$D$7,OR($I10<'[2]TABLE DATA'!$D$8,$I10='[2]TABLE DATA'!$D$8)),'[2]Input-Output Data'!$J10<'[2]Input-Output Data'!$K10),'[2]TABLE DATA'!N$8,IF(AND(AND($I10>'[2]TABLE DATA'!$D$7,OR($I10<'[2]TABLE DATA'!$D$8,$I10='[2]TABLE DATA'!$D$8)),AND('[2]Input-Output Data'!$J10>'[2]Input-Output Data'!$M10,OR('[2]Input-Output Data'!$J10<'[2]Input-Output Data'!$N10,'[2]Input-Output Data'!$J10='[2]Input-Output Data'!$N10))),'[2]TABLE DATA'!N$9,IF(AND(AND($I10>'[2]TABLE DATA'!$D$7,OR($I10<'[2]TABLE DATA'!$D$8,$I10='[2]TABLE DATA'!$D$8)),$J10>'[2]Input-Output Data'!$N10),\"SIGN TOO WIDE\",IF(AND(AND($I10>'[2]TABLE DATA'!$D$8,OR($I10<'[2]TABLE DATA'!$D$9,$I10='[2]TABLE DATA'!$D$9)),'[2]Input-Output Data'!$J10<'[2]Input-Output Data'!$K10),'[2]TABLE DATA'!N$9,\"SIGN TOO WIDE\"))))))))))","v":0.625},{"$f":"IF(I10=\"Arm Too Long\", \"Reduce V or W\",IF($I10>'[2]TABLE DATA'!$D$9,\"SIGN TOO LARGE\",IF(AND(OR($I10<'[2]TABLE DATA'!$D$7,$I10='[2]TABLE DATA'!$D$7),OR('[2]Input-Output Data'!$J10<'[2]Input-Output Data'!$K10,'[2]Input-Output Data'!$J10='[2]Input-Output Data'!$K10)),'[2]TABLE DATA'!O$7,IF(AND(OR($I10<'[2]TABLE DATA'!$D$7,$I10='[2]TABLE DATA'!$D$7),AND($J10>$L10),OR('[2]Input-Output Data'!$J10<'[2]Input-Output Data'!$M10,'[2]Input-Output Data'!$J10='[2]Input-Output Data'!$M10)),'[2]TABLE DATA'!O$8,IF(AND(OR($I10<'[2]TABLE DATA'!$D$7,$I10='[2]TABLE DATA'!$D$7),AND($J10>$M10),OR('[2]Input-Output Data'!$J10<'[2]Input-Output Data'!$N10,'[2]Input-Output Data'!$J10='[2]Input-Output Data'!$N10)),'[2]TABLE DATA'!O$9,IF(AND(OR($I10<'[2]TABLE DATA'!$D$7,$I10='[2]TABLE DATA'!$D$7),$J10>$N10),\"SIGN TOO WIDE\",IF(AND(AND($I10>'[2]TABLE DATA'!$D$7,OR($I10<'[2]TABLE DATA'!$D$8,$I10='[2]TABLE DATA'!$D$8)),'[2]Input-Output Data'!$J10<'[2]Input-Output Data'!$K10),'[2]TABLE DATA'!O$8,IF(AND(AND($I10>'[2]TABLE DATA'!$D$7,OR($I10<'[2]TABLE DATA'!$D$8,$I10='[2]TABLE DATA'!$D$8)),AND('[2]Input-Output Data'!$J10>'[2]Input-Output Data'!$M10,OR('[2]Input-Output Data'!$J10<'[2]Input-Output Data'!$N10,'[2]Input-Output Data'!$J10='[2]Input-Output Data'!$N10))),'[2]TABLE DATA'!O$9,IF(AND(AND($I10>'[2]TABLE DATA'!$D$7,OR($I10<'[2]TABLE DATA'!$D$8,$I10='[2]TABLE DATA'!$D$8)),$J10>'[2]Input-Output Data'!$N10),\"SIGN TOO WIDE\",IF(AND(AND($I10>'[2]TABLE DATA'!$D$8,OR($I10<'[2]TABLE DATA'!$D$9,$I10='[2]TABLE DATA'!$D$9)),'[2]Input-Output Data'!$J10<'[2]Input-Output Data'!$K10),'[2]TABLE DATA'!O$9,\"SIGN TOO WIDE\"))))))))))","v":0.625},"II"]
[null,null,null,84,66,"Square","II",39,38.5,44,{"$f":"IF(OR(I11<'[2]TABLE DATA'!$D$7,I11='[2]TABLE DATA'!$D$7),717.75/I11,IF(AND('[2]TABLE DATA'!$D$7<I11,OR(I11<'[2]TABLE DATA'!$D$8,I11='[2]TABLE DATA'!$D$8)),1695/I11,IF(AND('[2]TABLE DATA'!$D$8<I11,OR(I11<'[2]TABLE DATA'!$D$9,I11='[2]TABLE DATA'!$D$9)),2268/I11,IF(I11=\"Arm Too Long\", \"Reduce V or W\",\"Sign Too Wide\"))))","v":44.03},{"$f":"717.75/'[2]Input-Output Data'!I11","v":18.64},44.03,58.91,{"$f":"IF(I11=\"Arm Too Long\", \"Reduce V or W\",IF($I11>'[2]TABLE DATA'!$D$9,\"SIGN TOO LARGE\",IF(AND(OR($I11<'[2]TABLE DATA'!$D$7,$I11='[2]TABLE DATA'!$D$7),OR('[2]Input-Output Data'!$J11<'[2]Input-Output Data'!$K11,'[2]Input-Output Data'!$J11='[2]Input-Output Data'!$K11)),'[2]TABLE DATA'!F$7,IF(AND(OR($I11<'[2]TABLE DATA'!$D$7,$I11='[2]TABLE DATA'!$D$7),AND($J11>$L11),OR('[2]Input-Output Data'!$J11<'[2]Input-Output Data'!$M11,'[2]Input-Output Data'!$J11='[2]Input-Output Data'!$M11)),'[2]TABLE DATA'!F$8,IF(AND(OR($I11<'[2]TABLE DATA'!$D$7,$I11='[2]TABLE DATA'!$D$7),AND($J11>$M11),OR('[2]Input-Output Data'!$J11<'[2]Input-Output Data'!$N11,'[2]Input-Output Data'!$J11='[2]Input-Output Data'!$N11)),'[2]TABLE DATA'!F$9,IF(AND(OR($I11<'[2]TABLE DATA'!$D$7,$I11='[2]TABLE DATA'!$D$7),$J11>$N11),\"SIGN TOO WIDE\",IF(AND(AND($I11>'[2]TABLE DATA'!$D$7,OR($I11<'[2]TABLE DATA'!$D$8,$I11='[2]TABLE DATA'!$D$8)),'[2]Input-Output Data'!$J11<'[2]Input-Output Data'!$K11),'[2]TABLE DATA'!F$8,IF(AND(AND($I11>'[2]TABLE DATA'!$D$7,OR($I11<'[2]TABLE DATA'!$D$8,$I11='[2]TABLE DATA'!$D$8)),AND('[2]Input-Output Data'!$J11>'[2]Input-Output Data'!$M11,OR('[2]Input-Output Data'!$J11<'[2]Input-Output Data'!$N11,'[2]Input-Output Data'!$J11='[2]Input-Output Data'!$N11))),'[2]TABLE DATA'!F$9,IF(AND(AND($I11>'[2]TABLE DATA'!$D$7,OR($I11<'[2]TABLE DATA'!$D$8,$I11='[2]TABLE DATA'!$D$8)),$J11>'[2]Input-Output Data'!$N11),\"SIGN TOO WIDE\",IF(AND(AND($I11>'[2]TABLE DATA'!$D$8,OR($I11<'[2]TABLE DATA'!$D$9,$I11='[2]TABLE DATA'!$D$9)),'[2]Input-Output Data'!$J11<'[2]Input-Output Data'!$K11),'[2]TABLE DATA'!F$9,\"SIGN TOO WIDE\"))))))))))","v":5},{"$f":"IF(I11=\"Arm Too Long\", \"Reduce V or W\",IF($I11>'[2]TABLE DATA'!$D$9,\"SIGN TOO LARGE\",IF(AND(OR($I11<'[2]TABLE DATA'!$D$7,$I11='[2]TABLE DATA'!$D$7),OR('[2]Input-Output Data'!$J11<'[2]Input-Output Data'!$K11,'[2]Input-Output Data'!$J11='[2]Input-Output Data'!$K11)),'[2]TABLE DATA'!G$7,IF(AND(OR($I11<'[2]TABLE DATA'!$D$7,$I11='[2]TABLE DATA'!$D$7),AND($J11>$L11),OR('[2]Input-Output Data'!$J11<'[2]Input-Output Data'!$M11,'[2]Input-Output Data'!$J11='[2]Input-Output Data'!$M11)),'[2]TABLE DATA'!G$8,IF(AND(OR($I11<'[2]TABLE DATA'!$D$7,$I11='[2]TABLE DATA'!$D$7),AND($J11>$M11),OR('[2]Input-Output Data'!$J11<'[2]Input-Output Data'!$N11,'[2]Input-Output Data'!$J11='[2]Input-Output Data'!$N11)),'[2]TABLE DATA'!G$9,IF(AND(OR($I11<'[2]TABLE DATA'!$D$7,$I11='[2]TABLE DATA'!$D$7),$J11>$N11),\"SIGN TOO WIDE\",IF(AND(AND($I11>'[2]TABLE DATA'!$D$7,OR($I11<'[2]TABLE DATA'!$D$8,$I11='[2]TABLE DATA'!$D$8)),'[2]Input-Output Data'!$J11<'[2]Input-Output Data'!$K11),'[2]TABLE DATA'!G$8,IF(AND(AND($I11>'[2]TABLE DATA'!$D$7,OR($I11<'[2]TABLE DATA'!$D$8,$I11='[2]TABLE DATA'!$D$8)),AND('[2]Input-Output Data'!$J11>'[2]Input-Output Data'!$M11,OR('[2]Input-Output Data'!$J11<'[2]Input-Output Data'!$N11,'[2]Input-Output Data'!$J11='[2]Input-Output Data'!$N11))),'[2]TABLE DATA'!G$9,IF(AND(AND($I11>'[2]TABLE DATA'!$D$7,OR($I11<'[2]TABLE DATA'!$D$8,$I11='[2]TABLE DATA'!$D$8)),$J11>'[2]Input-Output Data'!$N11),\"SIGN TOO WIDE\",IF(AND(AND($I11>'[2]TABLE DATA'!$D$8,OR($I11<'[2]TABLE DATA'!$D$9,$I11='[2]TABLE DATA'!$D$9)),'[2]Input-Output Data'!$J11<'[2]Input-Output Data'!$K11),'[2]TABLE DATA'!G$9,\"SIGN TOO WIDE\"))))))))))","v":3},{"$f":"IF(I11=\"Arm Too Long\", \"Reduce V or W\",IF($I11>'[2]TABLE DATA'!$D$9,\"SIGN TOO LARGE\",IF(AND(OR($I11<'[2]TABLE DATA'!$D$7,$I11='[2]TABLE DATA'!$D$7),OR('[2]Input-Output Data'!$J11<'[2]Input-Output Data'!$K11,'[2]Input-Output Data'!$J11='[2]Input-Output Data'!$K11)),'[2]TABLE DATA'!H$7,IF(AND(OR($I11<'[2]TABLE DATA'!$D$7,$I11='[2]TABLE DATA'!$D$7),AND($J11>$L11),OR('[2]Input-Output Data'!$J11<'[2]Input-Output Data'!$M11,'[2]Input-Output Data'!$J11='[2]Input-Output Data'!$M11)),'[2]TABLE DATA'!H$8,IF(AND(OR($I11<'[2]TABLE DATA'!$D$7,$I11='[2]TABLE DATA'!$D$7),AND($J11>$M11),OR('[2]Input-Output Data'!$J11<'[2]Input-Output Data'!$N11,'[2]Input-Output Data'!$J11='[2]Input-Output Data'!$N11)),'[2]TABLE DATA'!H$9,IF(AND(OR($I11<'[2]TABLE DATA'!$D$7,$I11='[2]TABLE DATA'!$D$7),$J11>$N11),\"SIGN TOO WIDE\",IF(AND(AND($I11>'[2]TABLE DATA'!$D$7,OR($I11<'[2]TABLE DATA'!$D$8,$I11='[2]TABLE DATA'!$D$8)),'[2]Input-Output Data'!$J11<'[2]Input-Output Data'!$K11),'[2]TABLE DATA'!H$8,IF(AND(AND($I11>'[2]TABLE DATA'!$D$7,OR($I11<'[2]TABLE DATA'!$D$8,$I11='[2]TABLE DATA'!$D$8)),AND('[2]Input-Output Data'!$J11>'[2]Input-Output Data'!$M11,OR('[2]Input-Output Data'!$J11<'[2]Input-Output Data'!$N11,'[2]Input-Output Data'!$J11='[2]Input-Output Data'!$N11))),'[2]TABLE DATA'!H$9,IF(AND(AND($I11>'[2]TABLE DATA'!$D$7,OR($I11<'[2]TABLE DATA'!$D$8,$I11='[2]TABLE DATA'!$D$8)),$J11>'[2]Input-Output Data'!$N11),\"SIGN TOO WIDE\",IF(AND(AND($I11>'[2]TABLE DATA'!$D$8,OR($I11<'[2]TABLE DATA'!$D$9,$I11='[2]TABLE DATA'!$D$9)),'[2]Input-Output Data'!$J11<'[2]Input-Output Data'!$K11),'[2]TABLE DATA'!H$9,\"SIGN TOO WIDE\"))))))))))","v":0.875},{"$f":"IF(I11=\"Arm Too Long\", \"Reduce V or W\",IF($I11>'[2]TABLE DATA'!$D$9,\"SIGN TOO LARGE\",IF(AND(OR($I11<'[2]TABLE DATA'!$D$7,$I11='[2]TABLE DATA'!$D$7),OR('[2]Input-Output Data'!$J11<'[2]Input-Output Data'!$K11,'[2]Input-Output Data'!$J11='[2]Input-Output Data'!$K11)),'[2]TABLE DATA'!I$7,IF(AND(OR($I11<'[2]TABLE DATA'!$D$7,$I11='[2]TABLE DATA'!$D$7),AND($J11>$L11),OR('[2]Input-Output Data'!$J11<'[2]Input-Output Data'!$M11,'[2]Input-Output Data'!$J11='[2]Input-Output Data'!$M11)),'[2]TABLE DATA'!I$8,IF(AND(OR($I11<'[2]TABLE DATA'!$D$7,$I11='[2]TABLE DATA'!$D$7),AND($J11>$M11),OR('[2]Input-Output Data'!$J11<'[2]Input-Output Data'!$N11,'[2]Input-Output Data'!$J11='[2]Input-Output Data'!$N11)),'[2]TABLE DATA'!I$9,IF(AND(OR($I11<'[2]TABLE DATA'!$D$7,$I11='[2]TABLE DATA'!$D$7),$J11>$N11),\"SIGN TOO WIDE\",IF(AND(AND($I11>'[2]TABLE DATA'!$D$7,OR($I11<'[2]TABLE DATA'!$D$8,$I11='[2]TABLE DATA'!$D$8)),'[2]Input-Output Data'!$J11<'[2]Input-Output Data'!$K11),'[2]TABLE DATA'!I$8,IF(AND(AND($I11>'[2]TABLE DATA'!$D$7,OR($I11<'[2]TABLE DATA'!$D$8,$I11='[2]TABLE DATA'!$D$8)),AND('[2]Input-Output Data'!$J11>'[2]Input-Output Data'!$M11,OR('[2]Input-Output Data'!$J11<'[2]Input-Output Data'!$N11,'[2]Input-Output Data'!$J11='[2]Input-Output Data'!$N11))),'[2]TABLE DATA'!I$9,IF(AND(AND($I11>'[2]TABLE DATA'!$D$7,OR($I11<'[2]TABLE DATA'!$D$8,$I11='[2]TABLE DATA'!$D$8)),$J11>'[2]Input-Output Data'!$N11),\"SIGN TOO WIDE\",IF(AND(AND($I11>'[2]TABLE DATA'!$D$8,OR($I11<'[2]TABLE DATA'!$D$9,$I11='[2]TABLE DATA'!$D$9)),'[2]Input-Output Data'!$J11<'[2]Input-Output Data'!$K11),'[2]TABLE DATA'!I$9,\"SIGN TOO WIDE\"))))))))))","v":8},{"$f":"IF(I11=\"Arm Too Long\", \"Reduce V or W\",IF($I11>'[2]TABLE DATA'!$D$9,\"SIGN TOO LARGE\",IF(AND(OR($I11<'[2]TABLE DATA'!$D$7,$I11='[2]TABLE DATA'!$D$7),OR('[2]Input-Output Data'!$J11<'[2]Input-Output Data'!$K11,'[2]Input-Output Data'!$J11='[2]Input-Output Data'!$K11)),'[2]TABLE DATA'!J$7,IF(AND(OR($I11<'[2]TABLE DATA'!$D$7,$I11='[2]TABLE DATA'!$D$7),AND($J11>$L11),OR('[2]Input-Output Data'!$J11<'[2]Input-Output Data'!$M11,'[2]Input-Output Data'!$J11='[2]Input-Output Data'!$M11)),'[2]TABLE DATA'!J$8,IF(AND(OR($I11<'[2]TABLE DATA'!$D$7,$I11='[2]TABLE DATA'!$D$7),AND($J11>$M11),OR('[2]Input-Output Data'!$J11<'[2]Input-Output Data'!$N11,'[2]Input-Output Data'!$J11='[2]Input-Output Data'!$N11)),'[2]TABLE DATA'!J$9,IF(AND(OR($I11<'[2]TABLE DATA'!$D$7,$I11='[2]TABLE DATA'!$D$7),$J11>$N11),\"SIGN TOO WIDE\",IF(AND(AND($I11>'[2]TABLE DATA'!$D$7,OR($I11<'[2]TABLE DATA'!$D$8,$I11='[2]TABLE DATA'!$D$8)),'[2]Input-Output Data'!$J11<'[2]Input-Output Data'!$K11),'[2]TABLE DATA'!J$8,IF(AND(AND($I11>'[2]TABLE DATA'!$D$7,OR($I11<'[2]TABLE DATA'!$D$8,$I11='[2]TABLE DATA'!$D$8)),AND('[2]Input-Output Data'!$J11>'[2]Input-Output Data'!$M11,OR('[2]Input-Output Data'!$J11<'[2]Input-Output Data'!$N11,'[2]Input-Output Data'!$J11='[2]Input-Output Data'!$N11))),'[2]TABLE DATA'!J$9,IF(AND(AND($I11>'[2]TABLE DATA'!$D$7,OR($I11<'[2]TABLE DATA'!$D$8,$I11='[2]TABLE DATA'!$D$8)),$J11>'[2]Input-Output Data'!$N11),\"SIGN TOO WIDE\",IF(AND(AND($I11>'[2]TABLE DATA'!$D$8,OR($I11<'[2]TABLE DATA'!$D$9,$I11='[2]TABLE DATA'!$D$9)),'[2]Input-Output Data'!$J11<'[2]Input-Output Data'!$K11),'[2]TABLE DATA'!J$9,\"SIGN TOO WIDE\"))))))))))","v":2},{"$f":"IF(I11=\"Arm Too Long\", \"Reduce V or W\",IF($I11>'[2]TABLE DATA'!$D$9,\"SIGN TOO LARGE\",IF(AND(OR($I11<'[2]TABLE DATA'!$D$7,$I11='[2]TABLE DATA'!$D$7),OR('[2]Input-Output Data'!$J11<'[2]Input-Output Data'!$K11,'[2]Input-Output Data'!$J11='[2]Input-Output Data'!$K11)),'[2]TABLE DATA'!K$7,IF(AND(OR($I11<'[2]TABLE DATA'!$D$7,$I11='[2]TABLE DATA'!$D$7),AND($J11>$L11),OR('[2]Input-Output Data'!$J11<'[2]Input-Output Data'!$M11,'[2]Input-Output Data'!$J11='[2]Input-Output Data'!$M11)),'[2]TABLE DATA'!K$8,IF(AND(OR($I11<'[2]TABLE DATA'!$D$7,$I11='[2]TABLE DATA'!$D$7),AND($J11>$M11),OR('[2]Input-Output Data'!$J11<'[2]Input-Output Data'!$N11,'[2]Input-Output Data'!$J11='[2]Input-Output Data'!$N11)),'[2]TABLE DATA'!K$9,IF(AND(OR($I11<'[2]TABLE DATA'!$D$7,$I11='[2]TABLE DATA'!$D$7),$J11>$N11),\"SIGN TOO WIDE\",IF(AND(AND($I11>'[2]TABLE DATA'!$D$7,OR($I11<'[2]TABLE DATA'!$D$8,$I11='[2]TABLE DATA'!$D$8)),'[2]Input-Output Data'!$J11<'[2]Input-Output Data'!$K11),'[2]TABLE DATA'!K$8,IF(AND(AND($I11>'[2]TABLE DATA'!$D$7,OR($I11<'[2]TABLE DATA'!$D$8,$I11='[2]TABLE DATA'!$D$8)),AND('[2]Input-Output Data'!$J11>'[2]Input-Output Data'!$M11,OR('[2]Input-Output Data'!$J11<'[2]Input-Output Data'!$N11,'[2]Input-Output Data'!$J11='[2]Input-Output Data'!$N11))),'[2]TABLE DATA'!K$9,IF(AND(AND($I11>'[2]TABLE DATA'!$D$7,OR($I11<'[2]TABLE DATA'!$D$8,$I11='[2]TABLE DATA'!$D$8)),$J11>'[2]Input-Output Data'!$N11),\"SIGN TOO WIDE\",IF(AND(AND($I11>'[2]TABLE DATA'!$D$8,OR($I11<'[2]TABLE DATA'!$D$9,$I11='[2]TABLE DATA'!$D$9)),'[2]Input-Output Data'!$J11<'[2]Input-Output Data'!$K11),'[2]TABLE DATA'!K$9,\"SIGN TOO WIDE\"))))))))))","v":80},{"$f":"IF(I11=\"Arm Too Long\", \"Reduce V or W\",IF($I11>'[2]TABLE DATA'!$D$9,\"SIGN TOO LARGE\",IF(AND(OR($I11<'[2]TABLE DATA'!$D$7,$I11='[2]TABLE DATA'!$D$7),OR('[2]Input-Output Data'!$J11<'[2]Input-Output Data'!$K11,'[2]Input-Output Data'!$J11='[2]Input-Output Data'!$K11)),'[2]TABLE DATA'!L$7,IF(AND(OR($I11<'[2]TABLE DATA'!$D$7,$I11='[2]TABLE DATA'!$D$7),AND($J11>$L11),OR('[2]Input-Output Data'!$J11<'[2]Input-Output Data'!$M11,'[2]Input-Output Data'!$J11='[2]Input-Output Data'!$M11)),'[2]TABLE DATA'!L$8,IF(AND(OR($I11<'[2]TABLE DATA'!$D$7,$I11='[2]TABLE DATA'!$D$7),AND($J11>$M11),OR('[2]Input-Output Data'!$J11<'[2]Input-Output Data'!$N11,'[2]Input-Output Data'!$J11='[2]Input-Output Data'!$N11)),'[2]TABLE DATA'!L$9,IF(AND(OR($I11<'[2]TABLE DATA'!$D$7,$I11='[2]TABLE DATA'!$D$7),$J11>$N11),\"SIGN TOO WIDE\",IF(AND(AND($I11>'[2]TABLE DATA'!$D$7,OR($I11<'[2]TABLE DATA'!$D$8,$I11='[2]TABLE DATA'!$D$8)),'[2]Input-Output Data'!$J11<'[2]Input-Output Data'!$K11),'[2]TABLE DATA'!L$8,IF(AND(AND($I11>'[2]TABLE DATA'!$D$7,OR($I11<'[2]TABLE DATA'!$D$8,$I11='[2]TABLE DATA'!$D$8)),AND('[2]Input-Output Data'!$J11>'[2]Input-Output Data'!$M11,OR('[2]Input-Output Data'!$J11<'[2]Input-Output Data'!$N11,'[2]Input-Output Data'!$J11='[2]Input-Output Data'!$N11))),'[2]TABLE DATA'!L$9,IF(AND(AND($I11>'[2]TABLE DATA'!$D$7,OR($I11<'[2]TABLE DATA'!$D$8,$I11='[2]TABLE DATA'!$D$8)),$J11>'[2]Input-Output Data'!$N11),\"SIGN TOO WIDE\",IF(AND(AND($I11>'[2]TABLE DATA'!$D$8,OR($I11<'[2]TABLE DATA'!$D$9,$I11='[2]TABLE DATA'!$D$9)),'[2]Input-Output Data'!$J11<'[2]Input-Output Data'!$K11),'[2]TABLE DATA'!L$9,\"SIGN TOO WIDE\"))))))))))","v":14.5},{"$f":"IF(I11=\"Arm Too Long\", \"Reduce V or W\",IF($I11>'[2]TABLE DATA'!$D$9,\"SIGN TOO LARGE\",IF(AND(OR($I11<'[2]TABLE DATA'!$D$7,$I11='[2]TABLE DATA'!$D$7),OR('[2]Input-Output Data'!$J11<'[2]Input-Output Data'!$K11,'[2]Input-Output Data'!$J11='[2]Input-Output Data'!$K11)),'[2]TABLE DATA'!M$7,IF(AND(OR($I11<'[2]TABLE DATA'!$D$7,$I11='[2]TABLE DATA'!$D$7),AND($J11>$L11),OR('[2]Input-Output Data'!$J11<'[2]Input-Output Data'!$M11,'[2]Input-Output Data'!$J11='[2]Input-Output Data'!$M11)),'[2]TABLE DATA'!M$8,IF(AND(OR($I11<'[2]TABLE DATA'!$D$7,$I11='[2]TABLE DATA'!$D$7),AND($J11>$M11),OR('[2]Input-Output Data'!$J11<'[2]Input-Output Data'!$N11,'[2]Input-Output Data'!$J11='[2]Input-Output Data'!$N11)),'[2]TABLE DATA'!M$9,IF(AND(OR($I11<'[2]TABLE DATA'!$D$7,$I11='[2]TABLE DATA'!$D$7),$J11>$N11),\"SIGN TOO WIDE\",IF(AND(AND($I11>'[2]TABLE DATA'!$D$7,OR($I11<'[2]TABLE DATA'!$D$8,$I11='[2]TABLE DATA'!$D$8)),'[2]Input-Output Data'!$J11<'[2]Input-Output Data'!$K11),'[2]TABLE DATA'!M$8,IF(AND(AND($I11>'[2]TABLE DATA'!$D$7,OR($I11<'[2]TABLE DATA'!$D$8,$I11='[2]TABLE DATA'!$D$8)),AND('[2]Input-Output Data'!$J11>'[2]Input-Output Data'!$M11,OR('[2]Input-Output Data'!$J11<'[2]Input-Output Data'!$N11,'[2]Input-Output Data'!$J11='[2]Input-Output Data'!$N11))),'[2]TABLE DATA'!M$9,IF(AND(AND($I11>'[2]TABLE DATA'!$D$7,OR($I11<'[2]TABLE DATA'!$D$8,$I11='[2]TABLE DATA'!$D$8)),$J11>'[2]Input-Output Data'!$N11),\"SIGN TOO WIDE\",IF(AND(AND($I11>'[2]TABLE DATA'!$D$8,OR($I11<'[2]TABLE DATA'!$D$9,$I11='[2]TABLE DATA'!$D$9)),'[2]Input-Output Data'!$J11<'[2]Input-Output Data'!$K11),'[2]TABLE DATA'!M$9,\"SIGN TOO WIDE\"))))))))))","v":0.625},{"$f":"IF(I11=\"Arm Too Long\", \"Reduce V or W\",IF($I11>'[2]TABLE DATA'!$D$9,\"SIGN TOO LARGE\",IF(AND(OR($I11<'[2]TABLE DATA'!$D$7,$I11='[2]TABLE DATA'!$D$7),OR('[2]Input-Output Data'!$J11<'[2]Input-Output Data'!$K11,'[2]Input-Output Data'!$J11='[2]Input-Output Data'!$K11)),'[2]TABLE DATA'!N$7,IF(AND(OR($I11<'[2]TABLE DATA'!$D$7,$I11='[2]TABLE DATA'!$D$7),AND($J11>$L11),OR('[2]Input-Output Data'!$J11<'[2]Input-Output Data'!$M11,'[2]Input-Output Data'!$J11='[2]Input-Output Data'!$M11)),'[2]TABLE DATA'!N$8,IF(AND(OR($I11<'[2]TABLE DATA'!$D$7,$I11='[2]TABLE DATA'!$D$7),AND($J11>$M11),OR('[2]Input-Output Data'!$J11<'[2]Input-Output Data'!$N11,'[2]Input-Output Data'!$J11='[2]Input-Output Data'!$N11)),'[2]TABLE DATA'!N$9,IF(AND(OR($I11<'[2]TABLE DATA'!$D$7,$I11='[2]TABLE DATA'!$D$7),$J11>$N11),\"SIGN TOO WIDE\",IF(AND(AND($I11>'[2]TABLE DATA'!$D$7,OR($I11<'[2]TABLE DATA'!$D$8,$I11='[2]TABLE DATA'!$D$8)),'[2]Input-Output Data'!$J11<'[2]Input-Output Data'!$K11),'[2]TABLE DATA'!N$8,IF(AND(AND($I11>'[2]TABLE DATA'!$D$7,OR($I11<'[2]TABLE DATA'!$D$8,$I11='[2]TABLE DATA'!$D$8)),AND('[2]Input-Output Data'!$J11>'[2]Input-Output Data'!$M11,OR('[2]Input-Output Data'!$J11<'[2]Input-Output Data'!$N11,'[2]Input-Output Data'!$J11='[2]Input-Output Data'!$N11))),'[2]TABLE DATA'!N$9,IF(AND(AND($I11>'[2]TABLE DATA'!$D$7,OR($I11<'[2]TABLE DATA'!$D$8,$I11='[2]TABLE DATA'!$D$8)),$J11>'[2]Input-Output Data'!$N11),\"SIGN TOO WIDE\",IF(AND(AND($I11>'[2]TABLE DATA'!$D$8,OR($I11<'[2]TABLE DATA'!$D$9,$I11='[2]TABLE DATA'!$D$9)),'[2]Input-Output Data'!$J11<'[2]Input-Output Data'!$K11),'[2]TABLE DATA'!N$9,\"SIGN TOO WIDE\"))))))))))","v":0.625},{"$f":"IF(I11=\"Arm Too Long\", \"Reduce V or W\",IF($I11>'[2]TABLE DATA'!$D$9,\"SIGN TOO LARGE\",IF(AND(OR($I11<'[2]TABLE DATA'!$D$7,$I11='[2]TABLE DATA'!$D$7),OR('[2]Input-Output Data'!$J11<'[2]Input-Output Data'!$K11,'[2]Input-Output Data'!$J11='[2]Input-Output Data'!$K11)),'[2]TABLE DATA'!O$7,IF(AND(OR($I11<'[2]TABLE DATA'!$D$7,$I11='[2]TABLE DATA'!$D$7),AND($J11>$L11),OR('[2]Input-Output Data'!$J11<'[2]Input-Output Data'!$M11,'[2]Input-Output Data'!$J11='[2]Input-Output Data'!$M11)),'[2]TABLE DATA'!O$8,IF(AND(OR($I11<'[2]TABLE DATA'!$D$7,$I11='[2]TABLE DATA'!$D$7),AND($J11>$M11),OR('[2]Input-Output Data'!$J11<'[2]Input-Output Data'!$N11,'[2]Input-Output Data'!$J11='[2]Input-Output Data'!$N11)),'[2]TABLE DATA'!O$9,IF(AND(OR($I11<'[2]TABLE DATA'!$D$7,$I11='[2]TABLE DATA'!$D$7),$J11>$N11),\"SIGN TOO WIDE\",IF(AND(AND($I11>'[2]TABLE DATA'!$D$7,OR($I11<'[2]TABLE DATA'!$D$8,$I11='[2]TABLE DATA'!$D$8)),'[2]Input-Output Data'!$J11<'[2]Input-Output Data'!$K11),'[2]TABLE DATA'!O$8,IF(AND(AND($I11>'[2]TABLE DATA'!$D$7,OR($I11<'[2]TABLE DATA'!$D$8,$I11='[2]TABLE DATA'!$D$8)),AND('[2]Input-Output Data'!$J11>'[2]Input-Output Data'!$M11,OR('[2]Input-Output Data'!$J11<'[2]Input-Output Data'!$N11,'[2]Input-Output Data'!$J11='[2]Input-Output Data'!$N11))),'[2]TABLE DATA'!O$9,IF(AND(AND($I11>'[2]TABLE DATA'!$D$7,OR($I11<'[2]TABLE DATA'!$D$8,$I11='[2]TABLE DATA'!$D$8)),$J11>'[2]Input-Output Data'!$N11),\"SIGN TOO WIDE\",IF(AND(AND($I11>'[2]TABLE DATA'!$D$8,OR($I11<'[2]TABLE DATA'!$D$9,$I11='[2]TABLE DATA'!$D$9)),'[2]Input-Output Data'!$J11<'[2]Input-Output Data'!$K11),'[2]TABLE DATA'!O$9,\"SIGN TOO WIDE\"))))))))))","v":0.625},"II"]
[null,null,null,36,36,"Square","I",21,9,20,{"$f":"IF(OR(I12<'[2]TABLE DATA'!$D$7,I12='[2]TABLE DATA'!$D$7),717.75/I12,IF(AND('[2]TABLE DATA'!$D$7<I12,OR(I12<'[2]TABLE DATA'!$D$8,I12='[2]TABLE DATA'!$D$8)),1695/I12,IF(AND('[2]TABLE DATA'!$D$8<I12,OR(I12<'[2]TABLE DATA'!$D$9,I12='[2]TABLE DATA'!$D$9)),2268/I12,IF(I12=\"Arm Too Long\", \"Reduce V or W\",\"Sign Too Wide\"))))","v":79.75},{"$f":"717.75/'[2]Input-Output Data'!I12","v":79.75},188.33,252,{"$f":"IF(I12=\"Arm Too Long\", \"Reduce V or W\",IF($I12>'[2]TABLE DATA'!$D$9,\"SIGN TOO LARGE\",IF(AND(OR($I12<'[2]TABLE DATA'!$D$7,$I12='[2]TABLE DATA'!$D$7),OR('[2]Input-Output Data'!$J12<'[2]Input-Output Data'!$K12,'[2]Input-Output Data'!$J12='[2]Input-Output Data'!$K12)),'[2]TABLE DATA'!F$7,IF(AND(OR($I12<'[2]TABLE DATA'!$D$7,$I12='[2]TABLE DATA'!$D$7),AND($J12>$L12),OR('[2]Input-Output Data'!$J12<'[2]Input-Output Data'!$M12,'[2]Input-Output Data'!$J12='[2]Input-Output Data'!$M12)),'[2]TABLE DATA'!F$8,IF(AND(OR($I12<'[2]TABLE DATA'!$D$7,$I12='[2]TABLE DATA'!$D$7),AND($J12>$M12),OR('[2]Input-Output Data'!$J12<'[2]Input-Output Data'!$N12,'[2]Input-Output Data'!$J12='[2]Input-Output Data'!$N12)),'[2]TABLE DATA'!F$9,IF(AND(OR($I12<'[2]TABLE DATA'!$D$7,$I12='[2]TABLE DATA'!$D$7),$J12>$N12),\"SIGN TOO WIDE\",IF(AND(AND($I12>'[2]TABLE DATA'!$D$7,OR($I12<'[2]TABLE DATA'!$D$8,$I12='[2]TABLE DATA'!$D$8)),'[2]Input-Output Data'!$J12<'[2]Input-Output Data'!$K12),'[2]TABLE DATA'!F$8,IF(AND(AND($I12>'[2]TABLE DATA'!$D$7,OR($I12<'[2]TABLE DATA'!$D$8,$I12='[2]TABLE DATA'!$D$8)),AND('[2]Input-Output Data'!$J12>'[2]Input-Output Data'!$M12,OR('[2]Input-Output Data'!$J12<'[2]Input-Output Data'!$N12,'[2]Input-Output Data'!$J12='[2]Input-Output Data'!$N12))),'[2]TABLE DATA'!F$9,IF(AND(AND($I12>'[2]TABLE DATA'!$D$7,OR($I12<'[2]TABLE DATA'!$D$8,$I12='[2]TABLE DATA'!$D$8)),$J12>'[2]Input-Output Data'!$N12),\"SIGN TOO WIDE\",IF(AND(AND($I12>'[2]TABLE DATA'!$D$8,OR($I12<'[2]TABLE DATA'!$D$9,$I12='[2]TABLE DATA'!$D$9)),'[2]Input-Output Data'!$J12<'[2]Input-Output Data'!$K12),'[2]TABLE DATA'!F$9,\"SIGN TOO WIDE\"))))))))))","v":4},{"$f":"IF(I12=\"Arm Too Long\", \"Reduce V or W\",IF($I12>'[2]TABLE DATA'!$D$9,\"SIGN TOO LARGE\",IF(AND(OR($I12<'[2]TABLE DATA'!$D$7,$I12='[2]TABLE DATA'!$D$7),OR('[2]Input-Output Data'!$J12<'[2]Input-Output Data'!$K12,'[2]Input-Output Data'!$J12='[2]Input-Output Data'!$K12)),'[2]TABLE DATA'!G$7,IF(AND(OR($I12<'[2]TABLE DATA'!$D$7,$I12='[2]TABLE DATA'!$D$7),AND($J12>$L12),OR('[2]Input-Output Data'!$J12<'[2]Input-Output Data'!$M12,'[2]Input-Output Data'!$J12='[2]Input-Output Data'!$M12)),'[2]TABLE DATA'!G$8,IF(AND(OR($I12<'[2]TABLE DATA'!$D$7,$I12='[2]TABLE DATA'!$D$7),AND($J12>$M12),OR('[2]Input-Output Data'!$J12<'[2]Input-Output Data'!$N12,'[2]Input-Output Data'!$J12='[2]Input-Output Data'!$N12)),'[2]TABLE DATA'!G$9,IF(AND(OR($I12<'[2]TABLE DATA'!$D$7,$I12='[2]TABLE DATA'!$D$7),$J12>$N12),\"SIGN TOO WIDE\",IF(AND(AND($I12>'[2]TABLE DATA'!$D$7,OR($I12<'[2]TABLE DATA'!$D$8,$I12='[2]TABLE DATA'!$D$8)),'[2]Input-Output Data'!$J12<'[2]Input-Output Data'!$K12),'[2]TABLE DATA'!G$8,IF(AND(AND($I12>'[2]TABLE DATA'!$D$7,OR($I12<'[2]TABLE DATA'!$D$8,$I12='[2]TABLE DATA'!$D$8)),AND('[2]Input-Output Data'!$J12>'[2]Input-Output Data'!$M12,OR('[2]Input-Output Data'!$J12<'[2]Input-Output Data'!$N12,'[2]Input-Output Data'!$J12='[2]Input-Output Data'!$N12))),'[2]TABLE DATA'!G$9,IF(AND(AND($I12>'[2]TABLE DATA'!$D$7,OR($I12<'[2]TABLE DATA'!$D$8,$I12='[2]TABLE DATA'!$D$8)),$J12>'[2]Input-Output Data'!$N12),\"SIGN TOO WIDE\",IF(AND(AND($I12>'[2]TABLE DATA'!$D$8,OR($I12<'[2]TABLE DATA'!$D$9,$I12='[2]TABLE DATA'!$D$9)),'[2]Input-Output Data'!$J12<'[2]Input-Output Data'!$K12),'[2]TABLE DATA'!G$9,\"SIGN TOO WIDE\"))))))))))","v":2},{"$f":"IF(I12=\"Arm Too Long\", \"Reduce V or W\",IF($I12>'[2]TABLE DATA'!$D$9,\"SIGN TOO LARGE\",IF(AND(OR($I12<'[2]TABLE DATA'!$D$7,$I12='[2]TABLE DATA'!$D$7),OR('[2]Input-Output Data'!$J12<'[2]Input-Output Data'!$K12,'[2]Input-Output Data'!$J12='[2]Input-Output Data'!$K12)),'[2]TABLE DATA'!H$7,IF(AND(OR($I12<'[2]TABLE DATA'!$D$7,$I12='[2]TABLE DATA'!$D$7),AND($J12>$L12),OR('[2]Input-Output Data'!$J12<'[2]Input-Output Data'!$M12,'[2]Input-Output Data'!$J12='[2]Input-Output Data'!$M12)),'[2]TABLE DATA'!H$8,IF(AND(OR($I12<'[2]TABLE DATA'!$D$7,$I12='[2]TABLE DATA'!$D$7),AND($J12>$M12),OR('[2]Input-Output Data'!$J12<'[2]Input-Output Data'!$N12,'[2]Input-Output Data'!$J12='[2]Input-Output Data'!$N12)),'[2]TABLE DATA'!H$9,IF(AND(OR($I12<'[2]TABLE DATA'!$D$7,$I12='[2]TABLE DATA'!$D$7),$J12>$N12),\"SIGN TOO WIDE\",IF(AND(AND($I12>'[2]TABLE DATA'!$D$7,OR($I12<'[2]TABLE DATA'!$D$8,$I12='[2]TABLE DATA'!$D$8)),'[2]Input-Output Data'!$J12<'[2]Input-Output Data'!$K12),'[2]TABLE DATA'!H$8,IF(AND(AND($I12>'[2]TABLE DATA'!$D$7,OR($I12<'[2]TABLE DATA'!$D$8,$I12='[2]TABLE DATA'!$D$8)),AND('[2]Input-Output Data'!$J12>'[2]Input-Output Data'!$M12,OR('[2]Input-Output Data'!$J12<'[2]Input-Output Data'!$N12,'[2]Input-Output Data'!$J12='[2]Input-Output Data'!$N12))),'[2]TABLE DATA'!H$9,IF(AND(AND($I12>'[2]TABLE DATA'!$D$7,OR($I12<'[2]TABLE DATA'!$D$8,$I12='[2]TABLE DATA'!$D$8)),$J12>'[2]Input-Output Data'!$N12),\"SIGN TOO WIDE\",IF(AND(AND($I12>'[2]TABLE DATA'!$D$8,OR($I12<'[2]TABLE DATA'!$D$9,$I12='[2]TABLE DATA'!$D$9)),'[2]Input-Output Data'!$J12<'[2]Input-Output Data'!$K12),'[2]TABLE DATA'!H$9,\"SIGN TOO WIDE\"))))))))))","v":0.625},{"$f":"IF(I12=\"Arm Too Long\", \"Reduce V or W\",IF($I12>'[2]TABLE DATA'!$D$9,\"SIGN TOO LARGE\",IF(AND(OR($I12<'[2]TABLE DATA'!$D$7,$I12='[2]TABLE DATA'!$D$7),OR('[2]Input-Output Data'!$J12<'[2]Input-Output Data'!$K12,'[2]Input-Output Data'!$J12='[2]Input-Output Data'!$K12)),'[2]TABLE DATA'!I$7,IF(AND(OR($I12<'[2]TABLE DATA'!$D$7,$I12='[2]TABLE DATA'!$D$7),AND($J12>$L12),OR('[2]Input-Output Data'!$J12<'[2]Input-Output Data'!$M12,'[2]Input-Output Data'!$J12='[2]Input-Output Data'!$M12)),'[2]TABLE DATA'!I$8,IF(AND(OR($I12<'[2]TABLE DATA'!$D$7,$I12='[2]TABLE DATA'!$D$7),AND($J12>$M12),OR('[2]Input-Output Data'!$J12<'[2]Input-Output Data'!$N12,'[2]Input-Output Data'!$J12='[2]Input-Output Data'!$N12)),'[2]TABLE DATA'!I$9,IF(AND(OR($I12<'[2]TABLE DATA'!$D$7,$I12='[2]TABLE DATA'!$D$7),$J12>$N12),\"SIGN TOO WIDE\",IF(AND(AND($I12>'[2]TABLE DATA'!$D$7,OR($I12<'[2]TABLE DATA'!$D$8,$I12='[2]TABLE DATA'!$D$8)),'[2]Input-Output Data'!$J12<'[2]Input-Output Data'!$K12),'[2]TABLE DATA'!I$8,IF(AND(AND($I12>'[2]TABLE DATA'!$D$7,OR($I12<'[2]TABLE DATA'!$D$8,$I12='[2]TABLE DATA'!$D$8)),AND('[2]Input-Output Data'!$J12>'[2]Input-Output Data'!$M12,OR('[2]Input-Output Data'!$J12<'[2]Input-Output Data'!$N12,'[2]Input-Output Data'!$J12='[2]Input-Output Data'!$N12))),'[2]TABLE DATA'!I$9,IF(AND(AND($I12>'[2]TABLE DATA'!$D$7,OR($I12<'[2]TABLE DATA'!$D$8,$I12='[2]TABLE DATA'!$D$8)),$J12>'[2]Input-Output Data'!$N12),\"SIGN TOO WIDE\",IF(AND(AND($I12>'[2]TABLE DATA'!$D$8,OR($I12<'[2]TABLE DATA'!$D$9,$I12='[2]TABLE DATA'!$D$9)),'[2]Input-Output Data'!$J12<'[2]Input-Output Data'!$K12),'[2]TABLE DATA'!I$9,\"SIGN TOO WIDE\"))))))))))","v":5.625},{"$f":"IF(I12=\"Arm Too Long\", \"Reduce V or W\",IF($I12>'[2]TABLE DATA'!$D$9,\"SIGN TOO LARGE\",IF(AND(OR($I12<'[2]TABLE DATA'!$D$7,$I12='[2]TABLE DATA'!$D$7),OR('[2]Input-Output Data'!$J12<'[2]Input-Output Data'!$K12,'[2]Input-Output Data'!$J12='[2]Input-Output Data'!$K12)),'[2]TABLE DATA'!J$7,IF(AND(OR($I12<'[2]TABLE DATA'!$D$7,$I12='[2]TABLE DATA'!$D$7),AND($J12>$L12),OR('[2]Input-Output Data'!$J12<'[2]Input-Output Data'!$M12,'[2]Input-Output Data'!$J12='[2]Input-Output Data'!$M12)),'[2]TABLE DATA'!J$8,IF(AND(OR($I12<'[2]TABLE DATA'!$D$7,$I12='[2]TABLE DATA'!$D$7),AND($J12>$M12),OR('[2]Input-Output Data'!$J12<'[2]Input-Output Data'!$N12,'[2]Input-Output Data'!$J12='[2]Input-Output Data'!$N12)),'[2]TABLE DATA'!J$9,IF(AND(OR($I12<'[2]TABLE DATA'!$D$7,$I12='[2]TABLE DATA'!$D$7),$J12>$N12),\"SIGN TOO WIDE\",IF(AND(AND($I12>'[2]TABLE DATA'!$D$7,OR($I12<'[2]TABLE DATA'!$D$8,$I12='[2]TABLE DATA'!$D$8)),'[2]Input-Output Data'!$J12<'[2]Input-Output Data'!$K12),'[2]TABLE DATA'!J$8,IF(AND(AND($I12>'[2]TABLE DATA'!$D$7,OR($I12<'[2]TABLE DATA'!$D$8,$I12='[2]TABLE DATA'!$D$8)),AND('[2]Input-Output Data'!$J12>'[2]Input-Output Data'!$M12,OR('[2]Input-Output Data'!$J12<'[2]Input-Output Data'!$N12,'[2]Input-Output Data'!$J12='[2]Input-Output Data'!$N12))),'[2]TABLE DATA'!J$9,IF(AND(AND($I12>'[2]TABLE DATA'!$D$7,OR($I12<'[2]TABLE DATA'!$D$8,$I12='[2]TABLE DATA'!$D$8)),$J12>'[2]Input-Output Data'!$N12),\"SIGN TOO WIDE\",IF(AND(AND($I12>'[2]TABLE DATA'!$D$8,OR($I12<'[2]TABLE DATA'!$D$9,$I12='[2]TABLE DATA'!$D$9)),'[2]Input-Output Data'!$J12<'[2]Input-Output Data'!$K12),'[2]TABLE DATA'!J$9,\"SIGN TOO WIDE\"))))))))))","v":2},{"$f":"IF(I12=\"Arm Too Long\", \"Reduce V or W\",IF($I12>'[2]TABLE DATA'!$D$9,\"SIGN TOO LARGE\",IF(AND(OR($I12<'[2]TABLE DATA'!$D$7,$I12='[2]TABLE DATA'!$D$7),OR('[2]Input-Output Data'!$J12<'[2]Input-Output Data'!$K12,'[2]Input-Output Data'!$J12='[2]Input-Output Data'!$K12)),'[2]TABLE DATA'!K$7,IF(AND(OR($I12<'[2]TABLE DATA'!$D$7,$I12='[2]TABLE DATA'!$D$7),AND($J12>$L12),OR('[2]Input-Output Data'!$J12<'[2]Input-Output Data'!$M12,'[2]Input-Output Data'!$J12='[2]Input-Output Data'!$M12)),'[2]TABLE DATA'!K$8,IF(AND(OR($I12<'[2]TABLE DATA'!$D$7,$I12='[2]TABLE DATA'!$D$7),AND($J12>$M12),OR('[2]Input-Output Data'!$J12<'[2]Input-Output Data'!$N12,'[2]Input-Output Data'!$J12='[2]Input-Output Data'!$N12)),'[2]TABLE DATA'!K$9,IF(AND(OR($I12<'[2]TABLE DATA'!$D$7,$I12='[2]TABLE DATA'!$D$7),$J12>$N12),\"SIGN TOO WIDE\",IF(AND(AND($I12>'[2]TABLE DATA'!$D$7,OR($I12<'[2]TABLE DATA'!$D$8,$I12='[2]TABLE DATA'!$D$8)),'[2]Input-Output Data'!$J12<'[2]Input-Output Data'!$K12),'[2]TABLE DATA'!K$8,IF(AND(AND($I12>'[2]TABLE DATA'!$D$7,OR($I12<'[2]TABLE DATA'!$D$8,$I12='[2]TABLE DATA'!$D$8)),AND('[2]Input-Output Data'!$J12>'[2]Input-Output Data'!$M12,OR('[2]Input-Output Data'!$J12<'[2]Input-Output Data'!$N12,'[2]Input-Output Data'!$J12='[2]Input-Output Data'!$N12))),'[2]TABLE DATA'!K$9,IF(AND(AND($I12>'[2]TABLE DATA'!$D$7,OR($I12<'[2]TABLE DATA'!$D$8,$I12='[2]TABLE DATA'!$D$8)),$J12>'[2]Input-Output Data'!$N12),\"SIGN TOO WIDE\",IF(AND(AND($I12>'[2]TABLE DATA'!$D$8,OR($I12<'[2]TABLE DATA'!$D$9,$I12='[2]TABLE DATA'!$D$9)),'[2]Input-Output Data'!$J12<'[2]Input-Output Data'!$K12),'[2]TABLE DATA'!K$9,\"SIGN TOO WIDE\"))))))))))","v":60},{"$f":"IF(I12=\"Arm Too Long\", \"Reduce V or W\",IF($I12>'[2]TABLE DATA'!$D$9,\"SIGN TOO LARGE\",IF(AND(OR($I12<'[2]TABLE DATA'!$D$7,$I12='[2]TABLE DATA'!$D$7),OR('[2]Input-Output Data'!$J12<'[2]Input-Output Data'!$K12,'[2]Input-Output Data'!$J12='[2]Input-Output Data'!$K12)),'[2]TABLE DATA'!L$7,IF(AND(OR($I12<'[2]TABLE DATA'!$D$7,$I12='[2]TABLE DATA'!$D$7),AND($J12>$L12),OR('[2]Input-Output Data'!$J12<'[2]Input-Output Data'!$M12,'[2]Input-Output Data'!$J12='[2]Input-Output Data'!$M12)),'[2]TABLE DATA'!L$8,IF(AND(OR($I12<'[2]TABLE DATA'!$D$7,$I12='[2]TABLE DATA'!$D$7),AND($J12>$M12),OR('[2]Input-Output Data'!$J12<'[2]Input-Output Data'!$N12,'[2]Input-Output Data'!$J12='[2]Input-Output Data'!$N12)),'[2]TABLE DATA'!L$9,IF(AND(OR($I12<'[2]TABLE DATA'!$D$7,$I12='[2]TABLE DATA'!$D$7),$J12>$N12),\"SIGN TOO WIDE\",IF(AND(AND($I12>'[2]TABLE DATA'!$D$7,OR($I12<'[2]TABLE DATA'!$D$8,$I12='[2]TABLE DATA'!$D$8)),'[2]Input-Output Data'!$J12<'[2]Input-Output Data'!$K12),'[2]TABLE DATA'!L$8,IF(AND(AND($I12>'[2]TABLE DATA'!$D$7,OR($I12<'[2]TABLE DATA'!$D$8,$I12='[2]TABLE DATA'!$D$8)),AND('[2]Input-Output Data'!$J12>'[2]Input-Output Data'!$M12,OR('[2]Input-Output Data'!$J12<'[2]Input-Output Data'!$N12,'[2]Input-Output Data'!$J12='[2]Input-Output Data'!$N12))),'[2]TABLE DATA'!L$9,IF(AND(AND($I12>'[2]TABLE DATA'!$D$7,OR($I12<'[2]TABLE DATA'!$D$8,$I12='[2]TABLE DATA'!$D$8)),$J12>'[2]Input-Output Data'!$N12),\"SIGN TOO WIDE\",IF(AND(AND($I12>'[2]TABLE DATA'!$D$8,OR($I12<'[2]TABLE DATA'!$D$9,$I12='[2]TABLE DATA'!$D$9)),'[2]Input-Output Data'!$J12<'[2]Input-Output Data'!$K12),'[2]TABLE DATA'!L$9,\"SIGN TOO WIDE\"))))))))))","v":7.4},{"$f":"IF(I12=\"Arm Too Long\", \"Reduce V or W\",IF($I12>'[2]TABLE DATA'!$D$9,\"SIGN TOO LARGE\",IF(AND(OR($I12<'[2]TABLE DATA'!$D$7,$I12='[2]TABLE DATA'!$D$7),OR('[2]Input-Output Data'!$J12<'[2]Input-Output Data'!$K12,'[2]Input-Output Data'!$J12='[2]Input-Output Data'!$K12)),'[2]TABLE DATA'!M$7,IF(AND(OR($I12<'[2]TABLE DATA'!$D$7,$I12='[2]TABLE DATA'!$D$7),AND($J12>$L12),OR('[2]Input-Output Data'!$J12<'[2]Input-Output Data'!$M12,'[2]Input-Output Data'!$J12='[2]Input-Output Data'!$M12)),'[2]TABLE DATA'!M$8,IF(AND(OR($I12<'[2]TABLE DATA'!$D$7,$I12='[2]TABLE DATA'!$D$7),AND($J12>$M12),OR('[2]Input-Output Data'!$J12<'[2]Input-Output Data'!$N12,'[2]Input-Output Data'!$J12='[2]Input-Output Data'!$N12)),'[2]TABLE DATA'!M$9,IF(AND(OR($I12<'[2]TABLE DATA'!$D$7,$I12='[2]TABLE DATA'!$D$7),$J12>$N12),\"SIGN TOO WIDE\",IF(AND(AND($I12>'[2]TABLE DATA'!$D$7,OR($I12<'[2]TABLE DATA'!$D$8,$I12='[2]TABLE DATA'!$D$8)),'[2]Input-Output Data'!$J12<'[2]Input-Output Data'!$K12),'[2]TABLE DATA'!M$8,IF(AND(AND($I12>'[2]TABLE DATA'!$D$7,OR($I12<'[2]TABLE DATA'!$D$8,$I12='[2]TABLE DATA'!$D$8)),AND('[2]Input-Output Data'!$J12>'[2]Input-Output Data'!$M12,OR('[2]Input-Output Data'!$J12<'[2]Input-Output Data'!$N12,'[2]Input-Output Data'!$J12='[2]Input-Output Data'!$N12))),'[2]TABLE DATA'!M$9,IF(AND(AND($I12>'[2]TABLE DATA'!$D$7,OR($I12<'[2]TABLE DATA'!$D$8,$I12='[2]TABLE DATA'!$D$8)),$J12>'[2]Input-Output Data'!$N12),\"SIGN TOO WIDE\",IF(AND(AND($I12>'[2]TABLE DATA'!$D$8,OR($I12<'[2]TABLE DATA'!$D$9,$I12='[2]TABLE DATA'!$D$9)),'[2]Input-Output Data'!$J12<'[2]Input-Output Data'!$K12),'[2]TABLE DATA'!M$9,\"SIGN TOO WIDE\"))))))))))","v":0.5},{"$f":"IF(I12=\"Arm Too Long\", \"Reduce V or W\",IF($I12>'[2]TABLE DATA'!$D$9,\"SIGN TOO LARGE\",IF(AND(OR($I12<'[2]TABLE DATA'!$D$7,$I12='[2]TABLE DATA'!$D$7),OR('[2]Input-Output Data'!$J12<'[2]Input-Output Data'!$K12,'[2]Input-Output Data'!$J12='[2]Input-Output Data'!$K12)),'[2]TABLE DATA'!N$7,IF(AND(OR($I12<'[2]TABLE DATA'!$D$7,$I12='[2]TABLE DATA'!$D$7),AND($J12>$L12),OR('[2]Input-Output Data'!$J12<'[2]Input-Output Data'!$M12,'[2]Input-Output Data'!$J12='[2]Input-Output Data'!$M12)),'[2]TABLE DATA'!N$8,IF(AND(OR($I12<'[2]TABLE DATA'!$D$7,$I12='[2]TABLE DATA'!$D$7),AND($J12>$M12),OR('[2]Input-Output Data'!$J12<'[2]Input-Output Data'!$N12,'[2]Input-Output Data'!$J12='[2]Input-Output Data'!$N12)),'[2]TABLE DATA'!N$9,IF(AND(OR($I12<'[2]TABLE DATA'!$D$7,$I12='[2]TABLE DATA'!$D$7),$J12>$N12),\"SIGN TOO WIDE\",IF(AND(AND($I12>'[2]TABLE DATA'!$D$7,OR($I12<'[2]TABLE DATA'!$D$8,$I12='[2]TABLE DATA'!$D$8)),'[2]Input-Output Data'!$J12<'[2]Input-Output Data'!$K12),'[2]TABLE DATA'!N$8,IF(AND(AND($I12>'[2]TABLE DATA'!$D$7,OR($I12<'[2]TABLE DATA'!$D$8,$I12='[2]TABLE DATA'!$D$8)),AND('[2]Input-Output Data'!$J12>'[2]Input-Output Data'!$M12,OR('[2]Input-Output Data'!$J12<'[2]Input-Output Data'!$N12,'[2]Input-Output Data'!$J12='[2]Input-Output Data'!$N12))),'[2]TABLE DATA'!N$9,IF(AND(AND($I12>'[2]TABLE DATA'!$D$7,OR($I12<'[2]TABLE DATA'!$D$8,$I12='[2]TABLE DATA'!$D$8)),$J12>'[2]Input-Output Data'!$N12),\"SIGN TOO WIDE\",IF(AND(AND($I12>'[2]TABLE DATA'!$D$8,OR($I12<'[2]TABLE DATA'!$D$9,$I12='[2]TABLE DATA'!$D$9)),'[2]Input-Output Data'!$J12<'[2]Input-Output Data'!$K12),'[2]TABLE DATA'!N$9,\"SIGN TOO WIDE\"))))))))))","v":0.5},{"$f":"IF(I12=\"Arm Too Long\", \"Reduce V or W\",IF($I12>'[2]TABLE DATA'!$D$9,\"SIGN TOO LARGE\",IF(AND(OR($I12<'[2]TABLE DATA'!$D$7,$I12='[2]TABLE DATA'!$D$7),OR('[2]Input-Output Data'!$J12<'[2]Input-Output Data'!$K12,'[2]Input-Output Data'!$J12='[2]Input-Output Data'!$K12)),'[2]TABLE DATA'!O$7,IF(AND(OR($I12<'[2]TABLE DATA'!$D$7,$I12='[2]TABLE DATA'!$D$7),AND($J12>$L12),OR('[2]Input-Output Data'!$J12<'[2]Input-Output Data'!$M12,'[2]Input-Output Data'!$J12='[2]Input-Output Data'!$M12)),'[2]TABLE DATA'!O$8,IF(AND(OR($I12<'[2]TABLE DATA'!$D$7,$I12='[2]TABLE DATA'!$D$7),AND($J12>$M12),OR('[2]Input-Output Data'!$J12<'[2]Input-Output Data'!$N12,'[2]Input-Output Data'!$J12='[2]Input-Output Data'!$N12)),'[2]TABLE DATA'!O$9,IF(AND(OR($I12<'[2]TABLE DATA'!$D$7,$I12='[2]TABLE DATA'!$D$7),$J12>$N12),\"SIGN TOO WIDE\",IF(AND(AND($I12>'[2]TABLE DATA'!$D$7,OR($I12<'[2]TABLE DATA'!$D$8,$I12='[2]TABLE DATA'!$D$8)),'[2]Input-Output Data'!$J12<'[2]Input-Output Data'!$K12),'[2]TABLE DATA'!O$8,IF(AND(AND($I12>'[2]TABLE DATA'!$D$7,OR($I12<'[2]TABLE DATA'!$D$8,$I12='[2]TABLE DATA'!$D$8)),AND('[2]Input-Output Data'!$J12>'[2]Input-Output Data'!$M12,OR('[2]Input-Output Data'!$J12<'[2]Input-Output Data'!$N12,'[2]Input-Output Data'!$J12='[2]Input-Output Data'!$N12))),'[2]TABLE DATA'!O$9,IF(AND(AND($I12>'[2]TABLE DATA'!$D$7,OR($I12<'[2]TABLE DATA'!$D$8,$I12='[2]TABLE DATA'!$D$8)),$J12>'[2]Input-Output Data'!$N12),\"SIGN TOO WIDE\",IF(AND(AND($I12>'[2]TABLE DATA'!$D$8,OR($I12<'[2]TABLE DATA'!$D$9,$I12='[2]TABLE DATA'!$D$9)),'[2]Input-Output Data'!$J12<'[2]Input-Output Data'!$K12),'[2]TABLE DATA'!O$9,\"SIGN TOO WIDE\"))))))))))","v":0.5},{"$f":"IF(V12=0.5,\"I\",IF(V12=0.625,\"II\",IF(V12=0.75,\"III\",\"N/A\")))","v":"I"}]
[]
[null,null,null,24,12,"Square",{"$f":"Y14","v":"I"},null,{"$f":"(D14*E14+D15*E15+D16*E16)/144","v":8.19},{"$f":"MAX(IF(F14=\"Square\",2+D14/2,2+(SQRT(2)/2)*D14),IF(F15=\"Square\",2+D15/2,2+(SQRT(2)/2)*D15),IF(F16=\"Square\",2+D16/2,2+(SQRT(2)/2)*D16))","v":14},{"$f":"IF(OR(I14<'[2]TABLE DATA'!$D$7,I14='[2]TABLE DATA'!$D$7),717.75/I14,IF(AND('[2]TABLE DATA'!$D$7<I14,OR(I14<'[2]TABLE DATA'!$D$8,I14='[2]TABLE DATA'!$D$8)),1695/I14,IF(AND('[2]TABLE DATA'!$D$8<I14,OR(I14<'[2]TABLE DATA'!$D$9,I14='[2]TABLE DATA'!$D$9)),2268/I14,\"Sign Too Wide\")))","v":87.64},{"$f":"717.75/I14","v":87.64},{"$f":"1695/I14","v":206.96},{"$f":"2268/I14","v":276.92},{"$f":"IF(I5=\"Arm Too Long\", \"Reduce V or W\",IF($I14>'[2]TABLE DATA'!$D$9,\"SIGN TOO LARGE\",IF(AND(OR($I14<'[2]TABLE DATA'!$D$7,$I14='[2]TABLE DATA'!$D$7),OR('[2]Input-Output Data'!$J14<'[2]Input-Output Data'!$K14,'[2]Input-Output Data'!$J14='[2]Input-Output Data'!$K14)),'[2]TABLE DATA'!F$7,IF(AND(OR($I14<'[2]TABLE DATA'!$D$7,$I14='[2]TABLE DATA'!$D$7),AND($J14>$L14),OR('[2]Input-Output Data'!$J14<'[2]Input-Output Data'!$M14,'[2]Input-Output Data'!$J14='[2]Input-Output Data'!$M14)),'[2]TABLE DATA'!F$8,IF(AND(OR($I14<'[2]TABLE DATA'!$D$7,$I14='[2]TABLE DATA'!$D$7),AND($J14>$M14),OR('[2]Input-Output Data'!$J14<'[2]Input-Output Data'!$N14,'[2]Input-Output Data'!$J14='[2]Input-Output Data'!$N14)),'[2]TABLE DATA'!F$9,IF(AND(OR($I14<'[2]TABLE DATA'!$D$7,$I14='[2]TABLE DATA'!$D$7),$J14>$N14),\"SIGN TOO WIDE\",IF(AND(AND($I14>'[2]TABLE DATA'!$D$7,OR($I14<'[2]TABLE DATA'!$D$8,$I14='[2]TABLE DATA'!$D$8)),'[2]Input-Output Data'!$J14<'[2]Input-Output Data'!$K14),'[2]TABLE DATA'!F$8,IF(AND(AND($I14>'[2]TABLE DATA'!$D$7,OR($I14<'[2]TABLE DATA'!$D$8,$I14='[2]TABLE DATA'!$D$8)),AND('[2]Input-Output Data'!$J14>'[2]Input-Output Data'!$M14,OR('[2]Input-Output Data'!$J14<'[2]Input-Output Data'!$N14,'[2]Input-Output Data'!$J14='[2]Input-Output Data'!$N14))),'[2]TABLE DATA'!F$9,IF(AND(AND($I14>'[2]TABLE DATA'!$D$7,OR($I14<'[2]TABLE DATA'!$D$8,$I14='[2]TABLE DATA'!$D$8)),$J14>'[2]Input-Output Data'!$N14),\"SIGN TOO WIDE\",IF(AND(AND($I14>'[2]TABLE DATA'!$D$8,OR($I14<'[2]TABLE DATA'!$D$9,$I14='[2]TABLE DATA'!$D$9)),'[2]Input-Output Data'!$J14<'[2]Input-Output Data'!$K14),'[2]TABLE DATA'!F$9,\"SIGN TOO WIDE\"))))))))))","v":4},{"$f":"IF(I5=\"Arm Too Long\", \"Reduce V or W\",IF($I14>'[2]TABLE DATA'!$D$9,\"SIGN TOO LARGE\",IF(AND(OR($I14<'[2]TABLE DATA'!$D$7,$I14='[2]TABLE DATA'!$D$7),OR('[2]Input-Output Data'!$J14<'[2]Input-Output Data'!$K14,'[2]Input-Output Data'!$J14='[2]Input-Output Data'!$K14)),'[2]TABLE DATA'!G$7,IF(AND(OR($I14<'[2]TABLE DATA'!$D$7,$I14='[2]TABLE DATA'!$D$7),AND($J14>$L14),OR('[2]Input-Output Data'!$J14<'[2]Input-Output Data'!$M14,'[2]Input-Output Data'!$J14='[2]Input-Output Data'!$M14)),'[2]TABLE DATA'!G$8,IF(AND(OR($I14<'[2]TABLE DATA'!$D$7,$I14='[2]TABLE DATA'!$D$7),AND($J14>$M14),OR('[2]Input-Output Data'!$J14<'[2]Input-Output Data'!$N14,'[2]Input-Output Data'!$J14='[2]Input-Output Data'!$N14)),'[2]TABLE DATA'!G$9,IF(AND(OR($I14<'[2]TABLE DATA'!$D$7,$I14='[2]TABLE DATA'!$D$7),$J14>$N14),\"SIGN TOO WIDE\",IF(AND(AND($I14>'[2]TABLE DATA'!$D$7,OR($I14<'[2]TABLE DATA'!$D$8,$I14='[2]TABLE DATA'!$D$8)),'[2]Input-Output Data'!$J14<'[2]Input-Output Data'!$K14),'[2]TABLE DATA'!G$8,IF(AND(AND($I14>'[2]TABLE DATA'!$D$7,OR($I14<'[2]TABLE DATA'!$D$8,$I14='[2]TABLE DATA'!$D$8)),AND('[2]Input-Output Data'!$J14>'[2]Input-Output Data'!$M14,OR('[2]Input-Output Data'!$J14<'[2]Input-Output Data'!$N14,'[2]Input-Output Data'!$J14='[2]Input-Output Data'!$N14))),'[2]TABLE DATA'!G$9,IF(AND(AND($I14>'[2]TABLE DATA'!$D$7,OR($I14<'[2]TABLE DATA'!$D$8,$I14='[2]TABLE DATA'!$D$8)),$J14>'[2]Input-Output Data'!$N14),\"SIGN TOO WIDE\",IF(AND(AND($I14>'[2]TABLE DATA'!$D$8,OR($I14<'[2]TABLE DATA'!$D$9,$I14='[2]TABLE DATA'!$D$9)),'[2]Input-Output Data'!$J14<'[2]Input-Output Data'!$K14),'[2]TABLE DATA'!G$9,\"SIGN TOO WIDE\"))))))))))","v":2},{"$f":"IF(I5=\"Arm Too Long\", \"Reduce V or W\",IF($I14>'[2]TABLE DATA'!$D$9,\"SIGN TOO LARGE\",IF(AND(OR($I14<'[2]TABLE DATA'!$D$7,$I14='[2]TABLE DATA'!$D$7),OR('[2]Input-Output Data'!$J14<'[2]Input-Output Data'!$K14,'[2]Input-Output Data'!$J14='[2]Input-Output Data'!$K14)),'[2]TABLE DATA'!H$7,IF(AND(OR($I14<'[2]TABLE DATA'!$D$7,$I14='[2]TABLE DATA'!$D$7),AND($J14>$L14),OR('[2]Input-Output Data'!$J14<'[2]Input-Output Data'!$M14,'[2]Input-Output Data'!$J14='[2]Input-Output Data'!$M14)),'[2]TABLE DATA'!H$8,IF(AND(OR($I14<'[2]TABLE DATA'!$D$7,$I14='[2]TABLE DATA'!$D$7),AND($J14>$M14),OR('[2]Input-Output Data'!$J14<'[2]Input-Output Data'!$N14,'[2]Input-Output Data'!$J14='[2]Input-Output Data'!$N14)),'[2]TABLE DATA'!H$9,IF(AND(OR($I14<'[2]TABLE DATA'!$D$7,$I14='[2]TABLE DATA'!$D$7),$J14>$N14),\"SIGN TOO WIDE\",IF(AND(AND($I14>'[2]TABLE DATA'!$D$7,OR($I14<'[2]TABLE DATA'!$D$8,$I14='[2]TABLE DATA'!$D$8)),'[2]Input-Output Data'!$J14<'[2]Input-Output Data'!$K14),'[2]TABLE DATA'!H$8,IF(AND(AND($I14>'[2]TABLE DATA'!$D$7,OR($I14<'[2]TABLE DATA'!$D$8,$I14='[2]TABLE DATA'!$D$8)),AND('[2]Input-Output Data'!$J14>'[2]Input-Output Data'!$M14,OR('[2]Input-Output Data'!$J14<'[2]Input-Output Data'!$N14,'[2]Input-Output Data'!$J14='[2]Input-Output Data'!$N14))),'[2]TABLE DATA'!H$9,IF(AND(AND($I14>'[2]TABLE DATA'!$D$7,OR($I14<'[2]TABLE DATA'!$D$8,$I14='[2]TABLE DATA'!$D$8)),$J14>'[2]Input-Output Data'!$N14),\"SIGN TOO WIDE\",IF(AND(AND($I14>'[2]TABLE DATA'!$D$8,OR($I14<'[2]TABLE DATA'!$D$9,$I14='[2]TABLE DATA'!$D$9)),'[2]Input-Output Data'!$J14<'[2]Input-Output Data'!$K14),'[2]TABLE DATA'!H$9,\"SIGN TOO WIDE\"))))))))))","v":0.625},{"$f":"IF(I5=\"Arm Too Long\", \"Reduce V or W\",IF($I14>'[2]TABLE DATA'!$D$9,\"SIGN TOO LARGE\",IF(AND(OR($I14<'[2]TABLE DATA'!$D$7,$I14='[2]TABLE DATA'!$D$7),OR('[2]Input-Output Data'!$J14<'[2]Input-Output Data'!$K14,'[2]Input-Output Data'!$J14='[2]Input-Output Data'!$K14)),'[2]TABLE DATA'!I$7,IF(AND(OR($I14<'[2]TABLE DATA'!$D$7,$I14='[2]TABLE DATA'!$D$7),AND($J14>$L14),OR('[2]Input-Output Data'!$J14<'[2]Input-Output Data'!$M14,'[2]Input-Output Data'!$J14='[2]Input-Output Data'!$M14)),'[2]TABLE DATA'!I$8,IF(AND(OR($I14<'[2]TABLE DATA'!$D$7,$I14='[2]TABLE DATA'!$D$7),AND($J14>$M14),OR('[2]Input-Output Data'!$J14<'[2]Input-Output Data'!$N14,'[2]Input-Output Data'!$J14='[2]Input-Output Data'!$N14)),'[2]TABLE DATA'!I$9,IF(AND(OR($I14<'[2]TABLE DATA'!$D$7,$I14='[2]TABLE DATA'!$D$7),$J14>$N14),\"SIGN TOO WIDE\",IF(AND(AND($I14>'[2]TABLE DATA'!$D$7,OR($I14<'[2]TABLE DATA'!$D$8,$I14='[2]TABLE DATA'!$D$8)),'[2]Input-Output Data'!$J14<'[2]Input-Output Data'!$K14),'[2]TABLE DATA'!I$8,IF(AND(AND($I14>'[2]TABLE DATA'!$D$7,OR($I14<'[2]TABLE DATA'!$D$8,$I14='[2]TABLE DATA'!$D$8)),AND('[2]Input-Output Data'!$J14>'[2]Input-Output Data'!$M14,OR('[2]Input-Output Data'!$J14<'[2]Input-Output Data'!$N14,'[2]Input-Output Data'!$J14='[2]Input-Output Data'!$N14))),'[2]TABLE DATA'!I$9,IF(AND(AND($I14>'[2]TABLE DATA'!$D$7,OR($I14<'[2]TABLE DATA'!$D$8,$I14='[2]TABLE DATA'!$D$8)),$J14>'[2]Input-Output Data'!$N14),\"SIGN TOO WIDE\",IF(AND(AND($I14>'[2]TABLE DATA'!$D$8,OR($I14<'[2]TABLE DATA'!$D$9,$I14='[2]TABLE DATA'!$D$9)),'[2]Input-Output Data'!$J14<'[2]Input-Output Data'!$K14),'[2]TABLE DATA'!I$9,\"SIGN TOO WIDE\"))))))))))","v":5.625},{"$f":"IF(I5=\"Arm Too Long\", \"Reduce V or W\",IF($I14>'[2]TABLE DATA'!$D$9,\"SIGN TOO LARGE\",IF(AND(OR($I14<'[2]TABLE DATA'!$D$7,$I14='[2]TABLE DATA'!$D$7),OR('[2]Input-Output Data'!$J14<'[2]Input-Output Data'!$K14,'[2]Input-Output Data'!$J14='[2]Input-Output Data'!$K14)),'[2]TABLE DATA'!J$7,IF(AND(OR($I14<'[2]TABLE DATA'!$D$7,$I14='[2]TABLE DATA'!$D$7),AND($J14>$L14),OR('[2]Input-Output Data'!$J14<'[2]Input-Output Data'!$M14,'[2]Input-Output Data'!$J14='[2]Input-Output Data'!$M14)),'[2]TABLE DATA'!J$8,IF(AND(OR($I14<'[2]TABLE DATA'!$D$7,$I14='[2]TABLE DATA'!$D$7),AND($J14>$M14),OR('[2]Input-Output Data'!$J14<'[2]Input-Output Data'!$N14,'[2]Input-Output Data'!$J14='[2]Input-Output Data'!$N14)),'[2]TABLE DATA'!J$9,IF(AND(OR($I14<'[2]TABLE DATA'!$D$7,$I14='[2]TABLE DATA'!$D$7),$J14>$N14),\"SIGN TOO WIDE\",IF(AND(AND($I14>'[2]TABLE DATA'!$D$7,OR($I14<'[2]TABLE DATA'!$D$8,$I14='[2]TABLE DATA'!$D$8)),'[2]Input-Output Data'!$J14<'[2]Input-Output Data'!$K14),'[2]TABLE DATA'!J$8,IF(AND(AND($I14>'[2]TABLE DATA'!$D$7,OR($I14<'[2]TABLE DATA'!$D$8,$I14='[2]TABLE DATA'!$D$8)),AND('[2]Input-Output Data'!$J14>'[2]Input-Output Data'!$M14,OR('[2]Input-Output Data'!$J14<'[2]Input-Output Data'!$N14,'[2]Input-Output Data'!$J14='[2]Input-Output Data'!$N14))),'[2]TABLE DATA'!J$9,IF(AND(AND($I14>'[2]TABLE DATA'!$D$7,OR($I14<'[2]TABLE DATA'!$D$8,$I14='[2]TABLE DATA'!$D$8)),$J14>'[2]Input-Output Data'!$N14),\"SIGN TOO WIDE\",IF(AND(AND($I14>'[2]TABLE DATA'!$D$8,OR($I14<'[2]TABLE DATA'!$D$9,$I14='[2]TABLE DATA'!$D$9)),'[2]Input-Output Data'!$J14<'[2]Input-Output Data'!$K14),'[2]TABLE DATA'!J$9,\"SIGN TOO WIDE\"))))))))))","v":2},{"$f":"IF(I5=\"Arm Too Long\", \"Reduce V or W\",IF($I14>'[2]TABLE DATA'!$D$9,\"SIGN TOO LARGE\",IF(AND(OR($I14<'[2]TABLE DATA'!$D$7,$I14='[2]TABLE DATA'!$D$7),OR('[2]Input-Output Data'!$J14<'[2]Input-Output Data'!$K14,'[2]Input-Output Data'!$J14='[2]Input-Output Data'!$K14)),'[2]TABLE DATA'!K$7,IF(AND(OR($I14<'[2]TABLE DATA'!$D$7,$I14='[2]TABLE DATA'!$D$7),AND($J14>$L14),OR('[2]Input-Output Data'!$J14<'[2]Input-Output Data'!$M14,'[2]Input-Output Data'!$J14='[2]Input-Output Data'!$M14)),'[2]TABLE DATA'!K$8,IF(AND(OR($I14<'[2]TABLE DATA'!$D$7,$I14='[2]TABLE DATA'!$D$7),AND($J14>$M14),OR('[2]Input-Output Data'!$J14<'[2]Input-Output Data'!$N14,'[2]Input-Output Data'!$J14='[2]Input-Output Data'!$N14)),'[2]TABLE DATA'!K$9,IF(AND(OR($I14<'[2]TABLE DATA'!$D$7,$I14='[2]TABLE DATA'!$D$7),$J14>$N14),\"SIGN TOO WIDE\",IF(AND(AND($I14>'[2]TABLE DATA'!$D$7,OR($I14<'[2]TABLE DATA'!$D$8,$I14='[2]TABLE DATA'!$D$8)),'[2]Input-Output Data'!$J14<'[2]Input-Output Data'!$K14),'[2]TABLE DATA'!K$8,IF(AND(AND($I14>'[2]TABLE DATA'!$D$7,OR($I14<'[2]TABLE DATA'!$D$8,$I14='[2]TABLE DATA'!$D$8)),AND('[2]Input-Output Data'!$J14>'[2]Input-Output Data'!$M14,OR('[2]Input-Output Data'!$J14<'[2]Input-Output Data'!$N14,'[2]Input-Output Data'!$J14='[2]Input-Output Data'!$N14))),'[2]TABLE DATA'!K$9,IF(AND(AND($I14>'[2]TABLE DATA'!$D$7,OR($I14<'[2]TABLE DATA'!$D$8,$I14='[2]TABLE DATA'!$D$8)),$J14>'[2]Input-Output Data'!$N14),\"SIGN TOO WIDE\",IF(AND(AND($I14>'[2]TABLE DATA'!$D$8,OR($I14<'[2]TABLE DATA'!$D$9,$I14='[2]TABLE DATA'!$D$9)),'[2]Input-Output Data'!$J14<'[2]Input-Output Data'!$K14),'[2]TABLE DATA'!K$9,\"SIGN TOO WIDE\"))))))))))","v":60},{"$f":"IF(I5=\"Arm Too Long\", \"Reduce V or W\",IF($I14>'[2]TABLE DATA'!$D$9,\"SIGN TOO LARGE\",IF(AND(OR($I14<'[2]TABLE DATA'!$D$7,$I14='[2]TABLE DATA'!$D$7),OR('[2]Input-Output Data'!$J14<'[2]Input-Output Data'!$K14,'[2]Input-Output Data'!$J14='[2]Input-Output Data'!$K14)),'[2]TABLE DATA'!L$7,IF(AND(OR($I14<'[2]TABLE DATA'!$D$7,$I14='[2]TABLE DATA'!$D$7),AND($J14>$L14),OR('[2]Input-Output Data'!$J14<'[2]Input-Output Data'!$M14,'[2]Input-Output Data'!$J14='[2]Input-Output Data'!$M14)),'[2]TABLE DATA'!L$8,IF(AND(OR($I14<'[2]TABLE DATA'!$D$7,$I14='[2]TABLE DATA'!$D$7),AND($J14>$M14),OR('[2]Input-Output Data'!$J14<'[2]Input-Output Data'!$N14,'[2]Input-Output Data'!$J14='[2]Input-Output Data'!$N14)),'[2]TABLE DATA'!L$9,IF(AND(OR($I14<'[2]TABLE DATA'!$D$7,$I14='[2]TABLE DATA'!$D$7),$J14>$N14),\"SIGN TOO WIDE\",IF(AND(AND($I14>'[2]TABLE DATA'!$D$7,OR($I14<'[2]TABLE DATA'!$D$8,$I14='[2]TABLE DATA'!$D$8)),'[2]Input-Output Data'!$J14<'[2]Input-Output Data'!$K14),'[2]TABLE DATA'!L$8,IF(AND(AND($I14>'[2]TABLE DATA'!$D$7,OR($I14<'[2]TABLE DATA'!$D$8,$I14='[2]TABLE DATA'!$D$8)),AND('[2]Input-Output Data'!$J14>'[2]Input-Output Data'!$M14,OR('[2]Input-Output Data'!$J14<'[2]Input-Output Data'!$N14,'[2]Input-Output Data'!$J14='[2]Input-Output Data'!$N14))),'[2]TABLE DATA'!L$9,IF(AND(AND($I14>'[2]TABLE DATA'!$D$7,OR($I14<'[2]TABLE DATA'!$D$8,$I14='[2]TABLE DATA'!$D$8)),$J14>'[2]Input-Output Data'!$N14),\"SIGN TOO WIDE\",IF(AND(AND($I14>'[2]TABLE DATA'!$D$8,OR($I14<'[2]TABLE DATA'!$D$9,$I14='[2]TABLE DATA'!$D$9)),'[2]Input-Output Data'!$J14<'[2]Input-Output Data'!$K14),'[2]TABLE DATA'!L$9,\"SIGN TOO WIDE\"))))))))))","v":7.4},{"$f":"IF(I5=\"Arm Too Long\", \"Reduce V or W\",IF($I14>'[2]TABLE DATA'!$D$9,\"SIGN TOO LARGE\",IF(AND(OR($I14<'[2]TABLE DATA'!$D$7,$I14='[2]TABLE DATA'!$D$7),OR('[2]Input-Output Data'!$J14<'[2]Input-Output Data'!$K14,'[2]Input-Output Data'!$J14='[2]Input-Output Data'!$K14)),'[2]TABLE DATA'!M$7,IF(AND(OR($I14<'[2]TABLE DATA'!$D$7,$I14='[2]TABLE DATA'!$D$7),AND($J14>$L14),OR('[2]Input-Output Data'!$J14<'[2]Input-Output Data'!$M14,'[2]Input-Output Data'!$J14='[2]Input-Output Data'!$M14)),'[2]TABLE DATA'!M$8,IF(AND(OR($I14<'[2]TABLE DATA'!$D$7,$I14='[2]TABLE DATA'!$D$7),AND($J14>$M14),OR('[2]Input-Output Data'!$J14<'[2]Input-Output Data'!$N14,'[2]Input-Output Data'!$J14='[2]Input-Output Data'!$N14)),'[2]TABLE DATA'!M$9,IF(AND(OR($I14<'[2]TABLE DATA'!$D$7,$I14='[2]TABLE DATA'!$D$7),$J14>$N14),\"SIGN TOO WIDE\",IF(AND(AND($I14>'[2]TABLE DATA'!$D$7,OR($I14<'[2]TABLE DATA'!$D$8,$I14='[2]TABLE DATA'!$D$8)),'[2]Input-Output Data'!$J14<'[2]Input-Output Data'!$K14),'[2]TABLE DATA'!M$8,IF(AND(AND($I14>'[2]TABLE DATA'!$D$7,OR($I14<'[2]TABLE DATA'!$D$8,$I14='[2]TABLE DATA'!$D$8)),AND('[2]Input-Output Data'!$J14>'[2]Input-Output Data'!$M14,OR('[2]Input-Output Data'!$J14<'[2]Input-Output Data'!$N14,'[2]Input-Output Data'!$J14='[2]Input-Output Data'!$N14))),'[2]TABLE DATA'!M$9,IF(AND(AND($I14>'[2]TABLE DATA'!$D$7,OR($I14<'[2]TABLE DATA'!$D$8,$I14='[2]TABLE DATA'!$D$8)),$J14>'[2]Input-Output Data'!$N14),\"SIGN TOO WIDE\",IF(AND(AND($I14>'[2]TABLE DATA'!$D$8,OR($I14<'[2]TABLE DATA'!$D$9,$I14='[2]TABLE DATA'!$D$9)),'[2]Input-Output Data'!$J14<'[2]Input-Output Data'!$K14),'[2]TABLE DATA'!M$9,\"SIGN TOO WIDE\"))))))))))","v":0.5},{"$f":"IF(I5=\"Arm Too Long\", \"Reduce V or W\",IF($I14>'[2]TABLE DATA'!$D$9,\"SIGN TOO LARGE\",IF(AND(OR($I14<'[2]TABLE DATA'!$D$7,$I14='[2]TABLE DATA'!$D$7),OR('[2]Input-Output Data'!$J14<'[2]Input-Output Data'!$K14,'[2]Input-Output Data'!$J14='[2]Input-Output Data'!$K14)),'[2]TABLE DATA'!N$7,IF(AND(OR($I14<'[2]TABLE DATA'!$D$7,$I14='[2]TABLE DATA'!$D$7),AND($J14>$L14),OR('[2]Input-Output Data'!$J14<'[2]Input-Output Data'!$M14,'[2]Input-Output Data'!$J14='[2]Input-Output Data'!$M14)),'[2]TABLE DATA'!N$8,IF(AND(OR($I14<'[2]TABLE DATA'!$D$7,$I14='[2]TABLE DATA'!$D$7),AND($J14>$M14),OR('[2]Input-Output Data'!$J14<'[2]Input-Output Data'!$N14,'[2]Input-Output Data'!$J14='[2]Input-Output Data'!$N14)),'[2]TABLE DATA'!N$9,IF(AND(OR($I14<'[2]TABLE DATA'!$D$7,$I14='[2]TABLE DATA'!$D$7),$J14>$N14),\"SIGN TOO WIDE\",IF(AND(AND($I14>'[2]TABLE DATA'!$D$7,OR($I14<'[2]TABLE DATA'!$D$8,$I14='[2]TABLE DATA'!$D$8)),'[2]Input-Output Data'!$J14<'[2]Input-Output Data'!$K14),'[2]TABLE DATA'!N$8,IF(AND(AND($I14>'[2]TABLE DATA'!$D$7,OR($I14<'[2]TABLE DATA'!$D$8,$I14='[2]TABLE DATA'!$D$8)),AND('[2]Input-Output Data'!$J14>'[2]Input-Output Data'!$M14,OR('[2]Input-Output Data'!$J14<'[2]Input-Output Data'!$N14,'[2]Input-Output Data'!$J14='[2]Input-Output Data'!$N14))),'[2]TABLE DATA'!N$9,IF(AND(AND($I14>'[2]TABLE DATA'!$D$7,OR($I14<'[2]TABLE DATA'!$D$8,$I14='[2]TABLE DATA'!$D$8)),$J14>'[2]Input-Output Data'!$N14),\"SIGN TOO WIDE\",IF(AND(AND($I14>'[2]TABLE DATA'!$D$8,OR($I14<'[2]TABLE DATA'!$D$9,$I14='[2]TABLE DATA'!$D$9)),'[2]Input-Output Data'!$J14<'[2]Input-Output Data'!$K14),'[2]TABLE DATA'!N$9,\"SIGN TOO WIDE\"))))))))))","v":0.5},{"$f":"IF(I5=\"Arm Too Long\", \"Reduce V or W\",IF($I14>'[2]TABLE DATA'!$D$9,\"SIGN TOO LARGE\",IF(AND(OR($I14<'[2]TABLE DATA'!$D$7,$I14='[2]TABLE DATA'!$D$7),OR('[2]Input-Output Data'!$J14<'[2]Input-Output Data'!$K14,'[2]Input-Output Data'!$J14='[2]Input-Output Data'!$K14)),'[2]TABLE DATA'!O$7,IF(AND(OR($I14<'[2]TABLE DATA'!$D$7,$I14='[2]TABLE DATA'!$D$7),AND($J14>$L14),OR('[2]Input-Output Data'!$J14<'[2]Input-Output Data'!$M14,'[2]Input-Output Data'!$J14='[2]Input-Output Data'!$M14)),'[2]TABLE DATA'!O$8,IF(AND(OR($I14<'[2]TABLE DATA'!$D$7,$I14='[2]TABLE DATA'!$D$7),AND($J14>$M14),OR('[2]Input-Output Data'!$J14<'[2]Input-Output Data'!$N14,'[2]Input-Output Data'!$J14='[2]Input-Output Data'!$N14)),'[2]TABLE DATA'!O$9,IF(AND(OR($I14<'[2]TABLE DATA'!$D$7,$I14='[2]TABLE DATA'!$D$7),$J14>$N14),\"SIGN TOO WIDE\",IF(AND(AND($I14>'[2]TABLE DATA'!$D$7,OR($I14<'[2]TABLE DATA'!$D$8,$I14='[2]TABLE DATA'!$D$8)),'[2]Input-Output Data'!$J14<'[2]Input-Output Data'!$K14),'[2]TABLE DATA'!O$8,IF(AND(AND($I14>'[2]TABLE DATA'!$D$7,OR($I14<'[2]TABLE DATA'!$D$8,$I14='[2]TABLE DATA'!$D$8)),AND('[2]Input-Output Data'!$J14>'[2]Input-Output Data'!$M14,OR('[2]Input-Output Data'!$J14<'[2]Input-Output Data'!$N14,'[2]Input-Output Data'!$J14='[2]Input-Output Data'!$N14))),'[2]TABLE DATA'!O$9,IF(AND(AND($I14>'[2]TABLE DATA'!$D$7,OR($I14<'[2]TABLE DATA'!$D$8,$I14='[2]TABLE DATA'!$D$8)),$J14>'[2]Input-Output Data'!$N14),\"SIGN TOO WIDE\",IF(AND(AND($I14>'[2]TABLE DATA'!$D$8,OR($I14<'[2]TABLE DATA'!$D$9,$I14='[2]TABLE DATA'!$D$9)),'[2]Input-Output Data'!$J14<'[2]Input-Output Data'!$K14),'[2]TABLE DATA'!O$9,\"SIGN TOO WIDE\"))))))))))","v":0.5},{"$f":"IF(V14=0.5,\"I\",IF(V14=0.625,\"II\",IF(V14=0.75,\"III\",\"N/A\")))","v":"I"}]
[null,null,null,24,24,"Square"]
[null,null,null,21,15,"Square"]
[]
[null,null,null,48,48,"Square",{"$f":"Y18","v":"I"},null,{"$f":"(D18*E18+D19*E19)/144","v":20},{"$f":"MAX(IF(F18=\"Square\",2+D18/2,2+(SQRT(2)/2)*D18),IF(F19=\"Square\",2+D19/2,2+(SQRT(2)/2)*D19))","v":26},{"$f":"IF(OR(I18<'[2]TABLE DATA'!$D$7,I18='[2]TABLE DATA'!$D$7),717.75/I18,IF(AND('[2]TABLE DATA'!$D$7<I18,OR(I18<'[2]TABLE DATA'!$D$8,I18='[2]TABLE DATA'!$D$8)),1695/I18,IF(AND('[2]TABLE DATA'!$D$8<I18,OR(I18<'[2]TABLE DATA'!$D$9,I18='[2]TABLE DATA'!$D$9)),2268/I18,\"Sign Too Wide\")))","v":35.89},{"$f":"717.75/I18","v":35.89},{"$f":"1695/I18","v":84.75},{"$f":"2268/I18","v":113.4},{"$f":"IF(I5=\"Arm Too Long\", \"Reduce V or W\",IF($I18>'[2]TABLE DATA'!$D$9,\"SIGN TOO LARGE\",IF(AND(OR($I18<'[2]TABLE DATA'!$D$7,$I18='[2]TABLE DATA'!$D$7),OR('[2]Input-Output Data'!$J18<'[2]Input-Output Data'!$K18,'[2]Input-Output Data'!$J18='[2]Input-Output Data'!$K18)),'[2]TABLE DATA'!F$7,IF(AND(OR($I18<'[2]TABLE DATA'!$D$7,$I18='[2]TABLE DATA'!$D$7),AND($J18>$L18),OR('[2]Input-Output Data'!$J18<'[2]Input-Output Data'!$M18,'[2]Input-Output Data'!$J18='[2]Input-Output Data'!$M18)),'[2]TABLE DATA'!F$8,IF(AND(OR($I18<'[2]TABLE DATA'!$D$7,$I18='[2]TABLE DATA'!$D$7),AND($J18>$M18),OR('[2]Input-Output Data'!$J18<'[2]Input-Output Data'!$N18,'[2]Input-Output Data'!$J18='[2]Input-Output Data'!$N18)),'[2]TABLE DATA'!F$9,IF(AND(OR($I18<'[2]TABLE DATA'!$D$7,$I18='[2]TABLE DATA'!$D$7),$J18>$N18),\"SIGN TOO WIDE\",IF(AND(AND($I18>'[2]TABLE DATA'!$D$7,OR($I18<'[2]TABLE DATA'!$D$8,$I18='[2]TABLE DATA'!$D$8)),'[2]Input-Output Data'!$J18<'[2]Input-Output Data'!$K18),'[2]TABLE DATA'!F$8,IF(AND(AND($I18>'[2]TABLE DATA'!$D$7,OR($I18<'[2]TABLE DATA'!$D$8,$I18='[2]TABLE DATA'!$D$8)),AND('[2]Input-Output Data'!$J18>'[2]Input-Output Data'!$M18,OR('[2]Input-Output Data'!$J18<'[2]Input-Output Data'!$N18,'[2]Input-Output Data'!$J18='[2]Input-Output Data'!$N18))),'[2]TABLE DATA'!F$9,IF(AND(AND($I18>'[2]TABLE DATA'!$D$7,OR($I18<'[2]TABLE DATA'!$D$8,$I18='[2]TABLE DATA'!$D$8)),$J18>'[2]Input-Output Data'!$N18),\"SIGN TOO WIDE\",IF(AND(AND($I18>'[2]TABLE DATA'!$D$8,OR($I18<'[2]TABLE DATA'!$D$9,$I18='[2]TABLE DATA'!$D$9)),'[2]Input-Output Data'!$J18<'[2]Input-Output Data'!$K18),'[2]TABLE DATA'!F$9,\"SIGN TOO WIDE\"))))))))))","v":4},{"$f":"IF(I5=\"Arm Too Long\", \"Reduce V or W\",IF($I18>'[2]TABLE DATA'!$D$9,\"SIGN TOO LARGE\",IF(AND(OR($I18<'[2]TABLE DATA'!$D$7,$I18='[2]TABLE DATA'!$D$7),OR('[2]Input-Output Data'!$J18<'[2]Input-Output Data'!$K18,'[2]Input-Output Data'!$J18='[2]Input-Output Data'!$K18)),'[2]TABLE DATA'!G$7,IF(AND(OR($I18<'[2]TABLE DATA'!$D$7,$I18='[2]TABLE DATA'!$D$7),AND($J18>$L18),OR('[2]Input-Output Data'!$J18<'[2]Input-Output Data'!$M18,'[2]Input-Output Data'!$J18='[2]Input-Output Data'!$M18)),'[2]TABLE DATA'!G$8,IF(AND(OR($I18<'[2]TABLE DATA'!$D$7,$I18='[2]TABLE DATA'!$D$7),AND($J18>$M18),OR('[2]Input-Output Data'!$J18<'[2]Input-Output Data'!$N18,'[2]Input-Output Data'!$J18='[2]Input-Output Data'!$N18)),'[2]TABLE DATA'!G$9,IF(AND(OR($I18<'[2]TABLE DATA'!$D$7,$I18='[2]TABLE DATA'!$D$7),$J18>$N18),\"SIGN TOO WIDE\",IF(AND(AND($I18>'[2]TABLE DATA'!$D$7,OR($I18<'[2]TABLE DATA'!$D$8,$I18='[2]TABLE DATA'!$D$8)),'[2]Input-Output Data'!$J18<'[2]Input-Output Data'!$K18),'[2]TABLE DATA'!G$8,IF(AND(AND($I18>'[2]TABLE DATA'!$D$7,OR($I18<'[2]TABLE DATA'!$D$8,$I18='[2]TABLE DATA'!$D$8)),AND('[2]Input-Output Data'!$J18>'[2]Input-Output Data'!$M18,OR('[2]Input-Output Data'!$J18<'[2]Input-Output Data'!$N18,'[2]Input-Output Data'!$J18='[2]Input-Output Data'!$N18))),'[2]TABLE DATA'!G$9,IF(AND(AND($I18>'[2]TABLE DATA'!$D$7,OR($I18<'[2]TABLE DATA'!$D$8,$I18='[2]TABLE DATA'!$D$8)),$J18>'[2]Input-Output Data'!$N18),\"SIGN TOO WIDE\",IF(AND(AND($I18>'[2]TABLE DATA'!$D$8,OR($I18<'[2]TABLE DATA'!$D$9,$I18='[2]TABLE DATA'!$D$9)),'[2]Input-Output Data'!$J18<'[2]Input-Output Data'!$K18),'[2]TABLE DATA'!G$9,\"SIGN TOO WIDE\"))))))))))","v":2},{"$f":"IF(I5=\"Arm Too Long\", \"Reduce V or W\",IF($I18>'[2]TABLE DATA'!$D$9,\"SIGN TOO LARGE\",IF(AND(OR($I18<'[2]TABLE DATA'!$D$7,$I18='[2]TABLE DATA'!$D$7),OR('[2]Input-Output Data'!$J18<'[2]Input-Output Data'!$K18,'[2]Input-Output Data'!$J18='[2]Input-Output Data'!$K18)),'[2]TABLE DATA'!H$7,IF(AND(OR($I18<'[2]TABLE DATA'!$D$7,$I18='[2]TABLE DATA'!$D$7),AND($J18>$L18),OR('[2]Input-Output Data'!$J18<'[2]Input-Output Data'!$M18,'[2]Input-Output Data'!$J18='[2]Input-Output Data'!$M18)),'[2]TABLE DATA'!H$8,IF(AND(OR($I18<'[2]TABLE DATA'!$D$7,$I18='[2]TABLE DATA'!$D$7),AND($J18>$M18),OR('[2]Input-Output Data'!$J18<'[2]Input-Output Data'!$N18,'[2]Input-Output Data'!$J18='[2]Input-Output Data'!$N18)),'[2]TABLE DATA'!H$9,IF(AND(OR($I18<'[2]TABLE DATA'!$D$7,$I18='[2]TABLE DATA'!$D$7),$J18>$N18),\"SIGN TOO WIDE\",IF(AND(AND($I18>'[2]TABLE DATA'!$D$7,OR($I18<'[2]TABLE DATA'!$D$8,$I18='[2]TABLE DATA'!$D$8)),'[2]Input-Output Data'!$J18<'[2]Input-Output Data'!$K18),'[2]TABLE DATA'!H$8,IF(AND(AND($I18>'[2]TABLE DATA'!$D$7,OR($I18<'[2]TABLE DATA'!$D$8,$I18='[2]TABLE DATA'!$D$8)),AND('[2]Input-Output Data'!$J18>'[2]Input-Output Data'!$M18,OR('[2]Input-Output Data'!$J18<'[2]Input-Output Data'!$N18,'[2]Input-Output Data'!$J18='[2]Input-Output Data'!$N18))),'[2]TABLE DATA'!H$9,IF(AND(AND($I18>'[2]TABLE DATA'!$D$7,OR($I18<'[2]TABLE DATA'!$D$8,$I18='[2]TABLE DATA'!$D$8)),$J18>'[2]Input-Output Data'!$N18),\"SIGN TOO WIDE\",IF(AND(AND($I18>'[2]TABLE DATA'!$D$8,OR($I18<'[2]TABLE DATA'!$D$9,$I18='[2]TABLE DATA'!$D$9)),'[2]Input-Output Data'!$J18<'[2]Input-Output Data'!$K18),'[2]TABLE DATA'!H$9,\"SIGN TOO WIDE\"))))))))))","v":0.625},{"$f":"IF(I5=\"Arm Too Long\", \"Reduce V or W\",IF($I18>'[2]TABLE DATA'!$D$9,\"SIGN TOO LARGE\",IF(AND(OR($I18<'[2]TABLE DATA'!$D$7,$I18='[2]TABLE DATA'!$D$7),OR('[2]Input-Output Data'!$J18<'[2]Input-Output Data'!$K18,'[2]Input-Output Data'!$J18='[2]Input-Output Data'!$K18)),'[2]TABLE DATA'!I$7,IF(AND(OR($I18<'[2]TABLE DATA'!$D$7,$I18='[2]TABLE DATA'!$D$7),AND($J18>$L18),OR('[2]Input-Output Data'!$J18<'[2]Input-Output Data'!$M18,'[2]Input-Output Data'!$J18='[2]Input-Output Data'!$M18)),'[2]TABLE DATA'!I$8,IF(AND(OR($I18<'[2]TABLE DATA'!$D$7,$I18='[2]TABLE DATA'!$D$7),AND($J18>$M18),OR('[2]Input-Output Data'!$J18<'[2]Input-Output Data'!$N18,'[2]Input-Output Data'!$J18='[2]Input-Output Data'!$N18)),'[2]TABLE DATA'!I$9,IF(AND(OR($I18<'[2]TABLE DATA'!$D$7,$I18='[2]TABLE DATA'!$D$7),$J18>$N18),\"SIGN TOO WIDE\",IF(AND(AND($I18>'[2]TABLE DATA'!$D$7,OR($I18<'[2]TABLE DATA'!$D$8,$I18='[2]TABLE DATA'!$D$8)),'[2]Input-Output Data'!$J18<'[2]Input-Output Data'!$K18),'[2]TABLE DATA'!I$8,IF(AND(AND($I18>'[2]TABLE DATA'!$D$7,OR($I18<'[2]TABLE DATA'!$D$8,$I18='[2]TABLE DATA'!$D$8)),AND('[2]Input-Output Data'!$J18>'[2]Input-Output Data'!$M18,OR('[2]Input-Output Data'!$J18<'[2]Input-Output Data'!$N18,'[2]Input-Output Data'!$J18='[2]Input-Output Data'!$N18))),'[2]TABLE DATA'!I$9,IF(AND(AND($I18>'[2]TABLE DATA'!$D$7,OR($I18<'[2]TABLE DATA'!$D$8,$I18='[2]TABLE DATA'!$D$8)),$J18>'[2]Input-Output Data'!$N18),\"SIGN TOO WIDE\",IF(AND(AND($I18>'[2]TABLE DATA'!$D$8,OR($I18<'[2]TABLE DATA'!$D$9,$I18='[2]TABLE DATA'!$D$9)),'[2]Input-Output Data'!$J18<'[2]Input-Output Data'!$K18),'[2]TABLE DATA'!I$9,\"SIGN TOO WIDE\"))))))))))","v":5.625},{"$f":"IF(I5=\"Arm Too Long\", \"Reduce V or W\",IF($I18>'[2]TABLE DATA'!$D$9,\"SIGN TOO LARGE\",IF(AND(OR($I18<'[2]TABLE DATA'!$D$7,$I18='[2]TABLE DATA'!$D$7),OR('[2]Input-Output Data'!$J18<'[2]Input-Output Data'!$K18,'[2]Input-Output Data'!$J18='[2]Input-Output Data'!$K18)),'[2]TABLE DATA'!J$7,IF(AND(OR($I18<'[2]TABLE DATA'!$D$7,$I18='[2]TABLE DATA'!$D$7),AND($J18>$L18),OR('[2]Input-Output Data'!$J18<'[2]Input-Output Data'!$M18,'[2]Input-Output Data'!$J18='[2]Input-Output Data'!$M18)),'[2]TABLE DATA'!J$8,IF(AND(OR($I18<'[2]TABLE DATA'!$D$7,$I18='[2]TABLE DATA'!$D$7),AND($J18>$M18),OR('[2]Input-Output Data'!$J18<'[2]Input-Output Data'!$N18,'[2]Input-Output Data'!$J18='[2]Input-Output Data'!$N18)),'[2]TABLE DATA'!J$9,IF(AND(OR($I18<'[2]TABLE DATA'!$D$7,$I18='[2]TABLE DATA'!$D$7),$J18>$N18),\"SIGN TOO WIDE\",IF(AND(AND($I18>'[2]TABLE DATA'!$D$7,OR($I18<'[2]TABLE DATA'!$D$8,$I18='[2]TABLE DATA'!$D$8)),'[2]Input-Output Data'!$J18<'[2]Input-Output Data'!$K18),'[2]TABLE DATA'!J$8,IF(AND(AND($I18>'[2]TABLE DATA'!$D$7,OR($I18<'[2]TABLE DATA'!$D$8,$I18='[2]TABLE DATA'!$D$8)),AND('[2]Input-Output Data'!$J18>'[2]Input-Output Data'!$M18,OR('[2]Input-Output Data'!$J18<'[2]Input-Output Data'!$N18,'[2]Input-Output Data'!$J18='[2]Input-Output Data'!$N18))),'[2]TABLE DATA'!J$9,IF(AND(AND($I18>'[2]TABLE DATA'!$D$7,OR($I18<'[2]TABLE DATA'!$D$8,$I18='[2]TABLE DATA'!$D$8)),$J18>'[2]Input-Output Data'!$N18),\"SIGN TOO WIDE\",IF(AND(AND($I18>'[2]TABLE DATA'!$D$8,OR($I18<'[2]TABLE DATA'!$D$9,$I18='[2]TABLE DATA'!$D$9)),'[2]Input-Output Data'!$J18<'[2]Input-Output Data'!$K18),'[2]TABLE DATA'!J$9,\"SIGN TOO WIDE\"))))))))))","v":2},{"$f":"IF(I5=\"Arm Too Long\", \"Reduce V or W\",IF($I18>'[2]TABLE DATA'!$D$9,\"SIGN TOO LARGE\",IF(AND(OR($I18<'[2]TABLE DATA'!$D$7,$I18='[2]TABLE DATA'!$D$7),OR('[2]Input-Output Data'!$J18<'[2]Input-Output Data'!$K18,'[2]Input-Output Data'!$J18='[2]Input-Output Data'!$K18)),'[2]TABLE DATA'!K$7,IF(AND(OR($I18<'[2]TABLE DATA'!$D$7,$I18='[2]TABLE DATA'!$D$7),AND($J18>$L18),OR('[2]Input-Output Data'!$J18<'[2]Input-Output Data'!$M18,'[2]Input-Output Data'!$J18='[2]Input-Output Data'!$M18)),'[2]TABLE DATA'!K$8,IF(AND(OR($I18<'[2]TABLE DATA'!$D$7,$I18='[2]TABLE DATA'!$D$7),AND($J18>$M18),OR('[2]Input-Output Data'!$J18<'[2]Input-Output Data'!$N18,'[2]Input-Output Data'!$J18='[2]Input-Output Data'!$N18)),'[2]TABLE DATA'!K$9,IF(AND(OR($I18<'[2]TABLE DATA'!$D$7,$I18='[2]TABLE DATA'!$D$7),$J18>$N18),\"SIGN TOO WIDE\",IF(AND(AND($I18>'[2]TABLE DATA'!$D$7,OR($I18<'[2]TABLE DATA'!$D$8,$I18='[2]TABLE DATA'!$D$8)),'[2]Input-Output Data'!$J18<'[2]Input-Output Data'!$K18),'[2]TABLE DATA'!K$8,IF(AND(AND($I18>'[2]TABLE DATA'!$D$7,OR($I18<'[2]TABLE DATA'!$D$8,$I18='[2]TABLE DATA'!$D$8)),AND('[2]Input-Output Data'!$J18>'[2]Input-Output Data'!$M18,OR('[2]Input-Output Data'!$J18<'[2]Input-Output Data'!$N18,'[2]Input-Output Data'!$J18='[2]Input-Output Data'!$N18))),'[2]TABLE DATA'!K$9,IF(AND(AND($I18>'[2]TABLE DATA'!$D$7,OR($I18<'[2]TABLE DATA'!$D$8,$I18='[2]TABLE DATA'!$D$8)),$J18>'[2]Input-Output Data'!$N18),\"SIGN TOO WIDE\",IF(AND(AND($I18>'[2]TABLE DATA'!$D$8,OR($I18<'[2]TABLE DATA'!$D$9,$I18='[2]TABLE DATA'!$D$9)),'[2]Input-Output Data'!$J18<'[2]Input-Output Data'!$K18),'[2]TABLE DATA'!K$9,\"SIGN TOO WIDE\"))))))))))","v":60},{"$f":"IF(I5=\"Arm Too Long\", \"Reduce V or W\",IF($I18>'[2]TABLE DATA'!$D$9,\"SIGN TOO LARGE\",IF(AND(OR($I18<'[2]TABLE DATA'!$D$7,$I18='[2]TABLE DATA'!$D$7),OR('[2]Input-Output Data'!$J18<'[2]Input-Output Data'!$K18,'[2]Input-Output Data'!$J18='[2]Input-Output Data'!$K18)),'[2]TABLE DATA'!L$7,IF(AND(OR($I18<'[2]TABLE DATA'!$D$7,$I18='[2]TABLE DATA'!$D$7),AND($J18>$L18),OR('[2]Input-Output Data'!$J18<'[2]Input-Output Data'!$M18,'[2]Input-Output Data'!$J18='[2]Input-Output Data'!$M18)),'[2]TABLE DATA'!L$8,IF(AND(OR($I18<'[2]TABLE DATA'!$D$7,$I18='[2]TABLE DATA'!$D$7),AND($J18>$M18),OR('[2]Input-Output Data'!$J18<'[2]Input-Output Data'!$N18,'[2]Input-Output Data'!$J18='[2]Input-Output Data'!$N18)),'[2]TABLE DATA'!L$9,IF(AND(OR($I18<'[2]TABLE DATA'!$D$7,$I18='[2]TABLE DATA'!$D$7),$J18>$N18),\"SIGN TOO WIDE\",IF(AND(AND($I18>'[2]TABLE DATA'!$D$7,OR($I18<'[2]TABLE DATA'!$D$8,$I18='[2]TABLE DATA'!$D$8)),'[2]Input-Output Data'!$J18<'[2]Input-Output Data'!$K18),'[2]TABLE DATA'!L$8,IF(AND(AND($I18>'[2]TABLE DATA'!$D$7,OR($I18<'[2]TABLE DATA'!$D$8,$I18='[2]TABLE DATA'!$D$8)),AND('[2]Input-Output Data'!$J18>'[2]Input-Output Data'!$M18,OR('[2]Input-Output Data'!$J18<'[2]Input-Output Data'!$N18,'[2]Input-Output Data'!$J18='[2]Input-Output Data'!$N18))),'[2]TABLE DATA'!L$9,IF(AND(AND($I18>'[2]TABLE DATA'!$D$7,OR($I18<'[2]TABLE DATA'!$D$8,$I18='[2]TABLE DATA'!$D$8)),$J18>'[2]Input-Output Data'!$N18),\"SIGN TOO WIDE\",IF(AND(AND($I18>'[2]TABLE DATA'!$D$8,OR($I18<'[2]TABLE DATA'!$D$9,$I18='[2]TABLE DATA'!$D$9)),'[2]Input-Output Data'!$J18<'[2]Input-Output Data'!$K18),'[2]TABLE DATA'!L$9,\"SIGN TOO WIDE\"))))))))))","v":7.4},{"$f":"IF(I5=\"Arm Too Long\", \"Reduce V or W\",IF($I18>'[2]TABLE DATA'!$D$9,\"SIGN TOO LARGE\",IF(AND(OR($I18<'[2]TABLE DATA'!$D$7,$I18='[2]TABLE DATA'!$D$7),OR('[2]Input-Output Data'!$J18<'[2]Input-Output Data'!$K18,'[2]Input-Output Data'!$J18='[2]Input-Output Data'!$K18)),'[2]TABLE DATA'!M$7,IF(AND(OR($I18<'[2]TABLE DATA'!$D$7,$I18='[2]TABLE DATA'!$D$7),AND($J18>$L18),OR('[2]Input-Output Data'!$J18<'[2]Input-Output Data'!$M18,'[2]Input-Output Data'!$J18='[2]Input-Output Data'!$M18)),'[2]TABLE DATA'!M$8,IF(AND(OR($I18<'[2]TABLE DATA'!$D$7,$I18='[2]TABLE DATA'!$D$7),AND($J18>$M18),OR('[2]Input-Output Data'!$J18<'[2]Input-Output Data'!$N18,'[2]Input-Output Data'!$J18='[2]Input-Output Data'!$N18)),'[2]TABLE DATA'!M$9,IF(AND(OR($I18<'[2]TABLE DATA'!$D$7,$I18='[2]TABLE DATA'!$D$7),$J18>$N18),\"SIGN TOO WIDE\",IF(AND(AND($I18>'[2]TABLE DATA'!$D$7,OR($I18<'[2]TABLE DATA'!$D$8,$I18='[2]TABLE DATA'!$D$8)),'[2]Input-Output Data'!$J18<'[2]Input-Output Data'!$K18),'[2]TABLE DATA'!M$8,IF(AND(AND($I18>'[2]TABLE DATA'!$D$7,OR($I18<'[2]TABLE DATA'!$D$8,$I18='[2]TABLE DATA'!$D$8)),AND('[2]Input-Output Data'!$J18>'[2]Input-Output Data'!$M18,OR('[2]Input-Output Data'!$J18<'[2]Input-Output Data'!$N18,'[2]Input-Output Data'!$J18='[2]Input-Output Data'!$N18))),'[2]TABLE DATA'!M$9,IF(AND(AND($I18>'[2]TABLE DATA'!$D$7,OR($I18<'[2]TABLE DATA'!$D$8,$I18='[2]TABLE DATA'!$D$8)),$J18>'[2]Input-Output Data'!$N18),\"SIGN TOO WIDE\",IF(AND(AND($I18>'[2]TABLE DATA'!$D$8,OR($I18<'[2]TABLE DATA'!$D$9,$I18='[2]TABLE DATA'!$D$9)),'[2]Input-Output Data'!$J18<'[2]Input-Output Data'!$K18),'[2]TABLE DATA'!M$9,\"SIGN TOO WIDE\"))))))))))","v":0.5},{"$f":"IF(I5=\"Arm Too Long\", \"Reduce V or W\",IF($I18>'[2]TABLE DATA'!$D$9,\"SIGN TOO LARGE\",IF(AND(OR($I18<'[2]TABLE DATA'!$D$7,$I18='[2]TABLE DATA'!$D$7),OR('[2]Input-Output Data'!$J18<'[2]Input-Output Data'!$K18,'[2]Input-Output Data'!$J18='[2]Input-Output Data'!$K18)),'[2]TABLE DATA'!N$7,IF(AND(OR($I18<'[2]TABLE DATA'!$D$7,$I18='[2]TABLE DATA'!$D$7),AND($J18>$L18),OR('[2]Input-Output Data'!$J18<'[2]Input-Output Data'!$M18,'[2]Input-Output Data'!$J18='[2]Input-Output Data'!$M18)),'[2]TABLE DATA'!N$8,IF(AND(OR($I18<'[2]TABLE DATA'!$D$7,$I18='[2]TABLE DATA'!$D$7),AND($J18>$M18),OR('[2]Input-Output Data'!$J18<'[2]Input-Output Data'!$N18,'[2]Input-Output Data'!$J18='[2]Input-Output Data'!$N18)),'[2]TABLE DATA'!N$9,IF(AND(OR($I18<'[2]TABLE DATA'!$D$7,$I18='[2]TABLE DATA'!$D$7),$J18>$N18),\"SIGN TOO WIDE\",IF(AND(AND($I18>'[2]TABLE DATA'!$D$7,OR($I18<'[2]TABLE DATA'!$D$8,$I18='[2]TABLE DATA'!$D$8)),'[2]Input-Output Data'!$J18<'[2]Input-Output Data'!$K18),'[2]TABLE DATA'!N$8,IF(AND(AND($I18>'[2]TABLE DATA'!$D$7,OR($I18<'[2]TABLE DATA'!$D$8,$I18='[2]TABLE DATA'!$D$8)),AND('[2]Input-Output Data'!$J18>'[2]Input-Output Data'!$M18,OR('[2]Input-Output Data'!$J18<'[2]Input-Output Data'!$N18,'[2]Input-Output Data'!$J18='[2]Input-Output Data'!$N18))),'[2]TABLE DATA'!N$9,IF(AND(AND($I18>'[2]TABLE DATA'!$D$7,OR($I18<'[2]TABLE DATA'!$D$8,$I18='[2]TABLE DATA'!$D$8)),$J18>'[2]Input-Output Data'!$N18),\"SIGN TOO WIDE\",IF(AND(AND($I18>'[2]TABLE DATA'!$D$8,OR($I18<'[2]TABLE DATA'!$D$9,$I18='[2]TABLE DATA'!$D$9)),'[2]Input-Output Data'!$J18<'[2]Input-Output Data'!$K18),'[2]TABLE DATA'!N$9,\"SIGN TOO WIDE\"))))))))))","v":0.5},{"$f":"IF(I5=\"Arm Too Long\", \"Reduce V or W\",IF($I18>'[2]TABLE DATA'!$D$9,\"SIGN TOO LARGE\",IF(AND(OR($I18<'[2]TABLE DATA'!$D$7,$I18='[2]TABLE DATA'!$D$7),OR('[2]Input-Output Data'!$J18<'[2]Input-Output Data'!$K18,'[2]Input-Output Data'!$J18='[2]Input-Output Data'!$K18)),'[2]TABLE DATA'!O$7,IF(AND(OR($I18<'[2]TABLE DATA'!$D$7,$I18='[2]TABLE DATA'!$D$7),AND($J18>$L18),OR('[2]Input-Output Data'!$J18<'[2]Input-Output Data'!$M18,'[2]Input-Output Data'!$J18='[2]Input-Output Data'!$M18)),'[2]TABLE DATA'!O$8,IF(AND(OR($I18<'[2]TABLE DATA'!$D$7,$I18='[2]TABLE DATA'!$D$7),AND($J18>$M18),OR('[2]Input-Output Data'!$J18<'[2]Input-Output Data'!$N18,'[2]Input-Output Data'!$J18='[2]Input-Output Data'!$N18)),'[2]TABLE DATA'!O$9,IF(AND(OR($I18<'[2]TABLE DATA'!$D$7,$I18='[2]TABLE DATA'!$D$7),$J18>$N18),\"SIGN TOO WIDE\",IF(AND(AND($I18>'[2]TABLE DATA'!$D$7,OR($I18<'[2]TABLE DATA'!$D$8,$I18='[2]TABLE DATA'!$D$8)),'[2]Input-Output Data'!$J18<'[2]Input-Output Data'!$K18),'[2]TABLE DATA'!O$8,IF(AND(AND($I18>'[2]TABLE DATA'!$D$7,OR($I18<'[2]TABLE DATA'!$D$8,$I18='[2]TABLE DATA'!$D$8)),AND('[2]Input-Output Data'!$J18>'[2]Input-Output Data'!$M18,OR('[2]Input-Output Data'!$J18<'[2]Input-Output Data'!$N18,'[2]Input-Output Data'!$J18='[2]Input-Output Data'!$N18))),'[2]TABLE DATA'!O$9,IF(AND(AND($I18>'[2]TABLE DATA'!$D$7,OR($I18<'[2]TABLE DATA'!$D$8,$I18='[2]TABLE DATA'!$D$8)),$J18>'[2]Input-Output Data'!$N18),\"SIGN TOO WIDE\",IF(AND(AND($I18>'[2]TABLE DATA'!$D$8,OR($I18<'[2]TABLE DATA'!$D$9,$I18='[2]TABLE DATA'!$D$9)),'[2]Input-Output Data'!$J18<'[2]Input-Output Data'!$K18),'[2]TABLE DATA'!O$9,\"SIGN TOO WIDE\"))))))))))","v":0.5},{"$f":"IF(V18=0.5,\"I\",IF(V18=0.625,\"II\",IF(V18=0.75,\"III\",\"N/A\")))","v":"I"}]
[null,null,null,24,24,"Square"]
[]
[null,null,null,48,48,"Diamond",{"$f":"Y21","v":"II"},null,{"$f":"(D21*E21+D22*E22)/144","v":21.25},{"$f":"MAX(IF(F21=\"Square\",2+D21/2,2+(SQRT(2)/2)*D21),IF(F22=\"Square\",2+D22/2,2+(SQRT(2)/2)*D22))","v":35.9},{"$f":"IF(OR(I21<'[2]TABLE DATA'!$D$7,I21='[2]TABLE DATA'!$D$7),717.75/I21,IF(AND('[2]TABLE DATA'!$D$7<I21,OR(I21<'[2]TABLE DATA'!$D$8,I21='[2]TABLE DATA'!$D$8)),1695/I21,IF(AND('[2]TABLE DATA'!$D$8<I21,OR(I21<'[2]TABLE DATA'!$D$9,I21='[2]TABLE DATA'!$D$9)),2268/I21,\"Sign Too Wide\")))","v":33.78},{"$f":"717.75/I21","v":33.78},{"$f":"1695/I21","v":79.760000000000005},{"$f":"2268/I21","v":106.73},{"$f":"IF(I5=\"Arm Too Long\", \"Reduce V or W\",IF($I21>'[2]TABLE DATA'!$D$9,\"SIGN TOO LARGE\",IF(AND(OR($I21<'[2]TABLE DATA'!$D$7,$I21='[2]TABLE DATA'!$D$7),OR('[2]Input-Output Data'!$J21<'[2]Input-Output Data'!$K21,'[2]Input-Output Data'!$J21='[2]Input-Output Data'!$K21)),'[2]TABLE DATA'!F$7,IF(AND(OR($I21<'[2]TABLE DATA'!$D$7,$I21='[2]TABLE DATA'!$D$7),AND($J21>$L21),OR('[2]Input-Output Data'!$J21<'[2]Input-Output Data'!$M21,'[2]Input-Output Data'!$J21='[2]Input-Output Data'!$M21)),'[2]TABLE DATA'!F$8,IF(AND(OR($I21<'[2]TABLE DATA'!$D$7,$I21='[2]TABLE DATA'!$D$7),AND($J21>$M21),OR('[2]Input-Output Data'!$J21<'[2]Input-Output Data'!$N21,'[2]Input-Output Data'!$J21='[2]Input-Output Data'!$N21)),'[2]TABLE DATA'!F$9,IF(AND(OR($I21<'[2]TABLE DATA'!$D$7,$I21='[2]TABLE DATA'!$D$7),$J21>$N21),\"SIGN TOO WIDE\",IF(AND(AND($I21>'[2]TABLE DATA'!$D$7,OR($I21<'[2]TABLE DATA'!$D$8,$I21='[2]TABLE DATA'!$D$8)),'[2]Input-Output Data'!$J21<'[2]Input-Output Data'!$K21),'[2]TABLE DATA'!F$8,IF(AND(AND($I21>'[2]TABLE DATA'!$D$7,OR($I21<'[2]TABLE DATA'!$D$8,$I21='[2]TABLE DATA'!$D$8)),AND('[2]Input-Output Data'!$J21>'[2]Input-Output Data'!$M21,OR('[2]Input-Output Data'!$J21<'[2]Input-Output Data'!$N21,'[2]Input-Output Data'!$J21='[2]Input-Output Data'!$N21))),'[2]TABLE DATA'!F$9,IF(AND(AND($I21>'[2]TABLE DATA'!$D$7,OR($I21<'[2]TABLE DATA'!$D$8,$I21='[2]TABLE DATA'!$D$8)),$J21>'[2]Input-Output Data'!$N21),\"SIGN TOO WIDE\",IF(AND(AND($I21>'[2]TABLE DATA'!$D$8,OR($I21<'[2]TABLE DATA'!$D$9,$I21='[2]TABLE DATA'!$D$9)),'[2]Input-Output Data'!$J21<'[2]Input-Output Data'!$K21),'[2]TABLE DATA'!F$9,\"SIGN TOO WIDE\"))))))))))","v":5},{"$f":"IF(I5=\"Arm Too Long\", \"Reduce V or W\",IF($I21>'[2]TABLE DATA'!$D$9,\"SIGN TOO LARGE\",IF(AND(OR($I21<'[2]TABLE DATA'!$D$7,$I21='[2]TABLE DATA'!$D$7),OR('[2]Input-Output Data'!$J21<'[2]Input-Output Data'!$K21,'[2]Input-Output Data'!$J21='[2]Input-Output Data'!$K21)),'[2]TABLE DATA'!G$7,IF(AND(OR($I21<'[2]TABLE DATA'!$D$7,$I21='[2]TABLE DATA'!$D$7),AND($J21>$L21),OR('[2]Input-Output Data'!$J21<'[2]Input-Output Data'!$M21,'[2]Input-Output Data'!$J21='[2]Input-Output Data'!$M21)),'[2]TABLE DATA'!G$8,IF(AND(OR($I21<'[2]TABLE DATA'!$D$7,$I21='[2]TABLE DATA'!$D$7),AND($J21>$M21),OR('[2]Input-Output Data'!$J21<'[2]Input-Output Data'!$N21,'[2]Input-Output Data'!$J21='[2]Input-Output Data'!$N21)),'[2]TABLE DATA'!G$9,IF(AND(OR($I21<'[2]TABLE DATA'!$D$7,$I21='[2]TABLE DATA'!$D$7),$J21>$N21),\"SIGN TOO WIDE\",IF(AND(AND($I21>'[2]TABLE DATA'!$D$7,OR($I21<'[2]TABLE DATA'!$D$8,$I21='[2]TABLE DATA'!$D$8)),'[2]Input-Output Data'!$J21<'[2]Input-Output Data'!$K21),'[2]TABLE DATA'!G$8,IF(AND(AND($I21>'[2]TABLE DATA'!$D$7,OR($I21<'[2]TABLE DATA'!$D$8,$I21='[2]TABLE DATA'!$D$8)),AND('[2]Input-Output Data'!$J21>'[2]Input-Output Data'!$M21,OR('[2]Input-Output Data'!$J21<'[2]Input-Output Data'!$N21,'[2]Input-Output Data'!$J21='[2]Input-Output Data'!$N21))),'[2]TABLE DATA'!G$9,IF(AND(AND($I21>'[2]TABLE DATA'!$D$7,OR($I21<'[2]TABLE DATA'!$D$8,$I21='[2]TABLE DATA'!$D$8)),$J21>'[2]Input-Output Data'!$N21),\"SIGN TOO WIDE\",IF(AND(AND($I21>'[2]TABLE DATA'!$D$8,OR($I21<'[2]TABLE DATA'!$D$9,$I21='[2]TABLE DATA'!$D$9)),'[2]Input-Output Data'!$J21<'[2]Input-Output Data'!$K21),'[2]TABLE DATA'!G$9,\"SIGN TOO WIDE\"))))))))))","v":3},{"$f":"IF(I5=\"Arm Too Long\", \"Reduce V or W\",IF($I21>'[2]TABLE DATA'!$D$9,\"SIGN TOO LARGE\",IF(AND(OR($I21<'[2]TABLE DATA'!$D$7,$I21='[2]TABLE DATA'!$D$7),OR('[2]Input-Output Data'!$J21<'[2]Input-Output Data'!$K21,'[2]Input-Output Data'!$J21='[2]Input-Output Data'!$K21)),'[2]TABLE DATA'!H$7,IF(AND(OR($I21<'[2]TABLE DATA'!$D$7,$I21='[2]TABLE DATA'!$D$7),AND($J21>$L21),OR('[2]Input-Output Data'!$J21<'[2]Input-Output Data'!$M21,'[2]Input-Output Data'!$J21='[2]Input-Output Data'!$M21)),'[2]TABLE DATA'!H$8,IF(AND(OR($I21<'[2]TABLE DATA'!$D$7,$I21='[2]TABLE DATA'!$D$7),AND($J21>$M21),OR('[2]Input-Output Data'!$J21<'[2]Input-Output Data'!$N21,'[2]Input-Output Data'!$J21='[2]Input-Output Data'!$N21)),'[2]TABLE DATA'!H$9,IF(AND(OR($I21<'[2]TABLE DATA'!$D$7,$I21='[2]TABLE DATA'!$D$7),$J21>$N21),\"SIGN TOO WIDE\",IF(AND(AND($I21>'[2]TABLE DATA'!$D$7,OR($I21<'[2]TABLE DATA'!$D$8,$I21='[2]TABLE DATA'!$D$8)),'[2]Input-Output Data'!$J21<'[2]Input-Output Data'!$K21),'[2]TABLE DATA'!H$8,IF(AND(AND($I21>'[2]TABLE DATA'!$D$7,OR($I21<'[2]TABLE DATA'!$D$8,$I21='[2]TABLE DATA'!$D$8)),AND('[2]Input-Output Data'!$J21>'[2]Input-Output Data'!$M21,OR('[2]Input-Output Data'!$J21<'[2]Input-Output Data'!$N21,'[2]Input-Output Data'!$J21='[2]Input-Output Data'!$N21))),'[2]TABLE DATA'!H$9,IF(AND(AND($I21>'[2]TABLE DATA'!$D$7,OR($I21<'[2]TABLE DATA'!$D$8,$I21='[2]TABLE DATA'!$D$8)),$J21>'[2]Input-Output Data'!$N21),\"SIGN TOO WIDE\",IF(AND(AND($I21>'[2]TABLE DATA'!$D$8,OR($I21<'[2]TABLE DATA'!$D$9,$I21='[2]TABLE DATA'!$D$9)),'[2]Input-Output Data'!$J21<'[2]Input-Output Data'!$K21),'[2]TABLE DATA'!H$9,\"SIGN TOO WIDE\"))))))))))","v":0.875},{"$f":"IF(I5=\"Arm Too Long\", \"Reduce V or W\",IF($I21>'[2]TABLE DATA'!$D$9,\"SIGN TOO LARGE\",IF(AND(OR($I21<'[2]TABLE DATA'!$D$7,$I21='[2]TABLE DATA'!$D$7),OR('[2]Input-Output Data'!$J21<'[2]Input-Output Data'!$K21,'[2]Input-Output Data'!$J21='[2]Input-Output Data'!$K21)),'[2]TABLE DATA'!I$7,IF(AND(OR($I21<'[2]TABLE DATA'!$D$7,$I21='[2]TABLE DATA'!$D$7),AND($J21>$L21),OR('[2]Input-Output Data'!$J21<'[2]Input-Output Data'!$M21,'[2]Input-Output Data'!$J21='[2]Input-Output Data'!$M21)),'[2]TABLE DATA'!I$8,IF(AND(OR($I21<'[2]TABLE DATA'!$D$7,$I21='[2]TABLE DATA'!$D$7),AND($J21>$M21),OR('[2]Input-Output Data'!$J21<'[2]Input-Output Data'!$N21,'[2]Input-Output Data'!$J21='[2]Input-Output Data'!$N21)),'[2]TABLE DATA'!I$9,IF(AND(OR($I21<'[2]TABLE DATA'!$D$7,$I21='[2]TABLE DATA'!$D$7),$J21>$N21),\"SIGN TOO WIDE\",IF(AND(AND($I21>'[2]TABLE DATA'!$D$7,OR($I21<'[2]TABLE DATA'!$D$8,$I21='[2]TABLE DATA'!$D$8)),'[2]Input-Output Data'!$J21<'[2]Input-Output Data'!$K21),'[2]TABLE DATA'!I$8,IF(AND(AND($I21>'[2]TABLE DATA'!$D$7,OR($I21<'[2]TABLE DATA'!$D$8,$I21='[2]TABLE DATA'!$D$8)),AND('[2]Input-Output Data'!$J21>'[2]Input-Output Data'!$M21,OR('[2]Input-Output Data'!$J21<'[2]Input-Output Data'!$N21,'[2]Input-Output Data'!$J21='[2]Input-Output Data'!$N21))),'[2]TABLE DATA'!I$9,IF(AND(AND($I21>'[2]TABLE DATA'!$D$7,OR($I21<'[2]TABLE DATA'!$D$8,$I21='[2]TABLE DATA'!$D$8)),$J21>'[2]Input-Output Data'!$N21),\"SIGN TOO WIDE\",IF(AND(AND($I21>'[2]TABLE DATA'!$D$8,OR($I21<'[2]TABLE DATA'!$D$9,$I21='[2]TABLE DATA'!$D$9)),'[2]Input-Output Data'!$J21<'[2]Input-Output Data'!$K21),'[2]TABLE DATA'!I$9,\"SIGN TOO WIDE\"))))))))))","v":8},{"$f":"IF(I5=\"Arm Too Long\", \"Reduce V or W\",IF($I21>'[2]TABLE DATA'!$D$9,\"SIGN TOO LARGE\",IF(AND(OR($I21<'[2]TABLE DATA'!$D$7,$I21='[2]TABLE DATA'!$D$7),OR('[2]Input-Output Data'!$J21<'[2]Input-Output Data'!$K21,'[2]Input-Output Data'!$J21='[2]Input-Output Data'!$K21)),'[2]TABLE DATA'!J$7,IF(AND(OR($I21<'[2]TABLE DATA'!$D$7,$I21='[2]TABLE DATA'!$D$7),AND($J21>$L21),OR('[2]Input-Output Data'!$J21<'[2]Input-Output Data'!$M21,'[2]Input-Output Data'!$J21='[2]Input-Output Data'!$M21)),'[2]TABLE DATA'!J$8,IF(AND(OR($I21<'[2]TABLE DATA'!$D$7,$I21='[2]TABLE DATA'!$D$7),AND($J21>$M21),OR('[2]Input-Output Data'!$J21<'[2]Input-Output Data'!$N21,'[2]Input-Output Data'!$J21='[2]Input-Output Data'!$N21)),'[2]TABLE DATA'!J$9,IF(AND(OR($I21<'[2]TABLE DATA'!$D$7,$I21='[2]TABLE DATA'!$D$7),$J21>$N21),\"SIGN TOO WIDE\",IF(AND(AND($I21>'[2]TABLE DATA'!$D$7,OR($I21<'[2]TABLE DATA'!$D$8,$I21='[2]TABLE DATA'!$D$8)),'[2]Input-Output Data'!$J21<'[2]Input-Output Data'!$K21),'[2]TABLE DATA'!J$8,IF(AND(AND($I21>'[2]TABLE DATA'!$D$7,OR($I21<'[2]TABLE DATA'!$D$8,$I21='[2]TABLE DATA'!$D$8)),AND('[2]Input-Output Data'!$J21>'[2]Input-Output Data'!$M21,OR('[2]Input-Output Data'!$J21<'[2]Input-Output Data'!$N21,'[2]Input-Output Data'!$J21='[2]Input-Output Data'!$N21))),'[2]TABLE DATA'!J$9,IF(AND(AND($I21>'[2]TABLE DATA'!$D$7,OR($I21<'[2]TABLE DATA'!$D$8,$I21='[2]TABLE DATA'!$D$8)),$J21>'[2]Input-Output Data'!$N21),\"SIGN TOO WIDE\",IF(AND(AND($I21>'[2]TABLE DATA'!$D$8,OR($I21<'[2]TABLE DATA'!$D$9,$I21='[2]TABLE DATA'!$D$9)),'[2]Input-Output Data'!$J21<'[2]Input-Output Data'!$K21),'[2]TABLE DATA'!J$9,\"SIGN TOO WIDE\"))))))))))","v":2},{"$f":"IF(I5=\"Arm Too Long\", \"Reduce V or W\",IF($I21>'[2]TABLE DATA'!$D$9,\"SIGN TOO LARGE\",IF(AND(OR($I21<'[2]TABLE DATA'!$D$7,$I21='[2]TABLE DATA'!$D$7),OR('[2]Input-Output Data'!$J21<'[2]Input-Output Data'!$K21,'[2]Input-Output Data'!$J21='[2]Input-Output Data'!$K21)),'[2]TABLE DATA'!K$7,IF(AND(OR($I21<'[2]TABLE DATA'!$D$7,$I21='[2]TABLE DATA'!$D$7),AND($J21>$L21),OR('[2]Input-Output Data'!$J21<'[2]Input-Output Data'!$M21,'[2]Input-Output Data'!$J21='[2]Input-Output Data'!$M21)),'[2]TABLE DATA'!K$8,IF(AND(OR($I21<'[2]TABLE DATA'!$D$7,$I21='[2]TABLE DATA'!$D$7),AND($J21>$M21),OR('[2]Input-Output Data'!$J21<'[2]Input-Output Data'!$N21,'[2]Input-Output Data'!$J21='[2]Input-Output Data'!$N21)),'[2]TABLE DATA'!K$9,IF(AND(OR($I21<'[2]TABLE DATA'!$D$7,$I21='[2]TABLE DATA'!$D$7),$J21>$N21),\"SIGN TOO WIDE\",IF(AND(AND($I21>'[2]TABLE DATA'!$D$7,OR($I21<'[2]TABLE DATA'!$D$8,$I21='[2]TABLE DATA'!$D$8)),'[2]Input-Output Data'!$J21<'[2]Input-Output Data'!$K21),'[2]TABLE DATA'!K$8,IF(AND(AND($I21>'[2]TABLE DATA'!$D$7,OR($I21<'[2]TABLE DATA'!$D$8,$I21='[2]TABLE DATA'!$D$8)),AND('[2]Input-Output Data'!$J21>'[2]Input-Output Data'!$M21,OR('[2]Input-Output Data'!$J21<'[2]Input-Output Data'!$N21,'[2]Input-Output Data'!$J21='[2]Input-Output Data'!$N21))),'[2]TABLE DATA'!K$9,IF(AND(AND($I21>'[2]TABLE DATA'!$D$7,OR($I21<'[2]TABLE DATA'!$D$8,$I21='[2]TABLE DATA'!$D$8)),$J21>'[2]Input-Output Data'!$N21),\"SIGN TOO WIDE\",IF(AND(AND($I21>'[2]TABLE DATA'!$D$8,OR($I21<'[2]TABLE DATA'!$D$9,$I21='[2]TABLE DATA'!$D$9)),'[2]Input-Output Data'!$J21<'[2]Input-Output Data'!$K21),'[2]TABLE DATA'!K$9,\"SIGN TOO WIDE\"))))))))))","v":80},{"$f":"IF(I5=\"Arm Too Long\", \"Reduce V or W\",IF($I21>'[2]TABLE DATA'!$D$9,\"SIGN TOO LARGE\",IF(AND(OR($I21<'[2]TABLE DATA'!$D$7,$I21='[2]TABLE DATA'!$D$7),OR('[2]Input-Output Data'!$J21<'[2]Input-Output Data'!$K21,'[2]Input-Output Data'!$J21='[2]Input-Output Data'!$K21)),'[2]TABLE DATA'!L$7,IF(AND(OR($I21<'[2]TABLE DATA'!$D$7,$I21='[2]TABLE DATA'!$D$7),AND($J21>$L21),OR('[2]Input-Output Data'!$J21<'[2]Input-Output Data'!$M21,'[2]Input-Output Data'!$J21='[2]Input-Output Data'!$M21)),'[2]TABLE DATA'!L$8,IF(AND(OR($I21<'[2]TABLE DATA'!$D$7,$I21='[2]TABLE DATA'!$D$7),AND($J21>$M21),OR('[2]Input-Output Data'!$J21<'[2]Input-Output Data'!$N21,'[2]Input-Output Data'!$J21='[2]Input-Output Data'!$N21)),'[2]TABLE DATA'!L$9,IF(AND(OR($I21<'[2]TABLE DATA'!$D$7,$I21='[2]TABLE DATA'!$D$7),$J21>$N21),\"SIGN TOO WIDE\",IF(AND(AND($I21>'[2]TABLE DATA'!$D$7,OR($I21<'[2]TABLE DATA'!$D$8,$I21='[2]TABLE DATA'!$D$8)),'[2]Input-Output Data'!$J21<'[2]Input-Output Data'!$K21),'[2]TABLE DATA'!L$8,IF(AND(AND($I21>'[2]TABLE DATA'!$D$7,OR($I21<'[2]TABLE DATA'!$D$8,$I21='[2]TABLE DATA'!$D$8)),AND('[2]Input-Output Data'!$J21>'[2]Input-Output Data'!$M21,OR('[2]Input-Output Data'!$J21<'[2]Input-Output Data'!$N21,'[2]Input-Output Data'!$J21='[2]Input-Output Data'!$N21))),'[2]TABLE DATA'!L$9,IF(AND(AND($I21>'[2]TABLE DATA'!$D$7,OR($I21<'[2]TABLE DATA'!$D$8,$I21='[2]TABLE DATA'!$D$8)),$J21>'[2]Input-Output Data'!$N21),\"SIGN TOO WIDE\",IF(AND(AND($I21>'[2]TABLE DATA'!$D$8,OR($I21<'[2]TABLE DATA'!$D$9,$I21='[2]TABLE DATA'!$D$9)),'[2]Input-Output Data'!$J21<'[2]Input-Output Data'!$K21),'[2]TABLE DATA'!L$9,\"SIGN TOO WIDE\"))))))))))","v":14.5},{"$f":"IF(I5=\"Arm Too Long\", \"Reduce V or W\",IF($I21>'[2]TABLE DATA'!$D$9,\"SIGN TOO LARGE\",IF(AND(OR($I21<'[2]TABLE DATA'!$D$7,$I21='[2]TABLE DATA'!$D$7),OR('[2]Input-Output Data'!$J21<'[2]Input-Output Data'!$K21,'[2]Input-Output Data'!$J21='[2]Input-Output Data'!$K21)),'[2]TABLE DATA'!M$7,IF(AND(OR($I21<'[2]TABLE DATA'!$D$7,$I21='[2]TABLE DATA'!$D$7),AND($J21>$L21),OR('[2]Input-Output Data'!$J21<'[2]Input-Output Data'!$M21,'[2]Input-Output Data'!$J21='[2]Input-Output Data'!$M21)),'[2]TABLE DATA'!M$8,IF(AND(OR($I21<'[2]TABLE DATA'!$D$7,$I21='[2]TABLE DATA'!$D$7),AND($J21>$M21),OR('[2]Input-Output Data'!$J21<'[2]Input-Output Data'!$N21,'[2]Input-Output Data'!$J21='[2]Input-Output Data'!$N21)),'[2]TABLE DATA'!M$9,IF(AND(OR($I21<'[2]TABLE DATA'!$D$7,$I21='[2]TABLE DATA'!$D$7),$J21>$N21),\"SIGN TOO WIDE\",IF(AND(AND($I21>'[2]TABLE DATA'!$D$7,OR($I21<'[2]TABLE DATA'!$D$8,$I21='[2]TABLE DATA'!$D$8)),'[2]Input-Output Data'!$J21<'[2]Input-Output Data'!$K21),'[2]TABLE DATA'!M$8,IF(AND(AND($I21>'[2]TABLE DATA'!$D$7,OR($I21<'[2]TABLE DATA'!$D$8,$I21='[2]TABLE DATA'!$D$8)),AND('[2]Input-Output Data'!$J21>'[2]Input-Output Data'!$M21,OR('[2]Input-Output Data'!$J21<'[2]Input-Output Data'!$N21,'[2]Input-Output Data'!$J21='[2]Input-Output Data'!$N21))),'[2]TABLE DATA'!M$9,IF(AND(AND($I21>'[2]TABLE DATA'!$D$7,OR($I21<'[2]TABLE DATA'!$D$8,$I21='[2]TABLE DATA'!$D$8)),$J21>'[2]Input-Output Data'!$N21),\"SIGN TOO WIDE\",IF(AND(AND($I21>'[2]TABLE DATA'!$D$8,OR($I21<'[2]TABLE DATA'!$D$9,$I21='[2]TABLE DATA'!$D$9)),'[2]Input-Output Data'!$J21<'[2]Input-Output Data'!$K21),'[2]TABLE DATA'!M$9,\"SIGN TOO WIDE\"))))))))))","v":0.625},{"$f":"IF(I5=\"Arm Too Long\", \"Reduce V or W\",IF($I21>'[2]TABLE DATA'!$D$9,\"SIGN TOO LARGE\",IF(AND(OR($I21<'[2]TABLE DATA'!$D$7,$I21='[2]TABLE DATA'!$D$7),OR('[2]Input-Output Data'!$J21<'[2]Input-Output Data'!$K21,'[2]Input-Output Data'!$J21='[2]Input-Output Data'!$K21)),'[2]TABLE DATA'!N$7,IF(AND(OR($I21<'[2]TABLE DATA'!$D$7,$I21='[2]TABLE DATA'!$D$7),AND($J21>$L21),OR('[2]Input-Output Data'!$J21<'[2]Input-Output Data'!$M21,'[2]Input-Output Data'!$J21='[2]Input-Output Data'!$M21)),'[2]TABLE DATA'!N$8,IF(AND(OR($I21<'[2]TABLE DATA'!$D$7,$I21='[2]TABLE DATA'!$D$7),AND($J21>$M21),OR('[2]Input-Output Data'!$J21<'[2]Input-Output Data'!$N21,'[2]Input-Output Data'!$J21='[2]Input-Output Data'!$N21)),'[2]TABLE DATA'!N$9,IF(AND(OR($I21<'[2]TABLE DATA'!$D$7,$I21='[2]TABLE DATA'!$D$7),$J21>$N21),\"SIGN TOO WIDE\",IF(AND(AND($I21>'[2]TABLE DATA'!$D$7,OR($I21<'[2]TABLE DATA'!$D$8,$I21='[2]TABLE DATA'!$D$8)),'[2]Input-Output Data'!$J21<'[2]Input-Output Data'!$K21),'[2]TABLE DATA'!N$8,IF(AND(AND($I21>'[2]TABLE DATA'!$D$7,OR($I21<'[2]TABLE DATA'!$D$8,$I21='[2]TABLE DATA'!$D$8)),AND('[2]Input-Output Data'!$J21>'[2]Input-Output Data'!$M21,OR('[2]Input-Output Data'!$J21<'[2]Input-Output Data'!$N21,'[2]Input-Output Data'!$J21='[2]Input-Output Data'!$N21))),'[2]TABLE DATA'!N$9,IF(AND(AND($I21>'[2]TABLE DATA'!$D$7,OR($I21<'[2]TABLE DATA'!$D$8,$I21='[2]TABLE DATA'!$D$8)),$J21>'[2]Input-Output Data'!$N21),\"SIGN TOO WIDE\",IF(AND(AND($I21>'[2]TABLE DATA'!$D$8,OR($I21<'[2]TABLE DATA'!$D$9,$I21='[2]TABLE DATA'!$D$9)),'[2]Input-Output Data'!$J21<'[2]Input-Output Data'!$K21),'[2]TABLE DATA'!N$9,\"SIGN TOO WIDE\"))))))))))","v":0.625},{"$f":"IF(I5=\"Arm Too Long\", \"Reduce V or W\",IF($I21>'[2]TABLE DATA'!$D$9,\"SIGN TOO LARGE\",IF(AND(OR($I21<'[2]TABLE DATA'!$D$7,$I21='[2]TABLE DATA'!$D$7),OR('[2]Input-Output Data'!$J21<'[2]Input-Output Data'!$K21,'[2]Input-Output Data'!$J21='[2]Input-Output Data'!$K21)),'[2]TABLE DATA'!O$7,IF(AND(OR($I21<'[2]TABLE DATA'!$D$7,$I21='[2]TABLE DATA'!$D$7),AND($J21>$L21),OR('[2]Input-Output Data'!$J21<'[2]Input-Output Data'!$M21,'[2]Input-Output Data'!$J21='[2]Input-Output Data'!$M21)),'[2]TABLE DATA'!O$8,IF(AND(OR($I21<'[2]TABLE DATA'!$D$7,$I21='[2]TABLE DATA'!$D$7),AND($J21>$M21),OR('[2]Input-Output Data'!$J21<'[2]Input-Output Data'!$N21,'[2]Input-Output Data'!$J21='[2]Input-Output Data'!$N21)),'[2]TABLE DATA'!O$9,IF(AND(OR($I21<'[2]TABLE DATA'!$D$7,$I21='[2]TABLE DATA'!$D$7),$J21>$N21),\"SIGN TOO WIDE\",IF(AND(AND($I21>'[2]TABLE DATA'!$D$7,OR($I21<'[2]TABLE DATA'!$D$8,$I21='[2]TABLE DATA'!$D$8)),'[2]Input-Output Data'!$J21<'[2]Input-Output Data'!$K21),'[2]TABLE DATA'!O$8,IF(AND(AND($I21>'[2]TABLE DATA'!$D$7,OR($I21<'[2]TABLE DATA'!$D$8,$I21='[2]TABLE DATA'!$D$8)),AND('[2]Input-Output Data'!$J21>'[2]Input-Output Data'!$M21,OR('[2]Input-Output Data'!$J21<'[2]Input-Output Data'!$N21,'[2]Input-Output Data'!$J21='[2]Input-Output Data'!$N21))),'[2]TABLE DATA'!O$9,IF(AND(AND($I21>'[2]TABLE DATA'!$D$7,OR($I21<'[2]TABLE DATA'!$D$8,$I21='[2]TABLE DATA'!$D$8)),$J21>'[2]Input-Output Data'!$N21),\"SIGN TOO WIDE\",IF(AND(AND($I21>'[2]TABLE DATA'!$D$8,OR($I21<'[2]TABLE DATA'!$D$9,$I21='[2]TABLE DATA'!$D$9)),'[2]Input-Output Data'!$J21<'[2]Input-Output Data'!$K21),'[2]TABLE DATA'!O$9,\"SIGN TOO WIDE\"))))))))))","v":0.625},{"$f":"IF(V21=0.5,\"I\",IF(V21=0.625,\"II\",IF(V21=0.75,\"III\",\"N/A\")))","v":"II"}]
[null,null,null,42,18,"Square"]

{"sheet":"SIGN CODES","index":17,"n_rows":641,"n_cols":3,"rows_kept":641,"cut":false,"hidden":false,"merged":[]}
["CODE\nNO","PANEL LEGEND","NOTES"]
["D10-1","MILE X"]
["D10-2","MILE XX"]
["D10-3","MILE XXX"]
["D10-4","ENHANCED REFERENCE LOCATION"]
["D10-5","INTERMEDIATE ENHANCED REFERENCE LOCATION"]
["D11-1","BIKE ROUTE"]
["D12-2M","CAR POOL INFO"]
["D12-4","EMERGENCY CALL 911"]
["D12-5a","TRAVEL INFO CALL 511"]
["D13-3M","FREEWAY ENTRANCE"]
["D17-2","TRUCK LANE XX MILES"]
["D18-X1","ALTERNATE FUELS CORRIDOR"]
["D18-X1P","EV-CHARGING PLAQUE"]
["D1-X1DH","FRONTAGE ROAD DOUBLE ARROW"]
["D1-X1L","FRONTAGE ROAD LEFT"]
["D1-X1R","FRONTAGE ROAD RIGHT"]
["D4-1L","PARKING LEFT"]
["D4-1R","PARKING RIGHT"]
["D4-2L","PARK - RIDE LEFT"]
["D4-2M","PARK - RIDE"]
["D4-2R","PARK - RIDE RIGHT"]
["D5-1","REST AREA XX MILES"]
["D5-1a","REST AREA NEXT RIGHT"]
["D5-1M","REST AREA XX MILES NEXT REST AREA XX MILES"]
["D5-2","REST AREA 45 DEG ARROW"]
["D5-2a","REST AREA 45 DEG ARROW"]
["D5-6","NEXT REST AREA XX MILES"]
["D5-X1L","WAYSIDE REST XX MILES ON LEFT"]
["D5-X1R","WAYSIDE REST XX MILES ON RIGHT"]
["D5-X2L","WAYSIDE REST LEFT"]
["D5-X2R","WAYSIDE REST RIGHT"]
["D6-2ML","SCENIC OVERLOOK XX MILES ON LEFT"]
["D6-2MR","SCENIC OVERLOOK XX MILES ON RIGHT"]
["D6-3ML","SCENIC OVERLOOK LEFT"]
["D6-3MR","SCENIC OVERLOOK RIGHT"]
["D7-X10aL","PARK NAME CANOE LAUNCH XX MILES LEFT"]
["D7-X10aR","PARK NAME CANOE LAUNCH XX MILES RIGHT"]
["D7-X10L","PARK NAME BOAT LAUNCH XX MILES LEFT"]
["D7-X10R","PARK NAME BOAT LAUNCH XX MILES RIGHT"]
["D7-X11L","CITY PARK LEFT"]
["D7-X11R","CITY PARK RIGHT"]
["D7-X11T","CITY PARK AHEAD"]
["D7-X12aL","COUNTY PARK XX MILES LEFT"]
["D7-X12aR","COUNTY PARK XX MILES RIGHT"]
["D7-X12L","COUNTY PARK LEFT"]
["D7-X12R","COUNTY PARK RIGHT"]
["D7-X12T","COUNTY PARK AHEAD"]
["D7-X13L","STATE PARK LEFT"]
["D7-X13R","STATE PARK RIGHT"]
["D7-X13T","STATE PARK AHEAD"]
["D7-X14L","PICNIC GROUNDS LEFT"]
["D7-X14R","PICNIC GROUNDS RIGHT"]
["D7-X14L","PICNIC GROUNDS AHEAD"]
["D7-X15L","COUNTY MUSEUM LEFT"]
["D7-X15R","COUNTY MUSEUM RIGHT"]
["D7-X15T","COUNTY MUSEUM AHEAD"]
["D7-X16L","GOLF COURSE LEFT"]
["D7-X16R","GOLF COURSE RIGHT"]
["D7-X16T","GOLF COURSE AHEAD"]
["D7-X17L","DISC GOLF COURSE LEFT"]
["D7-X17R","DISC GOLF COURSE RIGHT"]
["D7-X17T","DISC GOLF COURSE AHEAD"]
["D7-X18L","COUNTY FAIRGROUND LEFT"]
["D7-X18R","COUNTY FAIRGROUND RIGHT"]
["D7-X18T","COUNTY FAIRGROUND AHEAD"]
["D7-X19L","HIGH SCHOOL LEFT"]
["D7-X19R","HIGH SCHOOL RIGHT"]
["D7-X19T","HIGH SCHOOL AHEAD"]
["D7-X1L","GEOLOGICAL MARKER XX MILES ON LEFT"]
["D7-X1R","GEOLOGICAL MARKER XX MILES ON RIGHT"]
["D7-X20L","INDUSTRIAL PARK LEFT"]
["D7-X20R","INDUSTRIAL PARK RIGHT"]
["D7-X20T","INDUSTRIAL PARK AHEAD"]
["D7-X21L","CAREERFORCE CENTER LEFT"]
["D7-X21R","CAREERFORCE CENTER RIGHT"]
["D7-X21T","CAREERFORCE CENTER AHEAD"]
["D7-X22L","DOWNTOWN LEFT"]
["D7-X22R","DOWNTOWN RIGHT"]
["D7-X22T","DOWNTOWN AHEAD"]
["D7-X23L","BUSINESS DISTRICT LEFT"]
["D7-X23R","BUSINESS DISTRICT RIGHT"]
["D7-X24L","TOWN HALL LEFT"]
["D7-X24R","TOWN HALL RIGHT"]
["D7-X25L","AIRPORT LEFT"]
["D7-X25R","AIRPORT RIGHT"]
["D7-X26L","RECYCLING CENTER LEFT"]
["D7-X26R","RECYCLING CENTER RIGHT"]
["D7-X27L","SANITARY LANDFILL LEFT"]
["D7-X27R","SANITARY LANDFILL RIGHT"]
["D7-X28L","SOLID WASTE TRANSFER STATION LEFT"]
["D7-X28R","SOLID WASTE TRANSFER STATION RIGHT"]
["D7-X29L","DEMOLITION LANDFILL LEFT"]
["D7-X29R","DEMOLITION LANDFILL RIGHT"]
["D7-X29T","DEMOLITION LANDFILL AHEAD"]
["D7-X2L","GEOLOGICAL MARKER LEFT"]
["D7-X2R","GEOLOGICAL MARKER RIGHT"]
["D7-X3","GEOLOGICAL MARKER"]
["D7-X4","HISTORICAL MARKER"]
["D7-X5L","HISTORICAL MARKER XX MILES ON LEFT"]
["D7-X5R","HISTORICAL MARKER XX MILES ON RIGHT"]
["D7-X6L","HISTORICAL MARKER LEFT"]
["D7-X6R","HISTORICAL MARKER RIGHT"]
["D7-X7L","HISTORIC SITE XX MILES ON LEFT"]
["D7-X7R","HISTORIC SITE XX MILES ON RIGHT"]
["D7-X8L","HISTORIC SITE LEFT"]
["D7-X8R","HISTORIC SITE RIGHT"]
["D7-X8T","HISTORIC SITE AHEAD"]
["D7-X9L","HISTORIC DISTRICT LEFT"]
["D7-X9R","HISTORIC DISTRICT RIGHT"]
["D7-X9T","HISTORIC DISTRICT AHEAD"]
["D8-1","WEIGH STATION XX MILES"]
["D8-2M","WEIGH STATION NEXT RIGHT"]
["D8-3","WEIGH STATION 45 DEG ARROW"]
["D8-3ML","WEIGH STATION LEFT"]
["D8-3MR","WEIGH STATION RIGHT"]
["D9-1","PHONE"]
["D9-10ML","TOURIST INFO LEFT"]
["D9-10MR","TOURIST INFO RIGHT"]
["D9-16","TRUCK PARKING"]
["D9-18cMaL","HOSPITAL XX MILES LEFT"]
["D9-18cMaR","HOSPITAL XX MILES RIGHT"]
["D9-18cMbL","GAS LEFT"]
["D9-18cMbR","GAS RIGHT"]
["D9-18cMbRL","GAS RIGHT AND LEFT"]
["D9-18cMcL","FOOD LEFT"]
["D9-18cMcR","FOOD RIGHT"]
["D9-18cMcRL","FOOD RIGHT AND LEFT"]
["D9-18cMdL","LODGING LEFT"]
["D9-18cMdR","LODGING RIGHT"]
["D9-18cMdRL","LODGING RIGHT AND LEFT"]
["D9-18cMeL","HOSPITAL LEFT"]
["D9-18cMeR","HOSPITAL RIGHT"]
["D9-18cMfL","CAMPING LEFT"]
["D9-18cMfR","CAMPING RIGHT"]
["D9-18cMfRL","CAMPING RIGHT AND LEFT"]
["D9-18cMgL","DIESEL LEFT"]
["D9-18cMgR","DIESEL RIGHT"]
["D9-18cMgRL","DIESEL RIGHT AND LEFT"]
["D9-18cMhL","LP-GAS LEFT"]
["D9-18cMhR","LP-GAS RIGHT"]
["D9-18cMhRL","LP-GAS RIGHT AND LEFT"]
["D9-18cMiL","E85 LEFT"]
["D9-18cMiR","E85 RIGHT"]
["D9-18cMiRL","E85 RIGHT AND LEFT"]
["D9-18cMjL","EV-CHARGING LEFT"]
["D9-18cMjR","EV-CHARGING RIGHT"]
["D9-2","HOSPITAL"]
["D9-21","PHONE TTY"]
["D9-2MaALTL","HOSPITAL XX BLKS ADVANCED LEFT"]
["D9-2MaALTR","HOSPITAL XX BLKS ADVANCED RIGHT"]
["D9-2MaL","HOSPITAL XX BLKS LEFT"]
["D9-2MaR","HOSPITAL XX BLKS RIGHT"]
["D9-2MaT","HOSPITAL XX BLKS AHEAD"]
["D9-2MbL","HOSPITAL LEFT"]
["D9-2MbR","HOSPITAL RIGHT"]
["D9-6","HANDICAPED"]
["D9-6P","VAN ACCESSIBLE PLAQUE"]
["D9-X1L","HANDICAP LEFT"]
["D9-X1R","HANDICAP RIGHT"]
["D9-X3L","RESORTS LEFT"]
["D9-X3R","RESORTS RIGHT"]
["D9-X3RL","RESORTS RIGHT AND LEFT"]
["D9-X4L","CAMPING LEFT"]
["D9-X4R","CAMPING RIGHT"]
["D9-X4RL","CAMPING RIGHT AND LEFT"]
["E13-1P","XX MPH PLAQUE"]
["E5-1","EXIT XX DEG ARROW"]
["E5-1a","EXIT X XX DEG ARROW"]
["E5-1aM","EXIT XX XX DEG ARROW"]
["I-11","RECYCLING COLLECTION CENTER"]
["I-12","LIGHT RAIL TRANSIT STATION"]
["I2-X1","MINNESOTA ENTRANCE SIGN"]
["I2-X2","MINNESOTA EXIT SIGN"]
["I-5","AIRPORT"]
["I-6","BUS STATION"]
["I-7","TRAIN STATION"]
["I-8","LIBRARY"]
["M1-1","INTERSTATE XX"]
["M1-10","EISENHOWER INTERSTATE SYSTEM"]
["M1-2","INTERSTATE XX BUSINESS LOOP"]
["M1-3","INTERSTATE XX BUSINESS SPUR"]
["M1-4","US XX"]
["M1-4M","US XX BUSINESS"]
["M1-5M","MINNESOTA HWY XX"]
["M1-5Ma","MINNESOTA HWY XX BUSINESS"]
["M1-6M","XX COUNTY XX"]
["M1-9M","MISSISSIPPI RIVER TRAIL"]
["M1-X4","XX COUNTY XX"]
["M1-X5","TOWNSHIP XX"]
["M2-1","JCT (COLOR)"]
["M3-1","NORTH (COLOR)"]
["M3-2","EAST (COLOR)"]
["M3-3","SOUTH (COLOR)"]
["M3-4","WEST (COLOR)"]
["M4-14","BEGIN (COLOR)"]
["M4-1a","ALT (COLOR)"]
["M4-3","BUSINESS (COLOR)"]
["M4-4","TRUCK"]
["M4-5","TO (COLOR)"]
["M4-6","END (COLOR)"]
["M4-7","TEMPORARY (COLOR)"]
["M4-X1","OLD (COLOR)"]
["M4-X2","ALTERNATE ROUTE TO"]
["M5-1L","ADVANCE TURN LEFT (COLOR)"]
["M5-1R","ADVANCE TURN RIGHT (COLOR)"]
["M5-2L","ADVANCE TURN 45° LEFT (COLOR)"]
["M5-2R","ADVANCE TURN 45° RIGHT (COLOR)"]
["M5-3","CURVED STEM (COLOR)"]
["M5-4","LEFT LANE (COLOR)"]
["M5-5","CENTER LANE (COLOR)"]
["M5-6","RIGHT LANE (COLOR)"]
["M6-1","ARROW (COLOR)"]
["M6-1L","ARROW LEFT (COLOR)"]
["M6-1R","ARROW RIGHT (COLOR)"]
["M6-2L","ARROW LEFT (COLOR)"]
["M6-2R","ARROW RIGHT (COLOR)"]
["M6-3","ARROW UP (COLOR)"]
["M6-4","DOUBLE ARROW (COLOR)"]
["M6-5L","DOUBLE ARROW 45° LEFT (COLOR)"]
["M6-5R","DOUBLE ARROW 45° RIGHT (COLOR)"]
["M6-6L","ARROW UP LEFT (COLOR)"]
["M6-6R","ARROW UP RIGHT (COLOR)"]
["M6-7L","ARROW UP 45° LEFT (COLOR)"]
["M6-7R","ARROW UP 45° RIGHT (COLOR)"]
["M6-X2","U TURN (COLOR)"]
["OM1-2","TYPE 1 OBJECT MARKER"]
["OM2-2V","TYPE 2 OBJECT MARKER"]
["OM3-C","TYPE 3 OBJECT MARKER CENTER"]
["OM3-L","TYPE 3 OBJECT MARKER LEFT"]
["OM3-R","TYPE 3 OBJECT MARKER RIGHT"]
["OM4-2","TYPE 4 OBJECT MARKER"]
["P1","XX"]
["R10-10L","LEFT TURN SIGNAL"]
["R10-10R","RIGHT TURN SIGNAL"]
["R10-11b","NO TURN ON RED"]
["R10-11c","NO TURN ON RED EXCEPT FROM RIGHT LANE"]
["R10-12","LEFT TURN YIELD ON GREEN BALL"]
["R10-15ML","LEFT TURNING VEHICLES STOP FOR PEDS"]
["R10-15MR","RIGHT TURNING VEHICLES STOP FOR PEDS"]
["R10-16","U-TURN YIELD TO RIGHT TURN"]
["R10-6L","STOP HERE ON RED LEFT"]
["R10-6R","STOP HERE ON RED RIGHT"]
["R10-7","DO NOT BLOCK INTERSECTION"]
["R10-7M","DO NOT BLOCK CROSSWALK"]
["R10-X12","LEFT TURN YIELD ON FLASHING YELLOW ARROW"]
["R10-X13","U-TURN YIELD ON FLASHING YELLOW ARROW"]
["R10-X6","1 CAR ON GREEN"]
["R10-X7","FORM TWO LANES WHEN METERED"]
["R1-1","STOP"]
["R1-2","YIELD"]
["R12-1M","BRIDGE WEIGHT LIMIT XX TONS"]
["R12-2","AXLE WEIGHT LIMIT XX TONS"]
["R12-5","WEIGHT LIMIT XXT, XXT, XXT"]
["R12-5M","WEIGHT LIMIT XXT"]
["R1-2aP","TO ONCOMING TRAFFIC PLAQUE"]
["R12-X11","PERMIT WEIGHT LIMIT XXT"]
["R12-X1P","BRIDGE PLAQUE"]
["R12-X1Pa","XX MILES PLAQUE"]
["R12-X2","RESTRICTED BRIDGE XX MILES LIMIT XX TONS"]
["R12-X2a","RESTRICTED BRIDGE XX MILES LIMIT XX TONS"]
["R12-X3","TRUCKS MUST NOT MEET ON BRIDGE"]
["R12-X3a","VEHICLES MUST NOT MEET ON BRIDGE"]
["R12-X4","RESTR BRIDGE XX MILES LIMIT XX TONS CLEAR XXFT XXIN "]
["R12-X4a","RESTRICTED BRIDGE XX MILES CLEARANCE XXFT XXIN"]
["R12-X5","VEHICLES OVER XX TONS USE TRUCK DETOUR"]
["R1-3P","ALL WAY PLAQUE"]
["R13-X1","TRUCKS OVER 10,000 LBS MUST ENTER WEIGH STA"]
["R14-1","TRUCK ROUTE"]
["R15-3P","EXEMPT PLAQUE"]
["R15-7","DIVIDED HIGHWAY WITH RAILS"]
["R15-7a","DIVIDED HIGHWAY WITH RAILS TEE INTERSECTION"]
["R1-5bL","STOP HERE FOR PED SYMBOL LEFT"]
["R1-5bR","STOP HERE FOR PED SYMBOL RIGHT"]
["R16-1","SEAT BELT FASTENED"]
["R16-1M","STATE LAW SEAT BELT"]
["R16-4","FENDER BENDER MOVE VEHICLES"]
["R1-6a","STATE LAW STOP FOR PED W/I X-WALK"]
["R1-6c","STATE LAW STOP FOR PED W/I X-WALK"]
["R16-X10","NO FISHING FROM BRIDGE"]
["R16-X13","VEHICLE NOISE LAWS ENFORCED"]
["R16-X15","STATE LAW MOVE OVER"]
["R16-X16","DO NOT CROSS DOUBLE WHITE LINE"]
["R16-X17","STATE LAW PHONE USE HANDS-FREE"]
["R16-X2","STATE LAW TRUCKS MUST MAINTAIN 500 FOOT"]
["R16-X3","$1000 FINE FOR LITTERING"]
["R16-X40","PARKING RESTRICTIONS COMMERCIAL VEHICLES"]
["R16-X5P","STATE LAW PLAQUE"]
["R1-9a","STATE LAW STOP FOR PEDESTRIANS"]
["R1-X1","STOP FOR PED IN CROSSWALK"]
["R1-X3P","TAKE TURNS"]
["R2-1","SPEED LIMIT XX"]
["R2-4a","SPEED LIMIT XX MINIMUM XX"]
["R3-1","NO RIGHT TURN"]
["R3-17","BIKE LANE"]
["R3-17aP","AHEAD PLAQUE"]
["R3-17bP","ENDS PLAQUE"]
["R3-18","NO LEFT NO U-TURN"]
["R3-2","NO LEFT TURN"]
["R3-27","NO THROUGH TRAFFIC"]
["R3-3","NO TURNS"]
["R3-33","RIGHT LANE MUST EXIT"]
["R3-33ML","LEFT LANE MUST EXIT"]
["R3-33MR","RIGHT LANE MUST EXIT"]
["R3-4","NO U-TURN"]
["R3-4M","NO U-TURN RIGHT"]
["R3-5a","THRU ONLY"]
["R3-5L","LEFT ONLY"]
["R3-5R","RIGHT ONLY"]
["R3-6L","THRU-LEFT"]
["R3-6R","THRU-RIGHT"]
["R3-7L","LEFT LANE MUST TURN LEFT"]
["R3-7ML","ALL TRAFFIC MUST TURN LEFT"]
["R3-7MR","ALL TRAFFIC MUST TURN RIGHT"]
["R3-7R","RIGHT LANE MUST TURN RIGHT"]
["R3-8AA","L-R"]
["R3-8AB","L-L"]
["R3-8ABC","L-L-T"]
["R3-8ABCA","L-L-T-R"]
["R3-8ABCD","L-L-T-TR"]
["R3-8ABD","L-L-TR"]
["R3-8ABLA","L-L-R"]
["R3-8ABRA","L-R-R"]
["R3-8AC","L-T"]
["R3-8ACA","L-T-R"]
["R3-8ACC","L-T-T"]
["R3-8ACCA","L-T-T-R"]
["R3-8ACD","L-T-TR"]
["R3-8AD","L-TR"]
["R3-8AE","L-LT"]
["R3-8AEBA","L-LT-R-R"]
["R3-8AEC","L-LT-T"]
["R3-8AECA","L-LT-T-R"]
["R3-8AELA","L-LT-R"]
["R3-8AERA","L-TR-R"]
["R3-8AF","L-LR"]
["R3-8AG","L-LTR"]
["R3-8AHA","L-LR-R"]
["R3-8AJA","L-LTR-R"]
["R3-8BA","R-R"]
["R3-8CA","T-R"]
["R3-8CCA","T-T-R"]
["R3-8CCBA","T-T-R-R"]
["R3-8CD","T-TR"]
["R3-8CEA","T-TR-R"]
["R3-8DA","LT-R"]
["R3-8DCA","LT-T-R"]
["R3-8EA","TR-R"]
["R3-8EE","LT-TR"]
["R3-8FA","LR-R"]
["R3-8GA","LTR-R"]
["R3-8H","LR"]
["R3-8KD","ROUNDABOUT L-TR"]
["R3-8KG","ROUNDABOUT L-LTR"]
["R3-8LA","ROUNDABOUT LT-R"]
["R3-8LE","ROUNDABOUT LT-TR"]
["R3-8MA","ROUNDABOUT LTR-R"]
["R3-9b","TWO WAY LEFT TURN LANE"]
["R3-9cP","BEGIN PLAQUE"]
["R3-9dP","END PLAQUE"]
["R3-X3L","DIAMOND RAMP CAR POOL LEFT"]
["R3-X3R","DIAMOND RAMP CAR POOL RIGHT"]
["R3-X5","U TURN"]
["R3-5Xa","LEFT TURN U TURN"]
["R4-1","DO NOT PASS"]
["R4-11","BIKES MAY USE FULL LANE"]
["R4-17","DO NOT DRIVE ON SHOULDER"]
["R4-2","PASS WITH CARE"]
["R4-3","SLOWER TRAFFIC KEEP RIGHT"]
["R4-3M","SLOWER TRAFFIC KEEP RIGHT"]
["R4-4","BEGIN RIGHT TURN LANE ARROW YIELD TO BIKES"]
["R4-5","TRUCKS USE RIGHT LANE"]
["R4-7","KEEP RIGHT"]
["R4-7c","NARROW KEEP RIGHT"]
["R4-8","KEEP LEFT"]
["R4-8c","NARROW KEEP LEFT"]
["R4-X1","THRU TRAFFIC KEEP RIGHT"]
["R4-X4","TRUCK STOPPING LANE"]
["R4-X6","PASSING LANE X MILE(S) AHEAD"]
["R4-X7","SHOULDER AUTHORIZED BUSES ONLY"]
["R4-X7P","END OR BEGIN PLAQUE"]
["R4-X8","BYPASS LANE"]
["R4-X8a","BYPASS AND TURN LANE"]
["R5-1","DO NOT ENTER"]
["R5-10aM","PEDS PROHIBITED"]
["R5-1a","WRONG WAY"]
["R5-2","NO TRUCKS"]
["R5-3","NO MOTOR VEHICLES"]
["R5-6","NO BICYCLES"]
["R5-X1","NO SNOWMOBILES"]
["R5-X2","STATE PROPERTY KEEP OFF OR OUT"]
["R5-X3","NO TRESSPASSING/CROSSING/ETC."]
["R5-X4","NO THRU TRAFFIC"]
["R5-X5","PROHIBITED VEHICLES"]
["R6-1L","ONE WAY LEFT"]
["R6-1R","ONE WAY RIGHT"]
["R6-2L","ONE WAY LEFT"]
["R6-2R","ONE WAY RIGHT"]
["R6-3","DIVIDED HIGHWAY"]
["R6-3a","DIVIDED HIGHWAY TEE INTERSECTION"]
["R6-4","ROUNDABOUT DIRECTIONAL (2 ARROWS)"]
["R6-4a","ROUNDABOUT DIRECTIONAL (3 ARROWS)"]
["R6-4b","ROUNDABOUT DIRECTIONAL (4 ARROWS)"]
["R6-6","BEGIN ONE WAY"]
["R6-7","END ONE WAY"]
["R7-108","15 MIN PARKING"]
["R7-8bP","VAN ACCESSIBLE PLAQUE"]
["R7-8M","DISABLED PARKING (WITH SYMBOL)"]
["R7-X2","NO TRUCK PARKING"]
["R8-3","NO PARKING"]
["R8-3dP","ON BRIDGE PLAQUE"]
["R8-3PM","BETWEEN SIGNS PLAQUE"]
["R8-3PMa","10 PM TO 6 AM"]
["R8-41","PARK & RIDE PARKING ONLY"]
["R8-7","EMERGENCY STOPPING ONLY"]
["R8-7M","EMERGENCY STOPPING ONLY PEDS PROHIBITED"]
["R8-8","DO NOT STOP ON TRACKS"]
["R9-3","NO PEDESTRIANS"]
["R9-5","BIKES USE PED SIGNAL"]
["R9-6","BIKES YIELD TO PEDS"]
["R9-7L","KEEP LEFT PEDS"]
["R9-7R","KEEP RIGHT PEDS"]
["R9-X1","BIKES USE SHOULDER"]
["S1-1","SCHOOL XING"]
["S3-1","SCHOOL BUS STOP AHEAD"]
["S3-2M","SCHOOL BUS TURN AROUND"]
["S3-X1","SCHOOL BUS LOADING AREA"]
["S4-1P","XX-XX AM XX-XX PM PLAQUE"]
["S4-2P","WHEN CHILDREN ARE PRESENT PLAQUE"]
["S4-3P","SCHOOL PLAQUE"]
["S4-4P","WHEN FLASHING PLAQUE"]
["S4-5","SCHOOL ZONE AHEAD SPEED LIMIT XX"]
["S4-6P","MON-FRI PLAQUE"]
["S4-7P","ALL YEAR PLAQUE"]
["S5-1","SCHOOL SPEED LIMIT XX WHEN FLASHING"]
["S5-2","END SCHOOL ZONE"]
["S5-3","END SCHOOL SPEED LIMIT"]
["W10-1","RR ADVANCE WARNING"]
["W10-11","LOW STORAGE SPACE"]
["W10-11a","XX FEET BETWEEN TRACKS & HIGHWAY"]
["W10-11b","XX FEET BETWEEN HIGHWAY & TRACK BEHIND YOU"]
["W10-12L","ANGLED RR CROSSING LEFT"]
["W10-12R","ANGLED RR CROSSING RIGHT"]
["W10-1aP","EXEMPT PLAQUE"]
["W10-2L","RR PARALLEL TRACKS LEFT INTERSECTION"]
["W10-2R","RR PARALLEL TRACKS RIGHTINTERSECTION"]
["W10-3L","RR PARALLEL TRACKS LEFT TEE INTERSECTION"]
["W10-3R","RR PARALLEL TRACKS RIGHT TEE INTERSECTION"]
["W10-4L","TEE INTERSECTION RR PARALLEL TRACKS LEFT"]
["W10-4R","TEE INTERSECTION RR PARALLEL TRACKS RIGHT"]
["W10-5","LOW GROUND CLEARANCE RR X-ING"]
["W10-5P","LOW GROUND CLEARANCE PLAQUE"]
["W10-9","NO TRAIN HORN"]
["W10-9P","NO TRAIN HORN PLAQUE"]
["W10-X3","LOOK FOR TRAINS"]
["W1-10aL","CURVE LEFT WITH INTERSECTION"]
["W1-10aR","CURVE RIGHT WITH INTERSECTION"]
["W1-10bL","CURVE LEFT WITH STRAIGHT ON INTERSECTION"]
["W1-10bR","CURVE RIGHT WITH STRAIGHT ON INTERSECTION"]
["W1-10cL","CURVE LEFT WITH TANGENT INTERSECTION"]
["W1-10cR","CURVE RIGHT WITH TANGENT INTERSECTION"]
["W1-10dL","REVERSE CURVE LEFT WITH TEE INTERSECTION"]
["W1-10dR","REVERSE CURVE RIGHT WITH TEE INTERSECTION"]
["W1-10eL","REVERSE CURVE LEFT WITH INTERSECTION"]
["W1-10eR","REVERSE CURVE RIGHT WITH INTERSECTION"]
["W1-10L","CURVE LEFT WITH TEE INTERSECTION"]
["W1-10R","CURVE RIGHT WITH TEE INTERSECTION"]
["W11-1","BICYCLE CROSSING"]
["W11-10","TRUCK CROSSING"]
["W11-14","HORSE-DRAWN VEHICLE"]
["W11-15","COMBINED BICYCLE/PEDESTRIAN CROSSING"]
["W11-15a","TRAIL CROSSING"]
["W11-15P","TRAIL CROSSING PLAQUE"]
["W1-11L","HAIRPIN TURN LEFT"]
["W1-11R","HAIRPIN TURN RIGHT"]
["W11-2","PEDESTRIAN CROSSING"]
["W11-3","DEER CROSSING"]
["W1-13L","TRUCK ROLLOVER CURVE LEFT"]
["W1-13R","TRUCK ROLLOVER CURVE RIGHT"]
["W11-4","CATTLE CROSSING"]
["W11-5","FARM MACHINERY"]
["W1-15L","270 DEGREE LOOP LEFT"]
["W1-15R","270 DEGREE LOOP RIGHT"]
["W11-6","SNOWMOBILE CROSSING"]
["W11-7","EQUESTRIAN CROSSING"]
["W11-8","FIRE STATION"]
["W11-9","DISABLED CROSSING"]
["W1-1aL","SHARP CURVE LEFT WITH SPEED LIMIT XX"]
["W1-1aR","SHARP CURVE RIGHT WITH SPEED LIMIT XX"]
["W1-1L","SHARP CURVE LEFT"]
["W1-1R","SHARP CURVE RIGHT"]
["W11-X3","TRUCKS ENTERING"]
["W12-1","DOUBLE ARROW"]
["W12-2","LOW CLEARANCE XX'-X\""]
["W12-2a","XXFT XXIN"]
["W1-2aL","CURVE LEFT WITH SPEED LIMIT XX"]
["W1-2aR","CURVE RIGHT WITH SPEED LIMIT XX"]
["W1-2L","CURVE LEFT"]
["W1-2R","CURVE RIGHT"]
["W13-1P","XX MPH PLAQUE"]
["W13-2","EXIT XX MPH"]
["W13-3","RAMP XX MPH"]
["W13-6","EXIT LOOP XX MPH"]
["W13-7","RAMP LOOP XX MPH"]
["W1-3L","REVERSE SHARP CURVE LEFT"]
["W1-3R","REVERSE SHARP CURVE RIGHT"]
["W14-1","DEAD END"]
["W14-2","NO OUTLET"]
["W14-3","NO PASSING ZONE"]
["W1-4L","REVERSE CURVE LEFT"]
["W1-4R","REVERSE CURVE RIGHT"]
["W14-X10","BUS ON SHOULDER WARNING (SYMBOL)"]
["W14-X2","WATCH FOR SLOW TRAFFIC"]
["W14-X9","WATCH FOR BUSES ON SHOULDER"]
["W15-1","PLAYGROUND"]
["W1-5L","WINDING ROAD LEFT"]
["W1-5R","WINDING ROAD RIGHT"]
["W1-6","ONE DIRECTION ARROW"]
["W16-1AP","SHARE THE ROAD PLAQUE"]
["W16-13P","WHEN FLASHING PLAQUE"]
["W16-15P","NEW PLAQUE"]
["W16-17P","ROUNDABOUT PLAQUE"]
["W16-2P","XX FEET PLAQUE"]
["W16-3P","XX MILES PLAQUE"]
["W16-4P","NEXT XX FT PLAQUE"]
["W16-5PL","LEFT ARROW PLAQUE"]
["W16-5PR","RIGHT ARROW PLAQUE"]
["W16-6PL","ADVANCED LEFT TURN PLAQUE"]
["W16-6PR","ADVANCED RIGHT TURN PLAQUE"]
["W16-7PL","DOWN ARROW LEFT PLAQUE"]
["W16-7PR","DOWN ARROW RIGHT PLAQUE"]
["W16-8aP","LEFT STREET STREET RIGHT PLAQUE"]
["W16-8P","STREET NAME PLAQUE"]
["W16-9P","AHEAD PLAQUE"]
["W1-7","DOUBLE ARROW"]
["W1-8","CHEVRON"]
["W19-1","FREEWAY ENDS XX MILES"]
["W19-2","EXPRESSWAY ENDS XX MILES"]
["W19-5","ALL TRAFFIC MUST EXIT"]
["W20-X3L","MERGE LEFT"]
["W20-X3R","MERGE RIGHT"]
["W2-1","CROSS ROAD"]
["W2-2L","SIDE ROAD LEFT"]
["W2-2R","SIDE ROAD RIGHT"]
["W23-2","NEW TRAFFIC PATTERN AHEAD"]
["W2-3L","SIDE ROAD 45° LEFT"]
["W2-3R","SIDE ROAD 45° RIGHT"]
["W2-4","T INTERSECTION"]
["W2-5","Y INTERSECTION"]
["W2-6","ROUNDABOUT"]
["W2-7L","OFFSET INTERSECTION LEFT FIRST"]
["W2-7R","OFFSET INTERSECTION RIGHT FIRST"]
["W2-8L","TWO SIDE ROADS LEFT"]
["W2-8R","TWO SIDE ROADS RIGHT"]
["W2-X12","HIDDEN ENTRANCE"]
["W3-1","STOP AHEAD"]
["W3-2","YIELD AHEAD"]
["W3-3","SIGNAL AHEAD"]
["W3-5","SPEED REDUCTION XX"]
["W3-7","RAMP METER AHEAD"]
["W3-8","RAMP METERED WHEN FLASHING"]
["W3-X4","PREPARE TO STOP WHEN FLASHING"]
["W3-X5","TRAFFIC CONTROL CHANGE AHEAD"]
["W3-X6","ROAD CLOSED WHEN FLASHING"]
["W3-X8","ENTERING TRAFFIC WHEN FLASHING"]
["W3-X8a","ENTERING TRAFFIC"]
["W3-X8b","TRAFFIC APPROACHING"]
["W4-1L","MERGE FROM LEFT"]
["W4-1R","MERGE FROM RIGHT"]
["W4-2L","LANE REDUCTION LEFT"]
["W4-2R","LANE REDUCTION RIGHT"]
["W4-3L","ADDED LANE LEFT"]
["W4-3R","ADDED LANE RIGHT"]
["W4-4P","CROSS TRAFFIC DOES NOT STOP PLAQUE"]
["W4-4aPL","TRAFFIC FROM LEFT DOES NOT STOP PLAQUE"]
["W4-4aPR","TRAFFIC FROM RIGHT DOES NOT STOP PLAQUE"]
["W4-4bP","ONCOMING TRAFFIC DOES NOT STOP PLAQUE"]
["W4-5","MERGE ON CURVE"]
["W4-5P","NO MERGE AREA PLAQUE"]
["W4-6","ADDED LANE ON CURVE"]
["W4-X1L","TRAFFIC MERGING FROM LEFT"]
["W4-X1R","TRAFFIC MERGING FROM RIGHT"]
["W5-1","ROAD NARROWS"]
["W5-2","NARROW BRIDGE"]
["W5-4","RAMP NARROWS"]
["W5-4A","PATH NARROWS"]
["W5-X1","SHOULDER NARROWS"]
["W6-1","DIVIDED HIGHWAY BEGIN"]
["W6-2","DIVIDED HIGHWAY ENDS"]
["W6-3","TWO WAY TRAFFIC"]
["W6-X2","ACCELERATION LANE ENDS"]
["W7-1","HILL"]
["W7-1a","HILL WITH GRADE XX%"]
["W7-2bP","TRUCKS USE LOWER GEAR PLAQUE"]
["W7-3aP","NEXT XX MILES PLAQUE"]
["W7-3bP","XX% GRADE XX MILES PLAQUE"]
["W7-3P","XX% GRADE PLAQUE"]
["W7-5","HILL BIKE"]
["W8-1","BUMP"]
["W8-10","SLIPPERY WHEN WET BIKE"]
["W8-10P","SLIPPERY WHEN WET PLAQUE"]
["W8-11","UNEVEN LANES"]
["W8-12","NO CENTER LINE"]
["W8-13","BRIDGE ICES BEFORE ROAD"]
["W8-14","FALLEN ROCKS"]
["W8-15","GROOVED PAVEMENT"]
["W8-15P","MOTORCYCLE PLAQUE"]
["W8-16","METAL BRIDGE DECK"]
["W8-17L","SHOULDER DROP OFF LEFT"]
["W8-17P","SHOULDER DROP OFF PLAQUE"]
["W8-17R","SHOULDER DROP OFF RIGHT"]
["W8-18","ROAD MAY FLOOD"]
["W8-19","FLOOD GAUGE"]
["W8-1M","BUMP AHEAD"]
["W8-2","DIP"]
["W8-21","GUSTY WINDS AREA"]
["W8-22","FOG AREA"]
["W8-23","NO SHOULDER"]
["W8-25","SHOULDER ENDS"]
["W8-3","PAVEMENT ENDS"]
["W8-4","SOFT SHOULDER"]
["W8-5","SLIPPERY WHEN WET"]
["W8-5bP","STEEL DECK PLAQUE"]
["W8-5P","WHEN WET PLAQUE"]
["W8-7","LOOSE GRAVEL"]
["W8-8","ROUGH ROAD"]
["W8-9","LOW SHOULDER"]
["W8-X14","MINIMUM MAINTENANCE ROAD"]
["W9-1L","LEFT LANE ENDS"]
["W9-1R","RIGHT LANE ENDS"]
["W9-2L","LANE ENDS MERGE LEFT"]
["W9-2R","LANE ENDS MERGE RIGHT"]
["X1-1","AIRCRAFT APPROACH AREA"]
["X2-2","BRIDGE NUMBER XX"]
["X3-4","KEEP OFF INFILTRATION AREA"]
["X3-5D","SNOWPLOW MARKER DOWN"]
["X3-5U","SNOWPLOW MARKER UP"]
["X4-1","GUIDE DELINEATOR (COLOR)"]
["X4-2","1/10 MILE DELINEATOR"]
["X4-3","CYLINDER STYLE DELINEATOR"]
["X5-2","REFLECTIVE POST STRIP"]

{"sheet":"ACTIVITIES","index":18,"n_rows":58,"n_cols":4,"rows_kept":58,"cut":false,"hidden":false,"merged":[]}
[]
[null,"IN\nPLAN","ACTIVITY\nNO","ACTIVITY DESCRIPTION"]
[null,"x",1,"F & I"]
[null,"x",2,"INPLACE"]
[null,null,3,"SALVAGE"]
[null,"x",4,"REMOVE"]
[null,"x",5,"REMOVE SIGN PANEL"]
[null,"x",6,"INSTALL"]
[null,"x",7,"F & I  SIGN PANEL "]
[null,"x",{"$f":"SUBTOTAL(3,$D$10:D10)+7","v":8},"F & I  DELINEATOR/MARKER"]
[null,null,{"$f":"SUBTOTAL(3,$D$10:D11)+7","v":9},"F & I  DELINEATOR/MARKER PANEL"]
[null,null,{"$f":"SUBTOTAL(3,$D$10:D12)+7","v":10},"F & I  LEFT SIGN PANEL"]
[null,null,{"$f":"SUBTOTAL(3,$D$10:D13)+7","v":11},"F & I  MIDDLE SIGN PANEL"]
[null,null,{"$f":"SUBTOTAL(3,$D$10:D14)+7","v":12},"F & I  RIGHT SIGN PANEL"]
[null,null,{"$f":"SUBTOTAL(3,$D$10:D15)+7","v":13},"F & I  SIGN PANEL(S) AND PANEL MOUNTING POSTS"]
[null,"x",{"$f":"SUBTOTAL(3,$D$10:D16)+7","v":14},"F & I  LEFT SIGN PANEL AND PANEL MOUNTING POSTS"]
[null,null,{"$f":"SUBTOTAL(3,$D$10:D17)+7","v":15},"F & I  MIDDLE SIGN PANEL AND PANEL MOUNTING POSTS"]
[null,null,{"$f":"SUBTOTAL(3,$D$10:D18)+7","v":16},"F & I  RIGHT SIGN PANEL AND PANEL MOUNTING POSTS"]
[null,"x",{"$f":"SUBTOTAL(3,$D$10:D19)+7","v":17},"F & I  SIGN PANEL OVERLAY(S)"]
[null,null,{"$f":"SUBTOTAL(3,$D$10:D20)+7","v":18},"F & I  SIGN PANEL OVERLAY LEFT SIGN PANEL"]
[null,"x",{"$f":"SUBTOTAL(3,$D$10:D21)+7","v":19},"F & I  SIGN PANEL OVERLAY MIDDLE SIGN PANEL"]
[null,null,{"$f":"SUBTOTAL(3,$D$10:D22)+7","v":20},"F & I  SIGN PANEL OVERLAY RIGHT SIGN PANEL"]
[null,null,{"$f":"SUBTOTAL(3,$D$10:D23)+7","v":21},"SALVAGE SIGN PANEL(S)"]
[null,null,{"$f":"SUBTOTAL(3,$D$10:D24)+7","v":22},"SALVAGE LEFT SIGN PANEL"]
[null,null,{"$f":"SUBTOTAL(3,$D$10:D25)+7","v":23},"SALVAGE MIDDLE SIGN PANEL"]
[null,null,{"$f":"SUBTOTAL(3,$D$10:D26)+7","v":24},"SALVAGE RIGHT SIGN PANEL"]
[null,null,{"$f":"SUBTOTAL(3,$D$10:D27)+7","v":25},"REMOVE SIGN PANEL(S)"]
[null,null,{"$f":"SUBTOTAL(3,$D$10:D28)+7","v":26},"REMOVE LEFT SIGN PANEL"]
[null,null,{"$f":"SUBTOTAL(3,$D$10:D29)+7","v":27},"REMOVE MIDDLE SIGN PANEL"]
[null,null,{"$f":"SUBTOTAL(3,$D$10:D30)+7","v":28},"REMOVE RIGHT SIGN PANEL"]
[null,null,{"$f":"SUBTOTAL(3,$D$10:D31)+7","v":29},"MODIFY PANEL MOUNTING POSTS"]
[null,null,{"$f":"SUBTOTAL(3,$D$10:D32)+7","v":30},"MODIFY PANEL MOUNTING POSTS LEFT SIGN PANEL"]
[null,null,{"$f":"SUBTOTAL(3,$D$10:D33)+7","v":31},"MODIFY PANEL MOUNTING POSTS MIDDLE SIGN PANEL"]
[null,null,{"$f":"SUBTOTAL(3,$D$10:D34)+7","v":32},"MODIFY PANEL MOUNTING POSTS RIGHT SIGN PANEL"]
[null,null,{"$f":"SUBTOTAL(3,$D$10:D35)+7","v":33},"F & I  EXTRUDED PANEL SECTION(S)"]
[null,null,{"$f":"SUBTOTAL(3,$D$10:D36)+7","v":34},"F & I  EXTRUDED PANEL SECTION(S)  LEFT SIGN PANEL"]
[null,null,{"$f":"SUBTOTAL(3,$D$10:D37)+7","v":35},"F & I  EXTRUDED PANEL SECTION(S)  MIDDLE SIGN PANEL"]
[null,"X",{"$f":"SUBTOTAL(3,$D$10:D38)+7","v":36},"F & I  EXTRUDED PANEL SECTION(S)  RIGHT SIGN PANEL"]
[null,null,{"$f":"SUBTOTAL(3,$D$10:D39)+7","v":37},"REMOVE EXTRUDED PANEL SECTION(S)"]
[null,null,{"$f":"SUBTOTAL(3,$D$10:D40)+7","v":38},"REMOVE EXTRUDED PANEL SECTION(S)  LEFT SIGN PANEL"]
[null,null,{"$f":"SUBTOTAL(3,$D$10:D41)+7","v":39},"REMOVE EXTRUDED PANEL SECTION(S)  MIDDLE SIGN PANEL"]
[null,null,{"$f":"SUBTOTAL(3,$D$10:D42)+7","v":40},"REMOVE EXTRUDED PANEL SECTION(S)  RIGHT SIGN PANEL"]
[null,null,{"$f":"SUBTOTAL(3,$D$10:D43)+7","v":41},"SAW SIGN PANEL(S)"]
[null,null,{"$f":"SUBTOTAL(3,$D$10:D44)+7","v":42},"SAW LEFT SIGN PANEL"]
[null,null,{"$f":"SUBTOTAL(3,$D$10:D45)+7","v":43},"SAW MIDDLE SIGN PANEL"]
[null,null,{"$f":"SUBTOTAL(3,$D$10:D46)+7","v":44},"SAW RIGHT SIGN PANEL"]
[null,null,{"$f":"SUBTOTAL(3,$D$10:D47)+7","v":45},"MODIFY SIGN STRUCTURE"]
[null,null,{"$f":"SUBTOTAL(3,$D$10:D48)+7","v":46},"REPOSITION LEFT SIGN PANEL"]
[null,null,{"$f":"SUBTOTAL(3,$D$10:D49)+7","v":47},"REPOSITION MIDDLE SIGN PANEL"]
[null,null,{"$f":"SUBTOTAL(3,$D$10:D50)+7","v":48},"REPOSITION RIGHT SIGN PANEL"]
[null,null,{"$f":"SUBTOTAL(3,$D$10:D51)+7","v":49},"INSTALL SIGN PANEL(S)"]
[null,null,{"$f":"SUBTOTAL(3,$D$10:D52)+7","v":50},"INSTALL LEFT SIGN PANEL"]
[null,null,{"$f":"SUBTOTAL(3,$D$10:D53)+7","v":51},"INSTALL MIDDLE SIGN PANEL"]
[null,null,{"$f":"SUBTOTAL(3,$D$10:D54)+7","v":52},"INSTALL RIGHT SIGN PANEL"]
[null,null,{"$f":"SUBTOTAL(3,$D$10:D55)+7","v":53},"MODIFY POSTS"]
[null,null,{"$f":"SUBTOTAL(3,$D$10:D56)+7","v":54},"F & I  OVERHEAD SIGN IDENTIFICATION PLATE"]
[null,null,{"$f":"SUBTOTAL(3,$D$10:D57)+7","v":55},"REMOVE SIGN WALKWAY"]
[null,null,{"$f":"SUBTOTAL(3,$D$10:D58)+7","v":56},"REMOVE SIGN LIGHTING SYSTEM"]